Workbook

Sheet Kuntakortti
A1: Valtiovarainministeriö/Kunta- ja alueosasto, 21.8.2023
A2: KUNTAKONSERNIEN TP 2020 - 2022 (lyhennetty kaava) | G2: Valitse kunta valikosta:
A4: =INDEX(Luvut!$B$3:'Luvut'!$B$296,$A$7) -> Koko Suomi (Manner-Suomi) | D4: 2020 | G4: 2021 | J4: 2022
A6: Asukasluku | D6: =VLOOKUP($A$4,Luvut!$B$3:$AV$296,2) -> 5503664 | G6: =VLOOKUP($A$4,Luvut!$B$3:$EJ$296,48) -> 5517897 | I6: =((G6/D6)-1)*100 -> 0.2586095372 | J6: =VLOOKUP($A$4,Luvut!$B$3:$EJ$296,94) -> 5533611 | L6: =((J6/G6)-1)*100 -> 0.284782409
A7: 95
A8: Tunnuslukuja
I9: muutos% | L9: muutos%
A10: Lainat, euro/as | D10: =E66 -> 7480.465014 | G10: =H66 -> 7679.757319 | I10: =((G10/D10)-1)*100 -> 2.66417001 | J10: =K66 -> 7867.961626 | L10: =((J10/G10)-1)*100 -> 2.450654345
A12: Lainanhoitokate* | D12: =VLOOKUP($A$4,Luvut!$B$3:$AV$296,4) -> 1.982428854 | G12: =VLOOKUP($A$4,Luvut!$B$3:$EJ$296,50) -> 1.839379606 | J12: =VLOOKUP($A$4,Luvut!$B$3:$EJ$296,96) -> 1.7
A13: Suhteellinen velkaantuneisuus, % | D13: =VLOOKUP($A$4,Luvut!$B$3:$AV$296,5) -> 84.26466376 | G13: =VLOOKUP($A$4,Luvut!$B$3:$EJ$296,51) -> 82.48213631 | J13: =VLOOKUP($A$4,Luvut!$B$3:$EJ$296,97) -> 82
A14: Rahoitusvarallisuus, euro/as | D14: =VLOOKUP($A$4,Luvut!$B$3:$AV$296,6) -> -7091.173262 | G14: =VLOOKUP($A$4,Luvut!$B$3:$EJ$296,52) -> -7178.273418 | J14: =VLOOKUP($A$4,Luvut!$B$3:$EJ$296,98) -> -7429
A15: Omavaraisuusaste, % | D15: =VLOOKUP($A$4,Luvut!$B$3:$AV$296,10) -> 42.05197956 | G15: =VLOOKUP($A$4,Luvut!$B$3:$EJ$296,56) -> 41.79822183 | J15: =VLOOKUP($A$4,Luvut!$B$3:$EJ$296,102) -> 41
A17: Rahavarat, euro/as | D17: =VLOOKUP($A$4,Luvut!$B$3:$AV$296,11) -> 1682.390131 | G17: =VLOOKUP($A$4,Luvut!$B$3:$EJ$296,57) -> 1753.998739 | J17: =VLOOKUP($A$4,Luvut!$B$3:$EJ$296,103) -> 1921
A18: Kassan riittävyys, pv | D18: =VLOOKUP($A$4,Luvut!$B$3:$AV$296,12) -> 49.38402432 | G18: =VLOOKUP($A$4,Luvut!$B$3:$EJ$296,58) -> 48.9760954 | J18: =VLOOKUP($A$4,Luvut!$B$3:$EJ$296,104) -> 50
A19: Kassastamaksut, euro/as | D19: =VLOOKUP($A$4,Luvut!$B$3:$AV$296,13) -> 12434.63663 | G19: =VLOOKUP($A$4,Luvut!$B$3:$EJ$296,59) -> 13071.87791 | J19: =VLOOKUP($A$4,Luvut!$B$3:$EJ$296,105) -> 14037
A20: Tuloslaskelma | D20: 1000 | E20: euro/as | G20: 1000 | H20: euro/as | I20: muutos% | J20: 1000 | K20: euro/as | L20: muutos% | N20: 2020 - 2021 | O20: 2021 - 2022
N21: €/as | O21: €/as
D22: =VLOOKUP($A$4,Luvut!$B$3:$AZ$296,14) -> 0
D23: =VLOOKUP($A$4,Luvut!$B$3:$EL$296,134) -> 0
A24: Toimintatuotot | D24: =VLOOKUP($A$4,Luvut!$B$3:$AV$296,15) -> 26449305 | E24: =D24*1000/$D$6 -> 4805.763033 | G24: =VLOOKUP($A$4,Luvut!$B$3:$EJ$296,61) -> 29578141.94 | H24: =G24*1000/$G$6 -> 5360.401244 | I24: =((G24/D24)-1)*100 -> 11.82956203 | J24: =VLOOKUP($A$4,Luvut!$B$3:$EJ$296,107) -> 31512266 | K24: =J24*1000/$J$6 -> 5694.702067 | L24: =((J24/G24)-1)*100 -> 6.539031634 | N24: =((H24/E24)-1)*100 -> 11.54110609 | O24: =((K24/H24)-1)*100 -> 6.236488802
A25: Toimintakulut | D25: =VLOOKUP($A$4,Luvut!$B$3:$AV$296,16) -> 55390834 | E25: =D25*1000/$D$6 -> 10064.35604 | G25: =VLOOKUP($A$4,Luvut!$B$3:$EJ$296,62) -> 59506994.68 | H25: =G25*1000/$G$6 -> 10784.36127 | I25: 7.431122421 | J25: =VLOOKUP($A$4,Luvut!$B$3:$EJ$296,108) -> 63470265 | K25: =J25*1000/$J$6 -> 11469.95425 | L25: 6.660175558 | N25: =((H25/E25)-1)*100 -> 7.154011927 | O25: =((K25/H25)-1)*100 -> 6.357288709
A26: Osuus osakkuusyhteisöjen voitosta/tappiosta | D26: =VLOOKUP($A$4,Luvut!$B$3:$AZ$296,17) -> 93462 | E26: 16.98177796 | G26: =VLOOKUP($A$4,Luvut!$B$3:$EJ$296,63) -> 74212.18445 | H26: 13.44936023 | J26: =VLOOKUP($A$4,Luvut!$B$3:$EJ$296,109) -> 40474 | K26: =J26*1000/$J$6 -> 7.314211281
A27: Toimintakate | D27: =VLOOKUP($A$4,Luvut!$B$3:$AV$296,18) -> -28848068 | E27: -5241.611407 | G27: =VLOOKUP($A$4,Luvut!$B$3:$EJ$296,64) -> -29854640.56 | H27: -5410.510663 | I27: 3.489219994 | J27: =VLOOKUP($A$4,Luvut!$B$3:$EJ$296,110) -> -31917405 | K27: =J27*1000/$J$6 -> -5767.916285 | L27: 6.9093595 | N27: =((H27/E27)-1)*100 -> 3.22227734 | O27: =((K27/H27)-1)*100 -> 6.605765035
A29: Verotulot | D29: =VLOOKUP($A$4,Luvut!$B$3:$AV$296,19) -> 23776310 | E29: 4320.087491 | G29: =VLOOKUP($A$4,Luvut!$B$3:$EJ$296,65) -> 25362358.12 | H29: 4596.381216 | I29: 6.670707612 | J29: =VLOOKUP($A$4,Luvut!$B$3:$EJ$296,111) -> 26707861 | K29: =J29*1000/$J$6 -> 4826.479671 | L29: 5.305117421 | N29: =((H29/E29)-1)*100 -> 6.39555855 | O29: =((K29/H29)-1)*100 -> 5.006078581
A30: Valtionosuudet, | D30: =VLOOKUP($A$4,Luvut!$B$3:$AV$296,20) -> 12216714 | E30: 2219.741976 | G30: =VLOOKUP($A$4,Luvut!$B$3:$EJ$296,66) -> 11284744.39 | H30: 2045.116898 | I30: -7.628643888 | J30: =VLOOKUP($A$4,Luvut!$B$3:$EJ$296,112) -> 11976772 | K30: =J30*1000/$J$6 -> 2164.368258 | L30: 6.132417197 | N30: =((H30/E30)-1)*100 -> -7.866908848 | O30: =((K30/H30)-1)*100 -> 5.831029043
A32: Verorahoitus | D32: =SUM(D29:D30) -> 35993024 | E32: 6539.829466 | G32: =SUM(G29:G30) -> 36647102.52 | H32: 6641.498113 | I32: 1.817236904 | J32: =SUM(J29:J30) -> 38684633 | K32: =J32*1000/$J$6 -> 6990.847929 | L32: 5.559867889 | N32: =((H32/E32)-1)*100 -> 1.554607005 | O32: =((K32/H32)-1)*100 -> 5.260105624
A33: Käyttökate | D33: =D32+D27 -> 7144956 | E33: 1298.21806 | G33: =G27+G32 -> 6792461.959 | H33: 1230.98745 | J33: =J27+J32 -> 6767228 | K33: =J33*1000/$J$6 -> 1222.931644
A35: Korkotuotot/-menot, netto | D35: =VLOOKUP($A$4,Luvut!$B$3:$AV$296,23) -> -355306 | E35: -64.55808349 | G35: =VLOOKUP($A$4,Luvut!$B$3:$EJ$296,69) -> -322178.015 | H35: -58.38782691 | J35: =VLOOKUP($A$4,Luvut!$B$3:$EJ$296,115) -> -349071 | K35: =J35*1000/$J$6 -> -63.08195498
A36: Muut rahoituskulut/-tuotot, netto | D36: =VLOOKUP($A$4,Luvut!$B$3:$AV$296,24) -> 104750 | E36: 19.03277526 | G36: =VLOOKUP($A$4,Luvut!$B$3:$EJ$296,70) -> 277918.6163 | H36: 50.36676406 | J36: =VLOOKUP($A$4,Luvut!$B$3:$EJ$296,116) -> -55813 | K36: =J36*1000/$J$6 -> -10.08618062
A37: Vuosikate | D37: =VLOOKUP($A$4,Luvut!$B$3:$AV$296,25) -> 6894400 | E37: 1252.692752 | G37: =VLOOKUP($A$4,Luvut!$B$3:$EJ$296,71) -> 6748068.806 | H37: 1222.942147 | J37: =VLOOKUP($A$4,Luvut!$B$3:$EJ$296,117) -> 6362342 | K37: =J37*1000/$J$6 -> 1149.763147
A39: Suunnitelman mukaiset poistot ja arvonalen. | D39: =VLOOKUP($A$4,Luvut!$B$3:$AV$296,26) -> 4681448 | E39: 850.6057056 | G39: =VLOOKUP($A$4,Luvut!$B$3:$EJ$296,72) -> 4819824.347 | H39: 873.489365 | I39: 2.955845007 | J39: =VLOOKUP($A$4,Luvut!$B$3:$EJ$296,118) -> 4937452 | K39: =J39*1000/$J$6 -> 892.2658279 | L39: 2.440496678
A40: Satunnaiset erät | D40: =VLOOKUP($A$4,Luvut!$B$3:$AV$296,27) -> 119640 | E40: 21.73824565 | G40: =VLOOKUP($A$4,Luvut!$B$3:$EJ$296,73) -> 107688.2948 | H40: 19.5161843 | J40: =VLOOKUP($A$4,Luvut!$B$3:$EJ$296,119) -> 207757 | K40: =J40*1000/$J$6 -> 37.54456177
A42: Tilikauden tulos | D42: =VLOOKUP($A$4,Luvut!$B$3:$AV$296,29) -> 2332592 | E42: 423.8252917 | G42: =VLOOKUP($A$4,Luvut!$B$3:$EJ$296,75) -> 2035932.756 | H42: 368.9689669 | J42: =VLOOKUP($A$4,Luvut!$B$3:$EJ$296,121) -> 1627855 | K42: =J42*1000/$J$6 -> 294.1759007
A44: Tilinpäätössiirrot | D44: =VLOOKUP($A$4,Luvut!$B$3:$AV$296,31) -> -58220 | E44: =D44*1000/$D$6 -> -10.5784074 | G44: =VLOOKUP($A$4,Luvut!$B$3:$EJ$296,77) -> -4579.8881 | H44: -0.8300060875 | J44: =VLOOKUP($A$4,Luvut!$B$3:$EJ$296,123) -> -21823 | K44: =J44*1000/$J$6 -> -3.943717764
A45: Tilikauden verot | D45: =VLOOKUP($A$4,Luvut!$B$3:$EJ$296,32) -> 75433 | E45: 13.70596025 | G45: =VLOOKUP($A$4,Luvut!$B$3:$EJ$296,78) -> 104657.8677 | H45: 18.96698465 | J45: =VLOOKUP($A$4,Luvut!$B$3:$EJ$296,124) -> 127840 | K45: =J45*1000/$J$6 -> 23.10245516
A46: Laskennalliset verot | D46: =VLOOKUP($A$4,Luvut!$B$3:$EJ$296,33) -> -68982 | E46: -12.53383201 | G46: =VLOOKUP($A$4,Luvut!$B$3:$EJ$296,79) -> -48761.12652 | H46: -8.836904081 | J46: =VLOOKUP($A$4,Luvut!$B$3:$EJ$296,125) -> -49906 | K46: =J46*1000/$J$6 -> -9.018704061
A47: Vähemmistöosuudet | D47: =VLOOKUP($A$4,Luvut!$B$3:$AV$296,30) -> -45422 | E47: =D47*1000/$D$6 -> -8.253047424 | G47: =VLOOKUP($A$4,Luvut!$B$3:$EJ$296,76) -> -44084.34721 | H47: =G47*1000/$G$6 -> -7.989338549 | J47: =VLOOKUP($A$4,Luvut!$B$3:$EJ$296,122) -> -5663 | K47: -1.023382381
A48: Tilikauden yli-/alijäämä | D48: =VLOOKUP($A$4,Luvut!$B$3:$AV$296,34) -> 2085217 | E48: 378.877962 | G48: =VLOOKUP($A$4,Luvut!$B$3:$EJ$296,80) -> 1833848.563 | H48: 332.3455589 | J48: =VLOOKUP($A$4,Luvut!$B$3:$EJ$296,126) -> 1422621 | K48: =J48*1000/$J$6 -> 257.0872799
A49: Taseen kertynyt yli-/alijäämä | D49: =VLOOKUP($A$4,Luvut!$B$3:$AW$296,35) -> 14697041 | E49: 2670.410294 | G49: =VLOOKUP($A$4,Luvut!$B$3:$EJ$296,81) -> 16434039.38 | H49: 2978.31572 | J49: =VLOOKUP($A$4,Luvut!$B$3:$EJ$296,127) -> 17791840 | K49: =J49*1000/$J$6 -> 3215.231428
A51: Rahoituslaskelma | D51: 1000 | E51: euro/as | G51: 1000 | H51: euro/as | J51: 1000 | K51: euro/as
A53: Toiminnan rahavirta | D53: =VLOOKUP($A$4,Luvut!$B$3:$AV$296,36) -> 6368334 | E53: 1157.108065 | G53: =VLOOKUP($A$4,Luvut!$B$3:$EJ$296,82) -> 6075765.615 | H53: =G53*1000/$G$6 -> 1101.101672 | J53: =VLOOKUP($A$4,Luvut!$B$3:$EJ$296,128) -> 5569402 | K53: =J53*1000/$J$6 -> 1006.467928
A54: Investoinnit, netto | D54: =D55+D56+D57 -> -7265469 | E54: -1320.114927 | G54: =G55+G56+G57 -> -6699845.476 | H54: -1214.202707 | I54: -7.785093072 | J54: =J55+J56+J57 -> -6926443 | K54: -1251.703996 | L54: 3.382130597
A55: - Investointimenot | D55: =VLOOKUP($A$4,Luvut!$B$3:$EV$296,146) -> -9180621 | E55: -1668.092565 | G55: =VLOOKUP($A$4,Luvut!$B$3:$EV$296,149) -> -8590005.235 | H55: -1556.753458 | I55: -6.433287738 | J55: =VLOOKUP($A$4,Luvut!$B$3:$FQ$296,152) -> -9681016 | K55: -1749.493414 | L55: 12.70093248
A56: + Rahoitusosuudet investointimenoihin | D56: =VLOOKUP($A$4,Luvut!$B$3:$EV$296,147) -> 203417 | E56: 36.96028682 | G56: =VLOOKUP($A$4,Luvut!$B$3:$EV$296,150) -> 257541.7962 | H56: 46.67390424 | I56: =((G56/D56)-1)*100 -> 26.60780377 | J56: =VLOOKUP($A$4,Luvut!$B$3:$FQ$296,153) -> 216944 | K56: 39.20477966 | L56: -15.76357578
A57: + Investointihyödykkeiden luovutustulot | D57: =VLOOKUP($A$4,Luvut!$B$3:$EV$296,148) -> 1711735 | E57: 311.0173513 | G57: =VLOOKUP($A$4,Luvut!$B$3:$EV$296,151) -> 1632617.962 | H57: 295.8768463 | I57: =((G57/D57)-1)*100 -> -4.622037728 | J57: =VLOOKUP($A$4,Luvut!$B$3:$FQ$296,154) -> 2537629 | K57: 458.5846385 | L57: 55.43311775
A58: Saamisten muutos | D58: =VLOOKUP($A$4,Luvut!$B$3:$AV$296,38) -> 130334 | E58: 23.68131485 | G58: =VLOOKUP($A$4,Luvut!$B$3:$EJ$296,84) -> -859159.9211 | H58: -155.7042332 | J58: =VLOOKUP($A$4,Luvut!$B$3:$EJ$296,130) -> -525529 | K58: -94.9703548
A59: Pitkäaikaisten lainojen vähennys | D59: =VLOOKUP($A$4,Luvut!$B$3:$AV$296,39) -> -3269367 | E59: -594.0346286 | G59: =VLOOKUP($A$4,Luvut!$B$3:$EJ$296,85) -> -3508614.919 | H59: -635.860894 | J59: =VLOOKUP($A$4,Luvut!$B$3:$EJ$296,131) -> -3611853 | K59: -652.7117645
A60: Pitkäaikaisten lainojen lisäys | D60: =VLOOKUP($A$4,Luvut!$B$3:$FE$296,155) -> 6260610 | E60: 1137.534922 | G60: =VLOOKUP($A$4,Luvut!$B$3:$FE$296,157) -> 4520813.193 | H60: 819.3000328 | J60: =VLOOKUP($A$4,Luvut!$B$3:$FE$296,159) -> 4919801 | K60: 889.0760482
A61: ± Lyhytaikaisten lainojen muutos | D61: =VLOOKUP($A$4,Luvut!$B$3:$FE$296,156) -> -989476 | E61: -179.7849578 | G61: =VLOOKUP($A$4,Luvut!$B$3:$FE$296,158) -> 259626.3413 | H61: 47.05168316 | J61: =VLOOKUP($A$4,Luvut!$B$3:$FE$296,160) -> -21878 | K61: -3.953657024
A62: Toiminnan ja investointien rahavirta | D62: =VLOOKUP($A$4,Luvut!$B$3:$AV$296,40) -> -897135 | E62: -163.0068623 | G62: =VLOOKUP($A$4,Luvut!$B$3:$EJ$296,86) -> -624085.0453 | H62: -113.1019744 | J62: =VLOOKUP($A$4,Luvut!$B$3:$EJ$296,132) -> -1206512 | K62: -218.0333963
A64: Takaukset muiden puolesta (jäljellä oleva po) | D64: =VLOOKUP($A$4,Luvut!$B$3:$FR$296,173) -> 1487603 | E64: 270.2932083 | G64: =VLOOKUP($A$4,Luvut!$B$3:$FS$296,174) -> 0 | H64: 0 | J64: =VLOOKUP($A$4,Luvut!$B$3:$FT$296,175) -> 0 | K64: =J64*1000/$J$6 -> 0 | M64: Ei kerätty 2021 ja 2022
N65: 2020 - 2021 | O65: 2021 - 2022
A66: Lainakanta, | D66: =VLOOKUP($A$4,Luvut!$B$3:$FI$296,161) -> 41169966 | E66: 7480.465014 | G66: =VLOOKUP($A$4,Luvut!$B$3:$FM$296,165) -> 42376109.87 | H66: 7679.757319 | I66: =((G66/D66)-1)*100 -> 2.929669345 | J66: =VLOOKUP($A$4,Luvut!$B$3:$FQ$296,169) -> 43538239 | K66: =J66*1000/$J$6 -> 7867.961626 | L66: =((J66/G66)-1)*100 -> 2.742415786 | N66: €/as | O66: €/as
A67: josta pitkäaikainen laina | D67: =VLOOKUP($A$4,Luvut!$B$3:$FI$296,162) -> 35466665 | E67: 6444.191542 | G67: =VLOOKUP($A$4,Luvut!$B$3:$FM$296,166) -> 36140832.99 | H67: =G67*1000/$G$6 -> 6549.747664 | J67: =VLOOKUP($A$4,Luvut!$B$3:$FQ$296,170) -> 37118290 | K67: =J67*1000/$J$6 -> 6707.788097 | N67: =((H66/E66)-1)*100 -> 2.66417001 | O67: =((K66/H66)-1)*100 -> 2.450654345
A68: josta lyhytaikainen laina | D68: =VLOOKUP($A$4,Luvut!$B$3:$FI$296,163) -> 5705821 | E68: 1036.731348 | G68: =VLOOKUP($A$4,Luvut!$B$3:$FM$296,167) -> 6207143.346 | H68: 1124.911057 | J68: =VLOOKUP($A$4,Luvut!$B$3:$FQ$296,171) -> 6419949 | K68: 1160.173529 | N68: =((H67/E67)-1)*100 -> 1.638004105 | O68: 2.412923994
A69: Lainasaamiset | D69: =VLOOKUP($A$4,Luvut!$B$3:$FI$296,164) -> 1114350 | E69: 202.4742063 | G69: =VLOOKUP($A$4,Luvut!$B$3:$FM$296,168) -> 1101531.225 | H69: 199.6288125 | J69: =VLOOKUP($A$4,Luvut!$B$3:$FQ$296,172) -> 1130168 | K69: 204.2369802 | N69: 8.505550505 | O69: 3.134689766
A70: Vuokravastuut | D70: =VLOOKUP($A$4,Luvut!$B$3:$FU$296,176) -> 7234678 | E70: 1314.52029 | G70: =VLOOKUP($A$4,Luvut!$B$3:$FV$296,177) -> 7742589.961 | H70: 1403.177689 | J70: =VLOOKUP($A$4,Luvut!$B$3:$FW$296,178) -> 8422790.194 | K70: 1522.114618 | N70: =((H69/E69)-1)*100 -> -1.405311743 | O70: 2.308368027
A71: Lainat ja vuokravastuut | D71: =D66+D70 -> 48404644 | E71: 8794.985304 | G71: =G66+G70 -> 50118699.83 | H71: 9082.935008 | J71: =J66+J70 -> 51961029.19 | K71: 9390.076244
A73: Tuloveroprosentti | D73: =VLOOKUP($A$4,Luvut!$B$3:$AV$296,45) -> 19.96 | G73: =VLOOKUP($A$4,Luvut!$B$3:$EJ$296,91) -> 20.02 | J73: =VLOOKUP($A$4,Luvut!$B$3:$EJ$296,137) -> 20.01
A74: * Ei tietoa kertalyhenteisistä lainoista
A75: Sijoitus vuosikatteen (euro/as) mukaan | D75: =VLOOKUP($A$4,Luvut!$B$3:$AV$296,47) -> - | G75: =VLOOKUP($A$4,Luvut!$B$3:$EJ$296,93) -> - | J75: =VLOOKUP($A$4,Luvut!$B$3:$EJ$296,139) -> -
A76: Lähde: Tilastokeskus
A78: Rahoitusvarallisuus = ((saamiset + rahoitusarvopaperit + rahat ja pankkisaamiset) - (vieras pääoma - saadut ennakot))
A79: Kunnat vuoden 2023 kuntajaolla

Sheet Luvut
C1: 2020 | D1: hakee muualta | E1: 92 | F1: 93 | G1: 94 | H1: vanha | I1: 96 | J1: 97 | K1: 98 | L1: 99 | M1: 100 | N1: 101 | O1: 102 | P1: 103 | Q1: 104 | S1: 105 | T1: 106 | U1: 107 | V1: 108 | W1: summana | X1: 110 | Y1: 111 | Z1: 112 | AA1: 113 | AB1: 114 | AC1: 115 | AD1: 116 | AF1: 117 | AG1: 118 | AH1: 119 | AI1: 120 | AJ1: 121 | AK1: 122 | AL1: kaavasta | AM1: 124 | AN1: 125 | AO1: 126 | AP1: 127 | AQ1: 128 | AR1: 129 | AS1: 130 | AT1: 131 | AU1: kaavasta | AV1: 133 | AW1: 2021 | AX1: hakee muualta | AY1: 92 | AZ1: 93 | BA1: 94 | BB1: vanha | BC1: 96 | BD1: 97 | BE1: 98 | BF1: 99 | BG1: 100 | BH1: 101 | BI1: 102 | BJ1: 103 | BK1: 104 | BM1: 105 | BN1: 106 | BO1: 107 | BP1: 108 | BQ1: summana | BR1: 110 | BS1: 111 | BT1: 112 | BU1: 113 | BV1: 114 | BW1: 115 | BX1: 116 | BY1: 117 | CA1: 118 | CB1: 119 | CC1: 120 | CD1: 121 | CE1: 122 | CF1: kaavasta | CG1: 124 | CH1: 125 | CI1: 126 | CJ1: 127 | CK1: 128 | CL1: 129 | CM1: 130 | CN1: 131 | CO1: kaavasta | CP1: 133 | CQ1: 2022 | CR1: hakee muualta | CS1: 92 | CT1: 93 | CU1: 94 | CV1: vanha | CW1: 96 | CX1: 97 | CY1: 98 | CZ1: 99 | DA1: 100 | DB1: 101 | DC1: 102 | DD1: 107 | DE1: 108 | DF1: 109 | DG1: 110 | DH1: 111 | DI1: 112 | DJ1: 113 | DK1: summana | DL1: 115 | DM1: 116 | DN1: 117 | DO1: 118 | DP1: 119 | DQ1: 120 | DR1: 121 | DS1: 122 | DT1: 123 | DU1: 124 | DV1: 125 | DW1: 126 | DX1: 127 | DY1: 128 | DZ1: kaavasta | EA1: 130 | EB1: 131 | EC1: 132 | ED1: 133 | EE1: 134 | EF1: 135 | EG1: 136 | EH1: 137 | EI1: kaavasta | EJ1: 139 | EK1: Erillistiedot | EL1: 141 | EM1: 142 | EN1: 143 | EO1: 144 | EP1: 145 | EQ1: 2020 | ER1: 147 | ES1: 148 | ET1: 2021 | EU1: 150 | EV1: 151 | EW1: 2022 | EX1: 153 | EY1: 154 | EZ1: 2020 | FA1: 156 | FB1: 2021 | FC1: 158 | FD1: 2022 | FE1: 160 | FF1: 2020 | FG1: 162 | FH1: 163 | FI1: 164 | FJ1: 2021 | FK1: 166 | FL1: 167 | FM1: 168 | FN1: 2022 | FO1: 170 | FP1: 171 | FQ1: 172 | FR1: 2020 | FS1: 2021 | FT1: 2022 | FU1: 2020 | FV1: 2021 | FW1: 2022
A2: Kunta nro | B2: Kunta | C2: Asukasluku | D2: Lainat e/asukas | E2: Lainanhoitokate | F2: Suhteellinen velkaantuneisuus-% | G2: Rahoitusvarallisuus, e/as | H2: Vuosikate | I2: Suunnitelman mukaiset poistot | J2: Tilikauden tulos | K2: Omavaraisuusaste, % | L2: Rahavarat e/as | M2: Kassan riittävyys, pv | N2: Kassasta maksut, €/as | O2: Henkilöstökulut | P2: Toimintatuotot | Q2: Toimintakulut | R2: Osuus osakkuusyhteisojen voitosta/tappiosta | S2: Toimintakate | T2: Verotulot | U2: Valtionosuudet | V2: Alv-takaisinperintä | W2: Käyttökate | X2: Korkotuotot/-menot, netto | Y2: Muut rahoitustuotot/-menot, netto (sis Osinkotuotot) | Z2: Vuosikate | AA2: Suunnitelman mukaiset poistot ja arvonalet | AB2: Satu. erät, netto | AC2: Satunnaiset kulut | AD2: Tilikauden tulos | AE2: Vähemmistöosuudet | AF2: Tilinpäätössiirrot | AG2: Tilikauden verot | AH2: Lask. Verot | AI2: Tilikauden yli- tai alijäämä | AJ2: Kumulat yli/alij | AK2: Tulorah (toiminnan rahavirta) | AL2: Investoinnit, netto | AM2: Saamisten muutos (ent Pitkäaikaisten saamisten muutokset, netto) | AN2: Pitkäaikaisten lainojen vähennys | AO2: Toim ja inv rahavirta | AP2: Verotulot | AQ2: Kunnallisvero | AR2: Osuus yhteisöveron tuotosta | AS2: Kiinteistövero | AT2: Tuloveroprosentti 2015 | AU2: Yhden veroprosentin tuotto 2015 | AV2: Sijoitus vuosikatteen mukaan | AW2: Asukasluku | AX2: Lainat e/asukas | AY2: Lainanhoitokate | AZ2: Suhteellinen velkaantuneisuus-% | BA2: Rahoitusvarallisuus, e/as | BB2: Vuosikate | BC2: Suunnitelman mukaiset poistot | BD2: Tilikauden tulos | BE2: Omavaraisuusaste, % | BF2: Rahavarat e/as | BG2: Kassan riittävyys, pv | BH2: Kassasta maksut, €/as | BI2: Henkilöstökulut | BJ2: Toimintatuotot | BK2: Toimintakulut | BL2: Osuus osakkuusyhteisojen voitosta/tappiosta | BM2: Toimintakate | BN2: Verotulot | BO2: Valtionosuudet | BP2: Alv-takaisinperintä | BQ2: Käyttökate | BR2: Korkotuotot/-menot, netto | BS2: Muut rahoitustuotot/-menot, netto (sis Osinkotuotot) | BT2: Vuosikate | BU2: Suunnitelman mukaiset poistot ja arvonalet | BV2: Satu. erät, netto | BX2: Tilikauden tulos | BY2: Vähemmistöosuudet | BZ2: Tilinpäätössiirrot | CA2: Tilikauden verot | CB2: Lask. verot | CC2: Tilikauden yli- tai alij. | CD2: Kumulat yli/alij | CE2: Toiminnan rahavirta | CF2: Investoinnit, netto | CG2: Saamisten muutos | CH2: Pitkäaikaisten lainojen vähennys | CI2: Toim ja inv rahavirta | CJ2: Verotulot | CK2: Kunnallisvero | CL2: Osuus yhteisöveron tuotosta | CM2: Kiinteistövero | CN2: Tuloveroprosentti 2019 | CO2: Yhden veroprosentin tuotto 2016 | CP2: Sijoitus vuosikatteen mukaan | CQ2: Asukasluku | CR2: Lainat e/asukas | CS2: Lainanhoitokate | CT2: Suhteellinen velkaantuneisuus-% | CU2: Rahoitusvarallisuus, e/as | CV2: Vuosikate | CW2: Suunnitelman mukaiset poistot | CX2: Tilikauden tulos | CY2: Omavaraisuusaste, % | CZ2: Rahavarat e/as | DA2: Kassan riittävyys, pv | DB2: Kassasta maksut, €/as | DC2: Henkilöstökulut | DD2: Toimintatuotot | DE2: Toimintakulut | DF2: Osuus osakkuusyhteisojen voitosta/tappiosta | DG2: Toimintakate | DH2: Verotulot | DI2: Valtionosuudet | DJ2: Alv-takaisinperintä | DK2: Käyttökate | DL2: Korkotuotot/-menot, netto | DM2: Muut rahoitustuotot/-menot, netto (sis Osinkotuotot) | DN2: Vuosikate | DO2: Suunnitelman mukaiset poistot ja arvonalet | DP2: Satu. erät | DQ2: Satu. kulut | DR2: Tilikauden tulos | DS2: Vähemmistöosuudet | DT2: Tilinpäätössiirrot | DU2: Tilikauden verot | DV2: Lask. verot | DW2: Tilikauden yli- tai alijäämä | DX2: Kumulat yli/alij | DY2: Toiminnan rahavirta | DZ2: Investoinnit, netto | EA2: Saamisten muutos | EB2: Pitkäaikaisten lainojen vähennys | EC2: Toim ja inv rahavirta | ED2: Verotulot | EE2: Takaukset muiden puolesta (jäljellä oleva pääoma) | EF2: Osuus yhteisöveron tuotosta | EG2: Kiinteistövero | EH2: Tuloveroprosentti 2020 | EI2: Yhden veroprosentin tuotto 2006 | EJ2: Sijoitus vuosikatteen mukaan | EK2: Palvelujen ostot 2018 | EL2: Palvelujen ostot 2019 | EM2: Palvelujen ostot 2020 | EN2: Harkvar2018 | EO2: Harkvar2019 | EP2: Harkvar2020 | EQ2: - Investointimenot | ER2: + Rahoitusos. investointimenoihin | ES2: + Investointihyödykk. luovutustulot | ET2: - Investointimenot | EU2: + Rahoitusosuudet investointimenoihin | EV2: + Investointihyödykkeiden luovutustulot | EW2: - Investointimenot | EX2: + Rahoitusosuudet investointimenoihin | EY2: + Investointihyödykkeiden luovutustulot | EZ2: Pitkäaikaisten lainojen lisäys | FA2: ± Lyhytaikaisten lainojen muutos | FB2: Pitkäaikaisten lainojen lisäys | FC2: ± Lyhytaikaisten lainojen muutos | FD2: Pitkäaikaisten lainojen lisäys | FE2: ± Lyhytaikaisten lainojen muutos | FF2: Lainakanta | FG2: josta pitkäaik | FH2: josta lyhytaik | FI2: Lainasaamiset | FJ2: Lainakanta | FK2: josta pitkäaik | FL2: josta lyhytaik | FM2: Lainasaamiset | FN2: Lainakanta | FO2: josta pitkäaik | FP2: josta lyhytaik | FQ2: Lainasaamiset | FR2: Takaukset muiden puolesta (jäljellä oleva pääoma) | FS2: Takaukset muiden puolesta (jäljellä oleva pääoma) | FT2: Takaukset muiden puolesta (jäljellä oleva pääoma) | FU2: Vuokravastuut | FV2: Vuokravastuut | FW2: Vuokravastuut
A3: 20 | B3: Akaa | C3: 16391 | E3: 11.40628779 | F3: 56.08203339 | G3: -4964.126655 | K3: 23.59075012 | L3: 803.7337563 | M3: 25.09713146 | N3: 11689.09768 | P3: 84365 | Q3: 170341 | R3: 531 | S3: -85445 | T3: 64150 | U3: 39506 | X3: -147 | Y3: 338 | Z3: 18402 | AA3: 8763 | AB3: 0 | AD3: 9639 | AE3: -409 | AF3: 0 | AG3: 227 | AH3: -18 | AI3: 8986 | AJ3: -1092 | AK3: 15626 | AM3: -1427 | AN3: -1190 | AO3: 258 | AT3: 22.25 | AV3: 98 | AW3: 16467 | AY3: -2.313453909 | AZ3: 70.22108527 | BA3: -6867.905566 | BE3: 24.00730472 | BF3: 936.6471531 | BG3: 29.80620715 | BH3: 11469.96695 | BJ3: 74655.44309 | BK3: 170101.7395 | BL3: 528.20763 | BM3: -94918.08876 | BN3: 66852.5873 | BO3: 37078.345 | BR3: -770.53987 | BS3: 344.24125 | BT3: 8586.54492 | BU3: 7196.64019 | BV3: 0 | BX3: 1389.90473 | BY3: -620.1556 | BZ3: 0.41266 | CA3: -328.71218 | CB3: -8.58969 | CC3: 1090.28428 | CD3: 1109.30436 | CE3: 8871.63195 | CG3: -1401.29978 | CH3: -5282.72861 | CI3: -13276.62081 | CN3: 22.25 | CP3: 266 | CQ3: 16473 | CS3: 0.9311909162 | CT3: 77.14261106 | CU3: -7113.812783 | CY3: 18.49371927 | CZ3: 567.250034 | DA3: 16.29089547 | DB3: 12709.32361 | DD3: 71683.58126 | DE3: 173187.9001 | DF3: 667.14195 | DG3: -100837.1769 | DH3: 69399.14897 | DI3: 38886.7802 | DL3: -664.40382 | DM3: 379.58957 | DN3: 7163.93805 | DO3: 7608.38151 | DP3: 24.89267 | DR3: -419.55079 | DS3: -252.44684 | DT3: 1.2756 | DU3: 142.22543 | DV3: -33.4082 | DW3: -846.35566 | DX3: -580.21133 | DY3: 6235.29624 | EA3: -821.74934 | EB3: -7770.26833 | EC3: -18730.07365 | EH3: 22 | EJ3: 253 | EQ3: -19500 | ER3: 115 | ES3: 4017 | ET3: -22861.21027 | EU3: 561.1121 | EV3: 151.84541 | EW3: -27184.6468 | EX3: 528.25934 | EY3: 1691.01757 | EZ3: 16451 | FA3: -13511 | FB3: 2124.33 | FC3: 19664.23733 | FD3: 35302.81045 | FE3: -14372.78015 | FF3: 75779 | FG3: 62285 | FH3: 13494 | FI3: 7672 | FJ3: 96008.07901 | FK3: 62274.91437 | FL3: 33733.16464 | FM3: 7675.28061 | FN3: 109151.7198 | FO3: 82725.23158 | FP3: 26426.48825 | FQ3: 7670.53195 | FR3: 14631 | FU3: 15695 | FV3: 16100.275 | FW3: 11597.0892
A4: 5 | B4: Alajärvi | C4: 9419 | E4: 1.454071758 | F4: 50.94956081 | G4: -5587.217327 | K4: 33.04155558 | L4: 1021.552182 | M4: 23.93793367 | N4: 15576.38815 | P4: 70222 | Q4: 131111 | R4: 113 | S4: -60776 | T4: 29583 | U4: 40681 | X4: -373 | Y4: 273 | Z4: 9388 | AA4: 6287 | AB4: 0 | AD4: 3101 | AE4: 29 | AF4: -21 | AG4: 64 | AH4: -15 | AI4: 3031 | AJ4: 7816 | AK4: 8946 | AM4: 213 | AN4: -6338 | AO4: 427 | AT4: 21.75 | AV4: 133 | AW4: 9311 | AY4: 1.3094356 | AZ4: 48.44765212 | BA4: -5342.700256 | BE4: 34.58815484 | BF4: 1117.084467 | BG4: 25.21268295 | BH4: 16171.85411 | BJ4: 74735.01491 | BK4: 137614.5644 | BL4: 119.25402 | BM4: -62760.29542 | BN4: 31473.60663 | BO4: 40058.25225 | BR4: -159.2724 | BS4: 4.09265 | BT4: 8616.38371 | BU4: 6224.44744 | BV4: 0 | BX4: 2391.93627 | BY4: -30.44942 | BZ4: 2.02381 | CA4: 52.44506 | CB4: -15.63209 | CC4: 2295.43351 | CD4: 10065.63043 | CE4: 8466.48177 | CG4: -1079.41984 | CH4: -6538.77607 | CI4: 2657.96633 | CN4: 21.75 | CP4: 127 | CQ4: 9183 | CS4: 1.041516178 | CT4: 45.79307736 | CU4: -5345.478766 | CY4: 33.30222262 | CZ4: 994.1771066 | DA4: 21.54850924 | DB4: 16839.8955 | DD4: 73503.04272 | DE4: 140554.4045 | DF4: 196.04212 | DG4: -66855.31961 | DH4: 32479.35372 | DI4: 41621.53866 | DL4: -247.82697 | DM4: 61.47333 | DN4: 7059.21913 | DO4: 6370.98372 | DP4: 0 | DR4: 688.23541 | DS4: 16.02949 | DT4: 0 | DU4: 25.31191 | DV4: -2.81011 | DW4: 676.14288 | DX4: 9487.72156 | DY4: 6612.2325 | EA4: 1700.07755 | EB4: -6767.44733 | EC4: 1758.74439 | EH4: 21.75 | EJ4: 144 | EQ4: -8822 | ER4: 275 | ES4: 28 | ET4: -5956.16774 | EU4: 75.3258 | EV4: 72.3265 | EW4: -5728.46275 | EX4: 401.59067 | EY4: 473.38397 | EZ4: 7058 | FA4: 64 | FB4: 4788.31859 | FC4: 2009.23528 | FD4: 1473.67144 | FE4: 74.83825 | FF4: 51214 | FG4: 40348 | FH4: 10866 | FI4: 0 | FJ4: 50361.28951 | FK4: 37575.71857 | FL4: 12785.57094 | FM4: 95.42737 | FN4: 45229.48673 | FO4: 33421.31939 | FP4: 11808.16734 | FQ4: 92.8705 | FR4: 498 | FU4: 1380 | FV4: 530.73876 | FW4: 484.10521
A5: 9 | B5: Alavieska | C5: 2517 | E5: 0.5900151286 | F5: 41.53911685 | G5: -3014.70004 | K5: 41.55028478 | L5: 2144.616607 | M5: 49.9878219 | N5: 15659.5153 | P5: 16575 | Q5: 32888 | R5: 1 | S5: -16312 | T5: 7712 | U5: 10928 | X5: 10 | Y5: 12 | Z5: 2350 | AA5: 1045 | AB5: 0 | AD5: 1305 | AE5: 0 | AF5: -3 | AG5: 0 | AH5: -1 | AI5: 1301 | AJ5: 2931 | AK5: 2477 | AM5: 468 | AN5: -3976 | AO5: 1193 | AT5: 22 | AV5: 165 | AW5: 2491 | AY5: 24.08267938 | AZ5: 46.08050094 | BA5: -3217.876792 | BE5: 39.51855506 | BF5: 2665.011782 | BG5: 65.17688299 | BH5: 14924.4526 | BJ5: 17280.94415 | BK5: 34291.8393 | BL5: 0.41947 | BM5: -17010.47568 | BN5: 8349.39248 | BO5: 10378.9588 | BR5: 92.12618 | BS5: 19.2323 | BT5: 1829.23408 | BU5: 1092.37894 | BV5: 0 | BX5: 736.85514 | BY5: -0.12127 | BZ5: -0.08646 | CA5: 1.53162 | CB5: -0.21926 | CC5: 734.89653 | CD5: 3665.02946 | CE5: 1811.36951 | CG5: -185.26324 | CH5: -33.9533 | CI5: -540.5358 | CN5: 22 | CP5: 197 | CQ5: 2447 | CS5: 29.08223995 | CT5: 44.42583121 | CU5: -2917.934499 | CY5: 42.88607395 | CZ5: 3085.876457 | DA5: 71.87193602 | DB5: 15671.55373 | DD5: 17797.69385 | DE5: 35441.33862 | DF5: 3.83939 | DG5: -17639.80538 | DH5: 9070.38666 | DI5: 11441.82046 | DL5: 312.18932 | DM5: -187.12994 | DN5: 2997.46112 | DO5: 1173.77602 | DP5: 0 | DR5: 1823.6851 | DS5: -0.61714 | DT5: -2.43979 | DU5: 1.08357 | DV5: -0.0266 | DW5: 1819.518 | DX5: 5512.28185 | DY5: 3028.84762 | EA5: 5.49244 | EB5: -54.92623 | EC5: 721.95402 | EH5: 22 | EJ5: 47 | EQ5: -1856 | ER5: 13 | ES5: 559 | ET5: -2582.2359 | EU5: -3.81397 | EV5: 234.14456 | EW5: -2380.21517 | EX5: 6.83736 | EY5: 66.48421 | EZ5: 597 | FA5: 4508 | FB5: 620.1 | FC5: 990.72 | FD5: 963.8 | FE5: -0.99478 | FF5: 11249 | FG5: 1191 | FH5: 10058 | FI5: 57 | FJ5: 12825.89411 | FK5: 1787.94788 | FL5: 11037.94623 | FM5: 220.09587 | FN5: 13563.9188 | FO5: 2458.34587 | FP5: 11105.57293 | FQ5: 231.29587 | FR5: 2732 | FU5: 193 | FV5: 97.76 | FW5: 29.53908
A6: 10 | B6: Alavus | C6: 11332 | E6: 1.795969354 | F6: 65.19184534 | G6: -5382.368514 | K6: 38.55686466 | L6: 2590.010589 | M6: 66.77814279 | N6: 14156.63607 | P6: 73727 | Q6: 142464 | R6: 488 | S6: -68249 | T6: 34963 | U6: 43125 | X6: -534 | Y6: 906 | Z6: 10211 | AA6: 8085 | AB6: 0 | AD6: 2126 | AE6: -5 | AF6: 29 | AG6: 21 | AH6: -64 | AI6: 2065 | AJ6: 28359 | AK6: 9415 | AM6: 10985 | AN6: -5432 | AO6: -1708 | AT6: 21.25 | AV6: 191 | AW6: 11197 | AY6: 1.127115969 | AZ6: 64.72786781 | BA6: -5575.288218 | BE6: 36.14859524 | BF6: 2830.315618 | BG6: 66.26309719 | BH6: 15590.35488 | BJ6: 85046.80768 | BK6: 156608.7224 | BL6: 427.41189 | BM6: -71134.5028 | BN6: 36731.15996 | BO6: 42180.877 | BR6: -362.53468 | BS6: 1036.1592 | BT6: 8451.15868 | BU6: 7934.90534 | BV6: 0 | BX6: 516.25334 | BY6: 2.05711 | BZ6: 32.68826 | CA6: 21.30397 | CB6: -14.99297 | CC6: 514.70177 | CD6: 26732.91178 | CE6: 7933.9878 | CG6: 3058.19721 | CH6: -7453.19032 | CI6: -174.43682 | CN6: 21.25 | CP6: 193 | CQ6: 11102 | CS6: 0.8515586745 | CT6: 65.55525544 | CU6: -6164.303766 | CY6: 34.03376803 | CZ6: 2761.535043 | DA6: 61.99190321 | DB6: 16259.54743 | DD6: 83034.93994 | DE6: 158446.1222 | DF6: 578.37411 | DG6: -74832.80814 | DH6: 37647.46322 | DI6: 45138.767 | DL6: -499.13366 | DM6: -844.76071 | DN6: 6609.52771 | DO6: 8271.55079 | DP6: 0 | DR6: -1662.02308 | DS6: 28.14287 | DT6: 19.38 | DU6: 14.48464 | DV6: -34.45506 | DW6: -1663.43991 | DX6: 23149.48238 | DY6: 5787.06869 | EA6: 5950.0657 | EB6: -7854.79331 | EC6: -5118.54337 | EH6: 21.25 | EJ6: 206 | EQ6: -12011 | ER6: 591 | ES6: 297 | ET6: -9385.32348 | EU6: 405.11802 | EV6: 871.78084 | EW6: -11838.00359 | EX6: 463.78229 | EY6: 468.60924 | EZ6: 11822 | FA6: -4269 | FB6: 11457.62666 | FC6: 2251.74567 | FD6: 11399.4247 | FE6: -1212.14319 | FF6: 80862 | FG6: 73460 | FH6: 7402 | FI6: 1957 | FJ6: 87375.73433 | FK6: 77207.70156 | FL6: 10168.03277 | FM6: 1717.80067 | FN6: 89987.11078 | FO6: 81178.58726 | FP6: 8808.52352 | FQ6: 1737.18935 | FR6: 1299 | FU6: 2372 | FV6: 2297.557 | FW6: 2013.722
A7: 16 | B7: Asikkala | C7: 8059 | E7: 13.1881068 | F7: 26.38267732 | G7: -2044.2983 | K7: 58.08263137 | L7: 693.0140216 | M7: 21.77562356 | N7: 11616.20548 | P7: 42719 | Q7: 87980 | R7: 7 | S7: -45254 | T7: 31842 | U7: 24269 | X7: -130 | Y7: 1 | Z7: 10728 | AA7: 4146 | AB7: 0 | AD7: 6582 | AE7: -2 | AF7: 0 | AG7: 1 | AH7: -57 | AI7: 6522 | AJ7: 16120 | AK7: 10566 | AM7: 822 | AN7: -685 | AO7: 6435 | AT7: 20.75 | AV7: 46 | AW7: 8033 | AY7: 26.20531945 | AZ7: 28.11960568 | BA7: -1711.045884 | BE7: 57.73721206 | BF7: 996.7719557 | BG7: 29.10303432 | BH7: 12501.16259 | BJ7: 45635.02911 | BK7: 93826.83768 | BL7: 15.39685 | BM7: -48176.41172 | BN7: 32558.65653 | BO7: 22828.62573 | BR7: 129.14564 | BS7: -4.28249 | BT7: 7335.73368 | BU7: 3604.26209 | BV7: 0 | BX7: 3731.47159 | BY7: -0.63244 | BZ7: 0 | CA7: 0.10047 | CB7: -24.8222 | CC7: 3705.91647 | CD7: 20083.54387 | CE7: 7462.30217 | CG7: -2387.00948 | CH7: -207.05206 | CI7: 2256.3605 | CN7: 20.75 | CP7: 132 | CQ7: 8014 | CS7: 19.17920393 | CT7: 33.1639151 | CU7: -2936.030699 | CY7: 53.9558952 | CZ7: 699.3144472 | DA7: 16.99269066 | DB7: 15021.15106 | DD7: 48764.51106 | DE7: 102135.3152 | DF7: -16.53305 | DG7: -53387.33715 | DH7: 33560.07223 | DI7: 25532.79372 | DL7: -78.36613 | DM7: 495.80899 | DN7: 6122.97166 | DO7: 3580.57043 | DP7: -13.67212 | DR7: 2528.72911 | DS7: 0.69516 | DT7: -0.52194 | DU7: -0.00028 | DV7: -4.43509 | DW7: 2524.46752 | DX7: 23193.11922 | DY7: 6780.35463 | EA7: 21.00196 | EB7: -263.47501 | EC7: -10802.39416 | EH7: 20.75 | EJ7: 146 | EQ7: -4516 | ER7: 25 | ES7: 360 | ET7: -6181.83094 | EU7: 4.64157 | EV7: 971.24771 | EW7: -17787.58663 | EX7: 83.22597 | EY7: 121.61186 | EZ7: 0 | FA7: -5668 | FB7: 3204.81 | FC7: -2250.89527 | FD7: 1598.4 | FE7: 5076.28717 | FF7: 13084 | FG7: 7002 | FH7: 6082 | FI7: 132 | FJ7: 13830.8823 | FK7: 9461.18573 | FL7: 4369.69657 | FM7: 82.97652 | FN7: 20242.09446 | FO7: 10208.17641 | FP7: 10033.91805 | FQ7: 68.60202 | FR7: 0 | FU7: 13868 | FV7: 14812.174 | FW7: 16438.07727
A8: 18 | B8: Askola | C8: 4878 | E8: 2.681174089 | F8: 79.4647905 | G8: -5142.886429 | K8: 28.0199065 | L8: 2148.421484 | M8: 77.65642129 | N8: 10097.99098 | P8: 17350 | Q8: 42794 | R8: -1 | S8: -25445 | T8: 20456 | U8: 9951 | X8: -219 | Y8: 330 | Z8: 5073 | AA8: 2989 | AB8: 0 | AD8: 2084 | AE8: -1 | AF8: 6 | AG8: 11 | AH8: 0 | AI8: 2078 | AJ8: 3673 | AK8: 5034 | AM8: 1301 | AN8: -1751 | AO8: 865 | AT8: 21.5 | AV8: 117 | AW8: 4847 | AY8: 1.853371127 | AZ8: 75.18730378 | BA8: -4806.638929 | BE8: 31.94879968 | BF8: 2201.025203 | BG8: 77.38121518 | BH8: 10382.03131 | BJ8: 19746.70175 | BK8: 45897.21299 | BL8: 0.6855 | BM8: -26149.82574 | BN8: 21255.04274 | BO8: 8349.658 | BR8: -117.35342 | BS8: 409.63983 | BT8: 3747.16141 | BU8: 2187.33309 | BV8: 0 | BX8: 1559.82832 | BY8: -2.34554 | BZ8: -2.44002 | CA8: 0 | CB8: -13.45748 | CC8: 1541.58528 | CD8: 6265.71319 | CE8: 3540.37345 | CG8: -748.11305 | CH8: -1954.88995 | CI8: 1712.52488 | CN8: 21.5 | CP8: 189 | CQ8: 4763 | CS8: 1.408331794 | CT8: 68.78227253 | CU8: -4551.568514 | CY8: 34.34340921 | CZ8: 2173.380008 | DA8: 72.26928872 | DB8: 10976.77474 | DD8: 19409.22655 | DE8: 47234.52904 | DF8: -175.72784 | DG8: -28001.03033 | DH8: 22920.38747 | DI8: 8769.343 | DL8: -213.20112 | DM8: -252.34681 | DN8: 3223.15221 | DO8: 2154.83716 | DP8: 0 | DR8: 1068.31505 | DS8: 0.57531 | DT8: -128.66481 | DU8: 11.68155 | DV8: 0 | DW8: 928.544 | DX8: 7338.88599 | DY8: 3029.1271 | EA8: 351.76943 | EB8: -2221.06306 | EC8: 1341.03922 | EH8: 21.5 | EJ8: 180 | EQ8: -4429 | ER8: 132 | ES8: 128 | ET8: -2243.12965 | EU8: 3.8642 | EV8: 411.41688 | EW8: -1902.26423 | EX8: 5.18036 | EY8: 208.99599 | EZ8: 726 | FA8: 3270 | FB8: 294.12446 | FC8: 0 | FD8: 462.17065 | FE8: -1010.21446 | FF8: 32665 | FG8: 24845 | FH8: 7820 | FI8: 0 | FJ8: 30993.60305 | FK8: 23242.84503 | FL8: 7750.75802 | FM8: 0.04146 | FN8: 28251.46913 | FO8: 21556.78078 | FP8: 6694.68835 | FQ8: 0 | FR8: 2000 | FU8: 1267 | FV8: 2709.6401 | FW8: 2779.01591
A9: 19 | B9: Aura | C9: 3959 | E9: 2.230813288 | F9: 52.07024635 | G9: -3303.359434 | K9: 31.96777277 | L9: 1051.275575 | M9: 42.30734954 | N9: 9069.714574 | P9: 12469 | Q9: 32750 | R9: 9 | S9: -20272 | T9: 15595 | U9: 8550 | X9: -63 | Y9: 21 | Z9: 3831 | AA9: 1367 | AB9: 0 | AD9: 2464 | AE9: -32 | AF9: -66 | AG9: 0 | AH9: -15 | AI9: 2350 | AJ9: 3988 | AK9: 3888 | AM9: 129 | AN9: -1682 | AO9: 2393 | AT9: 21.5 | AV9: 141 | AW9: 3955 | AY9: 2.173689217 | AZ9: 41.88766699 | BA9: -2688.337474 | BE9: 39.74469935 | BF9: 754.660177 | BG9: 29.14467281 | BH9: 9451.159957 | BJ9: 13970.65717 | BK9: 34545.4316 | BL9: 11.3305 | BM9: -20563.44393 | BN9: 15987.4943 | BO9: 7934.69626 | BR9: -54.41685 | BS9: 39.70989 | BT9: 3344.03967 | BU9: 1356.51369 | BV9: 0 | BX9: 1987.52598 | BY9: -14.80717 | BZ9: -26.86963 | CA9: 0.03735 | CB9: -8.04 | CC9: 1937.77183 | CD9: 5924.3607 | CE9: 3273.64509 | CG9: -383.83217 | CH9: -1508.51559 | CI9: 2242.53527 | CN9: 21.5 | CP9: 157 | CQ9: 3965 | CS9: 1.53546982 | CT9: 46.59995457 | CU9: -3037.244752 | CY9: 35.09749691 | CZ9: 926.3387137 | DA9: 32.77154779 | DB9: 10317.29208 | DD9: 13741.87658 | DE9: 36512.07054 | DF9: -5.25918 | DG9: -22775.45314 | DH9: 16693.9332 | DI9: 7963.96557 | DL9: -87.62732 | DM9: 48.15696 | DN9: 1842.97527 | DO9: 1429.92283 | DP9: 0 | DR9: 413.05244 | DS9: -38.76815 | DT9: -83.82663 | DU9: 0.14141 | DV9: -20.3234 | DW9: 269.99285 | DX9: 5776.96694 | DY9: 1824.21921 | EA9: 452.78053 | EB9: -1167.48474 | EC9: -1175.74246 | EH9: 21.5 | EJ9: 244 | EQ9: -1397 | ER9: 20 | ES9: -118 | ET9: -1261.92663 | EU9: 87.84846 | EV9: 142.96835 | EW9: -3111.08098 | EX9: 67.2314 | EY9: 43.88791 | EZ9: 132 | FA9: 592 | FB9: 289.84802 | FC9: -2102.57528 | FD9: 3976.33722 | FE9: -2237.57675 | FF9: 14602 | FG9: 6082 | FH9: 8520 | FI9: 0 | FJ9: 11281.25626 | FK9: 5092.72109 | FL9: 6188.53517 | FM9: 0 | FN9: 11852.53199 | FO9: 7520.60757 | FP9: 4331.92442 | FQ9: 0 | FR9: 773 | FU9: 1570 | FV9: 117103.277 | FW9: 10436.17443
A10: 46 | B10: Enonkoski | C10: 1369 | E10: 191.8 | F10: 17.46867285 | G10: 1962.74653 | K10: 75.68209465 | L10: 3822.498174 | M10: 93.38246798 | N10: 14940.83272 | P10: 10495 | Q10: 19664 | R10: 0 | S10: -9169 | T10: 4642 | U10: 6330 | X10: -9 | Y10: 115 | Z10: 1909 | AA10: 792 | AB10: 6 | AD10: 1123 | AE10: 0 | AF10: 0 | AG10: 0 | AH10: 3 | AI10: 1126 | AJ10: 8046 | AK10: 1830 | AM10: 22 | AN10: -1 | AO10: 1194 | AT10: 21 | AV10: 36 | AW10: 1362 | AY10: 124.755635 | AZ10: 18.30452129 | BA10: 2870.386836 | BE10: 71.64626577 | BF10: 4800.248473 | BG10: 110.7527456 | BH10: 15819.8398 | BJ10: 11393.02312 | BK10: 20505.46963 | BL10: 0 | BM10: -9112.44651 | BN10: 5024.61735 | BO10: 6152.58081 | BR10: -2.96212 | BS10: 127.47992 | BT10: 2189.26945 | BU10: 784.02491 | BV10: 0 | BX10: 1405.24454 | BY10: 0 | BZ10: 2.48374 | CA10: 0 | CB10: 1.4934 | CC10: 1409.22168 | CD10: 9430.5699 | CE10: 2182.58302 | CG10: -299.38347 | CH10: -7.63705 | CI10: 1252.05013 | CN10: 21 | CP10: 19 | CQ10: 1341 | CS10: 56.48350054 | CT10: 20.67083847 | CU10: 2806.025943 | CY10: 71.05868724 | CZ10: 5319.029911 | DA10: 111.4671567 | DB10: 17417.20139 | DD10: 11315.89449 | DE10: 21512.98008 | DF10: 0 | DG10: -10197.08559 | DH10: 5157.24292 | DI10: 6663.57336 | DL10: -15.09628 | DM10: 66.64488 | DN10: 1675.27929 | DO10: 811.87176 | DP10: 26.98231 | DR10: 890.38984 | DS10: 0 | DT10: 0 | DU10: 0 | DV10: 0.79634 | DW10: 891.18618 | DX10: 10315.152 | DY10: 1679.94893 | EA10: 90.28563 | EB10: -1.0691 | EC10: -83.54692 | EH10: 21 | EJ10: 44 | EQ10: -771 | ER10: 1 | ES10: 134 | ET10: -1010.00338 | EU10: 52.44878 | EV10: 27.02171 | EW10: -1768.98341 | EX10: 1.04718 | EY10: 4.44038 | EZ10: 387 | FA10: -63 | FB10: 537.59134 | FC10: -198.14802 | FD10: 228.52073 | FE10: 177.61217 | FF10: 1129 | FG10: 880 | FH10: 249 | FI10: 0 | FJ10: 1460.11961 | FK10: 1264.09769 | FL10: 196.02192 | FM10: 5.44 | FN10: 1865.18342 | FO10: 1311.37984 | FP10: 553.80358 | FQ10: 7 | FR10: 108 | FU10: 415 | FV10: 380.47766 | FW10: 396.45865
A11: 47 | B11: Enontekiö | C11: 1808 | E11: 1.993677555 | F11: 66.66802146 | G11: -6824.115044 | K11: 39.88992498 | L11: 1245.022124 | M11: 30.22754866 | N11: 15033.73894 | P11: 8457 | Q11: 22984 | R11: -10 | S11: -14537 | T11: 6394 | U11: 9753 | X11: -50 | Y11: 271 | Z11: 1831 | AA11: 1189 | AB11: -1 | AD11: 641 | AE11: 0 | AF11: 0 | AG11: -11 | AH11: 5 | AI11: 657 | AJ11: 2797 | AK11: 1670 | AM11: 503 | AN11: -888 | AO11: -994 | AT11: 21.25 | AV11: 128 | AW11: 1789 | AY11: 2.689115405 | AZ11: 16.53381888 | BA11: 2185.280531 | BE11: 71.64626577 | BF11: 5565.974226 | BG11: 126.7510722 | BH11: 16028.11366 | BJ11: 8468.08015 | BK11: 24017.20614 | BL11: -3.5355 | BM11: -15552.66149 | BN11: 6807.63983 | BO11: 9711.677 | BR11: -24.65289 | BS11: 919.67004 | BT11: 1861.67249 | BU11: 1122.5456 | BV11: 7943.74012 | BX11: 8682.86701 | BY11: -0.02982 | BZ11: 0.89487 | CA11: -2.2232 | CB11: 0 | CC11: 8685.95526 | CD11: 9430.5699 | CE11: 1549.29819 | CG11: -281.76525 | CH11: -673.27224 | CI11: 6264.73993 | CN11: 21.25 | CP11: 91 | CQ11: 1811 | CS11: 5.229248247 | CT11: 49.66962843 | CU11: 137.7668084 | CY11: 61.49483504 | CZ11: 5867.249983 | DA11: 130.9661577 | DB11: 16351.90557 | DD11: 9062.66857 | DE11: 25408.87779 | DF11: -13.68226 | DG11: -16359.89148 | DH11: 7179.49726 | DI11: 9856.307 | DL11: -44.43012 | DM11: 2506.0872 | DN11: 3137.56986 | DO11: 1419.12894 | DP11: 0.13033 | DR11: 1718.57125 | DS11: 0.92753 | DT11: 0.47181 | DU11: 0.07649 | DV11: 1e-05 | DW11: 1719.89411 | DX11: 12766.42233 | DY11: 2691.0459 | EA11: 185.27048 | EB11: -559.84686 | EC11: 69.82974 | EH11: 21.25 | EJ11: 13 | EQ11: -2941 | ER11: 132 | ES11: 145 | ET11: -3673.26301 | EU11: 399.82756 | EV11: 7988.87719 | EW11: -3215.1745 | EX11: 159.71143 | EY11: 434.24691 | EZ11: 499 | FA11: 1440 | FB11: 797.927 | FC11: 300 | FD11: 1041.66942 | FE11: -135 | FF11: 10084 | FG11: 6210 | FH11: 3874 | FI11: 36 | FJ11: 1460.11961 | FK11: 1264.09769 | FL11: 196.02192 | FM11: 5.44 | FN11: 8982.44876 | FO11: 5139.10408 | FP11: 3843.34468 | FQ11: 31.70778 | FR11: 312 | FU11: 290 | FV11: 331.43454 | FW11: 310.365
A12: 49 | B12: Espoo | C12: 292796 | E12: 2.138620662 | F12: 155.5888244 | G12: -10999.41939 | K12: 36.18573073 | L12: 4266.079455 | M12: 125.7634646 | N12: 12381.33035 | P12: 1178888 | Q12: 2601118 | R12: 1586 | S12: -1420644 | T12: 1605340 | U12: 267013 | X12: -39454 | Y12: 22485 | Z12: 434740 | AA12: 330694 | AB12: 0 | AD12: 104046 | AE12: 4334 | AF12: 15019 | AG12: 837 | AH12: 618 | AI12: 123180 | AJ12: 665687 | AK12: 354934 | AM12: -40753 | AN12: -176149 | AO12: -253438 | AT12: 18 | AV12: 25 | AW12: 297132 | AY12: 2.185969418 | AZ12: 153.5687721 | BA12: -10934.15581 | BE12: 34.71020745 | BF12: 4904.235554 | BG12: 147.9675542 | BH12: 12097.55738 | BJ12: 1313221.586 | BK12: 2779417.656 | BL12: 4616.3994 | BM12: -1461579.67 | BN12: 1711153.952 | BO12: 200725.0947 | BR12: -39052.59811 | BS12: 83867.5651 | BT12: 495114.3436 | BU12: 334021.8994 | BV12: 0 | BX12: 161092.4442 | BY12: 3861.908 | BZ12: 15059.82456 | CA12: 1285.47546 | CB12: -1504.83172 | CC12: 177223.8696 | CD12: 817323.9558 | CE12: 420231.4069 | CG12: 22864.93124 | CH12: -199150.4878 | CI12: -51320.3644 | CN12: 18 | CP12: 15 | CQ12: 305274 | CS12: 1.476764144 | CT12: 145.4899909 | CU12: -9946.737321 | CY12: 38.41856225 | CZ12: 5438.62745 | DA12: 159.2879913 | DB12: 12462.3269 | DD12: 1302140.217 | DE12: 2890664.264 | DF12: -5194.73493 | DG12: -1593718.782 | DH12: 1850145.547 | DI12: 233835.4213 | DL12: -32873.92398 | DM12: -19692.32119 | DN12: 437695.9419 | DO12: 348501.3781 | DP12: 136732.26 | DR12: 225926.8238 | DS12: 4741.82962 | DT12: 2169.8645 | DU12: 1498.04365 | DV12: -3253.98959 | DW12: 228086.4847 | DX12: 1001713.687 | DY12: 377990.4103 | EA12: -1315.54799 | EB12: -282191.0903 | EC12: 57300.98885 | EH12: 18 | EJ12: 26 | EQ12: -784640 | ER12: 84956 | ES12: 91312 | ET12: -560356.1819 | EU12: 34723.9893 | EV12: 54080.42132 | EW12: -536892.7867 | EX12: 14994.35678 | EY12: 201209.0085 | EZ12: 666902 | FA12: -4877 | FB12: 183260.4479 | FC12: 249856.2957 | FD12: 232970.349 | FE12: 55308.02833 | FF12: 4285902 | FG12: 4076880 | FH12: 209022 | FI12: 202568 | FJ12: 4519868.485 | FK12: 4051110.129 | FL12: 468758.3562 | FM12: 199992.2342 | FN12: 4396400.935 | FO12: 3887934.151 | FP12: 508466.7837 | FQ12: 197142.3653 | FR12: 96757 | FU12: 845683 | FV12: 954284.5397 | FW12: 964977.6372
A13: 50 | B13: Eura | C13: 11483 | E13: 3.237861272 | F13: 68.36191241 | G13: -5715.579552 | K13: 30.04785789 | L13: 538.0997997 | M13: 19.76474248 | N13: 9937.21153 | P13: 37130 | Q13: 103474 | R13: 0 | S13: -66344 | T13: 45835 | U13: 31571 | X13: -409 | Y13: 137 | Z13: 10790 | AA13: 6675 | AB13: 0 | AD13: 4115 | AE13: 16 | AF13: 0 | AG13: 2 | AH13: -20 | AI13: 4109 | AJ13: 683 | AK13: 10771 | AM13: -302 | AN13: -3047 | AO13: 4338 | AT13: 21 | AV13: 159 | AW13: 11417 | AY13: 1.897786316 | AZ13: 65.23896841 | BA13: -5444.182119 | BE13: 31.20183603 | BF13: 684.5468223 | BG13: 23.25356966 | BH13: 10744.99932 | BJ13: 41939.6487 | BK13: 110718.5252 | BL13: 0 | BM13: -68778.87652 | BN13: 48346.58028 | BO13: 29695.92059 | BR13: -358.11049 | BS13: 136.19248 | BT13: 9041.70634 | BU13: 6200.50278 | BV13: 0 | BX13: 2841.20356 | BY13: -3.6245 | BZ13: -63.06622 | CA13: -1.8451 | CB13: 1.54053 | CC13: 2777.89847 | CD13: 3515.24818 | CE13: 8555.84751 | CG13: -1815.43485 | CH13: -4584.81651 | CI13: 3098.92896 | CN13: 21 | CP13: 177 | CQ13: 11276 | CS13: 1.180786911 | CT13: 65.61158616 | CU13: -5789.067498 | CY13: 29.39616163 | CZ13: 431.2198395 | DA13: 14.01289029 | DB13: 11232.17539 | DD13: 41041.61849 | DE13: 116085.2883 | DF13: 0 | DG13: -75043.66982 | DH13: 48201.62489 | DI13: 30662.84087 | DL13: -404.22621 | DM13: 99.61448 | DN13: 3516.18421 | DO13: 6346.81789 | DP13: 0 | DR13: -2830.63368 | DS13: -7.62642 | DT13: -26.80568 | DU13: 19.91529 | DV13: -30.84293 | DW13: -2915.824 | DX13: 617.60348 | DY13: 3548.05107 | EA13: -228.9054 | EB13: -2915.01993 | EC13: -3131.07365 | EH13: 21 | EJ13: 273 | EQ13: -7143 | ER13: 47 | ES13: 663 | ET13: -6976.82786 | EU13: 571.77984 | EV13: 948.12947 | EW13: -6999.50058 | EX13: 42.46127 | EY13: 277.91459 | EZ13: 544 | FA13: -188 | FB13: 12345.87717 | FC13: -9453.64739 | FD13: 699.75083 | FE13: -118.15645 | FF13: 60326 | FG13: 33148 | FH13: 27178 | FI13: 50 | FJ13: 58766.22625 | FK13: 40040.55169 | FL13: 18725.67456 | FM13: 50 | FN13: 56441.63377 | FO13: 38944.4092 | FP13: 17497.22457 | FQ13: 122.95413 | FR13: 854 | FU13: 1887 | FV13: 1456.83 | FW13: 1141.395
A14: 51 | B14: Eurajoki | C14: 9452 | E14: 2.504052685 | F14: 32.85619794 | G14: 19.04358866 | K14: 74.35208112 | L14: 2637.008041 | M14: 88.21255078 | N14: 10911.23572 | P14: 31423 | Q14: 92433 | R14: 0 | S14: -61010 | T14: 51185 | U14: 14150 | X14: -128 | Y14: 616 | Z14: 4813 | AA14: 5453 | AB14: 86 | AD14: -554 | AE14: 0 | AF14: -24 | AG14: 1 | AH14: -6 | AI14: -585 | AJ14: 73724 | AK14: 4709 | AM14: -2393 | AN14: -1844 | AO14: 382 | AT14: 18 | AV14: 281 | AW14: 9334 | AY14: 3.850789478 | AZ14: 27.34856244 | BA14: 503.5412299 | BE14: 74.85604584 | BF14: 3159.812108 | BG14: 93.1081323 | BH14: 12387.01058 | BJ14: 46621.5009 | BK14: 108762.2417 | BL14: 0 | BM14: -62140.74076 | BN14: 56545.2611 | BO14: 12755.743 | BR14: -112.46431 | BS14: 1272.07494 | BT14: 8319.87397 | BU14: 5356.72849 | BV14: 0 | BX14: 2963.14548 | BY14: 0.27902 | BZ14: 2.10628 | CA14: -1.31538 | CB14: 1.13186 | CC14: 2967.97802 | CD14: 76909.68275 | CE14: 8474.85608 | CG14: 444.97176 | CH14: -2072.67643 | CI14: 4156.33859 | CN14: 18 | CP14: 141 | CQ14: 9211 | CS14: 2.922726301 | CT14: 26.74206907 | CU14: 752.7618825 | CY14: 74.53709738 | CZ14: 3429.675832 | DA14: 94.37209587 | DB14: 13264.84982 | DD14: 48592.5225 | DE14: 116093.0116 | DF14: 0 | DG14: -67500.4891 | DH14: 59477.31155 | DI14: 14126.654 | DL14: -94.37413 | DM14: -69.28374 | DN14: 5939.81858 | DO14: 5074.45642 | DP14: 0 | DR14: 865.36216 | DS14: 0.21759 | DT14: 0.511 | DU14: 2.19467 | DV14: 2.52768 | DW14: 866.42376 | DX14: 78148.11548 | DY14: 6214.98461 | EA14: -682.03066 | EB14: -1948.2059 | EC14: 2699.2038 | EH14: 18 | EJ14: 196 | EQ14: -8421 | ER14: 24 | ES14: 4070 | ET14: -4648.61206 | EU14: 184.33932 | EV14: 145.75525 | EW14: -3654.19873 | EX14: 66.6185 | EY14: 71.79942 | EZ14: 3413 | FA14: 130 | FB14: 834.3648 | FC14: 3.1119 | FD14: 909.37667 | FE14: -3.1119 | FF14: 16034 | FG14: 14051 | FH14: 1983 | FI14: 0 | FJ14: 14800.84566 | FK14: 12889.78607 | FL14: 1911.05959 | FM14: 0 | FN14: 13757.90134 | FO14: 12160.93086 | FP14: 1596.97048 | FQ14: 0 | FR14: 335 | FU14: 1217 | FV14: 3342.66314 | FW14: 3295.81542
A15: 52 | B15: Evijärvi | C15: 2408 | E15: 2.809116809 | F15: 58.58543148 | G15: -2340.946844 | K15: 39.84065293 | L15: 3496.262458 | M15: 107.8866341 | N15: 11828.48837 | P15: 7707 | Q15: 25330 | R15: 2 | S15: -17621 | T15: 8100 | U15: 10208 | X15: 35 | Y15: 231 | Z15: 953 | AA15: 1260 | AB15: 0 | AD15: -307 | AE15: -1 | AF15: -5 | AG15: 5 | AH15: 0 | AI15: -318 | AJ15: 887 | AK15: 886 | AM15: 255 | AN15: -318 | AO15: -1345 | AT15: 21.5 | AV15: 288 | AW15: 2404 | AY15: 6.657725924 | AZ15: 57.45798629 | BA15: -2447.321714 | BE15: 40.75465053 | BF15: 3542.314347 | BG15: 107.6710001 | BH15: 12008.29132 | BJ15: 8329.08603 | BK15: 25523.88926 | BL15: -1.86854 | BM15: -17196.67177 | BN15: 8855.19759 | BO15: 10172.93969 | BR15: 80.5285 | BS15: 210.04742 | BT15: 2122.04143 | BU15: 1321.58431 | BV15: 0 | BX15: 800.45712 | BY15: 0.45686 | BZ15: -11.61728 | CA15: 0.93852 | CB15: -1.03855 | CC15: 787.31963 | CD15: 1670.20241 | CE15: 2087.65471 | CG15: -70.6155 | CH15: -312.62017 | CI15: -320.25577 | CN15: 22.5 | CP15: 142 | CQ15: 2346 | CS15: 2.415952865 | CT15: 58.25562518 | CU15: -2433.33101 | CY15: 38.28217525 | CZ15: 3850.654842 | DA15: 113.7357197 | DB15: 12357.49878 | DD15: 8343.43816 | DE15: 26272.49016 | DF15: 2.49411 | DG15: -17926.55789 | DH15: 9163.04283 | DI15: 10579.25332 | DL15: -22.17171 | DM15: -129.23061 | DN15: 1664.33594 | DO15: 1230.63534 | DP15: 0 | DR15: 433.7006 | DS15: 6.03542 | DT15: -11.981 | DU15: 6.47602 | DV15: 0.93764 | DW15: 422.21664 | DX15: 1829.79594 | DY15: 1632.10255 | EA15: -219.66649 | EB15: -630.42524 | EC15: 302.12142 | EH15: 22.5 | EJ15: 166 | EQ15: -2299 | ER15: 61 | ES15: 7 | ET15: -2942.96475 | EU15: 501.6271 | EV15: 33.42717 | EW15: -1529.55798 | EX15: 198.09233 | EY15: 1.48452 | EZ15: 699 | FA15: 3209 | FB15: 189.83983 | FC15: -200 | FD15: 5307.40695 | FE15: -4300 | FF15: 13108 | FG15: 3063 | FH15: 10045 | FI15: 52 | FJ15: 12799.86101 | FK15: 2925.68341 | FL15: 9874.1776 | FM15: 24.89092 | FN15: 13191.64461 | FO15: 7132.51838 | FP15: 6059.12623 | FQ15: 24.32737 | FR15: 0 | FU15: 1072 | FV15: 950.62323 | FW15: 1071.98937
A16: 61 | B16: Forssa | C16: 16800 | E16: 2.770855711 | F16: 48.9234412 | G16: -2975.952381 | K16: 50.01268968 | L16: 1943.690476 | M16: 62.65750184 | N16: 11322.61905 | P16: 75469 | Q16: 174682 | R16: 0 | S16: -99213 | T16: 61171 | U16: 53410 | X16: -667 | Y16: 67 | Z16: 14768 | AA16: 10822 | AB16: 0 | AD16: 3946 | AE16: 13 | AF16: 1 | AG16: 38 | AH16: 0 | AI16: 3922 | AJ16: 26673 | AK16: 13742 | AM16: 1754 | AN16: -4876 | AO16: 4120 | AT16: 20.5 | AV16: 198 | AW16: 16573 | AY16: 1.263146264 | AZ16: 53.19182618 | BA16: -3574.640812 | BE16: 47.54085366 | BF16: 2010.175232 | BG16: 56.92448379 | BH16: 12889.251 | BJ16: 78577.34528 | BK16: 182535.8596 | BL16: 2.43403 | BM16: -103956.0803 | BN16: 63752.89961 | BO16: 51983.68617 | BR16: -676.64432 | BS16: 211.30251 | BT16: 11315.16371 | BU16: 10857.71464 | BV16: 0 | BX16: 457.44907 | BY16: -92.00157 | BZ16: -1.77666 | CA16: -42.2879 | CB16: -3.2042 | CC16: 402.75454 | CD16: 27268.78352 | CE16: 10580.63283 | CG16: 300.92993 | CH16: -8813.2962 | CI16: -9937.86111 | CN16: 20.5 | CP16: 211 | CQ16: 16459 | CS16: 1.438571028 | CT16: 56.69829636 | CU16: -4054.212444 | CY16: 44.01435117 | CZ16: 2018.279242 | DA16: 55.50497195 | DB16: 13272.17901 | DD16: 80565.29578 | DE16: 193987.1966 | DF16: 1.98248 | DG16: -113419.9183 | DH16: 66370.21545 | DI16: 55692.83933 | DL16: -651.29728 | DM16: 272.31429 | DN16: 8264.1535 | DO16: 9608.28089 | DP16: 0 | DR16: -1344.12739 | DS16: 112.30109 | DT16: 5.47852 | DU16: 4.90004 | DV16: 12.7458 | DW16: -1218.50202 | DX16: 25801.77676 | DY16: 8178.46231 | EA16: 4136.3556 | EB16: -5524.79074 | EC16: -7964.47561 | EH16: 20.5 | EJ16: 226 | EQ16: -9940 | ER16: 135 | ES16: 183 | ET16: -21568.65559 | EU16: 514.88793 | EV16: 535.27372 | EW16: -18199.11131 | EX16: 773.75 | EY16: 1282.42339 | EZ16: 11051 | FA16: -7463 | FB16: 17853.294 | FC16: 846.31116 | FD16: 5632.23762 | FE16: 1354.2129 | FF16: 67667 | FG16: 52000 | FH16: 15667 | FI16: 89 | FJ16: 77553.36862 | FK16: 62391.27415 | FL16: 15162.09447 | FM16: 17.46323 | FN16: 85309.39111 | FO16: 68817.30779 | FP16: 16492.08332 | FQ16: 14.55278 | FR16: 105 | FU16: 2394 | FV16: 4155.90878 | FW16: 9895.39378
A17: 69 | B17: Haapajärvi | C17: 6896 | E17: 1.417079208 | F17: 80.71649713 | G17: -6780.162413 | K17: 29.15939914 | L17: 3500 | M17: 77.8305504 | N17: 16413.86311 | P17: 43245 | Q17: 89699 | R17: 54 | S17: -46400 | T17: 23531 | U17: 30447 | X17: -351 | Y17: 412 | Z17: 7639 | AA17: 4983 | AB17: 0 | AD17: 2656 | AE17: -14 | AF17: -15 | AG17: 13 | AH17: 8 | AI17: 2622 | AJ17: 5920 | AK17: 7026 | AM17: 661 | AN17: -5280 | AO17: -8644 | AT17: 22.5 | AV17: 100 | AW17: 6802 | AY17: 1.271802798 | AZ17: 79.58513705 | BA17: -6989.162189 | BE17: 27.05112089 | BF17: 3788.46379 | BG17: 87.20773973 | BH17: 15856.26789 | BJ17: 44564.73363 | BK17: 93629.67482 | BL17: -25.71585 | BM17: -49090.65704 | BN17: 25530.3491 | BO17: 29884.73753 | BR17: -296.90606 | BS17: 1369.43554 | BT17: 7396.95907 | BU17: 8548.93461 | BV17: 0 | BX17: -1151.97554 | BY17: 5.57783 | BZ17: -707.46727 | CA17: 1.54483 | CB17: -0.95205 | CC17: -1856.36186 | CD17: 3462.23271 | CE17: 7546.20015 | CG17: 1097.44966 | CH17: -5705.23732 | CI17: 582.07801 | CN17: 22.5 | CP17: 80 | CQ17: 6687 | CS17: 0.6165503126 | CT17: 84.16110673 | CU17: -8493.324228 | CY17: 23.66157217 | CZ17: 3078.669091 | DA17: 63.77781684 | DB17: 17619.20169 | DD17: 46976.45164 | DE17: 95662.69077 | DF17: -104.27178 | DG17: -48790.51091 | DH17: 27210.67466 | DI17: 26782.003 | DL17: -433.76639 | DM17: -1133.25108 | DN17: 3635.14928 | DO17: 4892.18058 | DP17: 0 | DR17: -1257.0313 | DS17: -8.47373 | DT17: -28.28417 | DU17: 4.84983 | DV17: -0.1155 | DW17: -1298.75453 | DX17: 1967.43879 | DY17: 3348.93815 | EA17: -1335.15227 | EB17: -6167.594 | EC17: -9433.46227 | EH17: 22.5 | EJ17: 217 | EQ17: -17193 | ER17: 55 | ES17: 1468 | ET17: -7445.39545 | EU17: 177.25366 | EV17: 304.01965 | EW17: -13492.67686 | EX17: 39.17432 | EY17: 671.10212 | EZ17: 19823 | FA17: -2522 | FB17: 4059.62589 | FC17: 2343.48303 | FD17: 17085.53448 | FE17: -6970.08476 | FF17: 63333 | FG17: 51392 | FH17: 11941 | FI17: 167 | FJ17: 64343.66456 | FK17: 50456.94126 | FL17: 13886.7233 | FM17: 0.41627 | FN17: 68291.52028 | FO17: 60054.73918 | FP17: 8236.7811 | FQ17: 0.41627 | FR17: 5902 | FU17: 3213 | FV17: 1494.916 | FW17: 1194.558
A18: 71 | B18: Haapavesi | C18: 6667 | E18: 1.999085366 | F18: 68.33752412 | G18: -5533.523324 | K18: 24.81022219 | L18: 2478.476076 | M18: 63.43820012 | N18: 14260.23699 | P18: 37213 | Q18: 78944 | R18: 4 | S18: -41727 | T18: 21461 | U18: 26831 | X18: -309 | Y18: -30 | Z18: 6226 | AA18: 3718 | AB18: 0 | AD18: 2508 | AE18: 21 | AF18: -15 | AG18: 103 | AH18: 2 | AI18: 2413 | AJ18: 2279 | AK18: 5507 | AM18: 292 | AN18: -2949 | AO18: -4823 | AT18: 22 | AV18: 164 | AW18: 6613 | AY18: 0.3790408851 | AZ18: 78.42230996 | BA18: -6689.596239 | BE18: 20.70655986 | BF18: 2675.649726 | BG18: 62.90415164 | BH18: 15525.40054 | BJ18: 35587.01769 | BK18: 85238.87946 | BL18: 1.77722 | BM18: -49650.08456 | BN18: 22542.65706 | BO18: 28996.39116 | BR18: -370.28008 | BS18: 652.58389 | BT18: 2171.26748 | BU18: 3522.04611 | BV18: 0 | BX18: -1350.77863 | BY18: 23.25968 | BZ18: -1.08799 | CA18: 75.83157 | CB18: 1.21903 | CC18: -1403.21948 | CD18: 877.86598 | CE18: 1961.14394 | CG18: -1378.90572 | CH18: -6379.9812 | CI18: -7734.41852 | CN18: 22 | CP18: 285 | CQ18: 6591 | CS18: 0.8019102005 | CT18: 80.16228542 | CU18: -7666.152523 | CY18: 18.03849118 | CZ18: 2524.431651 | DA18: 57.22007058 | DB18: 16103.04817 | DD18: 37075.50847 | DE18: 88306.35581 | DF18: -61.83979 | DG18: -51292.68712 | DH18: 23605.29029 | DI18: 31317.58969 | DL18: -578.11191 | DM18: -451.83353 | DN18: 2600.24742 | DO18: 3713.18718 | DP18: 0 | DR18: -1112.93977 | DS18: 16.22626 | DT18: -11.37245 | DU18: 112.70806 | DV18: 33.1853 | DW18: -1187.60872 | DX18: -432.13752 | DY18: 2430.73087 | EA18: -373.11585 | EB18: -3390.6896 | EC18: -5722.76442 | EH18: 22 | EJ18: 261 | EQ18: -11443 | ER18: 205 | ES18: 908 | ET18: -10478.8908 | EU18: 454.4633 | EV18: 328.86504 | EW18: -8758.73443 | EX18: 5.84889 | EY18: 599.39025 | EZ18: 24565 | FA18: -16010 | FB18: 9468.3381 | FC18: 6927.91001 | FD18: 7295.77937 | FE18: 917.2993 | FF18: 43083 | FG18: 39903 | FH18: 3180 | FI18: 0 | FJ18: 53099.3349 | FK18: 43011.49638 | FL18: 10087.83852 | FM18: 0.40617 | FN18: 57921.72397 | FO18: 45908.27643 | FP18: 12013.44754 | FQ18: 0.40617 | FR18: 236 | FU18: 1013 | FV18: 1119.2339 | FW18: 1144.93119
A19: 72 | B19: Hailuoto | C19: 949 | E19: 2.462140992 | F19: 59.42396313 | G19: -5825.079031 | K19: 52.99287284 | L19: 1229.71549 | M19: 30.62221423 | N19: 14657.53425 | P19: 5273 | Q19: 12083 | R19: 1 | S19: -6809 | T19: 3605 | U19: 4142 | X19: -15 | Y19: 0 | Z19: 923 | AA19: 816 | AB19: 0 | AD19: 107 | AE19: 0 | AF19: 2 | AG19: 0 | AH19: -1 | AI19: 107 | AJ19: 6520 | AK19: 891 | AM19: 51 | AN19: -363 | AO19: -453 | AT19: 20.5 | AV19: 139 | AW19: 950 | AY19: 1.54333825 | AZ19: 62.55718068 | BA19: -6647.822632 | BE19: 50.23285014 | BF19: 1047.685221 | BG19: 24.80166862 | BH19: 15418.52331 | BJ19: 5638.80586 | BK19: 12842.18629 | BL19: 0.52066 | BM19: -7202.85978 | BN19: 3780.21682 | BO19: 4044.70049 | BR19: -12.61783 | BS19: 0.83856 | BT19: 610.27826 | BU19: 827.33801 | BV19: 0 | BX19: -217.05974 | BY19: -0.15052 | BZ19: 4.43251 | CA19: 0.4416 | CB19: -0.27215 | CC19: -213.49151 | CD19: 6303.70325 | CE19: 522.61909 | CG19: -69.13002 | CH19: -389.28255 | CI19: -760.0901 | CN19: 20.5 | CP19: 228 | CQ19: 960 | CS19: 2.40970268 | CT19: 63.85948938 | CU19: -7064.590333 | CY19: 49.41959502 | CZ19: 1018.670021 | DA19: 23.54278368 | DB19: 15793.14335 | DD19: 5737.41396 | DE19: 13183.82498 | DF19: -18.11668 | DG19: -7464.52769 | DH19: 4233.37881 | DI19: 4303.1975 | DL19: -19.85227 | DM19: 0.11289 | DN19: 1052.30924 | DO19: 815.33065 | DP19: 0 | DR19: 236.97859 | DS19: -0.76601 | DT19: -0.78065 | DU19: 1.16768 | DV19: -0.03302 | DW19: 234.23124 | DX19: 6536.58449 | DY19: 945.80464 | EA19: -243.57925 | EB19: -422.35202 | EC19: -432.43861 | EH19: 20.5 | EJ19: 63 | EQ19: -1436 | ER19: 42 | ES19: 50 | ET19: -1392.609 | EU19: 0.72165 | EV19: 109.17815 | EW19: -1521.1285 | EX19: 1.7135 | EY19: 141.17175 | EZ19: 741 | FA19: 9 | FB19: 1012.21868 | FC19: -9.90503 | FD19: 1028.05268 | FE19: -121.58795 | FF19: 3968 | FG19: 3567 | FH19: 401 | FI19: 0 | FJ19: 4581.43091 | FK19: 4037.19222 | FL19: 544.23869 | FM19: 0.11899 | FN19: 5065.54362 | FO19: 4584.62012 | FP19: 480.9235 | FQ19: 0.11899 | FR19: 0 | FU19: 122 | FV19: 127.80947 | FW19: 92.03999
A20: 74 | B20: Halsua | C20: 1103 | E20: 2.67369727 | F20: 93.14457637 | G20: -11989.12058 | K20: 27.39082024 | L20: 2300.99728 | M20: 51.21178617 | N20: 16399.81868 | P20: 9046 | Q20: 16539 | R20: 53 | S20: -7440 | T20: 4000 | U20: 5567 | X20: -97 | Y20: 24 | Z20: 2054 | AA20: 1216 | AB20: 0 | AD20: 838 | AE20: -2 | AF20: -16 | AG20: 8 | AH20: 0 | AI20: 812 | AJ20: 2594 | AK20: 2007 | AM20: -367 | AN20: -705 | AO20: 1296 | AT20: 23.5 | AV20: 9 | AW20: 1083 | AY20: 0.99690304 | AZ20: 93.49742516 | BA20: -13205.73223 | BE20: 25.77207987 | BF20: 2021.010157 | BG20: 37.71184988 | BH20: 19560.6609 | BJ20: 10047.1909 | BK20: 18788.19675 | BL20: 99.94366 | BM20: -8641.06219 | BN20: 4126.96856 | BO20: 5208.62244 | BR20: -84.62309 | BS20: 29.31384 | BT20: 639.21956 | BU20: 888.45734 | BV20: 0 | BX20: -249.23778 | BY20: -2.31773 | BZ20: 4.12329 | CA20: 14.66651 | CB20: 0.99096 | CC20: -261.10777 | CD20: 2324.451 | CE20: 646.28432 | CG20: -201.948 | CH20: -641.483 | CI20: -944.91468 | CN20: 23.5 | CP20: 252 | CQ20: 1052 | CS20: 1.302477905 | CT20: 89.30359941 | CU20: -13605.69772 | CY20: 25.40303355 | CZ20: 1929.992395 | DA20: 34.42113696 | DB20: 20465.54201 | DD20: 10747.60513 | DE20: 19734.30169 | DF20: 133.05368 | DG20: -8853.64288 | DH20: 4285.54642 | DI20: 5598.17476 | DL20: -112.04472 | DM20: 112.57919 | DN20: 1030.61277 | DO20: 931.77354 | DP20: 0 | DR20: 98.83923 | DS20: -2.38186 | DT20: 8.62546 | DU20: 1.93112 | DV20: 2.35015 | DW20: 105.50186 | DX20: 2356.315 | DY20: 978.69265 | EA20: -479.569 | EB20: -761.277 | EC20: 103.98265 | EH20: 23.5 | EJ20: 82 | EQ20: -744 | ER20: 9 | ES20: 24 | ET20: -1662.875 | EU20: 34.317 | EV20: 37.359 | EW20: -902.021 | EX20: 7.587 | EY20: 19.724 | EZ20: 247 | FA20: -334 | FB20: 845.387 | FC20: 218.265 | FD20: 2001.939 | FE20: -1167.348 | FF20: 13689 | FG20: 9432 | FH20: 4257 | FI20: 103 | FJ20: 14133.857 | FK20: 9512.136 | FL20: 4621.721 | FM20: 3.517 | FN20: 14207.191 | FO20: 10667.67 | FP20: 3539.521 | FQ20: 1.759 | FR20: 997 | FU20: 5041 | FV20: 413.60866 | FW20: 440.00975
A21: 75 | B21: Hamina | C21: 19877 | E21: 0.9619302619 | F21: 77.47224472 | G21: -8175.831363 | K21: 37.64249465 | L21: 1007.647029 | M21: 24.1007767 | N21: 15260.5524 | P21: 120573 | Q21: 233718 | R21: 354 | S21: -112791 | T21: 88925 | U21: 54776 | X21: -1513 | Y21: 252 | Z21: 29649 | AA21: 20772 | AB21: 0 | AD21: 8877 | AE21: 38 | AF21: 0 | AG21: 0 | AH21: -122 | AI21: 8793 | AJ21: 31165 | AK21: 28713 | AM21: -4148 | AN21: -30886 | AO21: -3253 | AT21: 21 | AV21: 24 | AW21: 19702 | AY21: 1.01625792 | AZ21: 89.17191618 | BA21: -10943.5397 | BE21: 32.61062829 | BF21: 809.9493138 | BG21: 17.48379224 | BH21: 16908.88885 | BJ21: 150889.5958 | BK21: 279524.5568 | BL21: 1661.27525 | BM21: -126973.6857 | BN21: 98469.90334 | BO21: 49274.05608 | BR21: -1961.87317 | BS21: 1607.72591 | BT21: 20416.12644 | BU21: 17201.48561 | BV21: 0 | BX21: 3214.64083 | BY21: 6.10659 | BZ21: 0 | CA21: 35.56363 | CB21: 702.55134 | CC21: 3887.73514 | CD21: 38441.88895 | CE21: 18225.12329 | CG21: -10605.82617 | CH21: -20052.97623 | CI21: -11075.54837 | CN21: 21 | CP21: 92 | CQ21: 19549 | CS21: 0.7145397429 | CT21: 71.80217566 | CU21: -9861.543211 | CY21: 32.94459929 | CZ21: 1138.448551 | DA21: 21.15829481 | DB21: 19639.28212 | DD21: 193442.0303 | DE21: 323924.9767 | DF21: 2002.09752 | DG21: -128480.8488 | DH21: 101937.2324 | DI21: 50784.33257 | DL21: -1685.53922 | DM21: -8974.82072 | DN21: 13580.35617 | DO21: 19649.54391 | DP21: 0 | DR21: -6069.18774 | DS21: 12.02981 | DT21: 0 | DU21: 107.91234 | DV21: -359.27659 | DW21: -6524.34686 | DX21: 32082.60102 | DY21: 12283.43271 | EA21: 737.196 | EB21: -19726.84882 | EC21: 12548.82324 | EH21: 21 | EJ21: 168 | EQ21: -35362 | ER21: 72 | ES21: 3324 | ET21: -31088.3213 | EU21: 226.65257 | EV21: 1560.99707 | EW21: -28658.70675 | EX21: 2732.31606 | EY21: 26191.78122 | EZ21: 41687 | FA21: 0 | FB21: 59328.69248 | FC21: -34914.48434 | FD21: 9796.96976 | FE21: 1183.91674 | FF21: 169472 | FG21: 129220 | FH21: 40252 | FI21: 1383 | FJ21: 204635.9217 | FK21: 184001.2956 | FL21: 20634.62604 | FM21: 1302.42666 | FN21: 195889.9593 | FO21: 165470.5606 | FP21: 30419.39878 | FQ21: 1181.40196 | FR21: 42219 | FU21: 21220 | FV21: 27201.033 | FW21: 22609.462
A22: 77 | B22: Hankasalmi | C22: 4782 | E22: 6.111888112 | F22: 50.96636062 | G22: -4644.291092 | K22: 42.09225346 | L22: 495.3994145 | M22: 16.43606607 | N22: 11001.46382 | P22: 14477 | Q22: 46862 | R22: 0 | S22: -32385 | T22: 15358 | U22: 22009 | X22: -13 | Y22: 182 | Z22: 5151 | AA22: 3550 | AB22: 645 | AD22: 2246 | AE22: -8 | AF22: -2 | AG22: 0 | AH22: 12 | AI22: 2248 | AJ22: -714 | AK22: 4927 | AM22: 500 | AN22: -765 | AO22: 4702 | AT22: 22 | AV22: 108 | AW22: 4683 | AY22: 2.808141125 | AZ22: 48.50045001 | BA22: -4225.70107 | BE22: 44.00261963 | BF22: 676.0787743 | BG22: 21.8273631 | BH22: 11305.47705 | BJ22: 15292.41037 | BK22: 49310.54145 | BL22: 0 | BM22: -34018.13108 | BN22: 16698.75255 | BO22: 20674.40638 | BR22: -46.24934 | BS22: 378.61073 | BT22: 3687.38924 | BU22: 2860.56999 | BV22: 87.3 | BX22: 914.11925 | BY22: -1.27068 | BZ22: 23.4021 | CA22: 3.49868 | CB22: 30.51799 | CC22: 963.26998 | CD22: 246.05127 | CE22: 3742.66156 | CG22: -673.76888 | CH22: -1231.76124 | CI22: 2467.78734 | CN22: 22 | CP22: 181 | CQ22: 4601 | CS22: 2.001892038 | CT22: 45.91420462 | CU22: -3903.498752 | CY22: 41.3298204 | CZ22: 1091.710698 | DA22: 31.25489891 | DB22: 12749.18232 | DD22: 20277.78453 | DE22: 56002.22861 | DF22: 0 | DG22: -35724.44408 | DH22: 16757.17824 | DI22: 21497.55461 | DL22: -76.33786 | DM22: 305.31661 | DN22: 2759.26752 | DO22: 3102.34141 | DP22: 181.70203 | DR22: -161.37186 | DS22: 2.06661 | DT22: 0.73803 | DU22: 0 | DV22: 41.01797 | DW22: -117.54925 | DX22: 136.07022 | DY22: 2911.88371 | EA22: -1119.68434 | EB22: -1299.91303 | EC22: 1877.74259 | EH22: 22 | EJ22: 205 | EQ22: -4878 | ER22: 505 | ES22: 4148 | ET22: -2265.45947 | EU22: 0 | EV22: 990.58525 | EW22: -1175.05284 | EX22: 42.11202 | EY22: 98.7997 | EZ22: 0 | FA22: -4928 | FB22: 1847.24 | FC22: -1346.06534 | FD22: 743.08 | FE22: 55.9637 | FF22: 19663 | FG22: 17043 | FH22: 2620 | FI22: 60 | FJ22: 18932.26102 | FK22: 17580.69729 | FL22: 1351.56373 | FM22: 0 | FN22: 18431.39168 | FO22: 16918.68447 | FP22: 1512.70721 | FQ22: 0 | FR22: 339 | FU22: 16301 | FV22: 17068.73192 | FW22: 24706.04491
A23: 78 | B23: Hanko | C23: 8042 | E23: 2.384413883 | F23: 80.96518337 | G23: -9168.490425 | K23: 39.1246092 | L23: 1229.420542 | M23: 32.02942221 | N23: 14010.19647 | P23: 56099 | Q23: 97520 | R23: -2 | S23: -41423 | T23: 39976 | U23: 15883 | X23: -790 | Y23: 110 | Z23: 13756 | AA23: 6632 | AB23: 0 | AD23: 7124 | AE23: 26 | AF23: -5 | AG23: 83 | AH23: -31 | AI23: 7030 | AJ23: 19797 | AK23: 11726 | AM23: 1206 | AN23: -5300 | AO23: 4832 | AT23: 21.75 | AV23: 13 | AW23: 7979 | AY23: 1.787193165 | AZ23: 72.72184552 | BA23: -8337.939011 | BE23: 43.63494834 | BF23: 1298.203168 | BG23: 32.07702876 | BH23: 14772.07131 | BJ23: 60954.99365 | BK23: 101725.6507 | BL23: 1.72193 | BM23: -40768.93512 | BN23: 41148.00778 | BO23: 14272.704 | BR23: -538.41541 | BS23: 114.96673 | BT23: 14228.32798 | BU23: 6689.98194 | BV23: 0 | BX23: 7538.34604 | BY23: 9.01411 | BZ23: -188.79144 | CA23: 296.98658 | CB23: 52.18484 | CC23: 7113.76697 | CD23: 26914.507 | CE23: 12497.3138 | CG23: -528.99455 | CH23: -7715.59201 | CI23: 7399.52451 | CN23: 21.75 | CP23: 11 | CQ23: 7832 | CS23: 1.750016264 | CT23: 67.75975583 | CU23: -7790.509828 | CY23: 47.0590696 | CZ23: 1489.295137 | DA23: 35.04018442 | DB23: 15513.40936 | DD23: 60192.91699 | DE23: 106555.2825 | DF23: -31.34571 | DG23: -46393.71122 | DH23: 43550.23852 | DI23: 15557.41 | DL23: -498.76172 | DM23: 82.98779 | DN23: 12298.16337 | DO23: 6712.40934 | DP23: 0 | DR23: 5585.75403 | DS23: 19.39176 | DT23: 841.77347 | DU23: 304.17514 | DV23: -64.4828 | DW23: 6078.26132 | DX23: 33000.94757 | DY23: 11565.7563 | EA23: -193.61854 | EB23: -6797.40582 | EC23: 5482.85232 | EH23: 21.75 | EJ23: 18 | EQ23: -8943 | ER23: 129 | ES23: 1920 | ET23: -7536.32786 | EU23: 9.61403 | EV23: 2428.92454 | EW23: -7504.5839 | EX23: 32.8886 | EY23: 1388.79132 | EZ23: 13363 | FA23: -10405 | FB23: 728.83835 | FC23: -77.32322 | FD23: 1149.86904 | FE23: -1356.23305 | FF23: 76185 | FG23: 38400 | FH23: 37785 | FI23: 341 | FJ23: 69515.54231 | FK23: 31724.6236 | FL23: 37790.91871 | FM23: 322.56268 | FN23: 62533.48639 | FO23: 26097.22162 | FP23: 36436.26477 | FQ23: 308.41374 | FR23: 201 | FU23: 8630 | FV23: 7262.239 | FW23: 7300.272
A24: 79 | B24: Harjavalta | C24: 6869 | E24: 1.106790123 | F24: 47.69570067 | G24: -4180.812345 | K24: 36.26860996 | L24: 589.1687291 | M24: 17.59125174 | N24: 12224.63241 | P24: 28433 | Q24: 73592 | R24: 5 | S24: -45154 | T24: 34754 | U24: 15709 | X24: -106 | Y24: 70 | Z24: 5273 | AA24: 3753 | AB24: 67 | AD24: 1587 | AE24: -8 | AF24: 0 | AG24: 13 | AH24: -22 | AI24: 1545 | AJ24: 3547 | AK24: 5158 | AM24: -690 | AN24: -4754 | AO24: 1346 | AT24: 21.5 | AV24: 232 | AW24: 6785 | AY24: 1.605396526 | AZ24: 41.55111127 | BA24: -3813.808616 | BE24: 39.22507841 | BF24: 1039.771748 | BG24: 26.52491544 | BH24: 14307.93206 | BJ24: 39578.59711 | BK24: 86465.47283 | BL24: 103.93026 | BM24: -46782.94546 | BN24: 39252.7974 | BO24: 15638.74117 | BR24: -75.59735 | BS24: 64.07574 | BT24: 8097.0715 | BU24: 3861.80629 | BV24: 0 | BX24: 4235.26521 | BY24: -14.53354 | BZ24: 0 | CA24: 10.1576 | CB24: -20.30127 | CC24: 4190.2728 | CD24: 7909.17629 | CE24: 7910.31705 | CG24: -1457.32436 | CH24: -5015.15046 | CI24: 2733.84943 | CN24: 21.5 | CP24: 57 | CQ24: 6753 | CS24: 1.482604875 | CT24: 38.30622607 | CU24: -3804.529671 | CY24: 40.81817774 | CZ24: 863.2825811 | DA24: 20.68634345 | DB24: 15232.1817 | DD24: 40943.56677 | DE24: 91638.97261 | DF24: 79.97779 | DG24: -50615.42805 | DH24: 41299.76127 | DI24: 16086.55567 | DL24: -127.02038 | DM24: 53.07887 | DN24: 6696.94738 | DO24: 3712.94405 | DP24: 0 | DR24: 2984.00333 | DS24: -14.1423 | DT24: -1500 | DU24: 16.85402 | DV24: -17.64793 | DW24: 1435.35908 | DX24: 9344.82475 | DY24: 6387.82856 | EA24: 177.11702 | EB24: -4473.68748 | EC24: 312.75396 | EH24: 21.5 | EJ24: 80 | EQ24: -5505 | ER24: 84 | ES24: 1609 | ET24: -5503.10308 | EU24: 96.92189 | EV24: 229.71357 | EW24: -6543.69043 | EX24: 13.61532 | EY24: 455.00051 | EZ24: 6306 | FA24: -3508 | FB24: 3819.44808 | FC24: 2500 | FD24: 3303.13499 | FE24: -2420 | FF24: 26248 | FG24: 20038 | FH24: 6210 | FI24: 0 | FJ24: 27570.23013 | FK24: 19207.84345 | FL24: 8362.38668 | FM24: 0 | FN24: 23976.14636 | FO24: 17855.57799 | FP24: 6120.56837 | FQ24: 0 | FR24: 450 | FU24: 1123 | FV24: 1878.87123 | FW24: 1840.505
A25: 81 | B25: Hartola | C25: 2655 | E25: 2.201463415 | F25: 76.26798252 | G25: -9025.988701 | K25: 21.13285943 | L25: 1722.787194 | M25: 40.67610369 | N25: 15459.13371 | P25: 19937 | Q25: 36440 | R25: 1 | S25: -16502 | T25: 10263 | U25: 10534 | X25: -163 | Y25: 199 | Z25: 4331 | AA25: 2354 | AB25: 60 | AD25: 2037 | AE25: -38 | AF25: 105 | AG25: 0 | AH25: 0 | AI25: 2104 | AJ25: 1958 | AK25: 4333 | AM25: 200 | AN25: -1868 | AO25: 1903 | AT25: 21.5 | AV25: 16 | AW25: 2621 | AY25: 0.4120933855 | AZ25: 78.71030329 | BA25: -9102.761908 | BE25: 20.28321025 | BF25: 2078.98232 | BG25: 40.07998248 | BH25: 18932.85625 | BJ25: 20676.62835 | BK25: 38558.95969 | BL25: 6.62193 | BM25: -17875.70941 | BN25: 10852.59372 | BO25: 9467.227 | BR25: 33.07506 | BS25: 153.6671 | BT25: 2630.85347 | BU25: 2513.84335 | BV25: -40.47646 | BX25: 76.53366 | BY25: -38.22862 | BZ25: 405.10324 | CA25: 0 | CB25: 0 | CC25: 443.40828 | CD25: 1977.76232 | CE25: 3630.9321 | CG25: -402.05755 | CH25: -6635.51932 | CI25: -504.7741 | CN25: 21.5 | CP25: 102 | CQ25: 2574 | CS25: 0.9419400693 | CT25: 67.48833288 | CU25: -8144.307141 | CY25: 20.81465038 | CZ25: 1527.239052 | DA25: 32.36524663 | DB25: 17223.48235 | DD25: 21180.33823 | DE25: 40763.96662 | DF25: -9.5511 | DG25: -19593.17949 | DH25: 11203.45216 | DI25: 9868.167 | DL25: -190.62381 | DM25: 181.05362 | DN25: 1468.86948 | DO25: 2666.03455 | DP25: 111.53768 | DR25: -1085.62739 | DS25: -37.57936 | DT25: 3.02307 | DU25: 0 | DV25: 0 | DW25: -1120.18368 | DX25: 1250.65124 | DY25: 1850.2436 | EA25: -659.50395 | EB25: -1572.3478 | EC25: 2110.87255 | EH25: 21.5 | EJ25: 213 | EQ25: -2535 | ER25: 17 | ES25: 88 | ET25: -4337.25632 | EU25: 2.31313 | EV25: 199.23699 | EW25: -1725.36596 | EX25: 105.81598 | EY25: 1880.17893 | EZ25: 2325 | FA25: -1102 | FB25: 3312.21232 | FC25: 4734.19277 | FD25: 3808.78601 | FE25: -6631.7115 | FF25: 26176 | FG25: 21649 | FH25: 4527 | FI25: -308 | FJ25: 27526.70501 | FK25: 18213.89122 | FL25: 9312.81379 | FM25: -434.09023 | FN25: 22931.39001 | FO25: 20322.03278 | FP25: 2609.35723 | FQ25: -638.33537 | FR25: 168 | FU25: 782 | FV25: 738.046 | FW25: 827.028
A26: 82 | B26: Hattula | C26: 9389 | E26: 1.32004749 | F26: 70.15189936 | G26: -5396.527852 | K26: 33.03722406 | L26: 360.4217702 | M26: 14.60138075 | N26: 9009.692193 | P26: 25209 | Q26: 73629 | R26: 0 | S26: -48420 | T26: 39227 | U26: 16802 | X26: -17 | Y26: -35 | Z26: 7557 | AA26: 4056 | AB26: 0 | AD26: 3501 | AE26: 0 | AF26: 2 | AG26: 97 | AH26: 49 | AI26: 3455 | AJ26: 8993 | AK26: 7268 | AM26: 751 | AN26: -5670 | AO26: 3277 | AT26: 20.75 | AV26: 220 | AW26: 9405 | AY26: 0.7741256622 | AZ26: 72.29327791 | BA26: -5451.210188 | BE26: 31.88647569 | BF26: 434.3251164 | BG26: 16.72036641 | BH26: 9481.17186 | BJ26: 27029.24706 | BK26: 78684.49127 | BL26: 0.13007 | BM26: -51655.11414 | BN26: 40564.90371 | BO26: 15078.11601 | BR26: -6.60766 | BS26: 214.20392 | BT26: 4195.50184 | BU26: 4234.09095 | BV26: 134.14348 | BX26: 95.55437 | BY26: -0.40218 | BZ26: -0.5099 | CA26: 23.14071 | CB26: -3.9676 | CC26: 67.53398 | CD26: 9060.47498 | CE26: 4171.02065 | CG26: -1474.83866 | CH26: -5484.67813 | CI26: -342.93772 | CN26: 20.75 | CP26: 275 | CQ26: 9359 | CS26: 0.5743219425 | CT26: 77.26043328 | CU26: -5953.142436 | CY26: 29.6082767 | CZ26: 828.9026328 | DA26: 28.16016622 | DB26: 10743.88051 | DD26: 27297.84539 | DE26: 83239.39724 | DF26: 0.36273 | DG26: -55941.18912 | DH26: 43053.82391 | DI26: 17005.19086 | DL26: -98.72881 | DM26: 150.23728 | DN26: 4169.33412 | DO26: 4016.48162 | DP26: -8.06451 | DR26: 144.78799 | DS26: -0.00411 | DT26: 17.89952 | DU26: 0.05125 | DV26: 57.56349 | DW26: 220.19564 | DX26: 9265.2231 | DY26: 3914.85905 | EA26: 393.9032 | EB26: -7487.96173 | EC26: -4388.38117 | EH26: 20.75 | EJ26: 247 | EQ26: -4949 | ER26: 117 | ES26: 841 | ET26: -4756.72202 | EU26: 0.86564 | EV26: 241.89801 | EW26: -9389.65363 | EX26: 42.5 | EY26: 1043.91341 | EZ26: 9469 | FA26: -7157 | FB26: 7967.02812 | FC26: -1220.36962 | FD26: 8759.9519 | FE26: 6394.90887 | FF26: 47081 | FG26: 38684 | FH26: 8397 | FI26: 4132 | FJ26: 48344.02614 | FK26: 41512.85233 | FL26: 6831.17381 | FM26: 4126.7194 | FN26: 56010.9252 | FO26: 43734.39885 | FP26: 12276.52635 | FQ26: 4121.65299 | FR26: 7794 | FU26: 3432 | FV26: 2740.96085 | FW26: 2841.66
A27: 86 | B27: Hausjärvi | C27: 8175 | E27: 1.334273319 | F27: 58.34588732 | G27: -3554.006116 | K27: 34.44853385 | L27: 1259.816514 | M27: 47.27579702 | N27: 9726.605505 | P27: 23470 | Q27: 66919 | R27: 0 | S27: -43449 | T27: 32852 | U27: 16696 | X27: -165 | Y27: 35 | Z27: 5969 | AA27: 2928 | AB27: 0 | AD27: 3041 | AE27: 0 | AF27: 1 | AG27: 17 | AH27: 0 | AI27: 3025 | AJ27: 8278 | AK27: 5759 | AM27: -1287 | AN27: -4428 | AO27: -1455 | AT27: 21.5 | AV27: 245 | AW27: 8143 | AY27: 0.8432757251 | AZ27: 54.71065671 | BA27: -3573.725301 | BE27: 36.79114622 | BF27: 1125.008437 | BG27: 40.46124873 | BH27: 10148.67539 | BJ27: 26497.77017 | BK27: 71413.06622 | BL27: 0.11338 | BM27: -44915.18267 | BN27: 34500.23998 | BO27: 15439.56288 | BR27: -61.14926 | BS27: 171.62177 | BT27: 5135.0927 | BU27: 3172.00119 | BV27: 0 | BX27: 1963.09151 | BY27: -0.35063 | BZ27: -0.43048 | CA27: 0.00163 | CB27: 0 | CC27: 1962.30877 | CD27: 10240.22052 | CE27: 4783.33925 | CG27: -308.28372 | CH27: -6106.16859 | CI27: -58.89602 | CN27: 21.5 | CP27: 238 | CQ27: 8031 | CS27: 0.9 | CT27: 56.7 | CU27: -3994 | CY27: 35.7 | CZ27: 1046.911377 | DA27: 35.80861586 | DB27: 10671.2489 | DD27: 26331 | DE27: 74875 | DF27: 0.31618 | DG27: -48544 | DH27: 35860.036 | DI27: 16384.637 | DL27: -269 | DM27: 187 | DN27: 3619 | DO27: 3270 | DP27: 0 | DR27: 384 | DS27: -0.00759 | DT27: 2.11108 | DU27: 8 | DV27: 0 | DW27: 342 | DX27: 10582 | DY27: 3495 | EA27: -543 | EB27: -4119 | EC27: -2939 | EH27: 21.5 | EJ27: 243 | EQ27: -7973 | ER27: 516 | ES27: 243 | ET27: -5029.48182 | EU27: 0.62538 | EV27: 186.62117 | EW27: -6594 | EX27: 40 | EY27: 120 | EZ27: 5953 | FA27: 5000 | FB27: 8643.96056 | FC27: -3237.91421 | FD27: 6329 | FE27: 0 | FF27: 32830 | FG27: 19160 | FH27: 13670 | FI27: 108 | FJ27: 32174.90003 | FK27: 22056.97988 | FL27: 10117.92015 | FM27: 89.96167 | FN27: 34383.99486 | FO27: 25104.6954 | FP27: 9279.29946 | FQ27: 72.70149 | FR27: 2309 | FU27: 677 | FV27: 735.9613 | FW27: 693.26643
A28: 111 | B28: Heinola | C28: 18497 | E28: 1.932077536 | F28: 65.21496833 | G28: -1512.515543 | K28: 50.73785197 | L28: 5888.4684 | M28: 151.6347038 | N28: 14174.13635 | P28: 104668 | Q28: 208423 | R28: 350 | S28: -103405 | T28: 72997 | U28: 52020 | X28: -624 | Y28: 3047 | Z28: 24035 | AA28: 12027 | AB28: 9325 | AD28: 21333 | AE28: -3 | AF28: -1 | AG28: 3 | AH28: 32 | AI28: 21358 | AJ28: 52919 | AK28: 31795 | AM28: 2651 | AN28: -12110 | AO28: -2386 | AT28: 20.5 | AV28: 52 | AW28: 18344 | AY28: 1.270725985 | AZ28: 69.14755409 | BA28: -1955.059147 | BE28: 49.43088701 | BF28: 42.00774095 | BG28: 1.062116526 | BH28: 14436.10478 | BJ28: 112220.555 | BK28: 220848.11 | BL28: 39.962 | BM28: -108587.593 | BN28: 73125.696 | BO28: 49109.154 | BR28: -500.44 | BS28: 5831.679 | BT28: 18978.496 | BU28: 12962.999 | BV28: 32.065 | BX28: 6047.562 | BY28: -2.174 | BZ28: 1.55 | CA28: 0.488 | CB28: -40.626 | CC28: 6005.824 | CD28: 58944.377 | CE28: 17628.722 | CG28: -3672.795 | CH28: -14819.069 | CI28: -7260.095 | CN28: 20.5 | CP28: 93 | CQ28: 18131 | CS28: 0.7953532525 | CT28: 71.22055142 | CU28: -2272.698086 | CY28: 47.23019806 | CZ28: 6402.876069 | DA28: 145.7817145 | DB28: 16031.15846 | DD28: 119318.4 | DE28: 234537.761 | DF28: -50.673 | DG28: -115270.034 | DH28: 76371.279 | DI28: 53805.487 | DL28: -641.253 | DM28: -1875.832 | DN28: 12389.647 | DO28: 11174.104 | DP28: -33.279 | DR28: 1182.264 | DS28: 8.521 | DT28: -22.422 | DU28: -0.001 | DV28: -111.224 | DW28: 1057.14 | DX28: 60636.99 | DY28: 13368.677 | EA28: -3691.08 | EB28: -15753.796 | EC28: -6584.034 | EH28: 20.5 | EJ28: 176 | EQ28: -36097 | ER28: 622 | ES28: 1294 | ET28: -27349.313 | EU28: 653.653 | EV28: 1806.843 | EW28: -30609.389 | EX28: 1725.731 | EY28: 8930.947 | EZ28: 36203 | FA28: -4851 | FB28: 6876.787 | FC28: 20094.122 | FD28: 24430.58 | FE28: 3000 | FF28: 115900 | FG28: 99436 | FH28: 16464 | FI28: 1732 | FJ28: 128053.341 | FK28: 91368.039 | FL28: 36685.302 | FM28: 1722.144 | FN28: 140511.935 | FO28: 100073.947 | FP28: 40437.988 | FQ28: 1691.293 | FR28: 647 | FU28: 32028 | FV28: 35810.102 | FW28: 39153.101
A29: 90 | B29: Heinävesi | C29: 3196 | E29: 60.82 | F29: 51.03872015 | G29: -4326.658323 | K29: 34.89455408 | L29: 1912.703379 | M29: 51.72821904 | N29: 13496.24531 | P29: 16400 | Q29: 40562 | R29: 0 | S29: -24162 | T29: 12193 | U29: 14537 | X29: 108 | Y29: 315 | Z29: 2991 | AA29: 2002 | AB29: 232 | AD29: 1221 | AE29: 0 | AF29: 25 | AG29: 0 | AH29: 0 | AI29: 1246 | AJ29: 3046 | AK29: 2903 | AM29: -398 | AN29: 0 | AO29: 1465 | AT29: 21 | AV29: 162 | AW29: 3136 | AY29: -0.9090357282 | AZ29: 46.67171438 | BA29: -4110.138444 | BE29: 41.34995806 | BF29: 1942.648438 | BG29: 56.26163995 | BH29: 12603.02189 | BJ29: 17914.81898 | BK29: 42150.50384 | BL29: 0 | BM29: -24235.68486 | BN29: 13784.08514 | BO29: 13696.754 | BR29: 142.2445 | BS29: 247.35539 | BT29: 3501 | BU29: 1901.6511 | BV29: 335.1631 | BX29: 1934.512 | BY29: -0.53075 | BZ29: 1.7375 | CA29: -0.48188 | CB29: -1.05191 | CC29: 1934.18496 | CD29: 4964.37546 | CE29: 3306 | CG29: -33.40004 | CH29: -3729.08815 | CI29: 2518 | CN29: 21 | CP29: 69 | CQ29: 3061 | CS29: 6.882639664 | CT29: 39.5622933 | CU29: -3466.519252 | CY29: 42.71521905 | CZ29: 1606.183927 | DA29: 38.76447375 | DB29: 15123.56745 | DD29: 18959.61794 | DE29: 44181.35221 | DF29: -1.78506 | DG29: -25223.51933 | DH29: 14082.10355 | DI29: 13394.793 | DL29: -5.69218 | DM29: 283.23739 | DN29: 2530.92243 | DO29: 1841.01729 | DP29: 0 | DR29: 689.90514 | DS29: 2.76531 | DT29: 3.49661 | DU29: 0.00436 | DV29: -1.37646 | DW29: 694.78624 | DX29: 5022.83125 | DY29: 2778.63206 | EA29: -498.47215 | EB29: -308.25239 | EC29: 1799.89657 | EH29: 21.5 | EJ29: 127 | EQ29: -2502 | ER29: 2 | ES29: 1062 | ET29: -1161.33954 | EU29: 33.57482 | EV29: 339.69395 | EW29: -1608.66228 | EX29: 214.14335 | EY29: 415.78344 | EZ29: 1299 | FA29: -3423 | FB29: 3901.25186 | FC29: -2857.28538 | FD29: 751.30263 | FE29: -2952.4404 | FF29: 17929 | FG29: 11725 | FH29: 6204 | FI29: 0 | FJ29: 15242.08226 | FK29: 11938.43341 | FL29: 3303.64885 | FM29: 17.68 | FN29: 11632.6921 | FO29: 11278.94533 | FP29: 353.74677 | FQ29: 10.76658 | FR29: 0 | FU29: 1076 | FV29: 896.35329 | FW29: 9302.75557
A30: 91 | B30: Helsinki | C30: 656920 | E30: 4.796385299 | F30: 90.29253701 | G30: -7383.1806 | K30: 62.31192923 | L30: 2479.196858 | M30: 65.92769963 | N30: 13725.74591 | P30: 3803496 | Q30: 6402147 | R30: 32706 | S30: -2565945 | T30: 3565598 | U30: 480135 | X30: -44257 | Y30: 2908 | Z30: 1438439 | AA30: 843312 | AB30: 10330 | AD30: 605457 | AE30: 3253 | AF30: 1035 | AG30: 12127 | AH30: -28734 | AI30: 568884 | AJ30: 6237774 | AK30: 1341771 | AM30: 3399 | AN30: -254373 | AO30: -268786 | AT30: 18 | AV30: 3 | AW30: 658457 | AY30: 3.88524004 | AZ30: 88.30593427 | BA30: -7889.370218 | BE30: 61.33929946 | BF30: 2397.112187 | BG30: 59.61923095 | BH30: 14675.56583 | BJ30: 4363332.161 | BK30: 7164568.649 | BL30: 20785.01711 | BM30: -2780451.471 | BN30: 3820030.493 | BO30: 331045.618 | BR30: -41986.74695 | BS30: 7273.19623 | BT30: 1335911.089 | BU30: 952594.4863 | BV30: 2062.04127 | BX30: 385378.6438 | BY30: 1278.40089 | BZ30: 2783.71838 | CA30: 12130.04846 | CB30: -8054.42206 | CC30: 369256.2926 | CD30: 6554644.869 | CE30: 1253516.69 | CG30: -137047.2213 | CH30: -299955.7826 | CI30: -331287.3273 | CN30: 18 | CP30: 6 | CQ30: 664028 | CS30: 3.87532236 | CT30: 93.62169529 | CU30: -9129.127231 | CY30: 58.33510039 | CZ30: 2722.10327 | DA30: 59.72275735 | DB30: 16636.33325 | DD30: 4846847.033 | DE30: 7915194.978 | DF30: -13297.26474 | DG30: -3081645.211 | DH30: 4091577.98 | DI30: 378400.85 | DL30: -38042.63113 | DM30: 9973.196 | DN30: 1360264.184 | DO30: 911314.1785 | DP30: 2139.02798 | DR30: 451089.0336 | DS30: 6932.97314 | DT30: -135.86678 | DU30: 19635.35504 | DV30: -7721.28743 | DW30: 430529.4975 | DX30: 6967132.686 | DY30: 1272888.754 | EA30: -107500.0058 | EB30: -307165.0544 | EC30: -671138.7915 | EH30: 18 | EJ30: 8 | EQ30: -2273959 | ER30: 16735 | ES30: 646667 | ET30: -2106811.87 | EU30: 113463.5734 | EV30: 408544.2787 | EW30: -2704550.234 | EX30: 61556.91669 | EY30: 698965.7716 | EZ30: 652933 | FA30: -17704 | FB30: 640362.8025 | FC30: -1693.53032 | FD30: 904174.7031 | FE30: 28557.69703 | FF30: 5552119 | FG30: 5234907 | FH30: 317212 | FI30: 484238 | FJ30: 5890869.005 | FK30: 5575243.16 | FL30: 315625.8442 | FM30: 487985.4183 | FN30: 6516414.708 | FO30: 6057380.106 | FP30: 459034.6021 | FQ30: 524517.897 | FR30: 346490 | FU30: 880117 | FV30: 982376.7094 | FW30: 1040170.478
A31: 97 | B31: Hirvensalmi | C31: 2156 | E31: 3.58650519 | F31: 45.90389302 | G31: -128.4786642 | K31: 48.86303543 | L31: 5693.413729 | M31: 135.465169 | N31: 15340.44527 | P31: 16711 | Q31: 30360 | R31: 5 | S31: -13644 | T31: 7851 | U31: 7444 | X31: -70 | Y31: 417 | Z31: 1998 | AA31: 1419 | AB31: 0 | AD31: 579 | AE31: 0 | AF31: 0 | AG31: 0 | AH31: -2 | AI31: 577 | AJ31: 5944 | AK31: 1991 | AM31: -170 | AN31: -503 | AO31: 179 | AT31: 20 | AV31: 172 | AW31: 2131 | AY31: 2.707400663 | AZ31: 42.73649411 | BA31: 304.0871422 | BE31: 49.14226464 | BF31: 6136.724702 | BG31: 135.6761738 | BH31: 16509.19578 | BJ31: 18343.28144 | BK31: 32923.48948 | BL31: 0.78192 | BM31: -14579.42612 | BN31: 8746.69716 | BO31: 7242.673 | BR31: -52.72094 | BS31: 415.70733 | BT31: 1772.93043 | BU31: 1172.73444 | BV31: -54.73844 | BX31: 545.45755 | BY31: 0 | BZ31: 1e-05 | CA31: 0 | CB31: -2.76 | CC31: 542.69756 | CD31: 6476.00661 | CE31: 2062.47346 | CG31: -103.98715 | CH31: -616.45539 | CI31: 931.7555 | CN31: 20 | CP31: 162 | CQ31: 2091 | CS31: 2.879554135 | CT31: 39.23271812 | CU31: 745.3753419 | CY31: 48.78520861 | CZ31: 6223.371836 | DA31: 130.899361 | DB31: 17353.26057 | DD31: 19277.55868 | DE31: 34370.72724 | DF31: 1.00912 | DG31: -15092.15944 | DH31: 8821.79085 | DI31: 7419.906 | DL31: -66.95846 | DM31: 367.40649 | DN31: 1449.98544 | DO31: 1141.70343 | DP31: 11.11407 | DR31: 319.39608 | DS31: 0 | DT31: 0 | DU31: 0 | DV31: -12.032 | DW31: 307.36408 | DX31: 6468.88827 | DY31: 2073.96588 | EA31: -237.45774 | EB31: -457.01154 | EC31: 986.74085 | EH31: 20 | EJ31: 171 | EQ31: -2122 | ER31: 278 | ES31: 32 | ET31: -1567.99103 | EU31: 237.00964 | EV31: 200.26343 | EW31: -1365.89942 | EX31: 95.35774 | EY31: 183.31665 | EZ31: 493 | FA31: -575 | FB31: 764.42904 | FC31: -129.88006 | FD31: 493.73095 | FE31: 0.03299 | FF31: 7860 | FG31: 7127 | FH31: 733 | FI31: 0 | FJ31: 7878.39801 | FK31: 7301.694 | FL31: 576.70401 | FM31: 0 | FN31: 7915.15041 | FO31: 7296.53335 | FP31: 618.61706 | FQ31: 240.02027 | FR31: 610 | FU31: 829 | FV31: 1410.40591 | FW31: 1700.25827
A32: 98 | B32: Hollola | C32: 23251 | E32: 2.153351912 | F32: 40.66022834 | G32: -2714.678939 | K32: 50.46986173 | L32: 1263.902628 | M32: 41.23008887 | N32: 11189.02413 | P32: 98244 | Q32: 223563 | R32: 4 | S32: -125315 | T32: 97885 | U32: 53936 | X32: -500 | Y32: 1303 | Z32: 27309 | AA32: 12511 | AB32: 289 | AD32: 15087 | AE32: -74 | AF32: 0 | AG32: 14 | AH32: -53 | AI32: 14946 | AJ32: 37959 | AK32: 27110 | AM32: 2010 | AN32: -12410 | AO32: 4775 | AT32: 21 | AV32: 82 | AW32: 23090 | AY32: 2.091913635 | AZ32: 38.61674768 | BA32: -2515.178423 | BE32: 53.00429872 | BF32: 1236.152471 | BG32: 39.47300522 | BH32: 11430.48646 | BJ32: 107133.1159 | BK32: 234279.388 | BL32: 36.6817 | BM32: -127109.5903 | BN32: 99393.41698 | BO32: 49575.00728 | BR32: -284.04154 | BS32: 1340.12397 | BT32: 22914.91636 | BU32: 11324.89594 | BV32: 0.0006 | BX32: 11590.02102 | BY32: -760.64029 | BZ32: 1.06066 | CA32: 601.09209 | CB32: 19.01757 | CC32: 10248.36687 | CD32: 48129.35789 | CE32: 22328.36348 | CG32: -3201.03021 | CH32: -10777.19352 | CI32: 4896.52344 | CN32: 21 | CP32: 106 | CQ32: 22943 | CS32: 2.467079306 | CT32: 35.28395014 | CU32: -2298.617038 | CY32: 55.19534924 | CZ32: 1162.049599 | DA32: 35.186328 | DB32: 12054.34405 | DD32: 111705.2391 | DE32: 247635.0592 | DF32: -57.53202 | DG32: -135987.3521 | DH32: 103272.316 | DI32: 53511.80118 | DL32: -359.99471 | DM32: 1097.07325 | DN32: 21533.84352 | DO32: 13211.17832 | DP32: -33.03238 | DR32: 8289.63282 | DS32: 0.54882 | DT32: -1.24716 | DU32: 2.84928 | DV32: -98.45582 | DW32: 8187.62938 | DX32: 56606.36461 | DY32: 23042.47484 | EA32: -3055.72066 | EB32: -8505.59663 | EC32: 5025.81185 | EH32: 21 | EJ32: 89 | EQ32: -23581 | ER32: 106 | ES32: 1140 | ET32: -18514.15414 | EU32: 13.43923 | EV32: 1068.87488 | EW32: -19985.07647 | EX32: 305.85517 | EY32: 1662.5583 | EZ32: 19000 | FA32: -1129 | FB32: 7944.32061 | FC32: -2305.75608 | FD32: 9930.02316 | FE32: -5283.90371 | FF32: 62377 | FG32: 53065 | FH32: 9312 | FI32: 1587 | FJ32: 59441.04794 | FK32: 50272.92103 | FL32: 9168.12691 | FM32: 1501.40037 | FN32: 55581.57076 | FO32: 48194.96656 | FP32: 7386.6042 | FQ32: 1447.86293 | FR32: 1565 | FU32: 87344 | FV32: 74958.15523 | FW32: 23840.2679
A33: 102 | B33: Huittinen | C33: 9937 | E33: 2.227923628 | F33: 51.29342045 | G33: -3148.435141 | K33: 46.29557079 | L33: 1253.497031 | M33: 48.19769106 | N33: 9492.704035 | P33: 23497 | Q33: 84677 | R33: 94 | S33: -61086 | T33: 35970 | U33: 34354 | X33: -231 | Y33: 92 | Z33: 9099 | AA33: 4746 | AB33: -1 | AD33: 4352 | AE33: 9 | AF33: 0 | AG33: 0 | AH33: 90 | AI33: 4451 | AJ33: 8301 | AK33: 8704 | AM33: 770 | AN33: -3954 | AO33: 3968 | AT33: 21 | AV33: 183 | AW33: 9870 | AY33: 1.558652701 | AZ33: 48.18127664 | BA33: -2979.12154 | BE33: 46.70427652 | BF33: 1136.863188 | BG33: 41.4116387 | BH33: 10020.2522 | BJ33: 26317.10727 | BK33: 90121.28706 | BL33: 104.9622 | BM33: -63699.21759 | BN33: 37605.60367 | BO33: 32384.54218 | BR33: -203.14645 | BS33: 101.73169 | BT33: 6189.5135 | BU33: 5320.88171 | BV33: 0 | BX33: 868.63179 | BY33: 5.65276 | BZ33: 4.23774 | CA33: -0.73807 | CB33: 0.14145 | CC33: 879.40181 | CD33: 9077.31108 | CE33: 6044.86524 | CG33: -1395.81427 | CH33: -3896.90091 | CI33: 1687.69365 | CN33: 21 | CP33: 241 | CQ33: 9745 | CS33: 0.9422023323 | CT33: 45.39200293 | CU33: -2994.971833 | CY33: 49.95367162 | CZ33: 967.4116234 | DA33: 32.69691352 | DB33: 10799.34479 | DD33: 25375.13189 | DE33: 93850.2719 | DF33: 19.62154 | DG33: -68455.51847 | DH33: 37802.16156 | DI33: 34222.29045 | DL33: -178.90467 | DM33: 102.03182 | DN33: 3492.06069 | DO33: 4653.66117 | DP33: 3550.01319 | DR33: 2388.41271 | DS33: -0.20334 | DT33: -15.9484 | DU33: 1.58532 | DV33: 0.11155 | DW33: 2370.7872 | DX33: 11593.96766 | DY33: 3659.12289 | EA33: 179.0996 | EB33: -3717.51464 | EC33: -166.56209 | EH33: 21 | EJ33: 266 | EQ33: -5446 | ER33: 175 | ES33: 535 | ET33: -4663.32468 | EU33: 115.44877 | EV33: 190.70432 | EW33: -7415.52239 | EX33: 21.90836 | EY33: 3567.92905 | EZ33: 4863 | FA33: -42 | FB33: 507.5847 | FC33: -4.01338 | FD33: 863.4665 | FE33: 0 | FF33: 33609 | FG33: 29710 | FH33: 3899 | FI33: 0 | FJ33: 30207.01892 | FK33: 26448.24743 | FL33: 3758.77149 | FM33: 0 | FN33: 26840.20086 | FO33: 23294.95782 | FP33: 3545.24304 | FQ33: 0 | FR33: 314 | FU33: 6065 | FV33: 7251.04199 | FW33: 7221.75664
A34: 103 | B34: Humppila | C34: 2174 | E34: 1.425420168 | F34: 42.22375274 | G34: -2811.867525 | K34: 41.446437 | L34: 580.4967801 | M34: 19.771225 | N34: 10716.65133 | P34: 8735 | Q34: 21878 | R34: 0 | S34: -13143 | T34: 7583 | U34: 6913 | X34: -46 | Y34: -2 | Z34: 1305 | AA34: 927 | AB34: 0 | AD34: 378 | AE34: 0 | AF34: 0 | AG34: 10 | AH34: 0 | AI34: 368 | AJ34: 16 | AK34: 1268 | AM34: -157 | AN34: -900 | AO34: 860 | AT34: 22 | AV34: 272 | AW34: 2166 | AY34: 1.275895237 | AZ34: 38.68214128 | BA34: -2405.508873 | BE34: 44.19731401 | BF34: 1082.547719 | BG34: 36.03985028 | BH34: 10963.69476 | BJ34: 9026.18877 | BK34: 22873.11098 | BL34: 0.04935 | BM34: -13846.87286 | BN34: 8178.39462 | BO34: 6879.10932 | BR34: -39.81217 | BS34: 17.90197 | BT34: 1188.72088 | BU34: 741.3383 | BV34: 0 | BX34: 447.38258 | BY34: -0.15334 | BZ34: 2.55924 | CA34: -7.78769 | CB34: 0 | CC34: 457.57617 | CD34: 473.87113 | CE34: 1431.40149 | CG34: 398.62483 | CH34: -920.67995 | CI34: 1194.14244 | CN34: 22 | CP34: 262 | CQ34: 2161 | CS34: 0.6645591122 | CT34: 52.49121029 | CU34: -2266.601421 | CY34: 46.81552024 | CZ34: 760.612832 | DA34: 35.4586455 | DB34: 7829.506168 | DD34: 1301.07122 | DE34: 15449.97118 | DF34: 0.13762 | DG34: -14148.76234 | DH34: 8168.12399 | DI34: 6764.671 | DL34: -60.82824 | DM34: 31.38834 | DN34: 754.59275 | DO34: 737.23512 | DP34: 0 | DR34: 17.35763 | DS34: -0.04938 | DT34: 3.59451 | DU34: 10.9842 | DV34: -2.046 | DW34: 7.87256 | DX34: 479.29853 | DY34: 696.60605 | EA34: 91.6565 | EB34: -1169.81726 | EC34: 224.38162 | EH34: 22 | EJ34: 267 | EQ34: -460 | ER34: 23 | ES34: 29 | ET34: -310.0672 | EU34: 10.22484 | EV34: 62.58331 | EW34: -555.87634 | EX34: 12.4 | EY34: 71.25191 | EZ34: 38 | FA34: 0 | FB34: -248.68819 | FC34: 0.55 | FD34: 71.30195 | FE34: -9.55862 | FF34: 7245 | FG34: 5341 | FH34: 1904 | FI34: 7 | FJ34: 6919.492 | FK34: 5022.1564 | FL34: 1897.3356 | FM34: 365.66314 | FN34: 6099.26571 | FO34: 3354.55304 | FP34: 2744.71267 | FQ34: 302.68444 | FR34: 28 | FU34: 385 | FV34: 363.765 | FW34: 365.44
A35: 105 | B35: Hyrynsalmi | C35: 2199 | E35: 2.481927711 | F35: 46.28921194 | G35: -4834.015462 | K35: 38.60354223 | L35: 2147.3397 | M35: 44.9046428 | N35: 17454.29741 | P35: 18876 | Q35: 35743 | R35: 0 | S35: -16867 | T35: 7993 | U35: 11034 | X35: -50 | Y35: -107 | Z35: 2003 | AA35: 1475 | AB35: 0 | AD35: 528 | AE35: -5 | AF35: 1 | AG35: 0 | AH35: -5 | AI35: 519 | AJ35: -500 | AK35: 2008 | AM35: -363 | AN35: -773 | AO35: 511 | AT35: 21.75 | AV35: 186 | AW35: 2139 | AY35: 1.461269193 | AZ35: 46.4628778 | BA35: -5137.905161 | BE35: 37.49773638 | BF35: 2156.827181 | BG35: 42.80360642 | BH35: 18391.95308 | BJ35: 18952.54066 | BK35: 36864.76992 | BL35: 0 | BM35: -17912.22926 | BN35: 8550.77314 | BO35: 10631.134 | BR35: -39.72771 | BS35: -74.3738 | BT35: 1155.57637 | BU35: 1527.71311 | BV35: 0 | BX35: -372.13674 | BY35: -5.20246 | BZ35: 1.03625 | CA35: 0 | CB35: -14.95862 | CC35: -391.26157 | CD35: -890.98341 | CE35: 1085.38601 | CG35: 77.40405 | CH35: -774.53737 | CI35: -369.56112 | CN35: 21.75 | CP35: 265 | CQ35: 2094 | CS35: 3.541065616 | CT35: 42.34722497 | CU35: -4627.532139 | CY35: 41.80035751 | CZ35: 2779.908496 | DA35: 52.52117275 | DB35: 19319.19163 | DD35: 19172.63943 | DE35: 37417.80886 | DF35: 0 | DG35: -18245.16943 | DH35: 8743.64652 | DI35: 12598.597 | DL35: -83.71321 | DM35: -45.66997 | DN35: 2967.69091 | DO35: 1506.33236 | DP35: 332.98542 | DR35: 1794.34397 | DS35: 0 | DT35: 1.51005 | DU35: 0 | DV35: 0 | DW35: 1795.85402 | DX35: 904.87061 | DY35: 2847.30762 | EA35: 467.1431 | EB35: -773.41298 | EC35: 1276.01309 | EH35: 21.75 | EJ35: 28 | EQ35: -1685 | ER35: 180 | ES35: 8 | ET35: -1559.47592 | EU35: 68.50569 | EV35: 36.0231 | EW35: -2091.06947 | EX35: 101.98101 | EY35: 417.79393 | EZ35: 1036 | FA35: -1 | FB35: 597.915 | FC35: 507.68494 | FD35: 8.97544 | FE35: 507.17678 | FF35: 11940 | FG35: 9246 | FH35: 2694 | FI35: 0 | FJ35: 12271.01347 | FK35: 9060.35851 | FL35: 3210.65496 | FM35: 0 | FN35: 12013.7527 | FO35: 8378.9159 | FP35: 3634.8368 | FQ35: 0 | FR35: 2451 | FU35: 557 | FV35: 523.73579 | FW35: 484.73639
A36: 106 | B36: Hyvinkää | C36: 46576 | E36: 1.576564067 | F36: 72.53107117 | G36: -7097.668327 | K36: 31.43129605 | L36: 1301.95809 | M36: 35.33229785 | N36: 13449.86688 | P36: 292088 | Q36: 534798 | R36: 65 | S36: -242645 | T36: 210261 | U36: 73265 | X36: -3331 | Y36: -35 | Z36: 37515 | AA36: 34992 | AB36: 0 | AD36: 2523 | AE36: -207 | AF36: 0 | AG36: 604 | AH36: -163 | AI36: 1549 | AJ36: 37151 | AK36: 39152 | AM36: 9638 | AN36: -22567 | AO36: -21902 | AT36: 19.75 | AV36: 219 | AW36: 46880 | AY36: 1.931583411 | AZ36: 64.43655768 | BA36: -6564.701339 | BE36: 34.13527999 | BF36: 1271.743893 | BG36: 34.69081894 | BH36: 13380.67348 | BJ36: 324000.9307 | BK36: 559086.3304 | BL36: 138.7223 | BM36: -234946.6775 | BN36: 227348.0584 | BO36: 66582.23688 | BR36: -3157.76141 | BS36: 7.50482 | BT36: 55833.3612 | BU36: 35976.16917 | BV36: 0 | BX36: 19857.19203 | BY36: -255.70634 | BZ36: 21.58912 | CA36: 550.65201 | CB36: 267.70915 | CC36: 19340.13195 | CD36: 56583.53735 | CE36: 48551.44181 | CG36: -4533.29401 | CH36: -27366.31539 | CI36: 19520.83215 | CN36: 20.25 | CP36: 59 | CQ36: 46797 | CS36: 1.901249268 | CT36: 61.28464205 | CU36: -6669.898367 | CY36: 36.07170827 | CZ36: 1103.343795 | DA36: 28.06668671 | DB36: 14348.70063 | DD36: 332796.4679 | DE36: 589396.1682 | DF36: 199.11356 | DG36: -256400.5867 | DH36: 239879.9057 | DI36: 70346.784 | DL36: -3189.87049 | DM36: 494.18731 | DN36: 51130.41977 | DO36: 34966.48647 | DP36: 0 | DR36: 16163.9333 | DS36: -149.03315 | DT36: 0 | DU36: 543.88158 | DV36: -133.53905 | DW36: 15337.47952 | DX36: 71823.58196 | DY36: 39005.68491 | EA36: 478.2601 | EB36: -25356.1733 | EC36: -1461.67713 | EH36: 20.25 | EJ36: 66 | EQ36: -65184 | ER36: 449 | ES36: 3681 | ET36: -37118.24216 | EU36: 533.31247 | EV36: 7554.32003 | EW36: -53023.38665 | EX36: 1158.58503 | EY36: 11397.43958 | EZ36: 21600 | FA36: 18842 | FB36: 30988.81425 | FC36: -17874.59296 | FD36: 23490.61289 | FE36: -10239.13856 | FF36: 319350 | FG36: 268699 | FH36: 50651 | FI36: 1910 | FJ36: 305097.9092 | FK36: 271932.4305 | FL36: 33165.47877 | FM36: 1837.54883 | FN36: 292993.2103 | FO36: 269277.896 | FP36: 23715.31429 | FQ36: 1675.496 | FR36: 2426 | FU36: 80209 | FV36: 41234.93692 | FW36: 39647.03418
A37: 108 | B37: Hämeenkyrö | C37: 10344 | E37: 5.976190476 | F37: 77.25778105 | G37: -5833.430008 | K37: 32.02621348 | L37: 1494.29621 | M37: 54.73388826 | N37: 9964.907193 | P37: 39065 | Q37: 96609 | R37: 65 | S37: -57479 | T37: 38953 | U37: 27816 | X37: -479 | Y37: 235 | Z37: 9046 | AA37: 7178 | AB37: 0 | AD37: 1868 | AE37: -225 | AF37: 309 | AG37: 142 | AH37: -1 | AI37: 1809 | AJ37: 6507 | AK37: 8716 | AM37: -1249 | AN37: -1104 | AO37: 4496 | AT37: 22 | AV37: 200 | AW37: 10337 | AY37: 2.409365843 | AZ37: 72.1692188 | BA37: -5621.600468 | BE37: 32.59703148 | BF37: 1559.580334 | BG37: 51.94012461 | BH37: 10959.67378 | BJ37: 44579.96061 | BK37: 103498.5575 | BL37: 49.76451 | BM37: -58868.83233 | BN37: 40742.53065 | BO37: 26907.83337 | BR37: -812.82647 | BS37: 197.97337 | BT37: 8166.67858 | BU37: 6725.9362 | BV37: 0 | BX37: 1440.74238 | BY37: -418.19093 | BZ37: 10.65687 | CA37: 204.99174 | CB37: -78.16374 | CC37: 750.05284 | CD37: 6876.80079 | CE37: 8061.72878 | CG37: -891.17986 | CH37: -2907.05934 | CI37: 2578.03644 | CN37: 22 | CP37: 178 | CQ37: 10257 | CS37: 2.895041881 | CT37: 65.81576619 | CU37: -5257.699139 | CY37: 34.12675125 | CZ37: 1558.678279 | DA37: 50.42236395 | DB37: 11283.04045 | DD37: 43138.66521 | DE37: 106473.6779 | DF37: 80.02639 | DG37: -63254.98633 | DH37: 43779.38439 | DI37: 29545.2919 | DL37: -658.27733 | DM37: 75.83041 | DN37: 9487.24304 | DO37: 6835.54787 | DP37: 0 | DR37: 2651.69517 | DS37: -155.82596 | DT37: 0.27073 | DU37: 105.74162 | DV37: -2.93787 | DW37: 2387.46044 | DX37: 9271.96012 | DY37: 8714.73118 | EA37: 43.3066 | EB37: -2827.0658 | EC37: 4725.28505 | EH37: 22 | EJ37: 95 | EQ37: -4631 | ER37: 265 | ES37: 146 | ET37: -5977.69491 | EU37: 102.03594 | EV37: 391.96663 | EW37: -5479.64823 | EX37: 45.604 | EY37: 1444.59809 | EZ37: 33494 | FA37: -34053 | FB37: 1186.38 | FC37: -6.499 | FD37: 1284.66 | FE37: -3549.05645 | FF37: 65727 | FG37: 56748 | FH37: 8979 | FI37: 3 | FJ37: 64032.50028 | FK37: 55176.58916 | FL37: 8855.91112 | FM37: 15.66099 | FN37: 58958.45492 | FO37: 54178.10657 | FP37: 4780.34835 | FQ37: 13.00899 | FR37: 0 | FU37: 5376 | FV37: 4091.63531 | FW37: 10095.67942
A38: 109 | B38: Hämeenlinna | C38: 67848 | E38: 1.211159479 | F38: 93.25788503 | G38: -5882.251503 | K38: 36.78258692 | L38: 2637.012145 | M38: 90.45987408 | N38: 10640.18099 | P38: 216472 | Q38: 592943 | R38: 368 | S38: -376103 | T38: 297480 | U38: 147428 | X38: -8972 | Y38: 2529 | Z38: 62362 | AA38: 47611 | AB38: 0 | AD38: 14751 | AE38: -275 | AF38: 2786 | AG38: 333 | AH38: 256 | AI38: 17187 | AJ38: 2390 | AK38: 60957 | AM38: 3087 | AN38: -49847 | AO38: 928 | AT38: 21 | AV38: 178 | AW38: 67971 | AY38: 1.05164371 | AZ38: 94.26148615 | BA38: -5973.506269 | BE38: 35.94546385 | BF38: 2966.867857 | BG38: 94.82989432 | BH38: 11419.46615 | BJ38: 243401.9513 | BK38: 628436.0617 | BL38: 1407.38944 | BM38: -383626.7209 | BN38: 315496.3737 | BO38: 134831.6264 | BR38: -8337.28332 | BS38: 9827.9822 | BT38: 68191.97805 | BU38: 50149.73379 | BV38: 0 | BX38: 18042.24426 | BY38: -428.59358 | BZ38: -9925.82749 | CA38: 368.0918 | CB38: -3.38242 | CC38: 7316.34897 | CD38: 6467.83219 | CE38: 61566.26153 | CG38: -7461.45485 | CH38: -64405.8099 | CI38: -6415.23708 | CN38: 21 | CP38: 104 | CQ38: 68043 | CS38: 1.174180773 | CT38: 91.62210035 | CU38: -6278.75193 | CY38: 34.1194175 | CZ38: 2585.043966 | DA38: 80.12033566 | DB38: 11776.54886 | DD38: 265937.3367 | DE38: 651912.3093 | DF38: -987.00962 | DG38: -386961.9822 | DH38: 327303.4133 | DI38: 119344.806 | DL38: -7143.55359 | DM38: 1093.93231 | DN38: 53636.61574 | DO38: 50954.85055 | DP38: 0 | DR38: 2681.76519 | DS38: -424.73014 | DT38: -95.66752 | DU38: 217.17807 | DV38: -55.69612 | DW38: 1888.49334 | DX38: 8356.32549 | DY38: 61670.06365 | EA38: -7182.78988 | EB38: -44502.0176 | EC38: -21270.10242 | EH38: 21 | EJ38: 135 | EQ38: -68345 | ER38: 1002 | ES38: 7314 | ET38: -73956.59078 | EU38: 361.06652 | EV38: 5614.02565 | EW38: -86374.02582 | EX38: 917.12813 | EY38: 2516.73162 | EZ38: 89048 | FA38: -823 | FB38: 102814.1708 | FC38: -7167.61317 | FD38: 74959.80238 | FE38: -35476.15536 | FF38: 509504 | FG38: 422747 | FH38: 86757 | FI38: 1048 | FJ38: 540745.0778 | FK38: 462123.4737 | FL38: 78621.6041 | FM38: 817.71432 | FN38: 533826.7072 | FO38: 494262.2503 | FP38: 39564.45688 | FQ38: 777.13247 | FR38: 15888 | FU38: 74733 | FV38: 48930.34043 | FW38: 79159.31396
A39: 139 | B39: Ii | C39: 9848 | E39: 0.9387439789 | F39: 70.91696357 | G39: -7367.181154 | K39: 30.3722863 | L39: 1568.94801 | M39: 38.13256026 | N39: 15017.77011 | P39: 64481 | Q39: 125354 | R39: -28 | S39: -60901 | T39: 34439 | U39: 36647 | X39: -481 | Y39: 129 | Z39: 9833 | AA39: 7612 | AB39: 0 | AD39: 2221 | AE39: -9 | AF39: 34 | AG39: 2 | AH39: -114 | AI39: 2129 | AJ39: 13476 | AK39: 9902 | AM39: 2402 | AN39: -10507 | AO39: -1185 | AT39: 21.25 | AV39: 132 | AW39: 9912 | AY39: 0.7215759897 | AZ39: 71.70070306 | BA39: -7515.897934 | BE39: 28.66865874 | BF39: 1557.119421 | BG39: 37.33886613 | BH39: 15221.3671 | BJ39: 67707.74554 | BK39: 131801.7235 | BL39: 44.764 | BM39: -64049.21394 | BN39: 37463.40192 | BO39: 33556.33958 | BR39: -391.84368 | BS39: -32.49164 | BT39: 6546.19224 | BU39: 7481.18973 | BV39: 0 | BX39: -934.99749 | BY39: -19.00484 | BZ39: 43.33213 | CA39: 2.42491 | CB39: 4.05798 | CC39: -909.03713 | CD39: 12630.09268 | CE39: 5931.97822 | CG39: 333.48674 | CH39: -9228.08295 | CI39: -2259.99282 | CN39: 21.5 | CP39: 223 | CQ39: 9853 | CS39: 0.5874490252 | CT39: 73.6843811 | CU39: -8449.605813 | CY39: 27.14615469 | CZ39: 1232.946858 | DA39: 27.19402626 | DB39: 16548.69341 | DD39: 67594.30766 | DE39: 135982.6145 | DF39: -79.73904 | DG39: -68468.04586 | DH39: 38859.89998 | DI39: 36034.34966 | DL39: -517.4975 | DM39: 15.92152 | DN39: 5924.6278 | DO39: 7593.77729 | DP39: 0 | DR39: -1669.14949 | DS39: -27.8491 | DT39: 5.66687 | DU39: 6.41191 | DV39: 31.33121 | DW39: -1666.41242 | DX39: 10800.04313 | DY39: 5599.4062 | EA39: 1595.46883 | EB39: -10464.28019 | EC39: -9148.03551 | EH39: 21.5 | EJ39: 204 | EQ39: -11471 | ER39: 149 | ES39: 235 | ET39: -9280.44682 | EU39: 480.50795 | EV39: 607.96783 | EW39: -15860.06448 | EX39: 101.78432 | EY39: 1010.83845 | EZ39: 23166 | FA39: -7147 | FB39: 6610.9 | FC39: 1808.56066 | FD39: 15205.9 | FE39: -3181.47913 | FF39: 69295 | FG39: 58776 | FH39: 10519 | FI39: 295 | FJ39: 69325.93145 | FK39: 56968.70504 | FL39: 12357.22641 | FM39: 286.65341 | FN39: 71695.85506 | FO39: 62520.90301 | FP39: 9174.95205 | FQ39: 286.65341 | FR39: 286 | FU39: 12270 | FV39: 2580.53926 | FW39: 1366.33261
A40: 140 | B40: Iisalmi | C40: 21124 | E40: 2.031247571 | F40: 54.58890023 | G40: -4185.99697 | K40: 44.18789031 | L40: 2262.497633 | M40: 60.86771972 | N40: 13567.3168 | P40: 117978 | Q40: 247082 | R40: 1827 | S40: -127277 | T40: 76254 | U40: 76116 | X40: -659 | Y40: 957 | Z40: 25391 | AA40: 15969 | AB40: -10 | AD40: 9412 | AE40: -20 | AF40: -2644 | AG40: 72 | AH40: -272 | AI40: 6404 | AJ40: 43467 | AK40: 22798 | AM40: -506 | AN40: -12124 | AO40: -150 | AT40: 20.5 | AV40: 74 | AW40: 20958 | AY40: 1.650278283 | AZ40: 57.5312995 | BA40: -4760.202936 | BE40: 43.37527024 | BF40: 2284.159329 | BG40: 57.25439994 | BH40: 14561.6434 | BJ40: 121440.5288 | BK40: 256351.4588 | BL40: 1783.09881 | BM40: -133127.8312 | BN40: 79952.61718 | BO40: 74875.69543 | BR40: -587.60008 | BS40: 1581.91318 | BT40: 22694.79447 | BU40: 15238.14253 | BV40: 339.80993 | BX40: 7796.46187 | BY40: -22.30229 | BZ40: -595.48824 | CA40: 34.79582 | CB40: -62.33649 | CC40: 7081.53903 | CD40: 50556.4143 | CE40: 20058.02576 | CG40: 57.91917 | CH40: -13492.03582 | CI40: -12091.9473 | CN40: 20.5 | CP40: 82 | CQ40: 20801 | CS40: 1.490354428 | CT40: 57.41421909 | CU40: -5281.455581 | CY40: 43.47141175 | CZ40: 2151.336529 | DA40: 51.59232482 | DB40: 15220.05135 | DD40: 125659.1225 | DE40: 270611.585 | DF40: 414.23915 | DG40: -144538.2234 | DH40: 84766.9991 | DI40: 79840.35122 | DL40: -834.52708 | DM40: 689.24035 | DN40: 19923.84023 | DO40: 16185.84312 | DP40: 371.20725 | DR40: 4109.20436 | DS40: -3.5474 | DT40: -954.46412 | DU40: 50.96814 | DV40: -63.42523 | DW40: 3036.79947 | DX40: 53454.27534 | DY40: 18843.125 | EA40: -739.40977 | EB40: -13074.36257 | EC40: -10451.60058 | EH40: 20.5 | EJ40: 86 | EQ40: -26396 | ER40: 758 | ES40: 2690 | ET40: -34418.92877 | EU40: 1101.05819 | EV40: 1167.89752 | EW40: -30432.86628 | EX40: 28.29135 | EY40: 1109.84935 | EZ40: 21274 | FA40: 3 | FB40: 23574.44483 | FC40: 967.49717 | FD40: 13025.24199 | FE40: 5369.3191 | FF40: 110210 | FG40: 96763 | FH40: 13447 | FI40: 0 | FJ40: 121257.8692 | FK40: 105611.4395 | FL40: 15646.42974 | FM40: 24.43295 | FN40: 126578.0677 | FO40: 106169.9263 | FP40: 20408.14144 | FQ40: 9.17623 | FR40: 1070 | FU40: 13739 | FV40: 8527.23301 | FW40: 8795.54413
A41: 142 | B41: Iitti | C41: 6625 | E41: 2.92464205 | F41: 35.79434433 | G41: -2561.660377 | K41: 48.16866728 | L41: 927.6981132 | M41: 31.364596 | N41: 10795.92453 | P41: 28707 | Q41: 65802 | R41: 2 | S41: -37093 | T41: 25382 | U41: 19607 | X41: -130 | Y41: -140 | Z41: 7626 | AA41: 2879 | AB41: 31 | AD41: 4778 | AE41: -1 | AF41: 0 | AG41: 0 | AH41: 0 | AI41: 4777 | AJ41: 1782 | AK41: 7626 | AM41: 22 | AN41: -2518 | AO41: 5040 | AT41: 21.25 | AV41: 94 | AW41: 6559 | AY41: 2.498038195 | AZ41: 33.63061619 | BA41: -1989.983548 | BE41: 51.87316305 | BF41: 1180.607105 | BG41: 35.47096604 | BH41: 12148.57224 | BJ41: 32216.29967 | BK41: 70243.18602 | BL41: 10.28671 | BM41: -38016.59964 | BN41: 26237.78546 | BO41: 18041.405 | BR41: -89.45131 | BS41: 145.34125 | BT41: 6318.48076 | BU41: 2877.97388 | BV41: 0 | BX41: 3440.50688 | BY41: -0.44406 | BZ41: 0.6586 | CA41: 0 | CB41: -75.757 | CC41: 3364.96442 | CD41: 5233.16007 | CE41: 6312.42385 | CG41: -1353.57923 | CH41: -2462.47836 | CI41: 4029.75181 | CN41: 21.25 | CP41: 117 | CQ41: 6504 | CS41: 3.091415447 | CT41: 32.0811396 | CU41: -1523.350986 | CY41: 52.2886552 | CZ41: 1526.553967 | DA41: 45.40748647 | DB41: 12270.93242 | DD41: 33533.47915 | DE41: 74522.97002 | DF41: -12.46318 | DG41: -41001.95405 | DH41: 27267.44503 | DI41: 19166.135 | DL41: -59.95567 | DM41: 140.54664 | DN41: 5512.21695 | DO41: 4351.96122 | DP41: 0 | DR41: 1160.25573 | DS41: 0.40518 | DT41: 0 | DU41: 0.00018 | DV41: -40.02873 | DW41: 1120.632 | DX41: 6363.44167 | DY41: 5978.68286 | EA41: -554.45237 | EB41: -1728.14549 | EC41: 3157.94438 | EH41: 21.25 | EJ41: 123 | EQ41: -2743 | ER41: 109 | ES41: 48 | ET41: -6851.88994 | EU41: 2122.26226 | EV41: 2446.95564 | EW41: -3167.15721 | EX41: 89.47403 | EY41: 256.9447 | EZ41: 1 | FA41: 490 | FB41: 2043.02 | FC41: -566 | FD41: 1250.145 | FE41: 0 | FF41: 17473 | FG41: 14474 | FH41: 2999 | FI41: 18 | FJ41: 16486.00601 | FK41: 14769.18108 | FL41: 1716.82493 | FM41: 16.0234 | FN41: 15776.66052 | FO41: 14298.92386 | FP41: 1477.73666 | FQ41: 6.86128 | FR41: 493 | FU41: 14927 | FV41: 15463.165 | FW41: 18024.808
A42: 143 | B42: Ikaalinen | C42: 6866 | E42: 2.348886784 | F42: 65.98684795 | G42: -6497.524031 | K42: 32.06434496 | L42: 1378.386251 | M42: 38.85887845 | N42: 12947.13079 | P42: 35281 | Q42: 80396 | R42: 64 | S42: -45051 | T42: 25602 | U42: 29141 | X42: -352 | Y42: 218 | Z42: 9558 | AA42: 4863 | AB42: 0 | AD42: 4695 | AE42: -262 | AF42: -15 | AG42: 133 | AH42: -37 | AI42: 4248 | AJ42: 5376 | AK42: 9183 | AM42: 924 | AN42: -3863 | AO42: 5341 | AT42: 22 | AV42: 37 | AW42: 6877 | AY42: 1.909063242 | AZ42: 67.05785344 | BA42: -6416.178706 | BE42: 32.82595002 | BF42: 1805.793797 | BG42: 46.5096843 | BH42: 14171.55902 | BJ42: 47433.52753 | BK42: 85869.89023 | BL42: 0 | BM42: -38436.3627 | BN42: 26788.68275 | BO42: 19172.853 | BR42: -300.25107 | BS42: 156.53447 | BT42: 7381.45645 | BU42: 4441.52189 | BV42: 0 | BX42: 2939.93456 | BY42: -414.44455 | BZ42: 320.7806 | CA42: 234.05248 | CB42: -3.65751 | CC42: 2608.56062 | CD42: 7985.24912 | CE42: 7098.1224 | CG42: -525.4237 | CH42: -3720.26277 | CI42: 430.58071 | CN42: 22 | CP42: 83 | CQ42: 6804 | CS42: 1.518810748 | CT42: 66.80014146 | CU42: -6883.607609 | CY42: 30.91788778 | CZ42: 1287.097275 | DA42: 31.39214015 | DB42: 14965.22706 | DD42: 38827.41404 | DE42: 89309.46825 | DF42: 75.86743 | DG42: -50406.18678 | DH42: 27519.33761 | DI42: 28486.01988 | DL42: -324.94266 | DM42: 99.7776 | DN42: 5374.00565 | DO42: 4853.69126 | DP42: 0 | DR42: 520.31439 | DS42: -183.37253 | DT42: -1.63996 | DU42: 103.47976 | DV42: -32.34266 | DW42: 199.47948 | DX42: 7401.29761 | DY42: 4951.41622 | EA42: 773.94956 | EB42: -3420.53581 | EC42: -3232.389 | EH42: 22 | EJ42: 134 | EQ42: -4202 | ER42: 159 | ES42: 201 | ET42: -7497.70016 | EU42: 638.56986 | EV42: 191.58861 | EW42: -8558.93407 | EX42: 0 | EY42: 375.12885 | EZ42: 635 | FA42: -3204 | FB42: 1105.26 | FC42: 5179.51767 | FD42: 1654.41444 | FE42: 1426.67104 | FF42: 43209 | FG42: 33728 | FH42: 9481 | FI42: 17 | FJ42: 45876.62026 | FK42: 32015.4329 | FL42: 13861.18736 | FM42: 14.59016 | FN42: 45819.34387 | FO42: 30532.49265 | FP42: 15286.85122 | FQ42: 12.11948 | FR42: 0 | FU42: 6660 | FV42: 8607.1208 | FW42: 8532.431
A43: 145 | B43: Ilmajoki | C43: 12294 | E43: 1.600986089 | F43: 72.6448936 | G43: -7070.766227 | K43: 25.63117569 | L43: 725.9638848 | M43: 21.00541638 | N43: 12614.69009 | P43: 65951 | Q43: 135228 | R43: 7 | S43: -69270 | T43: 43264 | U43: 34908 | X43: -605 | Y43: 186 | Z43: 8483 | AA43: 5812 | AB43: 0 | AD43: 2671 | AE43: -5 | AF43: -124 | AG43: 2 | AH43: 0 | AI43: 2540 | AJ43: 4697 | AK43: 6519 | AM43: -1397 | AN43: -5070 | AO43: -6743 | AT43: 21 | AV43: 258 | AW43: 12366 | AY43: 0.9896814402 | AZ43: 70.75162985 | BA43: -7289.453026 | BE43: 25.15062285 | BF43: 568.2321947 | BG43: 15.49267484 | BH43: 13387.27839 | BJ43: 72608.60294 | BK43: 145197.1536 | BL43: -3.81194 | BM43: -72592.3626 | BN43: 46127.54279 | BO43: 33055.232 | BR43: -459.62049 | BS43: -288.02583 | BT43: 5842.76587 | BU43: 5657.64275 | BV43: 0 | BX43: 185.12312 | BY43: 1.65959 | BZ43: -194.40901 | CA43: 6.06134 | CB43: 0 | CC43: -13.68764 | CD43: 5229.24095 | CE43: 4291.64136 | CG43: 1381.48698 | CH43: -5908.49079 | CI43: -5662.84843 | CN43: 21 | CP43: 269 | CQ43: 12369 | CS43: 0.7592385093 | CT43: 74.8391109 | CU43: -7959.578648 | CY43: 22.20281537 | CZ43: 567.2056415 | DA43: 15.26601059 | DB43: 13561.50371 | DD43: 72263.76793 | DE43: 150649.3091 | DF43: 8.99237 | DG43: -78376.54881 | DH43: 47789.53491 | DI43: 35262.73 | DL43: -610.17043 | DM43: 194.13724 | DN43: 4259.68291 | DO43: 6419.90357 | DP43: 0 | DR43: -2160.22066 | DS43: 21.76537 | DT43: 91.50289 | DU43: 1.60204 | DV43: 3.38061 | DW43: -2045.17383 | DX43: 1847.46491 | DY43: 3199.9887 | EA43: 244.69665 | EB43: -5805.64012 | EC43: -6223.12173 | EH43: 21 | EJ43: 269 | EQ43: -14026 | ER43: 43 | ES43: 721 | ET43: -13267.83209 | EU43: 117.5 | EV43: 3195.8423 | EW43: -10173.38414 | EX43: 123.88846 | EY43: 626.38525 | EZ43: 17383 | FA43: -3207 | FB43: 11022.71872 | FC43: -4092.85415 | FD43: 6178.02759 | FE43: 3732.054 | FF43: 83035 | FG43: 76593 | FH43: 6442 | FI43: 65 | FJ43: 84208.91717 | FK43: 78907.13648 | FL43: 5301.78069 | FM43: 71.4928 | FN43: 88250.24897 | FO43: 79714.96338 | FP43: 8535.28559 | FQ43: 158.142 | FR43: 3905 | FU43: 3305 | FV43: 2168.27979 | FW43: 3453.04983
A44: 146 | B44: Ilomantsi | C44: 4749 | E44: 2.198960653 | F44: 37.57423729 | G44: -3147.188882 | K44: 44.31224608 | L44: 1955.990735 | M44: 46.58283414 | N44: 15326.17393 | P44: 33655 | Q44: 68214 | R44: -6 | S44: -34565 | T44: 17462 | U44: 22633 | X44: -198 | Y44: 361 | Z44: 5693 | AA44: 2955 | AB44: 0 | AD44: 2738 | AE44: 24 | AF44: -496 | AG44: 32 | AH44: 6 | AI44: 2740 | AJ44: 1781 | AK44: 5569 | AM44: -990 | AN44: -2463 | AO44: 3984 | AT44: 21 | AV44: 75 | AW44: 4643 | AY44: 2.504018033 | AZ44: 35.61399274 | BA44: -2550.826354 | BE44: 46.24817763 | BF44: 2555.990706 | BG44: 56.95708403 | BH44: 16379.64133 | BJ44: 35518.87016 | BK44: 71791.42445 | BL44: -4.76618 | BM44: -36277.32047 | BN44: 19187.83067 | BO44: 22601.62 | BR44: -141.12616 | BS44: 502.67719 | BT44: 5873.68123 | BU44: 4889.27645 | BV44: 17.34588 | BX44: 1001.75066 | BY44: 15.47074 | BZ44: -16.36347 | CA44: 111.69041 | CB44: -14.29014 | CC44: 874.87738 | CD44: 2655.63632 | CE44: 5756.04229 | CG44: -367.38812 | CH44: -2236.31055 | CI44: 4049.52123 | CN44: 21 | CP44: 48 | CQ44: 4492 | CS44: 1.781791113 | CT44: 35.39565126 | CU44: -2034.615913 | CY44: 44.35896483 | CZ44: 3088.21933 | DA44: 61.85221617 | DB44: 18224.08517 | DD44: 38493.48616 | DE44: 77326.18863 | DF44: -8.17418 | DG44: -38840.87665 | DH44: 19051.13723 | DI44: 23419.857 | DL44: -207.73123 | DM44: 52.8539 | DN44: 3475.24025 | DO44: 2749.94177 | DP44: -55.07015 | DR44: 670.22833 | DS44: 35.18068 | DT44: 7.61849 | DU44: 56.30349 | DV44: -60.98593 | DW44: 595.73808 | DX44: 3283.13583 | DY44: 4120.46107 | EA44: -1780.30288 | EB44: -1844.9457 | EC44: 2173.46717 | EH44: 21 | EJ44: 141 | EQ44: -1838 | ER44: 35 | ES44: 218 | ET44: -1774.56875 | EU44: 25.09689 | EV44: 42.9508 | EW44: -2096.0817 | EX44: 32.94984 | EY44: 116.13796 | EZ44: 3621 | FA44: 208 | FB44: 1336.02749 | FC44: -143.33687 | FD44: 1463.53134 | FE44: -333.61715 | FF44: 20596 | FG44: 17661 | FH44: 2935 | FI44: 0 | FJ44: 19330.7061 | FK44: 17051.28837 | FL44: 2279.41773 | FM44: 1.47459 | FN44: 18646.90995 | FO44: 16629.78 | FP44: 2017.12995 | FQ44: 0.18947 | FR44: 907 | FU44: 2351 | FV44: 1597.06012 | FW44: 3650.61113
A45: 153 | B45: Imatra | C45: 26075 | E45: 0.8587056203 | F45: 87.04711453 | G45: -9412.233941 | K45: 29.27686388 | L45: 891.7353787 | M45: 21.50856847 | N45: 15132.7325 | P45: 152427 | Q45: 312907 | R45: 165 | S45: -160315 | T45: 105745 | U45: 81235 | X45: -2437 | Y45: -542 | Z45: 23686 | AA45: 25651 | AB45: 217 | AD45: -1748 | AE45: -17 | AF45: 116 | AG45: 450 | AH45: 264 | AI45: -1836 | AJ45: 47386 | AK45: 27379 | AM45: -1024 | AN45: -28000 | AO45: -8949 | AT45: 20 | AV45: 188 | AW45: 25655 | AY45: 1.123999799 | AZ45: 82.76412565 | BA45: -9665.969869 | BE45: 29.07636222 | BF45: 707.2842916 | BG45: 16.77251143 | BH45: 15391.77764 | BJ45: 165511.0264 | BK45: 326583.4245 | BL45: -561.10295 | BM45: -161633.5011 | BN45: 109834.1883 | BO45: 78402.05864 | BR45: -2567.69911 | BS45: 137.58678 | BT45: 24172.63354 | BU45: 24096.58717 | BV45: 0 | BX45: 76.04637 | BY45: 39.2452 | BZ45: -10.18805 | CA45: 393.78552 | CB45: 203.61382 | CC45: -85.06818 | CD45: 47843.91146 | CE45: 23144.70974 | CG45: 118.317 | CH45: -21216.80182 | CI45: -19141.58033 | CN45: 20 | CP45: 121 | CQ45: 25208 | CS45: 0.7755816453 | CT45: 83.81379421 | CU45: -10453.34411 | CY45: 28.22304117 | CZ45: 838.0665352 | DA45: 19.22721089 | DB45: 15909.44662 | DD45: 166021.3326 | DE45: 337836.4827 | DF45: -169.05767 | DG45: -171984.2077 | DH45: 111808.6619 | DI45: 83673.14862 | DL45: -1770.61749 | DM45: -182.09336 | DN45: 21544.89195 | DO45: 23191.84141 | DP45: 0 | DR45: -1646.94946 | DS45: -13.2957 | DT45: 0.56277 | DU45: 273.17673 | DV45: -74.59172 | DW45: -2007.45084 | DX45: 45889.49846 | DY45: 17395.11287 | EA45: 8294.38135 | EB45: -28479.55852 | EC45: -13040.12249 | EH45: 20 | EJ45: 121 | EQ45: -50408 | ER45: 629 | ES45: 13451 | ET45: -44319.55541 | EU45: 1016.86613 | EV45: 1016.39921 | EW45: -31985.17538 | EX45: 1398.06223 | EY45: 151.87779 | EZ45: 43459 | FA45: -8313 | FB45: 25491.82515 | FC45: -3966.3792 | FD45: 29095.225 | FE45: 10559.13241 | FF45: 246701 | FG45: 225804 | FH45: 20897 | FI45: 0 | FJ45: 242067.7368 | FK45: 219419.6044 | FL45: 22648.13236 | FM45: 8502.87475 | FN45: 253727.1389 | FO45: 219560.5633 | FP45: 34166.57557 | FQ45: 8795.39222 | FR45: 3982 | FU45: 50997 | FV45: 33585.873 | FW45: 111.7714
A46: 148 | B46: Inari | C46: 6862 | E46: 2.569803063 | F46: 79.91809021 | G46: -7831.973186 | K46: 50.40381985 | L46: 1551.005538 | M46: 39.50872108 | N46: 14328.91285 | P46: 37411 | Q46: 81321 | R46: 0 | S46: -43910 | T46: 28245 | U46: 27129 | X46: -468 | Y46: 228 | Z46: 11224 | AA46: 7659 | AB46: -2 | AD46: 3563 | AE46: -154 | AF46: -85 | AG46: 227 | AH46: -123 | AI46: 2974 | AJ46: 30131 | AK46: 10124 | AM46: -1216 | AN46: -4050 | AO46: -432 | AT46: 19 | AV46: 15 | AW46: 7008 | AY46: 1.85314402 | AZ46: 77.62297819 | BA46: -7206.144158 | BE46: 50.19825046 | BF46: 1839.349131 | BG46: 44.89393726 | BH46: 14954.41197 | BJ46: 41488.98127 | BK46: 85086.69497 | BL46: 0 | BM46: -43597.7137 | BN46: 30003.00638 | BO46: 26166.607 | BR46: -541.72631 | BS46: 237.38414 | BT46: 12267.55751 | BU46: 8900.04819 | BV46: 0 | BX46: 3367.50932 | BY46: -155.92094 | BZ46: -43.62813 | CA46: 318.74582 | CB46: -74.22409 | CC46: 2774.99034 | CD46: 32442.74382 | CE46: 10990.07674 | CG46: -2773.5653 | CH46: -6335.26314 | CI46: 3296.28224 | CN46: 19 | CP46: 12 | CQ46: 7047 | CS46: 3.854775607 | CT46: 75.47556208 | CU46: -7410.818497 | CY46: 49.79583562 | CZ46: 2102.55229 | DA46: 49.25756901 | DB46: 15579.97281 | DD46: 41446.05733 | DE46: 89694.97618 | DF46: 0 | DG46: -48248.91885 | DH46: 31957.63185 | DI46: 27756.711 | DL46: -467.49601 | DM46: -4.78723 | DN46: 10993.14076 | DO46: 9143.93104 | DP46: 0 | DR46: 1849.20972 | DS46: -102.0531 | DT46: 24.02201 | DU46: 204.0171 | DV46: -68.3759 | DW46: 1498.78563 | DX46: 34185.38145 | DY46: 10214.12412 | EA46: 3104.45465 | EB46: -2461.96819 | EC46: -1540.85874 | EH46: 19 | EJ46: 19 | EQ46: -12037 | ER46: 359 | ES46: 1122 | ET46: -12777.72009 | EU46: 51.88591 | EV46: 5032.03968 | EW46: -17071.90935 | EX46: 184.8187 | EY46: 5132.10779 | EZ46: 2003 | FA46: 2298 | FB46: 6384.0035 | FC46: -1131.87633 | FD46: 5110.37961 | FE46: -3355.26534 | FF46: 45720 | FG46: 39577 | FH46: 6143 | FI46: 260 | FJ46: 44554.83628 | FK46: 37387.55312 | FL46: 7167.28316 | FM46: 260.12809 | FN46: 44548.97838 | FO46: 38499.41196 | FP46: 6049.56642 | FQ46: 260.12809 | FR46: 46074 | FU46: 872 | FV46: 1042.259 | FW46: 26275.098
A47: 149 | B47: Inkoo | C47: 5321 | E47: 2.507085917 | F47: 42.91279592 | G47: -3294.681451 | K47: 44.86370192 | L47: 391.2798346 | M47: 13.89040194 | N47: 10281.71396 | P47: 17254 | Q47: 47736 | R47: -1 | S47: -30483 | T47: 26759 | U47: 9379 | X47: -99 | Y47: 6 | Z47: 5562 | AA47: 2190 | AB47: 0 | AD47: 3372 | AE47: 0 | AF47: 6 | AG47: 0 | AH47: 0 | AI47: 3378 | AJ47: 11182 | AK47: 5145 | AM47: -1206 | AN47: -2159 | AO47: 1838 | AT47: 20.75 | AV47: 115 | AW47: 5353 | AY47: 1.958323034 | AZ47: 46.94851933 | BA47: -3790.316611 | BE47: 43.76950223 | BF47: 621.8440706 | BG47: 19.53105428 | BH47: 11621.13844 | BJ47: 21243.90559 | BK47: 51606.97627 | BL47: 0.77843 | BM47: -30362.29225 | BN47: 27175.33673 | BO47: 7801.65938 | BR47: -72.9514 | BS47: 9.28136 | BT47: 4551.03382 | BU47: 2465.48377 | BV47: 0 | BX47: 2085.55005 | BY47: -2.46957 | BZ47: 1.28164 | CA47: 2.05234 | CB47: -0.19903 | CC47: 2082.11075 | CD47: 13470.93154 | CE47: 2624.11212 | CG47: 728.89488 | CH47: -2286.19966 | CI47: -3257.58271 | CN47: 20.75 | CP47: 155 | CQ47: 5384 | CS47: 1.506059203 | CT47: 64.71358674 | CU47: -5312.784458 | CY47: 37.36835757 | CZ47: 841.9226003 | DA47: 24.05805253 | DB47: 12773.34268 | DD47: 19410.03878 | DE47: 53799.20024 | DF47: -17.12861 | DG47: -34406.29007 | DH47: 29460.20599 | DI47: 8647.38568 | DL47: -163.33824 | DM47: 9.91699 | DN47: 3547.88035 | DO47: 2773.86307 | DP47: 0 | DR47: 774.01728 | DS47: 1.3624 | DT47: 0 | DU47: 0.76157 | DV47: -0.82534 | DW47: 773.79277 | DX47: 14596.3107 | DY47: 3199.16643 | EA47: -967.85747 | EB47: -2299.44257 | EC47: -8588.47739 | EH47: 20.75 | EJ47: 190 | EQ47: -4640 | ER47: 35 | ES47: 1298 | ET47: -8181.26886 | EU47: 80.0849 | EV47: 2219.48913 | EW47: -12451.42457 | EX47: 128.14129 | EY47: 535.63946 | EZ47: 1044 | FA47: -268 | FB47: 5385.73496 | FC47: -1007.31678 | FD47: 10613.9215 | FE47: 70.16731 | FF47: 16609 | FG47: 13295 | FH47: 3314 | FI47: 130 | FJ47: 18700.59382 | FK47: 16374.88534 | FL47: 2325.70848 | FM47: 124.33617 | FN47: 27085.24006 | FO47: 23799.06195 | FP47: 3286.17811 | FQ47: 119.8918 | FR47: 1010 | FU47: 2848 | FV47: 3030.259 | FW47: 4781.88
A48: 151 | B48: Isojoki | C48: 1925 | E48: 4.937901499 | F48: 24.40127645 | G48: -1255.584416 | K48: 60.50976189 | L48: 1690.909091 | M48: 37.78263635 | N48: 16335.06494 | P48: 16477 | Q48: 29996 | R48: 7 | S48: -13512 | T48: 6914 | U48: 8886 | X48: -49 | Y48: 18 | Z48: 2257 | AA48: 887 | AB48: 0 | AD48: 1370 | AE48: 0 | AF48: 0 | AG48: 0 | AH48: 0 | AI48: 1370 | AJ48: 2030 | AK48: 2197 | AM48: 64 | AN48: -418 | AO48: 1283 | AT48: 22 | AV48: 83 | AW48: 1891 | AY48: 2.06533743 | AZ48: 24.46892208 | BA48: -1195.756753 | BE48: 61.50099127 | BF48: 1984.46468 | BG48: 41.35994133 | BH48: 17512.82968 | BJ48: 16916.30232 | BK48: 31551.21181 | BL48: -8.9812 | BM48: -14643.89069 | BN48: 7250.38313 | BO48: 8526.77503 | BR48: -26.80236 | BS48: -2.75389 | BT48: 1103.71122 | BU48: 930.10865 | BV48: 0 | BX48: 173.60257 | BY48: -0.3806 | BZ48: -0.72862 | CA48: 0 | CB48: -0.67872 | CC48: 171.81463 | CD48: 2847.55463 | CE48: 1091.54804 | CG48: 191.3471 | CH48: -520.5724 | CI48: 201.17421 | CN48: 22.5 | CP48: 255 | CQ48: 1852 | CS48: 3.541860406 | CT48: 23.33623369 | CU48: -581.7131803 | CY48: 57.00994949 | CZ48: 2470.554687 | DA48: 49.11116524 | DB48: 18361.45521 | DD48: 17394.68108 | DE48: 32876.70341 | DF48: 1.62997 | DG48: -15480.39236 | DH48: 8126.87794 | DI48: 9104.79821 | DL48: -36.9553 | DM48: 11.98335 | DN48: 1726.31184 | DO48: 924.45796 | DP48: 0 | DR48: 801.85388 | DS48: 3.94665 | DT48: -2.29039 | DU48: 0 | DV48: 0.61277 | DW48: 804.12291 | DX48: 2984.64529 | DY48: 1700.33847 | EA48: -272.60753 | EB48: -460.88113 | EC48: 1156.33605 | EH48: 22.5 | EJ48: 93 | EQ48: -963 | ER48: 34 | ES48: 15 | ET48: -940.1416 | EU48: 1.8 | EV48: 47.96777 | EW48: -603.03192 | EX48: 31.7754 | EY48: 27.2541 | EZ48: 569 | FA48: -169 | FB48: 149.12703 | FC48: -0.32783 | FD48: 4.1225 | FE48: -124.4503 | FF48: 4241 | FG48: 3703 | FH48: 538 | FI48: 0 | FJ48: 3880.09434 | FK48: 3316.62357 | FL48: 563.47077 | FM48: 24.41948 | FN48: 3290.40813 | FO48: 2952.55691 | FP48: 337.85122 | FQ48: 17.51653 | FR48: 246 | FU48: 1777 | FV48: 1723.42619 | FW48: 2399.14342
A49: 152 | B49: Isokyrö | C49: 4471 | E49: 3.246772969 | F49: 46.79957787 | G49: -2865.130843 | K49: 56.11243308 | L49: 1269.961977 | M49: 46.92455735 | N49: 9878.326996 | P49: 12785 | Q49: 39475 | R49: 60 | S49: -26630 | T49: 15363 | U49: 15440 | X49: -131 | Y49: 96 | Z49: 4138 | AA49: 2537 | AB49: 0 | AD49: 1601 | AE49: 0 | AF49: -1 | AG49: 1 | AH49: 0 | AI49: 1599 | AJ49: 15092 | AK49: 4097 | AM49: 9 | AN49: -1179 | AO49: 1066 | AT49: 21.5 | AV49: 175 | AW49: 4480 | AY49: 1.693591613 | AZ49: 42.67866858 | BA49: -2880.768792 | BE49: 57.36541877 | BF49: 913.6158839 | BG49: 31.55354827 | BH49: 10568.37712 | BJ49: 14355.99979 | BK49: 42907.33499 | BL49: 31.24862 | BM49: -28520.08658 | BN49: 16047.64948 | BO49: 15134.6633 | BR49: -83.54585 | BS49: 35.83174 | BT49: 2614.51209 | BU49: 2632.72876 | BV49: 0 | BX49: -18.21667 | BY49: 0.70609 | BZ49: -7.38377 | CA49: 0 | CB49: 0 | CC49: -24.89435 | CD49: 15298.6641 | CE49: 2536.29978 | CG49: -383.03466 | CH49: -1508.71808 | CI49: -86.39536 | CN49: 21.5 | CP49: 256 | CQ49: 4406 | CS49: 3.644985057 | CT49: 43.43632057 | CU49: -3059.339371 | CY49: 56.66156685 | CZ49: 971.3162506 | DA49: 31.58455831 | DB49: 11224.80258 | DD49: 14591.96858 | DE49: 43428.95416 | DF49: 40.72701 | DG49: -28796.25857 | DH49: 17476.48457 | DI49: 15339.9238 | DL49: -86.19569 | DM49: 64.0779 | DN49: 3998.03201 | DO49: 2792.75485 | DP49: 0 | DR49: 1205.27716 | DS49: 9.21932 | DT49: -92.36348 | DU49: 0 | DV49: 0 | DW49: 1122.133 | DX49: 16388.95374 | DY49: 3891.07639 | EA49: -290.1254 | EB49: -1027.34881 | EC49: -790.01605 | EH49: 21.5 | EJ49: 101 | EQ49: -3308 | ER49: 154 | ES49: 123 | ET49: -2666.40567 | EU49: 1.1 | EV49: 42.61053 | EW49: -4800.59569 | EX49: 33.40573 | EY49: 86.09752 | EZ49: 2429 | FA49: -463 | FB49: 348.35838 | FC49: -23.26579 | FD49: 138.52264 | FE49: 1614.8175 | FF49: 12757 | FG49: 11228 | FH49: 1529 | FI49: 59 | FJ49: 11572.85925 | FK49: 10183.82914 | FL49: 1389.03011 | FM49: 147.80914 | FN49: 12021.80529 | FO49: 9409.14028 | FP49: 2612.66501 | FQ49: 161.85746 | FR49: 658 | FU49: 356 | FV49: 205.881 | FW49: 5510.97288
A50: 165 | B50: Janakkala | C50: 16237 | E50: 3.900724443 | F50: 67.50352819 | G50: -4619.818932 | K50: 34.10737277 | L50: 883.7839502 | M50: 34.2659104 | N50: 9414.05432 | P50: 46034 | Q50: 133632 | R50: 0 | S50: -87598 | T50: 66481 | U50: 35578 | X50: -554 | Y50: 66 | Z50: 13973 | AA50: 9372 | AB50: 0 | AD50: 4601 | AE50: -5 | AF50: 3 | AG50: 55 | AH50: -108 | AI50: 4436 | AJ50: 6180 | AK50: 13272 | AM50: -600 | AN50: -3162 | AO50: -481 | AT50: 21 | AV50: 206 | AW50: 16340 | AY50: 0.6958929179 | AZ50: 67.15779446 | BA50: -4561.111724 | BE50: 34.19388776 | BF50: 949.3287313 | BG50: 33.55461234 | BH50: 10326.59783 | BJ50: 51078.32982 | BK50: 140325.2244 | BL50: 0.12849 | BM50: -89246.76604 | BN50: 68219.16412 | BO50: 32542.00823 | BR50: -457.15766 | BS50: 392.87628 | BT50: 11450.12493 | BU50: 9278.45136 | BV50: 0 | BX50: 2171.67357 | BY50: -5.06999 | BZ50: -1.60749 | CA50: 104.90868 | CB50: -8.81772 | CC50: 2051.26969 | CD50: 8231.38533 | CE50: 10429.1656 | CG50: -1325.52497 | CH50: -16656.45104 | CI50: 335.24459 | CN50: 21 | CP50: 207 | CQ50: 16280 | CS50: 0.8914024652 | CT50: 72.23296404 | CU50: -4888.260079 | CY50: 31.83864427 | CZ50: 1454.098509 | DA50: 48.58932465 | DB50: 10923.09802 | DD50: 51833.12028 | DE50: 149160.8424 | DF50: 0.35833 | DG50: -97327.3638 | DH50: 71288.97616 | DI50: 35737.5124 | DL50: -606.38413 | DM50: 413.02245 | DN50: 9505.76308 | DO50: 9399.53597 | DP50: 0 | DR50: 106.22711 | DS50: -2.39928 | DT50: 26.48032 | DU50: 53.82242 | DV50: 7.86409 | DW50: 84.34982 | DX50: 8309.36864 | DY50: 9021.06104 | EA50: 436.17727 | EB50: -10739.08678 | EC50: -5579.47988 | EH50: 21 | EJ50: 211 | EQ50: -15369 | ER50: 534 | ES50: 1082 | ET50: -11245.18055 | EU50: 166.32149 | EV50: 984.93805 | EW50: -17255.34267 | EX50: 371.83061 | EY50: 2282.97114 | EZ50: 15852 | FA50: -9041 | FB50: 19177.77006 | FC50: -246.52589 | FD50: 21012.71177 | FE50: -187.07406 | FF50: 76981 | FG50: 65538 | FH50: 11443 | FI50: 54 | FJ50: 79256.21442 | FK50: 69156.53388 | FL50: 10099.68054 | FM50: 46.40766 | FN50: 89342.80709 | FO50: 80804.21107 | FP50: 8538.59602 | FQ50: 38.67329 | FR50: 19 | FU50: 14672 | FV50: 34770.40799 | FW50: 32720.71061
A51: 167 | B51: Joensuu | C51: 76935 | E51: 1.431836573 | F51: 77.77123854 | G51: -5913.407422 | K51: 35.96709982 | L51: 2007.499838 | M51: 61.92375248 | N51: 11832.8979 | P51: 352194 | Q51: 761458 | R51: -158 | S51: -409422 | T51: 273994 | U51: 225083 | X51: -4080 | Y51: 3449 | Z51: 89024 | AA51: 71765 | AB51: 0 | AD51: 17259 | AE51: -103 | AF51: 185 | AG51: 550 | AH51: -148 | AI51: 16643 | AJ51: 68132 | AK51: 83713 | AM51: -9992 | AN51: -60740 | AO51: 8064 | AT51: 20.5 | AV51: 91 | AW51: 77261 | AY51: 1.494508881 | AZ51: 75.00815069 | BA51: -5647.931144 | BE51: 36.27458155 | BF51: 2260.505882 | BG51: 66.77775044 | BH51: 12355.68196 | BJ51: 377919.3746 | BK51: 819074.6692 | BL51: -27.47477 | BM51: -441182.7694 | BN51: 296164.6495 | BO51: 220252.2354 | BR51: -3317.45754 | BS51: 13965.54623 | BT51: 85882.20425 | BU51: 68565.74153 | BV51: 0 | BX51: 17316.46272 | BY51: 73.89833 | BZ51: -4372.35899 | CA51: 931.38589 | CB51: -264.61155 | CC51: 11822.00462 | CD51: 80831.42995 | CE51: 83743.67014 | CG51: -7161.71271 | CH51: -56107.37807 | CI51: 19100.75167 | CN51: 20.5 | CP51: 72 | CQ51: 77513 | CS51: 0.9918496201 | CT51: 73.56840722 | CU51: -5824.697945 | CY51: 33.16929025 | CZ51: 2293.912881 | DA51: 63.6047903 | DB51: 13163.76012 | DD51: 394704.6954 | DE51: 877432.3624 | DF51: -193.26718 | DG51: -482920.9341 | DH51: 313083.3308 | DI51: 230630.9975 | DL51: -3523.79006 | DM51: -5517.68034 | DN51: 51751.9237 | DO51: 72468.60131 | DP51: 0 | DR51: -20716.67761 | DS51: -52.62308 | DT51: 352.47822 | DU51: 815.8965 | DV51: -96.93671 | DW51: -21329.65568 | DX51: 53814.30258 | DY51: 58729.87464 | EA51: -1163.9284 | EB51: -52211.94033 | EC51: -10356.074 | EH51: 20.5 | EJ51: 187 | EQ51: -82471 | ER51: 1575 | ES51: 5247 | ET51: -74641.10375 | EU51: 5678.09034 | EV51: 4320.09494 | EW51: -76219.9482 | EX51: 4296.9058 | EY51: 2837.09376 | EZ51: 57949 | FA51: -809 | FB51: 63580.20576 | FC51: -4397.31197 | FD51: 64140.11766 | FE51: -4531.7114 | FF51: 548153 | FG51: 484098 | FH51: 64055 | FI51: 3055 | FJ51: 551228.0954 | FK51: 491504.9812 | FL51: 59723.11418 | FM51: 2974.75776 | FN51: 558731.3445 | FO51: 505282.0846 | FP51: 53449.25993 | FQ51: 2985.89722 | FR51: 2232 | FU51: 139587 | FV51: 155423.7536 | FW51: 164459.1692
A52: 169 | B52: Jokioinen | C52: 5061 | E52: 2.353394319 | F52: 36.82060573 | G52: -3015.214385 | K52: 50.06912853 | L52: 207.0737008 | M52: 6.66817746 | N52: 11334.71646 | P52: 25227 | Q52: 53692 | R52: -3 | S52: -28468 | T52: 20308 | U52: 12973 | X52: -156 | Y52: 67 | Z52: 4724 | AA52: 2329 | AB52: 24 | AD52: 2419 | AE52: -14 | AF52: 0 | AG52: 1 | AH52: 0 | AI52: 2405 | AJ52: 8925 | AK52: 4599 | AM52: 223 | AN52: -1913 | AO52: 3192 | AT52: 21.25 | AV52: 166 | AW52: 5046 | AY52: 1.9649712 | AZ52: 31.67978701 | BA52: -2586.101901 | BE52: 52.88616493 | BF52: 155.0076437 | BG52: 4.758423686 | BH52: 11890.02781 | BJ52: 26554.33641 | BK52: 56325.93144 | BL52: -8.65122 | BM52: -29780.24625 | BN52: 21119.64235 | BO52: 12147.53754 | BR52: -107.71983 | BS52: 68.77405 | BT52: 3447.98786 | BU52: 2758.68812 | BV52: 0 | BX52: 689.29974 | BY52: -14.58005 | BZ52: 1.53072 | CA52: 14.81768 | CB52: -0.28533 | CC52: 661.1474 | CD52: 9616.17946 | CE52: 3365.20284 | CG52: 536.7816 | CH52: -1695.95227 | CI52: 1760.15107 | CN52: 21.25 | CP52: 210 | CQ52: 4990 | CS52: 0.8730779291 | CT52: 35.65527053 | CU52: -2906.682367 | CY52: 48.74461433 | CZ52: 260.8612786 | DA52: 7.432978253 | DB52: 12809.71953 | DD52: 26933.10391 | DE52: 59361.85798 | DF52: 0.15459 | DG52: -32428.59948 | DH52: 21548.18011 | DI52: 12218.94082 | DL52: -110.50629 | DM52: 126.69007 | DN52: 1354.70523 | DO52: 2419.1403 | DP52: 5.44508 | DR52: -1058.98999 | DS52: 11.48634 | DT52: 1.49457 | DU52: -0.02686 | DV52: 0 | DW52: -1045.98222 | DX52: 8571.80723 | DY52: 1353.12112 | EA52: -251.37421 | EB52: -1569.76615 | EC52: -1438.52757 | EH52: 21.25 | EJ52: 278 | EQ52: -1554 | ER52: 30 | ES52: 117 | ET52: -1827.44753 | EU52: 60.12365 | EV52: 162.27211 | EW52: -2858.99124 | EX52: 0 | EY52: 67.34255 | EZ52: 1148 | FA52: -3100 | FB52: 424.70495 | FC52: -955.62865 | FD52: 1251.2906 | FE52: 1995.70371 | FF52: 15079 | FG52: 10749 | FH52: 4330 | FI52: 6 | FJ52: 12868.83963 | FK52: 9535.89302 | FL52: 3332.94661 | FM52: 6.70063 | FN52: 14776.26769 | FO52: 9621.86272 | FP52: 5154.40497 | FQ52: 5.97694 | FR52: 1514 | FU52: 436 | FV52: 893.606 | FW52: 894.96505
A53: 171 | B53: Joroinen | C53: 4689 | E53: 1.096724667 | F53: 71.70192719 | G53: -4888.675624 | K53: 26.69276198 | L53: 3346.555769 | M53: 95.19470806 | N53: 12831.52058 | P53: 26796 | Q53: 54259 | R53: 5 | S53: -27458 | T53: 17727 | U53: 13852 | X53: -114 | Y53: 68 | Z53: 4075 | AA53: 1917 | AB53: 0 | AD53: 2158 | AE53: 0 | AF53: 0 | AG53: 0 | AH53: 0 | AI53: 2158 | AJ53: 348 | AK53: 3982 | AM53: 367 | AN53: -3697 | AO53: 2463 | AT53: 21.25 | AV53: 202 | AW53: 4624 | AY53: 0.7631529847 | AZ53: 70.37528504 | BA53: -4528.7116 | BE53: 27.12928777 | BF53: 3979.193205 | BG53: 102.7652093 | BH53: 14133.24149 | BJ53: 29235.78625 | BK53: 58088.52091 | BL53: 0.1305 | BM53: -28852.60416 | BN53: 18771.07296 | BO53: 12947.256 | BR53: -10.29947 | BS53: 292.58823 | BT53: 3148.01356 | BU53: 1928.25046 | BV53: -88.65832 | BX53: 1131.10478 | BY53: -0.01035 | BZ53: 0.38169 | CA53: 19.8 | CB53: 0 | CC53: 1111.67612 | CD53: 1302.0663 | CE53: 3571.13627 | CG53: -258.96773 | CH53: -4171.95943 | CI53: 1102.92583 | CN53: 21.25 | CP53: 213 | CQ53: 4540 | CS53: 0.8207904411 | CT53: 66.43665708 | CU53: -4766.955059 | CY53: 28.96851186 | CZ53: 3700.373152 | DA53: 90.68548204 | DB53: 14893.63204 | DD53: 30290.449 | DE53: 60321.46533 | DF53: 5.41749 | DG53: -30025.59884 | DH53: 19545.41281 | DI53: 13611.358 | DL53: -130.11929 | DM53: -155.6476 | DN53: 2845.40508 | DO53: 2088.73932 | DP53: 20.45879 | DR53: 777.12455 | DS53: -0.01128 | DT53: -1.78636 | DU53: 0 | DV53: 0 | DW53: 775.32691 | DX53: 2390.02822 | DY53: 2022.19646 | EA53: -99.76763 | EB53: -3511.08363 | EC53: -669.90252 | EH53: 21.25 | EJ53: 199 | EQ53: -1863 | ER53: 56 | ES53: 288 | ET53: -2828.18086 | EU53: 13.86704 | EV53: 346.10338 | EW53: -3152.10905 | EX53: 34.62744 | EY53: 425.38263 | EZ53: 3845 | FA53: -667 | FB53: 727.99083 | FC53: 2827.09941 | FD53: 4953.83995 | FE53: -3000 | FF53: 34177 | FG53: 30079 | FH53: 4098 | FI53: 161 | FJ53: 33862.0895 | FK53: 27351.19556 | FL53: 6510.89394 | FM53: 161.25463 | FN53: 32606.79949 | FO53: 28918.50955 | FP53: 3688.28994 | FQ53: 161.28157 | FR53: 549 | FU53: 1491 | FV53: 412.00116 | FW53: 1708.34354
A54: 172 | B54: Joutsa | C54: 4297 | E54: 0.8016276704 | F54: 81.46726567 | G54: -7427.507563 | K54: 20.51815775 | L54: 791.2497091 | M54: 23.49844732 | N54: 12290.43519 | P54: 13260 | Q54: 44512 | R54: 18 | S54: -31234 | T54: 15000 | U54: 17594 | X54: -116 | Y54: 188 | Z54: 1432 | AA54: 2078 | AB54: -70 | AD54: -716 | AE54: 19 | AF54: -1 | AG54: 9 | AH54: 5 | AI54: -702 | AJ54: 566 | AK54: 1317 | AM54: 230 | AN54: -1822 | AO54: -4781 | AT54: 21 | AV54: 290 | AW54: 4263 | AY54: 1.085058467 | AZ54: 77.01129613 | BA54: -7409.686376 | BE54: 22.06224199 | BF54: 649.3174994 | BG54: 19.24708878 | BH54: 12313.59662 | BJ54: 14417.1564 | BK54: 45242.90928 | BL54: 8.8257 | BM54: -30816.92718 | BN54: 16025.51161 | BO54: 17974.25459 | BR54: -137.25769 | BS54: 319.9202 | BT54: 3365.50153 | BU54: 2401.58782 | BV54: 179.41028 | BX54: 1143.32399 | BY54: 28.36818 | BZ54: 14.69229 | CA54: 18.05908 | CB54: 3.37058 | CC54: 1171.69596 | CD54: 1670.89988 | CE54: 3385.12681 | CG54: -890.48586 | CH54: -3086.80257 | CI54: 401.95553 | CN54: 21 | CP54: 179 | CQ54: 4171 | CS54: 1.120472715 | CT54: 77.88471838 | CU54: -7763.212424 | CY54: 19.50838822 | CZ54: 833.6366866 | DA54: 23.45642898 | DB54: 12972.02532 | DD54: 16279.30627 | DE54: 48296.8059 | DF54: 16.18114 | DG54: -32001.31849 | DH54: 16151.12651 | DI54: 18372.55212 | DL54: -460.47772 | DM54: 382.87392 | DN54: 2444.75634 | DO54: 2744.61664 | DP54: 185.86795 | DR54: -113.99235 | DS54: 22.59882 | DT54: 0.71309 | DU54: 11.70657 | DV54: -10.95817 | DW54: -113.34518 | DX54: 1540.45417 | DY54: 2228.30822 | EA54: -779.33796 | EB54: -2130.66121 | EC54: -856.0869 | EH54: 21 | EJ54: 210 | EQ54: -6314 | ER54: 0 | ES54: 216 | ET54: -3954.28676 | EU54: 10.96445 | EV54: 960.15103 | EW54: -3186.50115 | EX54: 10.74639 | EY54: 91.35964 | EZ54: 1330 | FA54: 5614 | FB54: 1574.58582 | FC54: 702.16703 | FD54: 211.92833 | FE54: 3391.76668 | FF54: 31289 | FG54: 17368 | FH54: 13921 | FI54: 0 | FJ54: 30479.96052 | FK54: 16971.88194 | FL54: 13508.07858 | FM54: 0 | FN54: 31952.9943 | FO54: 15418.11513 | FP54: 16534.87917 | FQ54: 521.11334 | FR54: 399 | FU54: 228 | FV54: 544.471 | FW54: 521.407
A55: 176 | B55: Juuka | C55: 4527 | E55: 2.967412141 | F55: 31.64364009 | G55: -1894.190413 | K55: 54.7853976 | L55: 2216.699801 | M55: 48.2001158 | N55: 16786.17186 | P55: 36482 | Q55: 67959 | R55: 0 | S55: -31477 | T55: 14022 | U55: 21659 | X55: -1 | Y55: 360 | Z55: 4563 | AA55: 3641 | AB55: 0 | AD55: 922 | AE55: 0 | AF55: 2 | AG55: 0 | AH55: -1 | AI55: 923 | AJ55: 11832 | AK55: 4901 | AM55: -1515 | AN55: -1484 | AO55: -1417 | AT55: 20.75 | AV55: 129 | AW55: 4444 | AY55: 2.927560982 | AZ55: 32.83600862 | BA55: -2954.149554 | BE55: 52.31170266 | BF55: 1768.314649 | BG55: 35.01439622 | BH55: 18433.41358 | BJ55: 38885.7832 | BK55: 72422.37967 | BL55: 0 | BM55: -33536.59647 | BN55: 15450.75983 | BO55: 21254.126 | BR55: 31.11068 | BS55: 271.68638 | BT55: 3471.08642 | BU55: 3623.70901 | BV55: 0 | BX55: -152.62259 | BY55: -1.27805 | BZ55: 2.61621 | CA55: 1.75683 | CB55: -2.53301 | CC55: -155.57427 | CD55: 11509.26157 | CE55: 3604.82536 | CG55: 390.89752 | CH55: -1138.53599 | CI55: -4588.4014 | CN55: 20.75 | CP55: 183 | CQ55: 4352 | CS55: 1.967960756 | CT55: 36.11849414 | CU55: -2782.123982 | CY55: 49.4401821 | CZ55: 2493.040793 | DA55: 48.84212534 | DB55: 18630.63663 | DD55: 41949.49468 | DE55: 75819.25727 | DF55: -4.29843 | DG55: -33874.06102 | DH55: 15372.45105 | DI55: 22133.221 | DL55: -13.94897 | DM55: 310.10808 | DN55: 3927.77014 | DO55: 2955.12844 | DP55: 0 | DR55: 972.6417 | DS55: 6.65887 | DT55: 8.23644 | DU55: 0.01049 | DV55: -3.31452 | DW55: 984.212 | DX55: 12293.77362 | DY55: 4067.84744 | EA55: -1906.16497 | EB55: -1940.65299 | EC55: 1061.63397 | EH55: 20.75 | EJ55: 103 | EQ55: -6458 | ER55: 22 | ES55: 118 | ET55: -8272.69929 | EU55: 21.31479 | EV55: 58.15774 | EW55: -3124.3993 | EX55: 32.73857 | EY55: 85.44726 | EZ55: 1746 | FA55: 3184 | FB55: 1217.81758 | FC55: 1651.256 | FD55: 8579.1406 | FE55: -4630.23527 | FF55: 14312 | FG55: 9178 | FH55: 5134 | FI55: 2751 | FJ55: 16043.14493 | FK55: 9220.08145 | FL55: 6823.06348 | FM55: 2669.39 | FN55: 18051.39726 | FO55: 15780.23906 | FP55: 2271.1582 | FQ55: 2628.81348 | FR55: 528 | FU55: 2429 | FV55: 2173.982 | FW55: 2073.317
A56: 177 | B56: Juupajoki | C56: 1800 | E56: 4.633053221 | F56: 46.74818796 | G56: -3236.666667 | K56: 49.76472413 | L56: 1427.777778 | M56: 47.75006363 | N56: 10913.88889 | P56: 8169 | Q56: 18617 | R56: -68 | S56: -10516 | T56: 7135 | U56: 4977 | X56: -74 | Y56: 56 | Z56: 1578 | AA56: 948 | AB56: 0 | AD56: 630 | AE56: 31 | AF56: 11 | AG56: 30 | AH56: 0 | AI56: 643 | AJ56: 2932 | AK56: 1608 | AM56: 23 | AN56: -281 | AO56: 961 | AT56: 21 | AV56: 199 | AW56: 1786 | AY56: 1.328019803 | AZ56: 47.18299089 | BA56: -2878.677004 | BE56: 49.73943785 | BF56: 2093.935112 | BG56: 62.39554507 | BH56: 12249.05264 | BJ56: 8785.0647 | BK56: 19298.77106 | BL56: 12.24574 | BM56: -10501.46062 | BN56: 7983.60839 | BO56: 4618.778 | BR56: -56.70219 | BS56: -40.77921 | BT56: 2003.44437 | BU56: 937.7716 | BV56: 0 | BX56: 1065.67277 | BY56: 2.98897 | BZ56: 11.93152 | CA56: 43.85586 | CB56: -0.6169 | CC56: 1036.1205 | CD56: 3538.11439 | CE56: 1933.96384 | CG56: -19.37156 | CH56: -1492.80957 | CI56: 1040.27781 | CN56: 21 | CP56: 67 | CQ56: 1768 | CS56: 1.820332152 | CT56: 44.05389202 | CU56: -2503.709695 | CY56: 51.83881192 | CZ56: 2166.609219 | DA56: 65.13820369 | DB56: 12140.53075 | DD56: 8561.71188 | DE56: 19716.8941 | DF56: 1.57673 | DG56: -11153.60549 | DH56: 8080.56567 | DI56: 4759.124 | DL56: -37.00955 | DM56: 37.98271 | DN56: 1687.05734 | DO56: 1178.32071 | DP56: 0 | DR56: 508.73663 | DS56: 54.04559 | DT56: 10.63975 | DU56: 19.02639 | DV56: -1.27421 | DW56: 553.12137 | DX56: 3926.44498 | DY56: 1602.30898 | EA56: 14.71283 | EB56: -902.92798 | EC56: 928.37659 | EH56: 21 | EJ56: 87 | EQ56: -649 | ER56: 1 | ES56: 1 | ET56: -926.91415 | EU56: 1.77758 | EV56: 31.45054 | EW56: -767.50885 | EX56: 0 | EY56: 93.57646 | EZ56: -447 | FA56: 988 | FB56: 2500.03395 | FC56: -996.15022 | FD56: 288.44 | FE56: -211.87683 | FF56: 7116 | FG56: 4920 | FH56: 2196 | FI56: 40 | FJ56: 7128.82036 | FK56: 5899.71342 | FL56: 1229.10694 | FM56: 39.93793 | FN56: 6578.53714 | FO56: 5553.15605 | FP56: 1025.38109 | FQ56: 3.11326 | FR56: 273 | FU56: 870 | FV56: 940.624 | FW56: 759.581
A57: 178 | B57: Juva | C57: 5932 | E57: 3.513608871 | F57: 56.27363355 | G57: -5764.666217 | K57: 49.61320555 | L57: 728.2535401 | M57: 19.78220505 | N57: 13436.95212 | P57: 33749 | Q57: 71913 | R57: -314 | S57: -38478 | T57: 20160 | U57: 24634 | X57: -175 | Y57: 649 | Z57: 6790 | AA57: 5936 | AB57: 0 | AD57: 854 | AE57: 0 | AF57: 0 | AG57: 0 | AH57: -10 | AI57: 844 | AJ57: 3693 | AK57: 7143 | AM57: -1297 | AN57: -1803 | AO57: 2154 | AT57: 20.75 | AV57: 95 | AW57: 5887 | AY57: 1.694335536 | AZ57: 52.1474618 | BA57: -5616.228154 | BE57: 49.98365713 | BF57: 899.2885069 | BG57: 22.30711035 | BH57: 14714.60444 | BJ57: 37665.78363 | BK57: 78717.64138 | BL57: 175.28287 | BM57: -40876.57487 | BN57: 22099.13361 | BO57: 23526.694 | BR57: -233.66848 | BS57: 635.93694 | BT57: 5151.5212 | BU57: 4274.69586 | BV57: 0 | BX57: 876.82534 | BY57: 0.09473 | BZ57: 0 | CA57: 0.85791 | CB57: 0 | CC57: 876.06216 | CD57: 4660.21218 | CE57: 5409.51276 | CG57: 606.04349 | CH57: -2940.4132 | CI57: 2283.23589 | CN57: 20.75 | CP57: 145 | CQ57: 5769 | CS57: 1.154603955 | CT57: 50.96573095 | CU57: -5777.342513 | CY57: 50.30081167 | CZ57: 866.7313157 | DA57: 20.42111713 | DB57: 15491.65642 | DD57: 39608.77163 | DE57: 82894.80515 | DF57: -14.93303 | DG57: -43300.96655 | DH57: 22013.65017 | DI57: 24053.9 | DL57: -285.97866 | DM57: 693.21293 | DN57: 3173.81789 | DO57: 3525.30787 | DP57: 29.1689 | DR57: -322.32109 | DS57: 0.18505 | DT57: 0 | DU57: 0 | DV57: 65.04818 | DW57: -257.08786 | DX57: 4403.12432 | DY57: 2277.02355 | EA57: -258.28718 | EB57: -2709.31659 | EC57: -481.45559 | EH57: 20.75 | EJ57: 215 | EQ57: -5748 | ER57: 529 | ES57: 230 | ET57: -4664.38401 | EU57: 87.04744 | EV57: 1451.05969 | EW57: -3387.37923 | EX57: 100.07106 | EY57: 528.82903 | EZ57: 2994 | FA57: -849 | FB57: 1921.80023 | FC57: -380.30708 | FD57: 1047.79842 | FE57: 82.57384 | FF57: 34757 | FG57: 21961 | FH57: 12796 | FI57: 161 | FJ57: 34457.18971 | FK57: 21558.08834 | FL57: 12899.10137 | FM57: 154.41909 | FN57: 32878.24538 | FO57: 19872.48392 | FP57: 13005.76146 | FQ57: 154.41909 | FR57: 1282 | FU57: 12589 | FV57: 12179.529 | FW57: 14806.999
A58: 179 | B58: Jyväskylä | C58: 143420 | E58: 0.7783335075 | F58: 108.4031922 | G58: -9625.679822 | K58: 24.93065793 | L58: 277.9598382 | M58: 9.074800068 | N58: 11179.8982 | P58: 504671 | Q58: 1219554 | R58: -217 | S58: -715100 | T58: 542791 | U58: 328765 | X58: -14677 | Y58: -809 | Z58: 140970 | AA58: 120904 | AB58: 0 | AD58: 20066 | AE58: -494 | AF58: -66 | AG58: 1534 | AH58: -1792 | AI58: 16180 | AJ58: 20930 | AK58: 131116 | AM58: 14553 | AN58: -185511 | AO58: -31057 | AT58: 20 | AV58: 137 | AW58: 144473 | AY58: 1.266350245 | AZ58: 99.53338322 | BA58: -9117.89377 | BE58: 26.90447285 | BF58: 555.7430672 | BG58: 16.92747235 | BH58: 11983.25511 | BJ58: 615770.542 | BK58: 1358857.313 | BL58: -2534.33689 | BM58: -745621.1074 | BN58: 578434.0681 | BO58: 309195.7463 | BR58: -14637.35635 | BS58: 2004.75202 | BT58: 129376.1027 | BU58: 126960.9705 | BV58: 84335.51969 | BX58: 86750.65192 | BY58: -752.59789 | BZ58: 684.81516 | CA58: 5793.85608 | CB58: 182.08461 | CC58: 81071.09772 | CD58: 102001.0254 | CE58: 111130.8929 | CG58: -28083.5736 | CH58: -98917.63865 | CI58: -2003.06937 | CN58: 20 | CP58: 138 | CQ58: 145887 | CS58: 1.186350389 | CT58: 90.79065032 | CU58: -8645.075467 | CY58: 28.86455362 | CZ58: 521.8606532 | DA58: 15.25175287 | DB58: 12488.99979 | DD58: 723500.4008 | DE58: 1483154.964 | DF58: 2452.6051 | DG58: -757201.958 | DH58: 601778.3713 | DI58: 320192.7891 | DL58: -14420.11942 | DM58: 2109.48378 | DN58: 152458.5667 | DO58: 139829.6366 | DP58: 56501.63187 | DR58: 69130.56199 | DS58: -304.68228 | DT58: 18.00044 | DU58: 11566.04461 | DV58: -398.58458 | DW58: 56879.25096 | DX58: 159722.4978 | DY58: 121981.6109 | EA58: -58915.63083 | EB58: -126057.7222 | EC58: 53260.52458 | EH58: 20 | EJ58: 73 | EQ58: -181507 | ER58: 1559 | ES58: 17775 | ET58: -256122.4739 | EU58: 2089.13805 | EV58: 140899.3736 | EW58: -194904.2499 | EX58: 1758.22881 | EY58: 124424.9347 | EZ58: 249585 | FA58: -53442 | FB58: 162202.1738 | FC58: -48801.35799 | FD58: 54019.377 | FE58: 49537.29873 | FF58: 1226586 | FG58: 1061260 | FH58: 165326 | FI58: 1299 | FJ58: 1190024.423 | FK58: 1062799.06 | FL58: 127225.3626 | FM58: 4296.03254 | FN58: 1167523.377 | FO58: 965332.743 | FP58: 202190.6335 | FQ58: 513.0524 | FR58: 24911 | FU58: 134096 | FV58: 142310.939 | FW58: 166749.1664
A59: 181 | B59: Jämijärvi | C59: 1707 | E59: 2.378571429 | F59: 43.03290148 | G59: -3012.888108 | K59: 23.86326729 | L59: 1003.514938 | M59: 29.86316091 | N59: 12265.37786 | P59: 9315 | Q59: 19817 | R59: 0 | S59: -10502 | T59: 6066 | U59: 6077 | X59: -37 | Y59: 24 | Z59: 1628 | AA59: 567 | AB59: 0 | AD59: 1061 | AE59: 0 | AF59: 0 | AG59: 0 | AH59: 0 | AI59: 1061 | AJ59: -739 | AK59: 1569 | AM59: -760 | AN59: -663 | AO59: 1204 | AT59: 22.5 | AV59: 151 | AW59: 1685 | AY59: 0.8523508109 | AZ59: 79.96490001 | BA59: -5387.003199 | BE59: 15.74571605 | BF59: 4202.144837 | BG59: 91.61617923 | BH59: 16741.39741 | BJ59: 9972.10645 | BK59: 20857.89963 | BL59: 0 | BM59: -10885.79318 | BN59: 6369.08373 | BO59: 5767.18423 | BR59: -52.53615 | BS59: 2.15403 | BT59: 1200.09266 | BU59: 819.78189 | BV59: 0 | BX59: 380.31077 | BY59: 0.0917 | BZ59: 0 | CA59: 0.29626 | CB59: 0.05237 | CC59: 380.15858 | CD59: -333.01844 | CE59: 1218.47265 | CG59: 856.31676 | CH59: -1417.23426 | CI59: -4091.34694 | CN59: 22.5 | CP59: 201 | CQ59: 1683 | CS59: 0.5158067048 | CT59: 73.32229216 | CU59: -8102.123232 | CY59: 14.75458111 | CZ59: 663.0134759 | DA59: 13.80014522 | DB59: 17536.04146 | DD59: 10718.36644 | DE59: 22011.12562 | DF59: 0 | DG59: -11292.75918 | DH59: 6580.51948 | DI59: 5706.02 | DL59: -116.14634 | DM59: -32.72712 | DN59: 844.90684 | DO59: 1237.38052 | DP59: 0 | DR59: -392.47368 | DS59: 0.04911 | DT59: 0 | DU59: 0.49541 | DV59: 0.04093 | DW59: -392.87904 | DX59: -717.16817 | DY59: 611.68528 | EA59: -478.09251 | EB59: -1747.86195 | EC59: -4723.20218 | EH59: 22.5 | EJ59: 227 | EQ59: -434 | ER59: 5 | ES59: 64 | ET59: -5812.77318 | EU59: 498.914 | EV59: 4.03959 | EW59: -5579.95685 | EX59: 118.28 | EY59: 126.78938 | EZ59: 61 | FA59: 202 | FB59: 9735.75371 | FC59: 406.42448 | FD59: 205.52452 | FE59: 896.69449 | FF59: 6213 | FG59: 3756 | FH59: 2457 | FI59: 110 | FJ59: 14124.91112 | FK59: 11282.65173 | FL59: 2842.25939 | FM59: -5.50388 | FN59: 13431.43449 | FO59: 9782.15561 | FP59: 3649.27888 | FQ59: 50 | FR59: 1795 | FU59: 1027 | FV59: 1136.452 | FW59: 1086.86937
A60: 182 | B60: Jämsä | C60: 19887 | E60: 2.404871955 | F60: 40.96488168 | G60: -2780.509881 | K60: 53.32638553 | L60: 1139.588676 | M60: 37.48241878 | N60: 11097.19918 | P60: 66519 | Q60: 201702 | R60: 74 | S60: -135109 | T60: 87372 | U60: 66820 | X60: -580 | Y60: 153 | Z60: 18656 | AA60: 13791 | AB60: 0 | AD60: 4865 | AE60: -114 | AF60: -84 | AG60: 70 | AH60: -1 | AI60: 4596 | AJ60: 13651 | AK60: 18763 | AM60: 3601 | AN60: -7410 | AO60: 9104 | AT60: 21 | AV60: 160 | AW60: 19767 | AY60: 1.785740996 | AZ60: 37.4540195 | BA60: -2628.152424 | BE60: 54.05463044 | BF60: 911.9767238 | BG60: 27.8055748 | BH60: 11971.39447 | BJ60: 76656.92283 | BK60: 216141.6307 | BL60: -1189.24074 | BM60: -140673.9486 | BN60: 92719.66296 | BO60: 61987.81654 | BR60: -517.33865 | BS60: 160.01719 | BT60: 13676.20943 | BU60: 13613.56874 | BV60: 0 | BX60: 62.64069 | BY60: -195.86979 | BZ60: 16.32957 | CA60: 101.80824 | CB60: -1.43209 | CC60: -220.13986 | CD60: 12397.78206 | CE60: 14794.17961 | CG60: -4248.99101 | CH60: -7423.6377 | CI60: 3658.04177 | CN60: 21 | CP60: 208 | CQ60: 19347 | CS60: 0.5613319558 | CT60: 36.06220181 | CU60: -2935.277654 | CY60: 52.23860453 | CZ60: 572.375329 | DA60: 16.30853381 | DB60: 12810.28678 | DD60: 77874.52892 | DE60: 226383.1323 | DF60: -51.18518 | DG60: -148559.7886 | DH60: 91105.82872 | DI60: 62794.03014 | DL60: -578.36892 | DM60: -1016.83991 | DN60: 3744.86143 | DO60: 13516.76537 | DP60: 0 | DR60: -9771.90394 | DS60: -80.19671 | DT60: 4.30394 | DU60: 43.95743 | DV60: -2.95798 | DW60: -9894.71212 | DX60: 2897.33292 | DY60: 3238.28073 | EA60: 3742.84209 | EB60: -7068.92611 | EC60: -6111.45897 | EH60: 21 | EJ60: 282 | EQ60: -10877 | ER60: 143 | ES60: 1075 | ET60: -12456.2749 | EU60: 884.14643 | EV60: 435.99063 | EW60: -12388.8129 | EX60: 22.035 | EY60: 3017.0382 | EZ60: 5320 | FA60: -1322 | FB60: 1459.1 | FC60: 0.82887 | FD60: 2313.7 | FE60: 652.14746 | FF60: 60858 | FG60: 53260 | FH60: 7598 | FI60: 426 | FJ60: 54892.74216 | FK60: 47537.80327 | FL60: 7354.93889 | FM60: 370.324 | FN60: 50246.39844 | FO60: 42944.64217 | FP60: 7301.75627 | FQ60: 342.44074 | FR60: 2213 | FU60: 19893 | FV60: 16355.851 | FW60: 15421.868
A61: 186 | B61: Järvenpää | C61: 44455 | E61: 238.3924051 | F61: 100.5463901 | G61: -10102.7331 | K61: 16.57787299 | L61: 861.7928242 | M61: 26.65831977 | N61: 11799.48262 | P61: 244375 | Q61: 471375 | R61: 29 | S61: -226971 | T61: 200249 | U61: 64536 | X61: -2543 | Y61: -192 | Z61: 35079 | AA61: 33932 | AB61: 0 | AD61: 1147 | AE61: -5 | AF61: 0 | AG61: 131 | AH61: -418 | AI61: 593 | AJ61: -5518 | AK61: 25947 | AM61: 4863 | AN61: 2429 | AO61: -13066 | AT61: 19.75 | AV61: 226 | AW61: 45226 | AY61: 1.851606213 | AZ61: 95.23150654 | BA61: -10158.69145 | BE61: 17.56737939 | BF61: 716.5511604 | BG61: 20.37093093 | BH61: 12838.94067 | BJ61: 269715.0941 | BK61: 498116.6973 | BL61: -135.64457 | BM61: -228537.2478 | BN61: 217354.5934 | BO61: 54540.82186 | BR61: -2354.81881 | BS61: -110.64736 | BT61: 40892.70137 | BU61: 35646.81499 | BV61: 0 | BX61: 5245.88638 | BY61: -17.3203 | BZ61: 13.50769 | CA61: 186.67365 | CB61: -135.37219 | CC61: 4920.02793 | CD61: 4392.72918 | CE61: 27786.57978 | CG61: -1510.34129 | CH61: -20969.97676 | CI61: -12454.52019 | CN61: 20.25 | CP61: 135 | CQ61: 45630 | CS61: 1.50207464 | CT61: 98.62536862 | CU61: -10965.26472 | CY61: 16.22814559 | CZ61: 649.3715617 | DA61: 17.25024117 | DB61: 13740.1337 | DD61: 273893.7485 | DE61: 530525.2477 | DF61: -447.80678 | DG61: -257079.306 | DH61: 229938.9116 | DI61: 61162.18531 | DL61: -3126.14827 | DM61: 623.33566 | DN61: 31518.97833 | DO61: 35599.63768 | DP61: 0 | DR61: -4080.65935 | DS61: 6.67791 | DT61: 0 | DU61: 103.08629 | DV61: 156.22381 | DW61: -4020.84392 | DX61: 1719.35721 | DY61: 18150.93901 | EA61: -3312.57385 | EB61: -19898.58486 | EC61: -39579.4654 | EH61: 20.25 | EJ61: 173 | EQ61: -52405 | ER61: 400 | ES61: 12992 | ET61: -58539.98952 | EU61: 1310.574 | EV61: 16988.31555 | EW61: -73346.1708 | EX61: 301.14939 | EY61: 15314.617 | EZ61: 56362 | FA61: -24126 | FB61: 14587.83831 | FC61: 5260.77667 | FD61: 14531.81528 | FE61: 42958.38598 | FF61: 433317 | FG61: 414638 | FH61: 18679 | FI61: 1 | FJ61: 434400.1564 | FK61: 408040.921 | FL61: 26359.23532 | FM61: 0.36375 | FN61: 471994.3802 | FO61: 401844.9557 | FP61: 70149.42453 | FQ61: 0 | FR61: 7549 | FU61: 26346 | FV61: 57998.18853 | FW61: 60118
A62: 202 | B62: Kaarina | C62: 34667 | E62: 3.394795932 | F62: 68.58420679 | G62: -4264.978221 | K62: 34.1749056 | L62: 868.058961 | M62: 38.23308585 | N62: 8287.103009 | P62: 84427 | Q62: 258343 | R62: 54 | S62: -173862 | T62: 150610 | U62: 48034 | X62: -2436 | Y62: 786 | Z62: 23132 | AA62: 13924 | AB62: 0 | AD62: 9208 | AE62: -2 | AF62: 0 | AG62: 0 | AH62: -114 | AI62: 9092 | AJ62: 24681 | AK62: 20413 | AM62: -2654 | AN62: -5001 | AO62: 2982 | AT62: 19.75 | AV62: 261 | AW62: 35497 | AY62: 3.445767023 | AZ62: 67.35209433 | BA62: -4269.037682 | BE62: 34.09044883 | BF62: 961.4089078 | BG62: 39.84717969 | BH62: 8806.501592 | BJ62: 94886.0635 | BK62: 275419.0306 | BL62: 48.9811 | BM62: -180483.986 | BN62: 164035.5429 | BO62: 42947.7585 | BR62: -3169.1848 | BS62: 217.7332 | BT62: 23547.8638 | BU62: 14657.9164 | BV62: -245 | BX62: 8644.9474 | BY62: -7.556 | BZ62: 0 | CA62: 0 | CB62: 125.3348 | CC62: 8762.7262 | CD62: 33336.784 | CE62: 25359.5491 | CG62: -1134.0593 | CH62: -4505.5483 | CI62: -622.4357 | CN62: 20.25 | CP62: 219 | CQ62: 35848 | CS62: 2.118397554 | CT62: 67.94146489 | CU62: -4399.809748 | CY62: 34.07912139 | CZ62: 1148.187963 | DA62: 44.60742885 | DB62: 9395.040633 | DD62: 93621.98627 | DE62: 291066.6854 | DF62: -29.27799 | DG62: -197473.9771 | DH62: 177589.9842 | DI62: 46742.06384 | DL62: -2575.39769 | DM62: 135.12665 | DN62: 24417.79991 | DO62: 16782.89588 | DP62: 0 | DR62: 7634.90403 | DS62: 9.64086 | DT62: 0 | DU62: 11.90495 | DV62: -128.86723 | DW62: 7503.77271 | DX62: 36149.67797 | DY62: 22511.40496 | EA62: 384.49754 | EB62: -10123.81612 | EC62: -7405.24901 | EH62: 20.25 | EJ62: 178 | EQ62: -21336 | ER62: 239 | ES62: 3666 | ET62: -29390.2445 | EU62: 1462.3076 | EV62: 1945.9521 | EW62: -32760.34691 | EX62: 605.60693 | EY62: 2238.08601 | EZ62: 20055 | FA62: -13986 | FB62: 1122.5655 | FC62: 9562.309 | FD62: 28353.95612 | FE62: -12199.99823 | FF62: 134632 | FG62: 109653 | FH62: 24979 | FI62: 0 | FJ62: 140775.3119 | FK62: 106269.3258 | FL62: 34505.9861 | FM62: 0 | FN62: 146805.4536 | FO62: 123652.9708 | FP62: 23152.48285 | FQ62: 0 | FR62: 24189 | FU62: 9872 | FV62: 6207 | FW62: 6041
A63: 204 | B63: Kaavi | C63: 2807 | E63: 2.753246753 | F63: 55.84203741 | G63: -5318.845743 | K63: 32.25386641 | L63: 1634.485216 | M63: 43.44133441 | N63: 13733.16708 | P63: 14331 | Q63: 34698 | R63: 120 | S63: -20247 | T63: 9806 | U63: 13872 | X63: -210 | Y63: 166 | Z63: 3387 | AA63: 1653 | AB63: 10 | AD63: 1744 | AE63: -6 | AF63: 2 | AG63: 3 | AH63: -3 | AI63: 1734 | AJ63: 1625 | AK63: 3121 | AM63: 533 | AN63: -1092 | AO63: 1399 | AT63: 22 | AV63: 72 | AW63: 2778 | AY63: 3.308719653 | AZ63: 52.99566541 | BA63: -5286.551235 | BE63: 34.35234188 | BF63: 1306.110889 | BG63: 33.82085707 | BH63: 14095.7538 | BJ63: 14588.15549 | BK63: 36461.83503 | BL63: 77.30045 | BM63: -21796.37909 | BN63: 10638.99741 | BO63: 12898.67568 | BR63: -193.89103 | BS63: 123.43556 | BT63: 1670.83852 | BU63: 1590.81099 | BV63: 143.65729 | BX63: 223.68482 | BY63: -7.21385 | BZ63: 3.51415 | CA63: 2.09427 | CB63: -2.80298 | CC63: 215.08788 | CD63: 2314.54252 | CE63: 1502.4663 | CG63: -186.63465 | CH63: -366.77547 | CI63: -296.23258 | CN63: 22 | CP63: 248 | CQ63: 2689 | CS63: 2.549136962 | CT63: 64.96896001 | CU63: -6913.574504 | CY63: 29.51820742 | CZ63: 1290.622023 | DA63: 29.45400207 | DB63: 15993.6513 | DD63: 14611.86761 | DE63: 37211.25573 | DF63: 9.37443 | DG63: -22590.01369 | DH63: 10945.93044 | DI63: 12944.37107 | DL63: -201.18257 | DM63: 178.41483 | DN63: 1277.52008 | DO63: 1562.88301 | DP63: -0.78839 | DR63: -286.15132 | DS63: -1.21917 | DT63: 0.93534 | DU63: 2.13321 | DV63: -0.22509 | DW63: -288.79344 | DX63: 2070.99671 | DY63: 1145.13782 | EA63: -1062.94956 | EB63: -377.79182 | EC63: -3996.61038 | EH63: 22 | EJ63: 239 | EQ63: -2524 | ER63: 11 | ES63: 791 | ET63: -2118.60075 | EU63: 74.08841 | EV63: 245.81347 | EW63: -5205.9812 | EX63: 5.07782 | EY63: 59.15518 | EZ63: 961 | FA63: 23 | FB63: 197.5042 | FC63: -585.87235 | FD63: 2096.89317 | FE63: 2306.1843 | FF63: 16577 | FG63: 13911 | FH63: 2666 | FI63: 0 | FJ63: 15821.08517 | FK63: 13640.30213 | FL63: 2180.78304 | FM63: 2.33145 | FN63: 19846.37082 | FO63: 14719.4159 | FP63: 5126.95492 | FQ63: 0.87562 | FR63: 517 | FU63: 901 | FV63: 860.433 | FW63: 902.47
A64: 205 | B64: Kajaani | C64: 36567 | E64: 0.8824997689 | F64: 139.3084033 | G64: -15041.07529 | K64: 23.05654439 | L64: 6645.636776 | M64: 117.8411253 | N64: 20584.13323 | P64: 333340 | Q64: 565516 | R64: 229 | S64: -231947 | T64: 140388 | U64: 137958 | X64: -2378 | Y64: -8682 | Z64: 35339 | AA64: 48046 | AB64: 0 | AD64: -12707 | AE64: -57 | AF64: 19 | AG64: 575 | AH64: -3596 | AI64: -16916 | AJ64: 108435 | AK64: 32965 | AM64: 16034 | AN64: -40423 | AO64: -87038 | AT64: 21 | AV64: 142 | AW64: 36493 | AY64: 1.094445151 | AZ64: 137.6538369 | BA64: -15149.56422 | BE64: 23.41963474 | BF64: 6702.350028 | BG64: 128.0050632 | BH64: 19111.41403 | BJ64: 333013.6423 | BK64: 545828.9002 | BL64: 475.68566 | BM64: -212339.5722 | BN64: 148122.2682 | BO64: 133475.4438 | BR64: -2280.81648 | BS64: 5910.73935 | BT64: 72888.06266 | BU64: 51466.37534 | BV64: 0 | BX64: 21421.68732 | BY64: -64.41226 | BZ64: 36.511 | CA64: 976.10494 | CB64: -4918.99936 | CC64: 15498.68176 | CD64: 114504.4669 | CE64: 63375.14609 | CG64: 10509.39242 | CH64: -66331.99539 | CI64: 12286.10764 | CN64: 21 | CP64: 8 | CQ64: 36297 | CS64: 2.242322047 | CT64: 147.6980984 | CU64: -15020.50529 | CY64: 23.70226732 | CZ64: 7530.674792 | DA64: 159.8605678 | DB64: 17194.3359 | DD64: 303897.6384 | DE64: 512041.7314 | DF64: -200.06731 | DG64: -208344.1603 | DH64: 153797.5099 | DI64: 139395.0961 | DL64: -2806.92783 | DM64: -9997.0034 | DN64: 72044.51437 | DO64: 50792.63761 | DP64: 4035.524 | DR64: 25287.40076 | DS64: -1.01443 | DT64: 216.16333 | DU64: 918.48645 | DV64: -4552.63126 | DW64: 20031.43195 | DX64: 128296.439 | DY64: 72721.86228 | EA64: -14768.44062 | EB64: -30192.18538 | EC64: 19078.68401 | EH64: 21 | EJ64: 10 | EQ64: -132204 | ER64: 491 | ES64: 11710 | ET64: -72826.59784 | EU64: 847.86953 | EV64: 20889.68986 | EW64: -56659.61094 | EX64: 725.19201 | EY64: 2291.24066 | EZ64: 117743 | FA64: -12619 | FB64: 36531.34 | FC64: 16512.56159 | FD64: 34235.68434 | FE64: 17518.37774 | FF64: 663865 | FG64: 623029 | FH64: 40836 | FI64: 0 | FJ64: 650409.252 | FK64: 596096.724 | FL64: 54312.52801 | FM64: 0 | FN64: 671971.1287 | FO64: 602154.7069 | FP64: 69816.42183 | FQ64: 0 | FR64: 545 | FU64: 16736 | FV64: 10133.726 | FW64: 14160.49933
A65: 208 | B65: Kalajoki | C65: 12400 | E65: 2.232519237 | F65: 75.78757583 | G65: -4583.467742 | K65: 45.60379739 | L65: 2270.403226 | M65: 81.30910745 | N65: 10191.93548 | P65: 38128 | Q65: 110509 | R65: 259 | S65: -72122 | T65: 49304 | U65: 35699 | X65: -294 | Y65: 382 | Z65: 12969 | AA65: 9105 | AB65: 0 | AD65: 3864 | AE65: -40 | AF65: -16 | AG65: -11 | AH65: -8 | AI65: 3811 | AJ65: 26209 | AK65: 12372 | AM65: 2072 | AN65: -5601 | AO65: 3850 | AT65: 21 | AV65: 114 | AW65: 12412 | AY65: 0.9451246874 | AZ65: 75.16816457 | BA65: -4756.960765 | BE65: 44.82537482 | BF65: 2201.551677 | BG65: 70.61960656 | BH65: 11378.79976 | BJ65: 41851.14982 | BK65: 119591.407 | BL65: 355.63062 | BM65: -77384.62656 | BN65: 51942.40414 | BO65: 34022.28437 | BR65: -307.53913 | BS65: 450.69362 | BT65: 8723.21644 | BU65: 8520.32841 | BV65: 0 | BX65: 202.88803 | BY65: -13.42033 | BZ65: 2.73798 | CA65: 40.1849 | CB65: -12.48194 | CC65: 139.53884 | CD65: 26271.00989 | CE65: 8361.08909 | CG65: -896.15649 | CH65: -9250.45623 | CI65: -2184.40497 | CN65: 21 | CP65: 205 | CQ65: 12335 | CS65: 2.025603673 | CT65: 68.85903485 | CU65: -4503.408347 | CY65: 45.58292556 | CZ65: 2231.636606 | DA65: 69.93772855 | DB65: 11646.75173 | DD65: 44294.55887 | DE65: 125197.3095 | DF65: 317.16466 | DG65: -80585.58593 | DH65: 54948.04063 | DI65: 36376.31366 | DL65: -337.6516 | DM65: 930.21916 | DN65: 11331.33592 | DO65: 9229.69944 | DP65: 0 | DR65: 2101.63648 | DS65: -10.72617 | DT65: 2.5318 | DU65: 4.58889 | DV65: -8.92461 | DW65: 2079.92861 | DX65: 28125.91797 | DY65: 11162.94981 | EA65: -1785.1593 | EB65: -5438.90847 | EC65: 1340.24371 | EH65: 21 | EJ65: 96 | EQ65: -9791 | ER65: 555 | ES65: 714 | ET65: -11861.19259 | EU65: 516.5181 | EV65: 799.18043 | EW65: -11431.09027 | EX65: 252.13982 | EY65: 1356.24435 | EZ65: 3045 | FA65: -2145 | FB65: 7715.4995 | FC65: 1790.329 | FD65: 9038.01739 | FE65: -4830.23607 | FF65: 66331 | FG65: 48069 | FH65: 18262 | FI65: 500 | FJ65: 66882.17991 | FK65: 46077.13413 | FL65: 20805.04578 | FM65: 82.49233 | FN65: 63518.65499 | FO65: 47059.28673 | FP65: 16459.36826 | FQ65: 71.93378 | FR65: 5483 | FU65: 1525 | FV65: 26760.37214 | FW65: 29857.37547
A66: 211 | B66: Kangasala | C66: 32214 | E66: 2.278066298 | F66: 66.52100776 | G66: -3506.736202 | K66: 42.33682614 | L66: 2435.555969 | M66: 84.0000088 | N66: 10583.06947 | P66: 124217 | Q66: 274709 | R66: 210 | S66: -150282 | T66: 137479 | U66: 51593 | X66: -1187 | Y66: 2307 | Z66: 39910 | AA66: 20821 | AB66: 0 | AD66: 19089 | AE66: -563 | AF66: 1 | AG66: 580 | AH66: -68 | AI66: 17879 | AJ66: 86979 | AK66: 37837 | AM66: -1657 | AN66: -16777 | AO66: 2519 | AT66: 21 | AV66: 64 | AW66: 32622 | AY66: 3.582448841 | AZ66: 61.03026688 | BA66: -3529.201862 | BE66: 43.41815401 | BF66: 2008.974797 | BG66: 68.70088243 | BH66: 10673.45534 | BJ66: 140952.2966 | BK66: 301531.8453 | BL66: 147.52102 | BM66: -160432.0277 | BN66: 143083.639 | BO66: 45274.56726 | BR66: -906.06769 | BS66: 3197.93826 | BT66: 30218.04917 | BU66: 22145.3222 | BV66: 0 | BX66: 8072.72697 | BY66: -981.93005 | BZ66: 0.6516 | CA66: 676.83971 | CB66: -104.93663 | CC66: 6309.67218 | CD66: 93288.46888 | CE66: 26556.80188 | CG66: -3341.29579 | CH66: -7603.48011 | CI66: -1538.89375 | CN66: 21 | CP66: 126 | CQ66: 32959 | CS66: 1.245311271 | CT66: 68.69259869 | CU66: -4279.121039 | CY66: 40.2168673 | CZ66: 2150.386518 | DA66: 65.48709391 | DB66: 11985.43152 | DD66: 134635.0562 | DE66: 313405.6331 | DF66: 143.78174 | DG66: -178626.7952 | DH66: 152907.3411 | DI66: 49879.43667 | DL66: -1195.02966 | DM66: -131.67787 | DN66: 22833.27507 | DO66: 22332.94429 | DP66: 0 | DR66: 500.33078 | DS66: -358.68737 | DT66: 0.72102 | DU66: 424.77362 | DV66: -28.57971 | DW66: -310.9889 | DX66: 92773.67877 | DY66: 21067.71515 | EA66: 439.17604 | EB66: -18055.41622 | EC66: -26973.7673 | EH66: 21 | EJ66: 172 | EQ66: -47631 | ER66: 679 | ES66: 11634 | ET66: -37462.40056 | EU66: 2265.8517 | EV66: 7100.85323 | EW66: -50744.18077 | EX66: 912.74236 | EY66: 1789.95596 | EZ66: 26005 | FA66: 2428 | FB66: 8618.6623 | FC66: -14697.37087 | FD66: 44962.52944 | FE66: -141.21355 | FF66: 150003 | FG66: 130285 | FH66: 19718 | FI66: 75 | FJ66: 136335.1191 | FK66: 120800.6459 | FL66: 15534.47328 | FM66: 58.57484 | FN66: 163101.6218 | FO66: 144038.1161 | FP66: 19063.50568 | FQ66: 41.63448 | FR66: 22444 | FU66: 18220 | FV66: 30391.971 | FW66: 16361.799
A67: 213 | B67: Kangasniemi | C67: 5312 | E67: 2.294932871 | F67: 52.68945336 | G67: -4747.176205 | K67: 33.99384414 | L67: 560.8057229 | M67: 16.55478753 | N67: 12364.64608 | P67: 26821 | Q67: 61319 | R67: 7 | S67: -34491 | T67: 19437 | U67: 20038 | X67: -167 | Y67: 292 | Z67: 5109 | AA67: 2654 | AB67: 0 | AD67: 2455 | AE67: 7 | AF67: 0 | AG67: 0 | AH67: 0 | AI67: 2462 | AJ67: -28 | AK67: 4798 | AM67: -321 | AN67: -2119 | AO67: 4837 | AT67: 21.5 | AV67: 147 | AW67: 5230 | AY67: -1.906657288 | AZ67: 46.42964653 | BA67: -4280.328872 | BE67: 36.08190541 | BF67: 861.5466539 | BG67: 26.03332227 | BH67: 12079.30841 | BJ67: 29403.444 | BK67: 67187.602 | BL67: -20.758 | BM67: -37804.916 | BN67: 21798.483 | BO67: 19372.528 | BR67: 141.221 | BS67: 298.455 | BT67: 3805.771 | BU67: -2482.175 | BV67: -82.675 | BX67: 6205.271 | BY67: 40.57 | BZ67: 0.697 | CA67: 0 | CB67: 0 | CC67: 6246.538 | CD67: 1101.013 | CE67: 4490.096 | CG67: 949.09 | CH67: -1797.369 | CI67: 6722.784 | CN67: 21.5 | CP67: 198 | CQ67: 5154 | CS67: -1.511478864 | CT67: 41.9848965 | CU67: -4381.428104 | CY67: 37.42986908 | CZ67: 420.2776387 | DA67: 11.06210778 | DB67: 13867.27929 | DD67: 31779.70784 | DE67: 70822.1077 | DF67: -49.55378 | DG67: -39091.95364 | DH67: 21570.57866 | DI67: 19852.613 | DL67: -157.37624 | DM67: 304.06411 | DN67: 2477.92589 | DO67: 3052.51268 | DP67: 21.33254 | DR67: -553.25425 | DS67: 35.40501 | DT67: -0.01399 | DU67: 0 | DV67: 0 | DW67: -517.86323 | DX67: 584.96141 | DY67: 3790.6449 | EA67: -172.19182 | EB67: -1921.58898 | EC67: 2319.32579 | EH67: 21.5 | EJ67: 236 | EQ67: -2042 | ER67: 16 | ES67: 2065 | ET67: -2233 | EU67: 1.045 | EV67: 148.27 | EW67: -2349.50982 | EX67: 42.42983 | EY67: 835.76088 | EZ67: 883 | FA67: -2831 | FB67: 1370.336 | FC67: -1508.131 | FD67: 841.2608 | FE67: -2865.49078 | FF67: 27831 | FG67: 17499 | FH67: 10332 | FI67: 507 | FJ67: 25635.712 | FK67: 16848.899 | FL67: 8786.813 | FM67: 402.793 | FN67: 21700.89295 | FO67: 15617.51159 | FP67: 6083.38136 | FQ67: 298.62663 | FR67: 1154 | FU67: 171 | FV67: 0 | FW67: 1279.597
A68: 214 | B68: Kankaanpää | C68: 11163 | E68: 1.824542324 | F68: 77.70974133 | G68: -7939.89071 | K68: 27.71546766 | L68: 845.1133208 | M68: 22.42328931 | N68: 13756.51707 | P68: 71156 | Q68: 126380 | R68: 101 | S68: -55123 | T68: 40372 | U68: 33329 | X68: 337 | Y68: 822 | Z68: 19737 | AA68: 8913 | AB68: 0 | AD68: 10824 | AE68: -3274 | AF68: 0 | AG68: 12 | AH68: -48 | AI68: 7490 | AJ68: 9686 | AK68: 19311 | AM68: -4185 | AN68: -10639 | AO68: 5454 | AT68: 21.75 | AV68: 11 | AW68: 12662 | AY68: 1.49238349 | AZ68: 74.89127749 | BA68: -7705.949461 | BE68: 28.17607896 | BF68: 1124.721673 | BG68: 28.41795248 | BH68: 14445.91797 | BJ68: 80363.50573 | BK68: 150004.2697 | BL68: -80.78784 | BM68: -69721.55179 | BN68: 49811.81721 | BO68: 36011.437 | BR68: -320.81543 | BS68: 1069.7041 | BT68: 16850.59109 | BU68: 12156.80985 | BV68: 0 | BX68: 4693.78124 | BY68: -392.75446 | BZ68: 0 | CA68: 2.96521 | CB68: -245.80534 | CC68: 4052.25623 | CD68: 17516.16495 | CE68: 17063.57626 | CG68: 3505.76907 | CH68: -11175.16529 | CI68: 1109.84211 | CN68: 21.75 | CP68: 39 | CQ68: 12528 | CS68: 0.7313554241 | CT68: 73.5267665 | CU68: -8095.275934 | CY68: 25.1030761 | CZ68: 817.1046368 | DA68: 19.01208659 | DB68: 15687.03104 | DD68: 82517.81123 | DE68: 159395.2213 | DF68: -52.47732 | DG68: -76929.88736 | DH68: 50044.24247 | DI68: 37714.949 | DL68: -619.87592 | DM68: 1099.57142 | DN68: 11308.99961 | DO68: 10194.45867 | DP68: 498.17268 | DR68: 1612.71362 | DS68: 17.42395 | DT68: 0 | DU68: 2.87338 | DV68: -130.47068 | DW68: 1496.79351 | DX68: 18557.11135 | DY68: 11789.1677 | EA68: -899.44077 | EB68: -15696.82015 | EC68: -2608.2298 | EH68: 21.75 | EJ68: 102 | EQ68: -15884 | ER68: 227 | ES68: 1800 | ET68: -21316.96268 | EU68: 320.05435 | EV68: 5043.17418 | EW68: -20609.59597 | EX68: 549.37798 | EY68: 5662.82049 | EZ68: 11297 | FA68: 954 | FB68: 10089.93506 | FC68: -1046.78632 | FD68: 13262.81672 | FE68: 1086.51023 | FF68: 79892 | FG68: 65193 | FH68: 14699 | FI68: 0 | FJ68: 80998.45622 | FK68: 65708.58513 | FL68: 15289.87109 | FM68: 0 | FN68: 79650.96303 | FO68: 62211.45503 | FP68: 17439.508 | FQ68: 0 | FR68: 1486 | FU68: 18001 | FV68: 18773.93616 | FW68: 19525.62141
A69: 216 | B69: Kannonkoski | C69: 1323 | E69: 0.1265658045 | F69: 73.18220372 | G69: -9321.239607 | K69: 39.1375874 | L69: 3880.574452 | M69: 56.57940821 | N69: 25034.01361 | P69: 15268 | Q69: 24636 | R69: 0 | S69: -9369 | T69: 4314 | U69: 6333 | X69: -8 | Y69: -509 | Z69: 761 | AA69: 1284 | AB69: 0 | AD69: -523 | AE69: 10 | AF69: 0 | AG69: 0 | AH69: 0 | AI69: -513 | AJ69: 8073 | AK69: -1001 | AM69: -41 | AN69: -6131 | AO69: -2614 | AT69: 21 | AV69: 278 | AW69: 1311 | AY69: 1.500051274 | AZ69: 70.98170136 | BA69: -8903.832456 | BE69: 36.57525227 | BF69: 4330.828551 | BG69: 73.69741239 | BH69: 21449.22555 | BJ69: 16354.97934 | BK69: 26750.49908 | BL69: 0.4338 | BM69: -10395.08594 | BN69: 4996.2152 | BO69: 6002.338 | BR69: -43.62387 | BS69: 181.14292 | BT69: 740.98631 | BU69: 1378.11776 | BV69: 113 | BX69: -524.13145 | BY69: 9.31972 | BZ69: 1.04112 | CA69: 0 | CB69: 0 | CC69: -513.77061 | CD69: 7549.14159 | CE69: 825.98631 | CG69: 64.71056 | CH69: -476.88624 | CI69: 581.54128 | CN69: 21.5 | CP69: 259 | CQ69: 1269 | CS69: 1.9 | CT69: 63.7 | CU69: -8583 | CY69: 32.4 | CZ69: 4708 | DA69: 72 | DB69: 23974 | DD69: 18832 | DE69: 29502 | DF69: 90 | DG69: -10579 | DH69: 4958 | DI69: 6449 | DL69: -92 | DM69: 129 | DN69: 865 | DO69: 1564 | DP69: 100 | DR69: -599 | DS69: -9 | DT69: 2 | DU69: 0 | DV69: -5 | DW69: -611 | DX69: 6903 | DY69: 1165 | EA69: -790 | EB69: -405 | EC69: 798 | EH69: 21.5 | EJ69: 177 | EQ69: -1688 | ER69: 0 | ES69: 75 | ET69: -772.54835 | EU69: 0 | EV69: 528.10332 | EW69: -403 | EX69: 7 | EY69: 29 | EZ69: 2717 | FA69: 5893 | FB69: 739.02 | FC69: -826.8447 | FD69: 388 | FE69: -5 | FF69: 15737 | FG69: 7699 | FH69: 8038 | FI69: 49 | FJ69: 15735.56956 | FK69: 8027.23754 | FL69: 7708.33202 | FM69: 0 | FN69: 15002 | FO69: 7695 | FP69: 7307 | FQ69: 0 | FR69: 88 | FU69: 266 | FV69: 4287.02561 | FW69: 1064.18786
A70: 217 | B70: Kannus | C70: 5426 | E70: 4.906655844 | F70: 63.47554479 | G70: -5402.137855 | K70: 39.10386965 | L70: 1885.366753 | M70: 53.385614 | N70: 12890.34279 | P70: 30543 | Q70: 62726 | R70: 216 | S70: -31967 | T70: 19290 | U70: 18680 | X70: -124 | Y70: 24 | Z70: 5903 | AA70: 3377 | AB70: 0 | AD70: 2526 | AE70: -65 | AF70: -48 | AG70: 6 | AH70: -64 | AI70: 2343 | AJ70: 14381 | AK70: 5585 | AM70: 604 | AN70: -1090 | AO70: 485 | AT70: 21.5 | AV70: 106 | AW70: 5390 | AY70: 0.6675738748 | AZ70: 60.50271908 | BA70: -5801.831449 | BE70: 37.86987321 | BF70: 1380.152755 | BG70: 34.86296387 | BH70: 14449.59635 | BJ70: 33845.62076 | BK70: 70075.39054 | BL70: 428.78994 | BM70: -35800.97984 | BN70: 19961.53972 | BO70: 18136.67387 | BR70: -2.45364 | BS70: 52.00323 | BT70: 2346.78334 | BU70: 3390.16362 | BV70: 0 | BX70: -1043.38028 | BY70: -36.71087 | BZ70: 42.47355 | CA70: 30.2534 | CB70: -5.488 | CC70: -1073.35901 | CD70: 13266.1909 | CE70: 1928.76173 | CG70: -869.7592 | CH70: -3543.69843 | CI70: -1462.35638 | CN70: 21.5 | CP70: 277 | CQ70: 5352 | CS70: 0.9932245884 | CT70: 63.8090045 | CU70: -6730.651958 | CY70: 33.06845124 | CZ70: 1228.12147 | DA70: 28.6358182 | DB70: 15653.97341 | DD70: 36483.07411 | DE70: 75443.41914 | DF70: 594.56519 | DG70: -38365.77984 | DH70: 20804.98864 | DI70: 19407.74007 | DL70: -145.43146 | DM70: 61.13922 | DN70: 1762.65663 | DO70: 3506.30737 | DP70: 0 | DR70: -1743.65074 | DS70: -40.91001 | DT70: 25.87765 | DU70: 19.35565 | DV70: 11.96665 | DW70: -1766.07209 | DX70: 11399.34403 | DY70: 1555.87474 | EA70: -1526.39175 | EB70: -1775.74583 | EC70: -4701.22301 | EH70: 21.5 | EJ70: 271 | EQ70: -5973 | ER70: 36 | ES70: 837 | ET70: -4194.19912 | EU70: 108.23424 | EV70: 694.84677 | EW70: -6371.58328 | EX70: 22.2936 | EY70: 92.19193 | EZ70: 1821 | FA70: -1835 | FB70: 4556.66 | FC70: -1247.28274 | FD70: 3816.1 | FE70: 1463.17057 | FF70: 28025 | FG70: 11753 | FH70: 16272 | FI70: 32 | FJ70: 27790.99653 | FK70: 12415.1319 | FL70: 15375.86463 | FM70: 10.88 | FN70: 31294.52127 | FO70: 14560.68926 | FP70: 16733.83201 | FQ70: 5.44 | FR70: 1430 | FU70: 1450 | FV70: 1128.7941 | FW70: 1180.23284
A71: 218 | B71: Karijoki | C71: 1207 | E71: 5.442159383 | F71: 31.5818227 | G71: -1716.652858 | K71: 48.59101869 | L71: 2399.3372 | M71: 55.70404722 | N71: 15721.62386 | P71: 9884 | Q71: 18031 | R71: 1 | S71: -8146 | T71: 4144 | U71: 6107 | X71: -33 | Y71: 11 | Z71: 2083 | AA71: 581 | AB71: 0 | AD71: 1502 | AE71: 0 | AF71: 0 | AG71: 0 | AH71: 0 | AI71: 1502 | AJ71: 1926 | AK71: 2062 | AM71: -48 | AN71: -355 | AO71: 1522 | AT71: 22 | AV71: 12 | AW71: 1192 | AY71: 2.443995501 | AZ71: 27.57797574 | BA71: -1134.227416 | BE71: 53.89874632 | BF71: 2524.57219 | BG71: 55.49778059 | BH71: 16603.7063 | BJ71: 10156.63893 | BK71: 18912.4972 | BL71: -1.81535 | BM71: -8757.67362 | BN71: 4185.28751 | BO71: 5711.96211 | BR71: -22.45323 | BS71: -0.24856 | BT71: 1116.87421 | BU71: 533.43901 | BV71: 0 | BX71: 583.4352 | BY71: 0.16298 | BZ71: 0.72968 | CA71: 1e-05 | CB71: -0.65384 | CC71: 583.67401 | CD71: 2506.61869 | CE71: 1113.41473 | CG71: 208.63911 | CH71: -443.56019 | CI71: 743.32567 | CN71: 22.5 | CP71: 124 | CQ71: 1200 | CS71: 1.875668922 | CT71: 27.88271801 | CU71: -653.3589 | CY71: 54.02090194 | CZ71: 3069.598242 | DA71: 65.41844268 | DB71: 17126.72012 | DD71: 10448.93719 | DE71: 19818.67327 | DF71: 0.19781 | DG71: -9369.53827 | DH71: 4272.35939 | DI71: 5925.74467 | DL71: -26.52653 | DM71: 4.76798 | DN71: 806.80724 | DO71: 545.52309 | DP71: 0 | DR71: 261.28415 | DS71: 2.0709 | DT71: 0 | DU71: 1.79929 | DV71: 1.25882 | DW71: 262.81458 | DX71: 2784.29546 | DY71: 802.62501 | EA71: -131.97551 | EB71: -417.62885 | EC71: 539.86135 | EH71: 22.5 | EJ71: 185 | EQ71: -551 | ER71: 5 | ES71: 6 | ET71: -396.95048 | EU71: 13.39681 | EV71: 13.46461 | EW71: -279.79377 | EX71: 7.38286 | EY71: 9.64725 | EZ71: 808 | FA71: 312 | FB71: 77.88107 | FC71: -400.17121 | FD71: 30.09686 | FE71: 56.44793 | FF71: 4161 | FG71: 3294 | FH71: 867 | FI71: 0 | FJ71: 3355.89445 | FK71: 2909.62669 | FL71: 446.26776 | FM71: 11.0306 | FN71: 3024.90087 | FO71: 2612.56877 | FP71: 412.3321 | FQ71: 10.82045 | FR71: 65 | FU71: 494 | FV71: 451.021 | FW71: 964.623
A72: 224 | B72: Karkkila | C72: 8696 | E72: 1.839358521 | F72: 72.14642999 | G72: -7355.335787 | K72: 9.558447215 | L72: 1267.709292 | M72: 35.11073105 | N72: 13178.70285 | P72: 55275 | Q72: 106252 | R72: -2 | S72: -50979 | T72: 31965 | U72: 25715 | X72: -423 | Y72: 54 | Z72: 6332 | AA72: 4511 | AB72: 0 | AD72: 1821 | AE72: -73 | AF72: 0 | AG72: 1 | AH72: 0 | AI72: 1747 | AJ72: 223 | AK72: 5867 | AM72: -953 | AN72: -3244 | AO72: 1725 | AT72: 20.75 | AV72: 249 | AW72: 8717 | AY72: 0.5485205865 | AZ72: 65.3418295 | BA72: -7026.000052 | BE72: 10.60490419 | BF72: 1072.11896 | BG72: 26.67463392 | BH72: 14670.2452 | BJ72: 62327.93021 | BK72: 112029.5386 | BL72: 2.15756 | BM72: -49699.45081 | BN72: 34285.78231 | BO72: 20814.595 | BR72: -258.44454 | BS72: 43.80245 | BT72: 5186.28442 | BU72: 4132.59295 | BV72: 0 | BX72: 1053.69147 | BY72: -6.84164 | BZ72: -2.633 | CA72: 4.40474 | CB72: -0.42717 | CC72: 1039.38491 | CD72: 1428.81734 | CE72: 4968.8815 | CG72: 368.3561 | CH72: -9676.27159 | CI72: 434.69117 | CN72: 21.25 | CP72: 251 | CQ72: 8603 | CS72: 0.7563624169 | CT72: 63.99078297 | CU72: -7026.991296 | CY72: 13.55503393 | CZ72: 1156.979992 | DA72: 28.62683348 | DB72: 14751.8131 | DD72: 62631.55246 | DE72: 113355.0555 | DF72: -35.40374 | DG72: -50758.90679 | DH72: 35387.7415 | DI72: 22198.173 | DL72: -233.95926 | DM72: 122.01863 | DN72: 6715.06709 | DO72: 4118.8936 | DP72: 0 | DR72: 2596.17349 | DS72: 1.50963 | DT72: -1.77566 | DU72: 4.98548 | DV72: -1.77135 | DW72: 2589.15063 | DX72: 3988.95514 | DY72: 6361.01555 | EA72: -339.35192 | EB72: -8969.67439 | EC72: 2798.3818 | EH72: 21.25 | EJ72: 136 | EQ72: -4581 | ER72: 73 | ES72: 366 | ET72: -5750.29433 | EU72: 10.91323 | EV72: 1205.19076 | EW72: -4120.95022 | EX72: 14.76866 | EY72: 543.54781 | EZ72: 10332 | FA72: -6647 | FB72: 2163.28736 | FC72: 5964.73429 | FD72: 1317.6 | FE72: 3520.13978 | FF72: 66330 | FG72: 46970 | FH72: 19360 | FI72: 2 | FJ72: 64730.25742 | FK72: 39333.20008 | FL72: 25397.05734 | FM72: 0.11819 | FN72: 60670.58375 | FO72: 31656.89339 | FP72: 29013.69036 | FQ72: 0 | FR72: 142 | FU72: 5765 | FV72: 4893.32643 | FW72: 5046.82532
A73: 226 | B73: Karstula | C73: 3858 | E73: 3.953051643 | F73: 56.48504173 | G73: -5258.683256 | K73: 28.91122862 | L73: 3329.963712 | M73: 73.62697839 | N73: 16508.03525 | P73: 34039 | Q73: 58983 | R73: 0 | S73: -24944 | T73: 12663 | U73: 17276 | X73: 10 | Y73: -5 | Z73: 5000 | AA73: 2787 | AB73: 0 | AD73: 2213 | AE73: -49 | AF73: -1 | AG73: 46 | AH73: -5 | AI73: 2112 | AJ73: 327 | AK73: 757 | AM73: 795 | AN73: -1226 | AO73: -2104 | AT73: 21.5 | AV73: 53 | AW73: 3774 | AY73: 8.357617373 | AZ73: 53.45904778 | BA73: -5091.261691 | BE73: 30.85751405 | BF73: 3499.681169 | BG73: 70.72287158 | BH73: 18061.81788 | BJ73: 36514.94914 | BK73: 61894.15766 | BL73: 0 | BM73: -25379.20852 | BN73: 14060.20644 | BO73: 16338.34022 | BR73: -31.127 | BS73: 141.73856 | BT73: 5129.9497 | BU73: 3625.916 | BV73: 221 | BX73: 1725.0337 | BY73: -100.71002 | BZ73: 0.92879 | CA73: 97.69714 | CB73: -1.794 | CC73: 1525.76133 | CD73: 1932.31822 | CE73: 5390.04804 | CG73: 17.12388 | CH73: -527.76717 | CI73: 1417.7823 | CN73: 21.5 | CP73: 34 | CQ73: 3665 | CS73: 6.192341396 | CT73: 52.66051394 | CU73: -5633.081716 | CY73: 30.2447992 | CZ73: 3174.248396 | DA73: 57.69858568 | DB73: 20080.22642 | DD73: 39930.66066 | DE73: 67026.50706 | DF73: 0 | DG73: -27095.8464 | DH73: 14232.79881 | DI73: 17656.07673 | DL73: -147.67689 | DM73: 128.96319 | DN73: 4774.31544 | DO73: 3072.18477 | DP73: 194.93276 | DR73: 1897.06343 | DS73: -40.10516 | DT73: 0.58872 | DU73: 43.85658 | DV73: -8.5132 | DW73: 1805.17721 | DX73: 3083.66275 | DY73: 4248.13145 | EA73: -1716.54027 | EB73: -638.91818 | EC73: -1376.93625 | EH73: 21.5 | EJ73: 38 | EQ73: -3372 | ER73: 273 | ES73: 238 | ET73: -5621.81265 | EU73: 121.94166 | EV73: 1527.60525 | EW73: -5758.5478 | EX73: 17.66392 | EY73: 115.81618 | EZ73: 997 | FA73: 1530 | FB73: 1514.37176 | FC73: -1258.87844 | FD73: 166.74824 | FE73: 19.79043 | FF73: 27790 | FG73: 13009 | FH73: 14781 | FI73: 234 | FJ73: 27456.43258 | FK73: 13825.20912 | FL73: 13631.22346 | FM73: 55.69614 | FN73: 27075.7197 | FO73: 13589.31397 | FP73: 13486.40573 | FQ73: 126.30382 | FR73: 1101 | FU73: 3373 | FV73: 15785.61384 | FW73: 19101.49651
A74: 230 | B74: Karvia | C74: 2322 | E74: 4.992957746 | F74: 49.9082522 | G74: -5021.102498 | K74: 57.07553316 | L74: 1371.231697 | M74: 30.63636843 | N74: 16336.77864 | P74: 22804 | Q74: 33096 | R74: 26 | S74: -10266 | T74: 6892 | U74: 9542 | X74: 220 | Y74: -86 | Z74: 6302 | AA74: 2478 | AB74: 0 | AD74: 3824 | AE74: -1349 | AF74: 0 | AG74: 4 | AH74: -32 | AI74: 2440 | AJ74: 14085 | AK74: 6236 | AM74: -1679 | AN74: -1199 | AO74: 2876 | AT74: 20.5 | AV74: 1 | AW74: 2290 | AY74: 4.62992441 | AZ74: 52.49744568 | BA74: -5321.501323 | BE74: 57.32324742 | BF74: 1728.662633 | BG74: 36.79963444 | BH74: 17145.87307 | BJ74: 21480.71604 | BK74: 34189.94004 | BL74: 0 | BM74: -12709.224 | BN74: 7551.24332 | BO74: 9064.53576 | BR74: -53.25829 | BS74: 13.73093 | BT74: 3867.02772 | BU74: 2574.73217 | BV74: 0 | BX74: 1292.29555 | BY74: -321.7905 | BZ74: 0 | CA74: 5.70955 | CB74: -99.13822 | CC74: 865.65728 | CD74: 15481.72228 | CE74: 4146.84777 | CG74: 857.02696 | CH74: -786.66323 | CI74: 71.32741 | CN74: 20.5 | CP74: 13 | CQ74: 2240 | CS74: 2.469291632 | CT74: 52.79878762 | CU74: -5938.453915 | CY74: 46.05568442 | CZ74: 1590.509179 | DA74: 32.89557681 | DB74: 17647.83921 | DD74: 22539.18492 | DE74: 36439.31633 | DF74: 0 | DG74: -13900.13141 | DH74: 7472.54225 | DI74: 9320.44011 | DL74: -57.56013 | DM74: -539.48136 | DN74: 2295.80946 | DO74: 2834.38464 | DP74: 0 | DR74: -538.57518 | DS74: 14.86373 | DT74: 0 | DU74: 9.20991 | DV74: -18.71242 | DW74: -551.63378 | DX74: 15019.77238 | DY74: 2282.28823 | EA74: -47.05926 | EB74: -888.49991 | EC74: -890.12318 | EH74: 20.5 | EJ74: 77 | EQ74: -3452 | ER74: 7 | ES74: 85 | ET74: -4210.3345 | EU74: 55.69107 | EV74: 79.12307 | EW74: -1554.65335 | EX74: 4.59417 | EY74: -1622.35223 | EZ74: 79 | FA74: 465 | FB74: 248.07739 | FC74: 388.07681 | FD74: 270.99941 | FE74: 342.61412 | FF74: 8052 | FG74: 6363 | FH74: 1689 | FI74: 0 | FJ74: 7768.49798 | FK74: 5704.81439 | FL74: 2063.68359 | FM74: 0 | FN74: 7626.61182 | FO74: 5197.23456 | FP74: 2429.37726 | FQ74: 0 | FR74: 225 | FU74: 700 | FV74: 696.14053 | FW74: 1379.65093
A75: 231 | B75: Kaskinen | C75: 1278 | E75: 0.5260514752 | F75: 67.16182233 | G75: -6780.125196 | K75: 45.71721981 | L75: 947.5743349 | M75: 23.10223175 | N75: 14971.04851 | P75: 8018 | Q75: 16271 | R75: -1 | S75: -8254 | T75: 6396 | U75: 2685 | X75: -65 | Y75: 9 | Z75: 771 | AA75: 1625 | AB75: 22 | AD75: -832 | AE75: 0 | AF75: 0 | AG75: 28 | AH75: -4 | AI75: -864 | AJ75: 5055 | AK75: 734 | AM75: -116 | AN75: -1526 | AO75: -346 | AT75: 22 | AV75: 271 | AW75: 1289 | AY75: 0.6542992697 | AZ75: 70.94218797 | BA75: -7959.564313 | BE75: 40.89729734 | BF75: 556.3293794 | BG75: 12.53898541 | BH75: 16194.31053 | BJ75: 8265.58425 | BK75: 17540.01632 | BL75: 0 | BM75: -9274.43207 | BN75: 7207.2165 | BO75: 2440.706 | BR75: -57.59324 | BS75: 10.74747 | BT75: 326.64466 | BU75: 1199.36984 | BV75: 1.80864 | BX75: -870.91654 | BY75: 0 | BZ75: 0 | CA75: 59.41357 | CB75: -9.80403 | CC75: -940.13414 | CD75: 4111.97042 | CE75: 276.35711 | CG75: -47.28969 | CH75: -530.781 | CI75: -1633.98292 | CN75: 22 | CP75: 288 | CQ75: 1256 | CS75: 1.363456527 | CT75: 61.83354844 | CU75: -7604.374029 | CY75: 39.35247806 | CZ75: 737.7875239 | DA75: 14.77037477 | DB75: 18231.9305 | DD75: 11250.19371 | DE75: 20633.69117 | DF75: 0 | DG75: -9383.49746 | DH75: 7419.00876 | DI75: 3184.91485 | DL75: -35.53517 | DM75: -12.5481 | DN75: 1172.34288 | DO75: 1193.39435 | DP75: 0 | DR75: -21.05147 | DS75: 0 | DT75: -15 | DU75: 0 | DV75: 1.00465 | DW75: -35.04682 | DX75: 4081.29124 | DY75: 593.87176 | EA75: -1253.15672 | EB75: -846.67161 | EC75: 979.61847 | EH75: 23 | EJ75: 92 | EQ75: -1264 | ER75: 0 | ES75: 184 | ET75: -2729.01658 | EU75: 816.77243 | EV75: 1.90412 | EW75: -1331.64982 | EX75: 22.65565 | EY75: 1694.74088 | EZ75: 7834 | FA75: -4571 | FB75: 421.2 | FC75: 1311.49001 | FD75: 538.6405 | FE75: 680.81848 | FF75: 9194 | FG75: 7888 | FH75: 1306 | FI75: 0 | FJ75: 10325.17039 | FK75: 7742.86161 | FL75: 2582.30878 | FM75: 0.43231 | FN75: 10810.43401 | FO75: 7708.87758 | FP75: 3101.55643 | FQ75: 0.43159 | FR75: 2100 | FU75: 3677 | FV75: 3347.63176 | FW75: 2921.76867
A76: 232 | B76: Kauhajoki | C76: 13007 | E76: 1.270483923 | F76: 76.76676649 | G76: -7188.590759 | K76: 26.38704761 | L76: 2751.902822 | M76: 66.69156045 | N76: 15061.04405 | P76: 85698 | Q76: 171231 | R76: 187 | S76: -85346 | T76: 46156 | U76: 50131 | X76: -1075 | Y76: 949 | Z76: 10815 | AA76: 9204 | AB76: 0 | AD76: 1611 | AE76: -17 | AF76: 0 | AG76: 0 | AH76: -9 | AI76: 1585 | AJ76: 4778 | AK76: 10413 | AM76: 7840 | AN76: -8283 | AO76: -4014 | AT76: 22 | AV76: 215 | AW76: 12890 | AY76: 1.458984618 | AZ76: 72.42988385 | BA76: -7010.194772 | BE76: 27.64149034 | BF76: 2840.473739 | BG76: 66.71795299 | BH76: 15539.63916 | BJ76: 93477.12953 | BK76: 180404.3844 | BL76: 146.09801 | BM76: -86781.15689 | BN76: 49370.24891 | BO76: 48714.66813 | BR76: -756.83385 | BS76: 2603.08273 | BT76: 13150.00903 | BU76: 10040.99105 | BV76: 0 | BX76: 3109.01798 | BY76: -28.59573 | BZ76: 3.8103 | CA76: 0 | CB76: -33.20923 | CC76: 3051.02332 | CD76: 7683.41266 | CE76: 12679.34624 | CG76: 5263.80413 | CH76: -8772.44685 | CI76: 3304.38756 | CN76: 22 | CP76: 97 | CQ76: 12750 | CS76: 1.123289821 | CT76: 71.44095924 | CU76: -7093.884078 | CY76: 27.48270079 | CZ76: 2626.803526 | DA76: 59.5827067 | DB76: 16091.63699 | DD76: 90649.68796 | DE76: 182116.8575 | DF76: 137.26591 | DG76: -91329.90361 | DH76: 51274.96557 | DI76: 51865.67558 | DL76: -926.36287 | DM76: 173.11125 | DN76: 11057.48592 | DO76: 9816.62671 | DP76: 0 | DR76: 1240.85921 | DS76: 5.95828 | DT76: -0.01596 | DU76: 0 | DV76: -50.79985 | DW76: 1196.00168 | DX76: 8907.19638 | DY76: 10783.47911 | EA76: 2669.28248 | EB76: -9739.45733 | EC76: 162.344 | EH76: 22 | EJ76: 116 | EQ76: -14696 | ER76: 0 | ES76: 269 | ET76: -9877.55541 | EU76: 73.78194 | EV76: 428.81479 | EW76: -10946.35798 | EX76: 77.95125 | EY76: 247.27162 | EZ76: 6238 | FA76: 4663 | FB76: 8111.15354 | FC76: -2.44264 | FD76: 8749.576 | FE76: -2142.16079 | FF76: 111062 | FG76: 92283 | FH76: 18779 | FI76: 152 | FJ76: 110397.7443 | FK76: 91339.79064 | FL76: 19057.95371 | FM76: 230.67151 | FN76: 107308.8665 | FO76: 90144.562 | FP76: 17164.30453 | FQ76: 229.6221 | FR76: 2499 | FU76: 7126 | FV76: 6480.334 | FW76: 10063.527
A77: 233 | B77: Kauhava | C77: 15514 | E77: 1.313018163 | F77: 87.27723946 | G77: -7911.177001 | K77: 25.66505659 | L77: 2402.6041 | M77: 64.45397738 | N77: 13605.83989 | P77: 78880 | Q77: 177728 | R77: 24 | S77: -98824 | T77: 54371 | U77: 65000 | X77: -878 | Y77: 44 | Z77: 19713 | AA77: 12861 | AB77: 0 | AD77: 6852 | AE77: 210 | AF77: 240 | AG77: 206 | AH77: 0 | AI77: 7096 | AJ77: 17658 | AK77: 19067 | AM77: 8012 | AN77: -14767 | AO77: -51 | AT77: 21.75 | AV77: 58 | AW77: 15312 | AY77: 1.462441356 | AZ77: 92.61789608 | BA77: -8675.743593 | BE77: 26.06902447 | BF77: 2518.388189 | BG77: 61.59639715 | BH77: 14923.1405 | BJ77: 82889.14541 | BK77: 182312.8867 | BL77: -21.32417 | BM77: -99445.06546 | BN77: 56830.95802 | BO77: 62898.38349 | BR77: -574.94504 | BS77: -148.85645 | BT77: 19560.47456 | BU77: 12371.11528 | BV77: 0 | BX77: 7189.35928 | BY77: -331.23905 | BZ77: 197.29029 | CA77: 418.30519 | CB77: -7.37719 | CC77: 6629.72814 | CD77: 23835.12226 | CE77: 18669.40159 | CG77: 245.01032 | CH77: -13141.7058 | CI77: -10529.3275 | CN77: 21.75 | CP77: 46 | CQ77: 15116 | CS77: 1.429351645 | CT77: 94.15187774 | CU77: -9543.190922 | CY77: 25.16048739 | CZ77: 2383.124956 | DA77: 56.65852612 | DB77: 15352.33386 | DD77: 82617.85674 | DE77: 187765.896 | DF77: -12.78572 | DG77: -105160.825 | DH77: 59012.64153 | DI77: 64413.19323 | DL77: -696.63681 | DM77: 159.47733 | DN77: 17727.85028 | DO77: 13277.84257 | DP77: 0 | DR77: 4450.00771 | DS77: -286.4766 | DT77: 144.77218 | DU77: 317.26225 | DV77: 6.25321 | DW77: 3997.29425 | DX77: 25596.65659 | DY77: 17168.79704 | EA77: 6954.18446 | EB77: -12105.0986 | EC77: -10428.05037 | EH77: 21.75 | EJ77: 52 | EQ77: -19579 | ER77: 183 | ES77: 278 | ET77: -30123.48528 | EU77: 100.219 | EV77: 824.53719 | EW77: -28151.51438 | EX77: 141.64899 | EY77: 413.01798 | EZ77: 19244 | FA77: 2792 | FB77: 24918.87767 | FC77: 4005.62619 | FD77: 14813.51445 | FE77: -2897.19406 | FF77: 143576 | FG77: 129048 | FH77: 14528 | FI77: 0 | FJ77: 155472.2814 | FK77: 144029.5852 | FL77: 11442.69618 | FM77: 21.2346 | FN77: 161329.663 | FO77: 145587.4664 | FP77: 15742.19655 | FQ77: 16.98768 | FR77: 3410 | FU77: 6786 | FV77: 3841.81808 | FW77: 55975.1029
A78: 235 | B78: Kauniainen | C78: 10178 | E78: 9.412177986 | F78: 37.40076398 | G78: -2153.173511 | K78: 70.11601771 | L78: 1717.626253 | M78: 55.28635544 | N78: 11339.75241 | P78: 43479 | Q78: 105166 | R78: -1 | S78: -61688 | T78: 69215 | U78: 4325 | X78: -70 | Y78: -33 | Z78: 11749 | AA78: 10709 | AB78: 0 | AD78: 1040 | AE78: -2 | AF78: 130 | AG78: 13 | AH78: 32 | AI78: 1187 | AJ78: 51476 | AK78: 10244 | AM78: 1427 | AN78: -973 | AO78: 2970 | AT78: 17 | AV78: 93 | AW78: 10396 | AY78: 9.172651617 | AZ78: 33.11674798 | BA78: -2054.078198 | BE78: 71.02033839 | BF78: 1335.604963 | BG78: 40.19756556 | BH78: 12127.4959 | BJ78: 47446.94297 | BK78: 113941.4272 | BL78: 1.93143 | BM78: -66492.55284 | BN78: 74694.61357 | BO78: 1742.05175 | BR78: -108.72826 | BS78: 6.04716 | BT78: 9841.43138 | BU78: 10520.69518 | BV78: 0 | BX78: -679.2638 | BY78: -5.58324 | BZ78: 144.94497 | CA78: 20.28974 | CB78: 35.04279 | CC78: -525.14902 | CD78: 51364.51194 | CE78: 9039.73918 | CG78: -1407.15152 | CH78: -772.06662 | CI78: -647.47425 | CN78: 17 | CP78: 119 | CQ78: 10284 | CS78: 20.69370983 | CT78: 32.58622572 | CU78: -1340.884339 | CY78: 71.55746598 | CZ78: 2410.58913 | DA78: 67.48975633 | DB78: 13037.01599 | DD78: 48822.10114 | DE78: 117201.1432 | DF78: -25.44362 | DG78: -68404.48565 | DH78: 87635.77097 | DI78: 3926.40975 | DL78: -147.80463 | DM78: 63.98406 | DN78: 23073.8745 | DO78: 10304.01532 | DP78: 0 | DR78: 12769.85918 | DS78: -34.26661 | DT78: -10071.15523 | DU78: 3.40616 | DV78: -19.10986 | DW78: 2641.92132 | DX78: 64455.07086 | DY78: 22233.24372 | EA78: -1371.73226 | EB78: -753.23942 | EC78: 7842.83226 | EH78: 17 | EJ78: 5 | EQ78: -8910 | ER78: 58 | ES78: 1578 | ET78: -10916.56496 | EU78: 272.86368 | EV78: 956.48785 | EW78: -15588.71206 | EX78: 186.12802 | EY78: 1012.17258 | EZ78: 2675 | FA78: 1743 | FB78: 2311.38185 | FC78: -4020.33407 | FD78: 2736.56406 | FE78: -25.79667 | FF78: 26115 | FG78: 20805 | FH78: 5310 | FI78: 4550 | FJ78: 22912.64233 | FK78: 21536.26141 | FL78: 1376.38092 | FM78: 4537.03576 | FN78: 25334.66409 | FO78: 24050.95912 | FP78: 1283.70497 | FQ78: 4886.70296 | FR78: 2810 | FU78: 4939 | FV78: 4742.434 | FW78: 4693.205
A79: 236 | B79: Kaustinen | C79: 4228 | E79: 1.294774547 | F79: 109.3847345 | G79: -12230.13245 | K79: 20.98344217 | L79: 1814.806055 | M79: 45.78012619 | N79: 14469.2526 | P79: 27057 | Q79: 52117 | R79: 120 | S79: -24940 | T79: 14546 | U79: 16502 | X79: -335 | Y79: 15 | Z79: 5788 | AA79: 3656 | AB79: 0 | AD79: 2132 | AE79: -7 | AF79: -39 | AG79: 1 | AH79: 0 | AI79: 2085 | AJ79: 4624 | AK79: 5771 | AM79: 80 | AN79: -4389 | AO79: 1629 | AT79: 22 | AV79: 41 | AW79: 4196 | AY79: 0.7920953526 | AZ79: 107.9864577 | BA79: -13051.10644 | BE79: 20.42840899 | BF79: 1032.602846 | BG79: 22.92830041 | BH79: 16438.20222 | BJ79: 29424.24066 | BK79: 56377.01227 | BL79: 229.9699 | BM79: -26722.80171 | BN79: 14961.31415 | BO79: 15567.43857 | BR79: -298.83405 | BS79: 47.16288 | BT79: 3554.27984 | BU79: 3591.89059 | BV79: 0 | BX79: -37.61075 | BY79: -7.18378 | BZ79: 40.57162 | CA79: 14.32665 | CB79: 0 | CC79: -18.54956 | CD79: 4579.95687 | CE79: 3536.43879 | CG79: -1470.03389 | CH79: -4573.48829 | CI79: -3756.46098 | CN79: 22 | CP79: 156 | CQ79: 4198 | CS79: 0.455473897 | CT79: 99.94341498 | CU79: -12953.10468 | CY79: 21.005825 | CZ79: 1044.581036 | DA79: 20.82335558 | DB79: 18309.82892 | DD79: 32265.76416 | DE79: 60473.44836 | DF79: 306.1559 | DG79: -27901.5283 | DH79: 15866.27162 | DI79: 17170.88146 | DL79: -371.8379 | DM79: 254.5573 | DN79: 5018.34418 | DO79: 3782.15438 | DP79: 0 | DR79: 1236.1898 | DS79: -7.80193 | DT79: 23.95416 | DU79: 2.86546 | DV79: 0 | DW79: 1249.47657 | DX79: 5547.43185 | DY79: 4857.4896 | EA79: -857.67396 | EB79: -11499.65062 | EC79: 520.98976 | EH79: 22 | EJ79: 49 | EQ79: -4260 | ER79: 25 | ES79: 93 | ET79: -7642.40153 | EU79: 137.97192 | EV79: 211.52984 | EW79: -4460.04471 | EX79: 24.96884 | EY79: 98.57603 | EZ79: 3452 | FA79: -6027 | FB79: 13859.4 | FC79: -789.56018 | FD79: 2659.2 | FE79: 9637.98359 | FF79: 51854 | FG79: 47785 | FH79: 4069 | FI79: 282 | FJ79: 52350.08281 | FK79: 48071.19583 | FL79: 4278.88698 | FM79: 310.61008 | FN79: 53147.61578 | FO79: 39230.74521 | FP79: 13916.87057 | FQ79: 306.51008 | FR79: 1404 | FU79: 1141 | FV79: 1101.73111 | FW79: 1300.63034
A80: 239 | B80: Keitele | C80: 2155 | E80: 3.64727955 | F80: 72.48040209 | G80: -6911.832947 | K80: 32.17491059 | L80: 1173.549884 | M80: 34.25430459 | N80: 12504.87239 | P80: 9861 | Q80: 24955 | R80: 43 | S80: -15051 | T80: 7469 | U80: 9331 | X80: -94 | Y80: 190 | Z80: 1845 | AA80: 1181 | AB80: -1 | AD80: 663 | AE80: -3 | AF80: 0 | AG80: 2 | AH80: -4 | AI80: 655 | AJ80: -106 | AK80: 1692 | AM80: 69 | AN80: -434 | AO80: 577 | AT80: 20.5 | AV80: 207 | AW80: 2095 | AY80: 2.340725575 | AZ80: 69.35455209 | BA80: -6646.867742 | BE80: 33.91282229 | BF80: 1376.842453 | BG80: 38.21010937 | BH80: 13152.21295 | BJ80: 10017.6036 | BK80: 25198.32666 | BL80: -158.94043 | BM80: -15339.66349 | BN80: 7964.86563 | BO80: 9232.03801 | BR80: -64.54343 | BS80: 174.37209 | BT80: 1967.06881 | BU80: 1443.92552 | BV80: 80.12909 | BX80: 603.27238 | BY80: -3.37297 | BZ80: 3.51413 | CA80: 1.14566 | CB80: -4.43345 | CC80: 597.83443 | CD80: 408.20234 | CE80: 2230.23353 | CG80: -165.85797 | CH80: -801.00453 | CI80: 925.13897 | CN80: 20.5 | CP80: 122 | CQ80: 2029 | CS80: 6.615238407 | CT80: 71.61613378 | CU80: -6793.993593 | CY80: 31.13158354 | CZ80: 1660.011833 | DA80: 43.85907337 | DB80: 13814.79983 | DD80: 10285.32133 | DE80: 25887.91775 | DF80: 20.12628 | DG80: -15582.47014 | DH80: 8109.00143 | DI80: 9161.32142 | DL80: -141.74032 | DM80: 267.17721 | DN80: 1813.2896 | DO80: 1539.24686 | DP80: 80.5866 | DR80: 354.62934 | DS80: -0.16454 | DT80: 0.26079 | DU80: 1.17847 | DV80: -1.22015 | DW80: 352.32697 | DX80: 689.3257 | DY80: 1815.83255 | EA80: -516.28325 | EB80: -150 | EC80: 106.53113 | EH80: 20.5 | EJ80: 108 | EQ80: -1434 | ER80: 100 | ES80: 219 | ET80: -1456.14015 | EU80: 68.24759 | EV80: 82.798 | EW80: -1841.47054 | EX80: 34.10814 | EY80: 98.06098 | EZ80: 408 | FA80: -1 | FB80: 173.51508 | FC80: 47.81712 | FD80: 699.2286 | FE80: -1213.36585 | FF80: 19405 | FG80: 11556 | FH80: 7849 | FI80: 0 | FJ80: 15547.60836 | FK80: 10446.8678 | FL80: 5100.74056 | FM80: 1.25307 | FN80: 14884.25357 | FO80: 10996.0964 | FP80: 3888.15717 | FQ80: 0.47061 | FR80: 869 | FU80: 972 | FV80: 1053.9991 | FW80: 1001.16
A81: 240 | B81: Kemi | C81: 20437 | E81: 1.140754871 | F81: 79.08078356 | G81: -7689.778343 | K81: 24.45174565 | L81: 1046.728972 | M81: 29.22437186 | N81: 13073.20057 | P81: 102685 | Q81: 229737 | R81: 97 | S81: -126955 | T81: 87774 | U81: 55903 | X81: -894 | Y81: -62 | Z81: 15766 | AA81: 14798 | AB81: -10 | AD81: 958 | AE81: -35 | AF81: -119 | AG81: 27 | AH81: -379 | AI81: 398 | AJ81: -2208 | AK81: 14315 | AM81: 3285 | AN81: -13700 | AO81: -7650 | AT81: 21.75 | AV81: 231 | AW81: 19982 | AY81: 1.000430573 | AZ81: 90.85123093 | BA81: -9351.95951 | BE81: 21.04208767 | BF81: 1208.216189 | BG81: 29.73911486 | BH81: 14828.91844 | BJ81: 108279.7799 | BK81: 238645.2925 | BL81: 82.46502 | BM81: -130283.0476 | BN81: 91635.48354 | BO81: 52739.323 | BR81: -931.59621 | BS81: 73.80085 | BT81: 13233.96358 | BU81: 15623.96893 | BV81: -3.15846 | BX81: -2393.16381 | BY81: -6.74565 | BZ81: 3.24641 | CA81: 106.73288 | CB81: -358.32109 | CC81: -2861.71702 | CD81: -5069.48972 | CE81: 12321.70799 | CG81: -2230.83922 | CH81: -13227.78763 | CI81: -30362.56265 | CN81: 21.75 | CP81: 221 | CQ81: 19499 | CS81: 0.6 | CT81: 107.8 | CU81: -9919 | CY81: 18.5 | CZ81: 1580 | DA81: 39 | DB81: 14915 | DD81: 86465 | DE81: 218300 | DF81: 116.66018 | DG81: -131718 | DH81: 90938.52328 | DI81: 55631.24 | DL81: -1608 | DM81: -91 | DN81: 13152 | DO81: 16115 | DP81: 2 | DR81: -2960 | DS81: -24.34611 | DT81: 0 | DU81: 304 | DV81: -404 | DW81: -3729 | DX81: -8798 | DY81: 8939 | EA81: -10898.477 | EB81: -22347.794 | EC81: -22068 | EH81: 21.75 | EJ81: 184 | EQ81: -22596 | ER81: 319 | ES81: 312 | ET81: -43248.6017 | EU81: 43.28562 | EV81: 521.04544 | EW81: -48180.227 | EX81: 15358.064 | EY81: 1814.009 | EZ81: 22596 | FA81: -753 | FB81: 52223.92678 | FC81: -6108.12889 | FD81: 67331.023 | FE81: -6862.747 | FF81: 160801 | FG81: 106143 | FH81: 54658 | FI81: 0 | FJ81: 189978.469 | FK81: 131695.1166 | FL81: 58283.35241 | FM81: 0.0003 | FN81: 216681 | FO81: 174714 | FP81: 41967 | FQ81: -289.34996 | FR81: 5956 | FU81: 1821 | FV81: 1654.082 | FW81: 3961
A82: 320 | B82: Kemijärvi | C82: 7191 | E82: 1.387010199 | F82: 98.50611556 | G82: -12614.37908 | K82: 34.04145937 | L82: 2175.079961 | M82: 42.77980517 | N82: 18557.91962 | P82: 55744 | Q82: 106752 | R82: 0 | S82: -51008 | T82: 29589 | U82: 33217 | X82: -626 | Y82: 889 | Z82: 12061 | AA82: 7370 | AB82: -3 | AD82: 4688 | AE82: -354 | AF82: -72 | AG82: 54 | AH82: -252 | AI82: 3956 | AJ82: 10424 | AK82: 11389 | AM82: 383 | AN82: -8456 | AO82: -3084 | AT82: 21.5 | AV82: 14 | AW82: 7105 | AY82: 1.691320239 | AZ82: 98.07047531 | BA82: -12432.59894 | BE82: 36.07490592 | BF82: 2500.546477 | BG82: 48.57288411 | BH82: 18790.30823 | BJ82: 58142.93834 | BK82: 107543.2294 | BL82: 0 | BM82: -49400.29102 | BN82: 30751.69907 | BO82: 31807.46936 | BR82: -502.85811 | BS82: 2852.39364 | BT82: 15508.41294 | BU82: 7816.62262 | BV82: 0.67752 | BX82: 7692.46784 | BY82: -650.35976 | BZ82: 101.60242 | CA82: 244.62619 | CB82: -242.92664 | CC82: 6656.15767 | CD82: 16538.55915 | CE82: 14910.80677 | CG82: -1151.77217 | CH82: -8859.19221 | CI82: 2669.82726 | CN82: 21.5 | CP82: 5 | CQ82: 6996 | CS82: 1.805065734 | CT82: 94.84812516 | CU82: -12634.36974 | CY82: 33.14780015 | CZ82: 2727.423901 | DA82: 47.89326181 | DB82: 20786.00801 | DD82: 61798.34861 | DE82: 114163.7086 | DF82: 0 | DG82: -52365.36001 | DH82: 31107.50906 | DI82: 33865.44995 | DL82: -789.62157 | DM82: 6092.09315 | DN82: 17910.07058 | DO82: 9230.49868 | DP82: 0.75447 | DR82: 8680.32637 | DS82: -108.9355 | DT82: 40.03242 | DU82: 238.6348 | DV82: -95.13798 | DW82: 8277.65051 | DX82: 24192.1049 | DY82: 17292.27455 | EA82: 20.14464 | EB82: -9557.54078 | EC82: 1067.15452 | EH82: 21.5 | EJ82: 4 | EQ82: -16147 | ER82: 502 | ES82: 1172 | ET82: -14552.04238 | EU82: 678.0605 | EV82: 1633.00237 | EW82: -17500.46266 | EX82: 900.58837 | EY82: 374.75426 | EZ82: 14893 | FA82: 140 | FB82: 10353.5 | FC82: 40.87431 | FD82: 9749.092 | FE82: 808.82874 | FF82: 75135 | FG82: 66408 | FH82: 8727 | FI82: 100 | FJ82: 75560.50846 | FK82: 66613.75144 | FL82: 8946.75702 | FM82: 100 | FN82: 74034.05999 | FO82: 65058.37013 | FP82: 8975.68986 | FQ82: 100 | FR82: 7589 | FU82: 1408 | FV82: 2025.47 | FW82: 2863.207
A83: 241 | B83: Keminmaa | C83: 7984 | E83: 1.789498921 | F83: 51.2310857 | G83: -3001.002004 | K83: 45.43939548 | L83: 1199.023046 | M83: 42.06721566 | N83: 10403.43186 | P83: 26881 | Q83: 71816 | R83: 0 | S83: -44935 | T83: 36162 | U83: 16196 | X83: -233 | Y83: 36 | Z83: 7226 | AA83: 3879 | AB83: 37 | AD83: 3384 | AE83: 0 | AF83: 4 | AG83: 0 | AH83: -144 | AI83: 3244 | AJ83: 8583 | AK83: 6940 | AM83: -701 | AN83: -3933 | AO83: 298 | AT83: 21.25 | AV83: 189 | AW83: 7904 | AY83: 1.932566248 | AZ83: 50.29959917 | BA83: -3275.217638 | BE83: 46.52053196 | BF83: 1311.257854 | BG83: 40.9684552 | BH83: 11682.38135 | BJ83: 30882.36238 | BK83: 77123.94306 | BL83: 0 | BM83: -46241.58068 | BN83: 38665.37889 | BO83: 15390.76197 | BR83: -227.7161 | BS83: 34.495 | BT83: 7621.33908 | BU83: 3933.75814 | BV83: 38.52743 | BX83: 3726.10837 | BY83: -0.01246 | BZ83: 4.24728 | CA83: 0 | CB83: -183.04003 | CC83: 3547.30316 | CD83: 11955.04141 | CE83: 7706.57593 | CG83: 292.01454 | CH83: -3829.64236 | CI83: -641.1251 | CN83: 21.25 | CP83: 116 | CQ83: 7771 | CS83: 1.272982526 | CT83: 43.07253427 | CU83: -3247.448538 | CY83: 49.57184389 | CZ83: 1006.662592 | DA83: 30.4666753 | DB83: 12060.12282 | DD83: 34195.40189 | DE83: 81973.88356 | DF83: 0 | DG83: -47778.48167 | DH83: 39069.47225 | DI83: 16188.481 | DL83: -159.08147 | DM83: -1719.99949 | DN83: 5600.39062 | DO83: 4319.20541 | DP83: 26.94061 | DR83: 1308.12582 | DS83: 0.14725 | DT83: 0.56969 | DU83: 0 | DV83: 103.15667 | DW83: 1411.99943 | DX83: 12433.30724 | DY83: 4687.31654 | EA83: 1451.30695 | EB83: -4362.7837 | EC83: 581.64493 | EH83: 21.25 | EJ83: 162 | EQ83: -7050 | ER83: 105 | ES83: 303 | ET83: -9964.58365 | EU83: 616.71567 | EV83: 1000.16695 | EW83: -4745.13354 | EX83: 424.77534 | EY83: 214.68659 | EZ83: 278 | FA83: -363 | FB83: 6431.81319 | FC83: 33.42999 | FD83: 1041.92313 | FE83: 761.36498 | FF83: 23980 | FG83: 18820 | FH83: 5160 | FI83: 20 | FJ83: 25450.062 | FK83: 20584.20441 | FL83: 4865.85759 | FM83: 20 | FN83: 22497.34414 | FO83: 17277.07693 | FP83: 5220.26721 | FQ83: 20 | FR83: 310 | FU83: 508 | FV83: 330.171 | FW83: 4.39816
A84: 322 | B84: Kemiönsaari | C84: 6609 | E84: 2.234554974 | F84: 48.62702213 | G84: -4228.627629 | K84: 49.87969328 | L84: 578.9075503 | M84: 19.06340864 | N84: 11084.1277 | P84: 27341 | Q84: 66520 | R84: 20 | S84: -39159 | T84: 23300 | U84: 24342 | X84: -324 | Y84: 48 | Z84: 8207 | AA84: 6833 | AB84: 0 | AD84: 1374 | AE84: -6 | AF84: 393 | AG84: 24 | AH84: -22 | AI84: 1716 | AJ84: 16313 | AK84: 8044 | AM84: -332 | AN84: -3491 | AO84: 6211 | AT84: 19.75 | AV84: 62 | AW84: 6614 | AY84: 2.487557666 | AZ84: 43.80549421 | BA84: -4336.354754 | BE84: 52.50546395 | BF84: 1005.305877 | BG84: 32.1899498 | BH84: 11399.10585 | BJ84: 29851.72755 | BK84: 69393.44646 | BL84: 27.46649 | BM84: -39514.25241 | BN84: 24472.24771 | BO84: 23145.774 | BR84: -258.56276 | BS84: 21.7341 | BT84: 7866.94064 | BU84: 4843.20836 | BV84: 0 | BX84: 3023.73228 | BY84: -0.49902 | BZ84: -196.32529 | CA84: 41.72902 | CB84: -17.57061 | CC84: 2767.60834 | CD84: 19043.45976 | CE84: 7822.2824 | CG84: -494.22411 | CH84: -3003.65783 | CI84: 5326.86847 | CN84: 19.75 | CP84: 61 | CQ84: 6549 | CS84: 2.108383492 | CT84: 45.09238587 | CU84: -3266.251481 | CY84: 51.15405426 | CZ84: 1547.135106 | DA84: 44.30707547 | DB84: 12745.24007 | DD84: 28911.18647 | DE84: 73034.10743 | DF84: -13.08742 | DG84: -44136.00839 | DH84: 26433.16905 | DI84: 25120.847 | DL84: -327.44046 | DM84: 81.92984 | DN84: 7172.49705 | DO84: 5830.1071 | DP84: 0 | DR84: 1342.38995 | DS84: -5.19361 | DT84: 0 | DU84: 0.18096 | DV84: 3.97054 | DW84: 1341.34784 | DX84: 20583.28174 | DY84: 7179.44659 | EA84: 529.36563 | EB84: -3228.96424 | EC84: 599.15861 | EH84: 19.75 | EJ84: 64 | EQ84: -2633 | ER84: 456 | ES84: 344 | ET84: -2714.83335 | EU84: 118.22542 | EV84: 101.194 | EW84: -6852.88597 | EX84: 225.87521 | EY84: 46.72278 | EZ84: 103 | FA84: -2981 | FB84: 400.95149 | FC84: -194.01043 | FD84: 3953.75112 | FE84: 701.39524 | FF84: 25694 | FG84: 22527 | FH84: 3167 | FI84: 1 | FJ84: 22947.43926 | FK84: 20002.08611 | FL84: 2945.35315 | FM84: 0.8914 | FN84: 24463.64156 | FO84: 20857.25151 | FP84: 3606.39005 | FQ84: 0.8914 | FR84: 1059 | FU84: 5851 | FV84: 3951.952 | FW84: 2940.668
A85: 244 | B85: Kempele | C85: 18796 | E85: 1.3271777 | F85: 73.67441611 | G85: -4742.764418 | K85: 36.79208392 | L85: 694.7222813 | M85: 29.55746011 | N85: 8579.006172 | P85: 36658 | Q85: 138065 | R85: 6 | S85: -101401 | T85: 74665 | U85: 38064 | X85: -676 | Y85: 37 | Z85: 10689 | AA85: 9565 | AB85: 0 | AD85: 1124 | AE85: -2 | AF85: 83 | AG85: 2 | AH85: -85 | AI85: 1119 | AJ85: 21836 | AK85: 8137 | AM85: 337 | AN85: -7872 | AO85: -2183 | AT85: 20.5 | AV85: 279 | AW85: 19116 | AY85: 1.273712141 | AZ85: 76.48885022 | BA85: -4901.485907 | BE85: 34.54224859 | BF85: 895.6283998 | BG85: 36.22174144 | BH85: 9025.086949 | BJ85: 41789.61611 | BK85: 146592.6649 | BL85: 2.66384 | BM85: -104800.385 | BN85: 80784.40559 | BO85: 35348.09782 | BR85: -607.16933 | BS85: 69.2355 | BT85: 10794.18463 | BU85: 10175.66592 | BV85: 0 | BX85: 618.51872 | BY85: -1.0467 | BZ85: 80.58996 | CA85: 2.24585 | CB85: -97.98147 | CC85: 597.83466 | CD85: 22436.02364 | CE85: 6781.37773 | CG85: -2117.82058 | CH85: -8335.19506 | CI85: -4594.39751 | CN85: 20.5 | CP85: 260 | CQ85: 19300 | CS85: 1.380248098 | CT85: 73.84637562 | CU85: -5126.071595 | CY85: 35.25305394 | CZ85: 776.5761741 | DA85: 30.14281664 | DB85: 9403.577208 | DD85: 40925.87394 | DE85: 153089.412 | DF85: -92.69062 | DG85: -112256.2287 | DH85: 86355.83447 | DI85: 38910.39826 | DL85: -599.72776 | DM85: 74.18838 | DN85: 12484.4647 | DO85: 9992.88625 | DP85: 0 | DR85: 2491.57845 | DS85: -4.2783 | DT85: 30.24189 | DU85: 5.97422 | DV85: -71.56983 | DW85: 2439.99799 | DX85: 24860.5083 | DY85: 9927.23978 | EA85: 1169.40508 | EB85: -8873.39535 | EC85: -5912.9298 | EH85: 20.5 | EJ85: 194 | EQ85: -14552 | ER85: 655 | ES85: 3577 | ET85: -16940.31671 | EU85: 880.85545 | EV85: 4683.68603 | EW85: -18882.10677 | EX85: 40.96656 | EY85: 3000.97064 | EZ85: 10289 | FA85: 41 | FB85: 15143.93502 | FC85: -63.88632 | FD85: 4850.53602 | FE85: 5477.26646 | FF85: 82951 | FG85: 74540 | FH85: 8411 | FI85: 1 | FJ85: 89696.09124 | FK85: 80798.434 | FL85: 8897.65724 | FM85: 0.60881 | FN85: 91150.49837 | FO85: 77821.85131 | FP85: 13328.64706 | FQ85: 0.60881 | FR85: 598 | FU85: 17896 | FV85: 4282.4588 | FW85: 4602.23092
A86: 245 | B86: Kerava | C86: 37105 | E86: 1.001958809 | F86: 78.27678699 | G86: -7224.444145 | K86: 50.63919149 | L86: 691.7935588 | M86: 19.43302283 | N86: 12993.58577 | P86: 187045 | Q86: 370258 | R86: 274 | S86: -182939 | T86: 162412 | U86: 56169 | X86: -1531 | Y86: 46 | Z86: 34157 | AA86: 36146 | AB86: 2695 | AD86: 706 | AE86: 71 | AF86: 0 | AG86: 12 | AH86: -99 | AI86: 666 | AJ86: 145143 | AK86: 29540 | AM86: 1362 | AN86: -34087 | AO86: -30076 | AT86: 19.25 | AV86: 176 | AW86: 37232 | AY86: 1.416751443 | AZ86: 85.05773412 | BA86: -7984.193245 | BE86: 46.46903078 | BF86: 813.2173756 | BG86: 22.93225473 | BH86: 12943.53065 | BJ86: 205112.4899 | BK86: 396295.1205 | BL86: 178.34779 | BM86: -191004.2828 | BN86: 168331.4119 | BO86: 52432.01667 | BR86: -1418.75781 | BS86: 1955.05214 | BT86: 30295.44005 | BU86: 35136.19168 | BV86: 0 | BX86: -4840.75163 | BY86: 156.7395 | BZ86: 122.89476 | CA86: 15.19285 | CB86: -16.94586 | CC86: -4593.25608 | CD86: 140549.9705 | CE86: 25854.61669 | CG86: -10916.98633 | CH86: -20919.50738 | CI86: -29977.83187 | CN86: 19.25 | CP86: 169 | CQ86: 37676 | CS86: 0.8007335884 | CT86: 78.9483612 | CU86: -8095.132266 | CY86: 44.92858829 | CZ86: 645.9510381 | DA86: 17.294424 | DB86: 13632.84078 | DD86: 226620.0694 | DE86: 431835.0401 | DF86: -74.84361 | DG86: -205289.8143 | DH86: 178166.7804 | DI86: 59829.01033 | DL86: -1870.20384 | DM86: -11121.94475 | DN86: 19713.82786 | DO86: 36254.86205 | DP86: 0 | DR86: -16541.03419 | DS86: 409.96914 | DT86: -5.93218 | DU86: 7.31417 | DV86: -544.70588 | DW86: -16689.01728 | DX86: 123860.9532 | DY86: 17255.05721 | EA86: -2753.06726 | EB86: -25128.4552 | EC86: -7470.4303 | EH86: 19.25 | EJ86: 221 | EQ86: -75163 | ER86: 211 | ES86: 15336 | ET86: -62800.05122 | EU86: 79.29254 | EV86: 6888.31012 | EW86: -41967.54087 | EX86: 205.50232 | EY86: 17036.55104 | EZ86: 52529 | FA86: 3505 | FB86: 67415.65092 | FC86: -4645.59713 | FD86: 8832.13283 | FE86: 16719.13446 | FF86: 205883 | FG86: 169007 | FH86: 36876 | FI86: 100 | FJ86: 247731.3254 | FK86: 210639.9492 | FL86: 37091.37624 | FM86: 95.45959 | FN86: 248602.2334 | FO86: 196053.1672 | FP86: 52549.06622 | FQ86: 81.82972 | FR86: 5932 | FU86: 27127 | FV86: 34336.3098 | FW86: 32103.21448
A87: 249 | B87: Keuruu | C87: 9486 | E87: 1.905098039 | F87: 116.2509491 | G87: -13539.53194 | K87: 27.83913336 | L87: 661.8174151 | M87: 17.48039485 | N87: 13819.10183 | P87: 52208 | Q87: 110749 | R87: 274 | S87: -58267 | T87: 35357 | U87: 34914 | X87: -523 | Y87: 95 | Z87: 11576 | AA87: 9827 | AB87: 0 | AD87: 1749 | AE87: 71 | AF87: 67 | AG87: 20 | AH87: 65 | AI87: 1933 | AJ87: 12151 | AK87: 11397 | AM87: 460 | AN87: -5806 | AO87: -747 | AT87: 21.5 | AV87: 68 | AW87: 9443 | AY87: 1.57229366 | AZ87: 94.99671721 | BA87: -11874.27205 | BE87: 32.27345289 | BF87: 1560.207879 | BG87: 33.7910021 | BH87: 16852.8851 | BJ87: 72170.593 | BK87: 121184.387 | BL87: 208.334 | BM87: -48805.46 | BN87: 37617.135 | BO87: 33380.134 | BR87: -318.398 | BS87: 239.124 | BT87: 22112.535 | BU87: 10327.739 | BV87: 0 | BX87: 11784.796 | BY87: 70.795 | BZ87: 72.083 | CA87: 3407.086 | CB87: 1158.309 | CC87: 9678.897 | CD87: 25949.821 | CE87: 29835.752 | CG87: -791.833 | CH87: -13918.843 | CI87: 37558.167 | CN87: 21.5 | CP87: 3 | CQ87: 9250 | CS87: 2.1 | CT87: 93.7 | CU87: -11833 | CY87: 33.1 | CZ87: 789 | DA87: 19 | DB87: 15148 | DD87: 63421 | DE87: 127003 | DF87: 231 | DG87: -63351 | DH87: 39280 | DI87: 34731 | DL87: -534 | DM87: 304 | DN87: 10430 | DO87: 11246 | DP87: 411 | DR87: -405 | DS87: 2 | DT87: -68 | DU87: 223 | DV87: -91 | DW87: -785 | DX87: 25331 | DY87: 10614 | EA87: -3251 | EB87: -4737 | EC87: 3396 | EH87: 21.75 | EJ87: 59 | EQ87: -13932 | ER87: 2 | ES87: 1786 | ET87: -23468.065 | EU87: 45.141 | EV87: 31145.339 | EW87: -7689 | EX87: 148 | EY87: 323 | EZ87: 7445 | FA87: -1141 | FB87: 3047.64 | FC87: 1390.4 | FD87: 550 | FE87: -420 | FF87: 110651 | FG87: 64491 | FH87: 46160 | FI87: 0 | FJ87: 101169.528 | FK87: 54203.324 | FL87: 46966.204 | FM87: 0 | FN87: 97379 | FO87: 50565 | FP87: 46814 | FQ87: 0 | FR87: 587 | FU87: 1811 | FV87: 33606.594 | FW87: 38444
A88: 250 | B88: Kihniö | C88: 1822 | E88: 1.341886792 | F88: 60.6458881 | G88: -4942.371021 | K88: 34.96582031 | L88: 1508.781559 | M88: 44.73805065 | N88: 12309.54995 | P88: 7805 | Q88: 19577 | R88: 15 | S88: -11757 | T88: 5856 | U88: 7643 | X88: -136 | Y88: 33 | Z88: 1639 | AA88: 949 | AB88: 0 | AD88: 690 | AE88: -53 | AF88: 0 | AG88: 29 | AH88: -3 | AI88: 605 | AJ88: -61 | AK88: 1510 | AM88: 47 | AN88: -1186 | AO88: 1256 | AT88: 21.5 | AV88: 193 | AW88: 1808 | AY88: 2.121440797 | AZ88: 56.09380092 | BA88: -4465.361665 | BE88: 37.67579434 | BF88: 1841.062815 | BG88: 53.67653774 | BH88: 12519.21148 | BJ88: 8105.64079 | BK88: 20718.42269 | BL88: 14.55787 | BM88: -12598.22403 | BN88: 6553.75213 | BO88: 7879.34008 | BR88: -124.89084 | BS88: 47.16609 | BT88: 1757.14343 | BU88: 895.28868 | BV88: 0 | BX88: 861.85475 | BY88: -81.18951 | BZ88: 2.0126 | CA88: 41.56752 | CB88: -4.82459 | CC88: 736.28573 | CD88: 674.87746 | CE88: 1703.84711 | CG88: -63.27056 | CH88: -761.12585 | CI88: 832.86073 | CN88: 21.5 | CP88: 115 | CQ88: 1771 | CS88: 1.064994904 | CT88: 53.9173557 | CU88: -4272.493151 | CY88: 38.5052871 | CZ88: 1761.382422 | DA88: 48.3561331 | DB88: 13295.20255 | DD88: 7582.48946 | DE88: 21138.70019 | DF88: 21.22901 | DG88: -13534.98172 | DH88: 6708.21254 | DI88: 7984.2872 | DL88: -109.79845 | DM88: 31.0575 | DN88: 1078.77707 | DO88: 884.58298 | DP88: 0 | DR88: 194.19409 | DS88: -32.72438 | DT88: 0.06049 | DU88: 17.94748 | DV88: -2.68278 | DW88: 140.89994 | DX88: 815.7774 | DY88: 1223.47981 | EA88: -139.09174 | EB88: -1005.9549 | EC88: 344.02156 | EH88: 21.5 | EJ88: 201 | EQ88: -909 | ER88: 14 | ES88: 641 | ET88: -926.64085 | EU88: 37.55087 | EV88: 18.1036 | EW88: -1256.00739 | EX88: 308.48939 | EY88: 68.05975 | EZ88: 1141 | FA88: 101 | FB88: 329.10546 | FC88: -0.33843 | FD88: 441.23847 | FE88: -11.25712 | FF88: 10562 | FG88: 9745 | FH88: 817 | FI88: 501 | FJ88: 10009.20623 | FK88: 9146.4431 | FL88: 862.76313 | FM88: 388.15241 | FN88: 9429.35163 | FO88: 8571.78024 | FP88: 857.57139 | FQ88: 220.45082 | FR88: 3112 | FU88: 2478 | FV88: 2645.688 | FW88: 819.249
A89: 256 | B89: Kinnula | C89: 1597 | E89: 5.957627119 | F89: 72.43379707 | G89: -5747.651847 | K89: 45.519328 | L89: 1154.038823 | M89: 32.69000875 | N89: 12885.41014 | P89: 5807 | Q89: 17979 | R89: -25 | S89: -12197 | T89: 4958 | U89: 7852 | X89: 63 | Y89: 19 | Z89: 695 | AA89: 1052 | AB89: 0 | AD89: -357 | AE89: -3 | AF89: 0 | AG89: 0 | AH89: 0 | AI89: -360 | AJ89: 3109 | AK89: 899 | AM89: 275 | AN89: -110 | AO89: -1309 | AT89: 21 | AV89: 286 | AW89: 1581 | AY89: 3.227866594 | AZ89: 84.70258938 | BA89: -7145.662701 | BE89: 40.7901882 | BF89: 2067.554902 | BG89: 50.46469841 | BH89: 14954.16723 | BJ89: 6716.77159 | BK89: 18934.83364 | BL89: -26.93937 | BM89: -12245.00142 | BN89: 5540.13565 | BO89: 8054.3192 | BR89: 24.76854 | BS89: 77.98856 | BT89: 1452.21053 | BU89: 1123.53617 | BV89: 99.29775 | BX89: 427.97211 | BY89: 0.00298 | BZ89: 1.75978 | CA89: 0 | CB89: 0 | CC89: 429.73487 | CD89: 3568.646 | CE89: 1529.63287 | CG89: -251.00653 | CH89: -426.0906 | CI89: -2256.7437 | CN89: 21.5 | CP89: 130 | CQ89: 1554 | CS89: 2.485286379 | CT89: 84.49711624 | CU89: -7477.313687 | CY89: 38.48649107 | CZ89: 1321.239775 | DA89: 32.93527857 | DB89: 14642.43021 | DD89: 7954.79976 | DE89: 20503.69879 | DF89: -26.93937 | DG89: -12575.8384 | DH89: 5433.04866 | DI89: 8321.53134 | DL89: -13.18985 | DM89: 76.83508 | DN89: 1242.38683 | DO89: 1310.39972 | DP89: 87.32282 | DR89: 19.30993 | DS89: -4.54236 | DT89: -0.42945 | DU89: 0 | DV89: 0 | DW89: 14.33812 | DX89: 3375.07109 | DY89: 1077.93514 | EA89: -1380.86323 | EB89: -465.98978 | EC89: -598.11189 | EH89: 21.5 | EJ89: 132 | EQ89: -2477 | ER89: 0 | ES89: 269 | ET89: -4245.50813 | EU89: 0 | EV89: 459.13156 | EW89: -1721.74714 | EX89: 5.92367 | EY89: 39.77644 | EZ89: 3008 | FA89: -2182 | FB89: 4649.40728 | FC89: -556.06739 | FD89: 252.412 | FE89: -135.592 | FF89: 11095 | FG89: 7110 | FH89: 3985 | FI89: 0 | FJ89: 14758.952 | FK89: 11224.667 | FL89: 3534.285 | FM89: 0 | FN89: 14398.61243 | FO89: 10678.68707 | FP89: 3719.92536 | FQ89: 0 | FR89: 160 | FU89: 191 | FV89: 11.3458 | FW89: 644.67425
A90: 257 | B90: Kirkkonummi | C90: 40082 | E90: 1.241175058 | F90: 96.34755638 | G90: -7334.21486 | K90: 15.80335461 | L90: 1098.872312 | M90: 36.25119229 | N90: 11064.14351 | P90: 122591 | Q90: 344421 | R90: -3 | S90: -221833 | T90: 202035 | U90: 50657 | X90: -1784 | Y90: 56 | Z90: 29131 | AA90: 24791 | AB90: 400 | AD90: 4740 | AE90: 53 | AF90: 20 | AG90: 18 | AH90: 38 | AI90: 4833 | AJ90: 5237 | AK90: 27435 | AM90: -3599 | AN90: -23105 | AO90: -39749 | AT90: 19.75 | AV90: 250 | AW90: 40433 | AY90: 0.9673213815 | AZ90: 100.8928796 | BA90: -7950.38287 | BE90: 14.11825262 | BF90: 1388.425427 | BG90: 45.06628668 | BH90: 11245.10845 | BJ90: 144668.9928 | BK90: 365774.7269 | BL90: -76.66561 | BM90: -221182.3996 | BN90: 208116.0285 | BO90: 41931.56133 | BR90: -1636.96933 | BS90: 262.76467 | BT90: 27490.9855 | BU90: 27167.24728 | BV90: -558.23364 | BX90: -234.49542 | BY90: 54.76066 | BZ90: 127.50524 | CA90: -0.00754 | CB90: 103.02066 | CC90: 50.79868 | CD90: 4216.4096 | CE90: 24244.29107 | CG90: 2914.8253 | CH90: -28477.98622 | CI90: -30068.59025 | CN90: 19.75 | CP90: 214 | CQ90: 40722 | CS90: 1.607825325 | CT90: 87.417931 | CU90: -6459.62008 | CY90: 17.15593815 | CZ90: 2275.434697 | DA90: 72.75326843 | DB90: 11415.75743 | DD90: 163255.1022 | DE90: 383198.4949 | DF90: -99.70585 | DG90: -220043.0985 | DH90: 222929.3637 | DI90: 44679.43888 | DL90: -1686.76445 | DM90: -187.4164 | DN90: 45691.52327 | DO90: 32254.42678 | DP90: 0 | DR90: 13437.09649 | DS90: 67.66665 | DT90: -5.47857 | DU90: 8.8102 | DV90: 117.04292 | DW90: 13607.51729 | DX90: 17823.92687 | DY90: 27967.88912 | EA90: -298.51977 | EB90: -27744.08468 | EC90: 57847.65417 | EH90: 19.75 | EJ90: 60 | EQ90: -73534 | ER90: 2688 | ES90: 3662 | ET90: -58261.58887 | EU90: 245.33277 | EV90: 3703.37478 | EW90: -51319.37769 | EX90: 268.63289 | EY90: 80930.50985 | EZ90: 84373 | FA90: -7716 | FB90: 73913.38297 | FC90: -5098.40998 | FD90: 9782.018 | FE90: -8959.14909 | FF90: 287534 | FG90: 222958 | FH90: 64576 | FI90: 691 | FJ90: 327871.4672 | FK90: 269051.74 | FL90: 58819.7272 | FM90: 690.55861 | FN90: 300950.2514 | FO90: 251017.2064 | FP90: 49933.04507 | FQ90: 636.11622 | FR90: 34101 | FU90: 60278 | FV90: 47653.82555 | FW90: 50165.23133
A91: 260 | B91: Kitee | C91: 9933 | E91: 2.742424242 | F91: 26.60396659 | G91: -1273.734018 | K91: 58.37090909 | L91: 1732.407128 | M91: 44.76140251 | N91: 14126.64855 | P91: 63332 | Q91: 130955 | R91: 0 | S91: -67623 | T91: 32556 | U91: 44888 | X91: -147 | Y91: 415 | Z91: 10089 | AA91: 5839 | AB91: 0 | AD91: 4250 | AE91: -24 | AF91: 6 | AG91: 57 | AH91: 29 | AI91: 4204 | AJ91: 27927 | AK91: 9199 | AM91: -2039 | AN91: -3534 | AO91: 4264 | AT91: 21 | AV91: 126 | AW91: 9877 | AY91: 3.580758474 | AZ91: 26.30738206 | BA91: -835.6366133 | BE91: 59.36977388 | BF91: 2214.36608 | BG91: 55.83389534 | BH91: 14475.85941 | BJ91: 68103.33614 | BK91: 136394.1809 | BL91: 0 | BM91: -68290.84472 | BN91: 33444.70287 | BO91: 43778.87559 | BR91: -81.5962 | BS91: 312.09427 | BT91: 9163.23181 | BU91: 4915.21469 | BV91: 0 | BX91: 4248.01712 | BY91: -48.32309 | BZ91: 5.94842 | CA91: 104.86411 | CB91: -83.01904 | CC91: 4017.7593 | CD91: 31956.7938 | CE91: 7977.73019 | CG91: -515.80328 | CH91: -2433.82091 | CI91: 4161.72717 | CN91: 20.75 | CP91: 125 | CQ91: 9727 | CS91: 3.199215819 | CT91: 29.03966125 | CU91: -668.5135108 | CY91: 56.16661851 | CZ91: 2922.203047 | DA91: 67.37921978 | DB91: 15829.86737 | DD91: 71531.40125 | DE91: 145106.1365 | DF91: -8.08751 | DG91: -73582.82272 | DH91: 34183.03451 | DI91: 46855.79112 | DL91: -67.4622 | DM91: 202.56987 | DN91: 7591.11058 | DO91: 5351.78629 | DP91: 12.88078 | DR91: 2252.20507 | DS91: -1.79174 | DT91: 15.61693 | DU91: 42.50169 | DV91: -48.11819 | DW91: 2175.41038 | DX91: 33161.20414 | DY91: 8687.8071 | EA91: -1272.14704 | EB91: -2253.98497 | EC91: 3098.50906 | EH91: 20.75 | EJ91: 137 | EQ91: -5457 | ER91: 209 | ES91: 313 | ET91: -3958.27804 | EU91: 60.34361 | EV91: 81.93141 | EW91: -6205.24794 | EX91: 474.59734 | EY91: 141.35256 | EZ91: 4824 | FA91: 122 | FB91: 2752.30436 | FC91: -722.05379 | FD91: 4395.7789 | FE91: -631.49134 | FF91: 20956 | FG91: 17250 | FH91: 3706 | FI91: 62 | FJ91: 20552.41049 | FK91: 17547.2609 | FL91: 3005.14959 | FM91: 61.74179 | FN91: 22062.71309 | FO91: 19575.85451 | FP91: 2486.85858 | FQ91: 62.13404 | FR91: 318 | FU91: 4469 | FV91: 3006.62604 | FW91: 3842.44426
A92: 261 | B92: Kittilä | C92: 6436 | E92: 4.653264813 | F92: 75.6512104 | G92: -9650.403978 | K92: 49.22564313 | L92: 1939.24798 | M92: 41.06369266 | N92: 17237.25917 | P92: 46698 | Q92: 91440 | R92: 1022 | S92: -43720 | T92: 31340 | U92: 28456 | X92: -441 | Y92: -690 | Z92: 14945 | AA92: 10714 | AB92: 0 | AD92: 4231 | AE92: -293 | AF92: 1431 | AG92: 0 | AH92: -180 | AI92: 5188 | AJ92: 57426 | AK92: 14131 | AM92: -500 | AN92: -2860 | AO92: 1064 | AT92: 20.25 | AV92: 2 | AW92: 6523 | AY92: 4.029730675 | AZ92: 66.62428111 | BA92: -8009.044918 | BE92: 52.04913015 | BF92: 2811.743063 | BG92: 56.53965693 | BH92: 18151.61735 | BJ92: 61371 | BK92: 98839 | BL92: 1860 | BM92: -35608 | BN92: 32037 | BO92: 26916 | BR92: -451 | BS92: -314 | BT92: 22580 | BU92: 9620 | BV92: 0 | BX92: 12960 | BY92: -712 | BZ92: -1179 | CA92: 249 | CB92: -138 | CC92: 10682 | CD92: 70939 | CE92: 14506 | CG92: -3220 | CH92: -5256 | CI92: 9593 | CN92: 20.25 | CP92: 1 | CQ92: 6637 | CS92: 5 | CT92: 50.24444901 | CU92: -4582.959082 | CY92: 55.1 | CZ92: 4069.49375 | DA92: 74.39061957 | DB92: 19967.10375 | DD92: 69840.95733 | DE92: 105635.3127 | DF92: 1278.922 | DG92: -34515.43339 | DH92: 35455.12821 | DI92: 28815.37111 | DL92: -689.1384 | DM92: -145 | DN92: 28920 | DO92: 10497.91468 | DP92: 0 | DR92: 18423 | DS92: -1947.89454 | DT92: 51.58767 | DU92: 865.13073 | DV92: -112.71421 | DW92: 15548 | DX92: 87658 | DY92: 28925.22994 | EA92: 807.16924 | EB92: -5181.00307 | EC92: 10133.49558 | EH92: 20.25 | EJ92: 1 | EQ92: -13816 | ER92: 119 | ES92: 630 | ET92: -12690 | EU92: 1061 | EV92: 6716 | EW92: -20366.38464 | EX92: 205.90087 | EY92: 1368.74941 | EZ92: 6938 | FA92: -1690 | FB92: 2127 | FC92: -1143 | FD92: 3041.22053 | FE92: 73.30619 | FF92: 52293 | FG92: 45756 | FH92: 6537 | FI92: 566 | FJ92: 48055 | FK92: 42660 | FL92: 5395 | FM92: 404 | FN92: 46334.09638 | FO92: 40130.39438 | FP92: 6203.702 | FQ92: 471.81514 | FR92: 17865 | FU92: 1963 | FV92: 268.256 | FW92: 1267
A93: 263 | B93: Kiuruvesi | C93: 7854 | E93: 2.343340721 | F93: 61.18840967 | G93: -6362.490451 | K93: 34.76048462 | L93: 1820.091673 | M93: 45.4252022 | N93: 14624.77718 | P93: 48661 | Q93: 101594 | R93: 69 | S93: -52864 | T93: 24411 | U93: 39263 | X93: -443 | Y93: 807 | Z93: 11174 | AA93: 6736 | AB93: -10 | AD93: 4428 | AE93: -7 | AF93: 3 | AG93: 7 | AH93: -71 | AI93: 4346 | AJ93: 3524 | AK93: 10418 | AM93: 530 | AN93: -4507 | AO93: 3927 | AT93: 21.75 | AV93: 29 | AW93: 7759 | AY93: 2.557302761 | AZ93: 58.94920852 | BA93: -5951.287265 | BE93: 35.9585582 | BF93: 1978.017773 | BG93: 47.8444495 | BH93: 15090.07826 | BJ93: 49543.97784 | BK93: 104272.5428 | BL93: 96.96841 | BM93: -54631.59653 | BN93: 26492.92861 | BO93: 37215.66669 | BR93: -299.2487 | BS93: 1147.32894 | BT93: 9925.07901 | BU93: 6122.75892 | BV93: -735.99758 | BX93: 3066.32251 | BY93: -6.26715 | BZ93: 5.34496 | CA93: 4.90844 | CB93: 0.61643 | CC93: 3061.10831 | CD93: 8301.75447 | CE93: 9157.30635 | CG93: 24.61892 | CH93: -3642.90821 | CI93: 1351.05831 | CN93: 21.75 | CP93: 45 | CQ93: 7597 | CS93: 1.627869699 | CT93: 57.48699566 | CU93: -5877.964411 | CY93: 37.00199677 | CZ93: 2273.88426 | DA93: 51.52586847 | DB93: 16107.78779 | DD93: 51498.71255 | DE93: 108901.4018 | DF93: 149.78504 | DG93: -57252.90418 | DH93: 26563.12148 | DI93: 38806.67173 | DL93: -385.49272 | DM93: 907.16358 | DN93: 8638.55989 | DO93: 6737.98565 | DP93: -0.65122 | DR93: 1899.92302 | DS93: 0.51309 | DT93: 8.12214 | DU93: 3.8915 | DV93: -76.39556 | DW93: 1828.27119 | DX93: 10221.21872 | DY93: 8059.379 | EA93: -16.58079 | EB93: -5136.70326 | EC93: 1563.71012 | EH93: 21.75 | EJ93: 56 | EQ93: -8044 | ER93: 442 | ES93: 1111 | ET93: -8648.33281 | EU93: 360.82448 | EV93: 481.26029 | EW93: -7428.48478 | EX93: 250.08603 | EY93: 682.72987 | EZ93: 2357 | FA93: 996 | FB93: 5257.35434 | FC93: 266.20281 | FD93: 3372.41217 | FE93: 936.08397 | FF93: 55735 | FG93: 36075 | FH93: 19660 | FI93: 17 | FJ93: 54724.31875 | FK93: 33697.2482 | FL93: 21027.07055 | FM93: 24.10526 | FN93: 53896.11162 | FO93: 32757.55775 | FP93: 21138.55387 | FQ93: 19.84415 | FR93: 10 | FU93: 6809 | FV93: 6462.16428 | FW93: 6083.57841
A94: 265 | B94: Kivijärvi | C94: 1107 | E94: 16.22340426 | F94: 67.92150581 | G94: -8727.190605 | K94: 24.17233063 | L94: 2570.009033 | M94: 51.55520802 | N94: 18195.12195 | P94: 10608 | Q94: 18452 | R94: 0 | S94: -7844 | T94: 3894 | U94: 5474 | X94: -40 | Y94: -3 | Z94: 1481 | AA94: 1004 | AB94: 0 | AD94: 477 | AE94: 0 | AF94: 0 | AG94: 0 | AH94: -3 | AI94: 474 | AJ94: -494 | AK94: -274 | AM94: 60 | AN94: -50 | AO94: -1439 | AT94: 21.75 | AV94: 44 | AW94: 1088 | AY94: 8.169462042 | AZ94: 60.72587955 | BA94: -8072.872224 | BE94: 28.78833107 | BF94: 2658.206673 | BG94: 50.42978633 | BH94: 19239.53097 | BJ94: 10957.53988 | BK94: 19267.21761 | BL94: 0 | BM94: -8309.67773 | BN94: 4499.57778 | BO94: 5481.8156 | BR94: -61.74995 | BS94: 68.46402 | BT94: 1678.42972 | BU94: 963.82249 | BV94: 97.669 | BX94: 812.27623 | BY94: 0 | BZ94: -0.74066 | CA94: 0 | CB94: -0.97582 | CC94: 810.55975 | CD94: 352.04071 | CE94: 1810.34867 | CG94: 24.12422 | CH94: -147.76506 | CI94: 915.67362 | CN94: 21.75 | CP94: 23 | CQ94: 1064 | CS94: 5.238610919 | CT94: 53.29304664 | CU94: -5815.818543 | CY94: 34.09420358 | CZ94: 4111.308271 | DA94: 74.06345828 | DB94: 20261.37523 | DD94: 13226.97086 | DE94: 20736.04222 | DF94: 0 | DG94: -7509.07136 | DH94: 4480.17592 | DI94: 5780.96118 | DL94: -68.95571 | DM94: 56.14474 | DN94: 2739.25477 | DO94: 1046.32461 | DP94: 86.14881 | DR94: 1779.07897 | DS94: 0 | DT94: 0.16438 | DU94: 0 | DV94: 0 | DW94: 1779.24335 | DX94: 2124.43417 | DY94: 2734.03015 | EA94: -914.97085 | EB94: -463.06073 | EC94: 2521.48185 | EH94: 21.75 | EJ94: 3 | EQ94: -1545 | ER94: 273 | ES94: 107 | ET94: -1451.89424 | EU94: 0 | EV94: 557.21919 | EW94: -243.32894 | EX94: 5.84403 | EY94: 24.93661 | EZ94: 1391 | FA94: 728 | FB94: 0 | FC94: -506.80306 | FD94: 0 | FE94: -99.73564 | FF94: 11401 | FG94: 10255 | FH94: 1146 | FI94: 48 | FJ94: 10747.38498 | FK94: 10108.04028 | FL94: 639.3447 | FM94: 2e-05 | FN94: 10184.58861 | FO94: 9644.97955 | FP94: 539.60906 | FQ94: 0 | FR94: 1045 | FU94: 734 | FV94: 985.919 | FW94: 15.375
A95: 271 | B95: Kokemäki | C95: 7013 | E95: 1.205117086 | F95: 60.23517275 | G95: -5702.98018 | K95: 26.03852761 | L95: 771.1393127 | M95: 21.85110976 | N95: 12881.078 | P95: 37431 | Q95: 76992 | R95: -4 | S95: -39565 | T95: 26541 | U95: 21327 | X95: -166 | Y95: 26 | Z95: 8163 | AA95: 4446 | AB95: 73 | AD95: 3790 | AE95: 1 | AF95: 5 | AG95: 34 | AH95: 0 | AI95: 3763 | AJ95: 4192 | AK95: 8142 | AM95: -1059 | AN95: -6744 | AO95: 2275 | AT95: 21.75 | AV95: 87 | AW95: 6951 | AY95: 0.6917282181 | AZ95: 56.91186015 | BA95: -5740.893204 | BE95: 26.38095238 | BF95: 1134.336677 | BG95: 26.04895988 | BH95: 15894.41148 | BJ95: 48015.01375 | BK95: 90165.14968 | BL95: 3.23915 | BM95: -42146.89678 | BN95: 27517.39901 | BO95: 20731.47199 | BR95: -109.29203 | BS95: 26.67157 | BT95: 6019.35376 | BU95: 4307.52987 | BV95: 172.5364 | BX95: 1884.36029 | BY95: 0.26014 | BZ95: 15.52989 | CA95: 89.6574 | CB95: 2.02428 | CC95: 1812.5172 | CD95: 6067.97836 | CE95: 6115.73045 | CG95: -1644.66574 | CH95: -8754.96127 | CI95: -1205.6037 | CN95: 21.75 | CP95: 151 | CQ95: 6903 | CS95: 0.7321719391 | CT95: 51.0980173 | CU95: -5116.640808 | CY95: 28.2706309 | CZ95: 1105.061782 | DA95: 26.12822864 | DB95: 15437.23289 | DD95: 47140.22756 | DE95: 95192.96634 | DF95: 1.40083 | DG95: -48051.33795 | DH95: 28010.27893 | DI95: 24997.08503 | DL95: -179.03284 | DM95: 12.1571 | DN95: 4789.15027 | DO95: 4012.04453 | DP95: 0 | DR95: 777.10574 | DS95: 0.01791 | DT95: 18.84428 | DU95: 129.49517 | DV95: 0.19811 | DW95: 666.67087 | DX95: 6666.60267 | DY95: 4344.23504 | EA95: -1115.52113 | EB95: -6608.96384 | EC95: 4839.4984 | EH95: 21.75 | EJ95: 170 | EQ95: -6297 | ER95: 37 | ES95: 393 | ET95: -7456.88344 | EU95: 87.82124 | EV95: 47.72805 | EW95: -4419.18323 | EX95: 230.02509 | EY95: 4684.4215 | EZ95: 11058 | FA95: -4082 | FB95: 12934.44674 | FC95: -510.76462 | FD95: 1323.56245 | FE95: -1205.82987 | FF95: 35748 | FG95: 21138 | FH95: 14610 | FI95: 0 | FJ95: 39363.82812 | FK95: 24723.14943 | FL95: 14640.67869 | FM95: 0 | FN95: 34692.65216 | FO95: 21195.96581 | FP95: 13496.68635 | FQ95: 24.53999 | FR95: 125 | FU95: 1373 | FV95: 2962.796 | FW95: 3035.591
A96: 272 | B96: Kokkola | C96: 47772 | E96: 1.16221692 | F96: 88.56912153 | G96: -9330.088755 | K96: 31.15084626 | L96: 1640.584443 | M96: 39.76705424 | N96: 15058.02562 | P96: 338852 | Q96: 589493 | R96: 1145 | S96: -249496 | T96: 200559 | U96: 109533 | X96: -4529 | Y96: 364 | Z96: 56431 | AA96: 44948 | AB96: 9 | AD96: 11492 | AE96: -164 | AF96: -985 | AG96: 703 | AH96: -224 | AI96: 9416 | AJ96: 103057 | AK96: 51772 | AM96: -3842 | AN96: -47864 | AO96: -16561 | AT96: 21.5 | AV96: 80 | AW96: 47909 | AY96: 1.07922253 | AZ96: 90.19293998 | BA96: -9372.321506 | BE96: 31.9213454 | BF96: 1567.152925 | BG96: 38.47045782 | BH96: 14868.83313 | BJ96: 328960.6329 | BK96: 582212.7188 | BL96: 1421.27485 | BM96: -251830.811 | BN96: 210974.4202 | BO96: 102593.67 | BR96: -4623.46152 | BS96: 402.29027 | BT96: 57516.10795 | BU96: 43540.31445 | BV96: 0 | BX96: 13975.7935 | BY96: -173.28583 | BZ96: -601.62763 | CA96: 1111.1899 | CB96: -338.83645 | CC96: 11750.85369 | CD96: 114112.8848 | CE96: 54636.84291 | CG96: -4825.82949 | CH96: -52932.52908 | CI96: -1231.99369 | CN96: 21.5 | CP96: 56 | CQ96: 48006 | CS96: 1.182395315 | CT96: 88.55314993 | CU96: -9175.701539 | CY96: 31.5961999 | CZ96: 1929.189371 | DA96: 47.48482579 | DB96: 14829.03451 | DD96: 336087.3193 | DE96: 610744.5157 | DF96: 507.6806 | DG96: -274149.5158 | DH96: 219491.2584 | DI96: 109212.431 | DL96: -4603.38013 | DM96: 2226.33026 | DN96: 52177.12376 | DO96: 46574.44493 | DP96: -10.2328 | DR96: 5592.44603 | DS96: -37.50082 | DT96: -301.49051 | DU96: 267.93149 | DV96: -75.76111 | DW96: 4909.7621 | DX96: 118857.3043 | DY96: 41398.05111 | EA96: -338.51595 | EB96: -43395.26153 | EC96: 9091.68475 | EH96: 21.5 | EJ96: 68 | EQ96: -76266 | ER96: 1198 | ES96: 6735 | ET96: -71408.99893 | EU96: 706.97419 | EV96: 14833.18814 | EW96: -52651.89267 | EX96: 1775.39726 | EY96: 18570.12905 | EZ96: 81332 | FA96: -2236 | FB96: 80288.89797 | FC96: -34215.93962 | FD96: 57515.48601 | FE96: -10829.35806 | FF96: 454124 | FG96: 375834 | FH96: 78290 | FI96: 797 | FJ96: 447265.0507 | FK96: 394571.4044 | FL96: 52693.64637 | FM96: 514.82326 | FN96: 450458.3388 | FO96: 385796.7017 | FP96: 64661.63708 | FQ96: 344.78526 | FR96: 1551 | FU96: 77772 | FV96: 70184.17 | FW96: 85104.617
B97: Koko Suomi (Manner-Suomi) | C97: 5503664 | E97: 1.982428854 | F97: 84.26466376 | G97: -7091.173262 | K97: 42.05197956 | L97: 1682.390131 | M97: 49.38402432 | N97: 12434.63663 | P97: 26449305 | Q97: 55390834 | R97: 93462 | S97: -28848068 | T97: 23776310 | U97: 12216714 | X97: -355306 | Y97: 104750 | Z97: 6894400 | AA97: 4681448 | AB97: 119640 | AD97: 2332592 | AE97: -45422 | AF97: -58220 | AG97: 75433 | AH97: -68982 | AI97: 2085217 | AJ97: 14697041 | AK97: 6368334 | AM97: 130334 | AN97: -3269367 | AO97: -897135 | AT97: 19.96 | AV97: - | AW97: 5517897 | AY97: 1.839379606 | AZ97: 82.48213631 | BA97: -7178.273418 | BE97: 41.79822183 | BF97: 1753.998739 | BG97: 48.9760954 | BH97: 13071.87791 | BJ97: 29578141.94 | BK97: 59506994.68 | BL97: 74212.18445 | BM97: -29854640.56 | BN97: 25362358.12 | BO97: 11284744.39 | BR97: -322178.015 | BS97: 277918.6163 | BT97: 6748068.806 | BU97: 4819824.347 | BV97: 107688.2948 | BX97: 2035932.756 | BY97: -44084.34721 | BZ97: -4579.8881 | CA97: 104657.8677 | CB97: -48761.12652 | CC97: 1833848.563 | CD97: 16434039.38 | CE97: 6075765.615 | CG97: -859159.9211 | CH97: -3508614.919 | CI97: -624085.0453 | CN97: 20.02 | CP97: - | CQ97: 5533611 | CS97: 1.7 | CT97: 82 | CU97: -7429 | CY97: 41 | CZ97: 1921 | DA97: 50 | DB97: 14037 | DD97: 31512266 | DE97: 63470265 | DF97: 40474 | DG97: -31917405 | DH97: 26707861 | DI97: 11976772 | DL97: -349071 | DM97: -55813 | DN97: 6362342 | DO97: 4937452 | DP97: 207757 | DR97: 1627855 | DS97: -5663 | DT97: -21823 | DU97: 127840 | DV97: -49906 | DW97: 1422621 | DX97: 17791840 | DY97: 5569402 | EA97: -525529 | EB97: -3611853 | EC97: -1206512 | EH97: 20.01 | EJ97: - | EQ97: -9180621 | ER97: 203417 | ES97: 1711735 | ET97: -8590005.235 | EU97: 257541.7962 | EV97: 1632617.962 | EW97: -9681016 | EX97: 216944 | EY97: 2537629 | EZ97: 6260610 | FA97: -989476 | FB97: 4520813.193 | FC97: 259626.3413 | FD97: 4919801 | FE97: -21878 | FF97: 41169966 | FG97: 35466665 | FH97: 5705821 | FI97: 1114350 | FJ97: 42376109.87 | FK97: 36140832.99 | FL97: 6207143.346 | FM97: 1101531.225 | FN97: 43538239 | FO97: 37118290 | FP97: 6419949 | FQ97: 1130168 | FR97: 1487603 | FU97: 7234678 | FV97: 7742589.961 | FW97: 8422790.194
A98: 273 | B98: Kolari | C98: 3925 | E98: 4.322987391 | F98: 60.48664204 | G98: -3541.146497 | K98: 49.63540401 | L98: 2864.713376 | M98: 79.67192111 | N98: 13124.07643 | P98: 14855 | Q98: 42127 | R98: 0 | S98: -27272 | T98: 15074 | U98: 16635 | X98: -109 | Y98: 14 | Z98: 4342 | AA98: 2958 | AB98: 1 | AD98: 1385 | AE98: -19 | AF98: 0 | AG98: 13 | AH98: -34 | AI98: 1319 | AJ98: 21071 | AK98: 4216 | AM98: -292 | AN98: -916 | AO98: -3175 | AT98: 20 | AV98: 101 | AW98: 3989 | AY98: 4.250929436 | AZ98: 61.31194104 | BA98: -4617.82718 | BE98: 48.32705726 | BF98: 2229.934919 | BG98: 57.47871611 | BH98: 14160.48061 | BJ98: 16715.40414 | BK98: 45305.45129 | BL98: 0 | BM98: -28590.04715 | BN98: 16514.58887 | BO98: 16408.54127 | BR98: -112.52017 | BS98: 12.85805 | BT98: 4233.42087 | BU98: 3216.17008 | BV98: -1.27178 | BX98: 1015.97901 | BY98: -0.05769 | BZ98: 3.64651 | CA98: 11.99308 | CB98: 18.99755 | CC98: 1026.5723 | CD98: 22091.99248 | CE98: 3502.80737 | CG98: -77.06428 | CH98: -902.12511 | CI98: -4127.66427 | CN98: 20 | CP98: 85 | CQ98: 3999 | CS98: 7.822711768 | CT98: 68.36554781 | CU98: -4770.978725 | CY98: 44.89021281 | CZ98: 3305.643953 | DA98: 87.24168121 | DB98: 13830.08702 | DD98: 17665.16103 | DE98: 47482.66144 | DF98: 0 | DG98: -29817.50041 | DH98: 17760.30661 | DI98: 17514.37904 | DL98: -192.89212 | DM98: 432.24629 | DN98: 5696.53941 | DO98: 4010.24934 | DP98: 0 | DR98: 1686.29007 | DS98: 1.74822 | DT98: 0.18624 | DU98: 9.39052 | DV98: 12.23262 | DW98: 1691.06663 | DX98: 23559.79298 | DY98: 5227.54075 | EA98: -524.14056 | EB98: -553.05011 | EC98: -376.81329 | EH98: 20.5 | EJ98: 27 | EQ98: -7722 | ER98: 165 | ES98: 166 | ET98: -9996.94056 | EU98: 472.68021 | EV98: 1893.78871 | EW98: -6879.84849 | EX98: 205.23794 | EY98: 1070.25651 | EZ98: 1154 | FA98: 16 | FB98: 2514.3569 | FC98: -29.9844 | FD98: 4410.60975 | FE98: 145.395 | FF98: 14387 | FG98: 13609 | FH98: 778 | FI98: 530 | FJ98: 15562.18031 | FK98: 14963.97208 | FL98: 598.20823 | FM98: 621.64095 | FN98: 19545.45239 | FO98: 18651.59133 | FP98: 893.86106 | FQ98: 608.66342 | FR98: 3697 | FU98: 385 | FV98: 297 | FW98: 159
A99: 275 | B99: Konnevesi | C99: 2593 | E99: 1.143209877 | F99: 129.6456652 | G99: -12658.31084 | K99: 9.028464004 | L99: 1131.507906 | M99: 35.45355227 | N99: 11649.05515 | P99: 9093 | Q99: 25606 | R99: 0 | S99: -16513 | T99: 8687 | U99: 11091 | X99: 24 | Y99: -261 | Z99: 3028 | AA99: 1931 | AB99: 0 | AD99: 1097 | AE99: 0 | AF99: -1 | AG99: 24 | AH99: 3 | AI99: 1075 | AJ99: -5076 | AK99: -624 | AM99: -596 | AN99: -2622 | AO99: -1998 | AT99: 22 | AV99: 85 | AW99: 2586 | AY99: 1.356544513 | AZ99: 120.4430246 | BA99: -11744.88425 | BE99: 13.05594874 | BF99: 1135.406245 | BG99: 33.98650648 | BH99: 12193.7593 | BJ99: 8776.12908 | BK99: 26708.96658 | BL99: 0 | BM99: -17932.8375 | BN99: 9482.97895 | BO99: 11027.51547 | BR99: 980.97148 | BS99: 32.7366 | BT99: 3591.365 | BU99: 1995.64175 | BV99: 108 | BX99: 1703.72325 | BY99: 0 | BZ99: -47.42785 | CA99: 18.62767 | CB99: 0 | CC99: 1637.66773 | CD99: -3436.93294 | CE99: 3947.10144 | CG99: -188.8935 | CH99: -2591.20636 | CI99: 2534.00845 | CN99: 22 | CP99: 33 | CQ99: 2521 | CS99: 1.120665575 | CT99: 110.2082368 | CU99: -11824.46913 | CY99: 25.70691053 | CZ99: 566.0681277 | DA99: 15.61424014 | DB99: 13232.46375 | DD99: 9782.05258 | DE99: 27987.16724 | DF99: 0 | DG99: -18205.11466 | DH99: 9965.04532 | DI99: 10949.96364 | DL99: -243.53248 | DM99: 38.14625 | DN99: 2504.50807 | DO99: 1756.27571 | DP99: 95.26126 | DR99: 843.49362 | DS99: 0 | DT99: -61.06087 | DU99: 0 | DV99: 0 | DW99: 782.43275 | DX99: -554.59844 | DY99: 2531.814 | EA99: -609.61464 | EB99: -2206.43797 | EC99: 23.41094 | EH99: 22 | EJ99: 79 | EQ99: -1500 | ER99: 3 | ES99: 123 | ET99: -1987.23226 | EU99: 47.40335 | EV99: 526.73592 | EW99: -2575.9267 | EX99: 37.80935 | EY99: 29.71429 | EZ99: 3884 | FA99: 2451 | FB99: 1206.32 | FC99: -994.96982 | FD99: 479.44437 | FE99: -24.065 | FF99: 32817 | FG99: 27205 | FH99: 5612 | FI99: 0 | FJ99: 30345.24312 | FK99: 25501.98434 | FL99: 4843.25878 | FM99: 0 | FN99: 28876.01086 | FO99: 24010.98629 | FP99: 4865.02457 | FQ99: 17.23833 | FR99: 450 | FU99: 132 | FV99: 407.62303 | FW99: 134.6775
A100: 276 | B100: Kontiolahti | C100: 14857 | E100: 1.449663735 | F100: 61.63560868 | G100: -4249.71394 | K100: 35.98197755 | L100: 1053.577438 | M100: 39.28047439 | N100: 9789.997981 | P100: 53548 | Q100: 125470 | R100: -12 | S100: -71934 | T100: 54019 | U100: 31635 | X100: -679 | Y100: 237 | Z100: 13278 | AA100: 7076 | AB100: 0 | AD100: 6202 | AE100: 2 | AF100: 5 | AG100: 56 | AH100: -12 | AI100: 6140 | AJ100: 27868 | AK100: 13997 | AM100: -1261 | AN100: -8932 | AO100: 9525 | AT100: 20.5 | AV100: 195 | AW100: 15035 | AY100: 1.287784303 | AZ100: 69.77831442 | BA100: -4960.347926 | BE100: 33.47421919 | BF100: 1167.902229 | BG100: 39.81852509 | BH100: 10705.67814 | BJ100: 57090.35585 | BK100: 131806.3518 | BL100: -23.45366 | BM100: -74739.44962 | BN100: 57005.30651 | BO100: 28220.6798 | BR100: -647.34212 | BS100: 251.27744 | BT100: 10090.47201 | BU100: 8504.82452 | BV100: 0 | BX100: 1585.64749 | BY100: -2.00227 | BZ100: -77.94018 | CA100: 33.11129 | CB100: 5.33518 | CC100: 1477.92893 | CD100: 29398.01202 | CE100: 7760.9005 | CG100: -161.20351 | CH100: -7677.53772 | CI100: -11226.8077 | CN100: 20.5 | CP100: 217 | CQ100: 15157 | CS100: 0.9115963351 | CT100: 76.46026385 | CU100: -5674.37399 | CY100: 29.08295468 | CZ100: 1392.015646 | DA100: 43.80613497 | DB100: 11598.5058 | DD100: 61428.10865 | DE100: 144135.0192 | DF100: -158.38994 | DG100: -82865.30053 | DH100: 61635.17448 | DI100: 29910.89993 | DL100: -915.57854 | DM100: 168.95227 | DN100: 7934.14761 | DO100: 8109.33179 | DP100: 0 | DR100: -175.18418 | DS100: 8.37883 | DT100: 150.64463 | DU100: 31.748 | DV100: 1.55694 | DW100: -46.35178 | DX100: 27991.16509 | DY100: 9555.18744 | EA100: -3072.55054 | EB100: -8804.36885 | EC100: -10971.31918 | EH100: 20.5 | EJ100: 220 | EQ100: -10275 | ER100: 26 | ES100: 5777 | ET100: -20747.20132 | EU100: 95.17158 | EV100: 1664.32154 | EW100: -21696.84348 | EX100: 293.37402 | EY100: 876.96284 | EZ100: 12467 | FA100: -3739 | FB100: 20353.78777 | FC100: -543.4192 | FD100: 22696.72978 | FE100: -462.80534 | FF100: 71459 | FG100: 61300 | FH100: 10159 | FI100: 22 | FJ100: 83592.0843 | FK100: 73222.74296 | FL100: 10369.34134 | FM100: 20.07413 | FN100: 97021.63989 | FO100: 86541.20492 | FP100: 10480.43497 | FQ100: 20.36868 | FR100: 1053 | FU100: 10455 | FV100: 8589.578 | FW100: 11514.294
A101: 280 | B101: Korsnäs | C101: 2068 | E101: 3.772277228 | F101: 43.17800263 | G101: -3573.017408 | K101: 51.87268636 | L101: 550.7736944 | M101: 17.11407048 | N101: 11746.61509 | P101: 7893 | Q101: 21306 | R101: -4 | S101: -13417 | T101: 6606 | U101: 7540 | X101: -39 | Y101: 30 | Z101: 720 | AA101: 1725 | AB101: 51 | AD101: -954 | AE101: 0 | AF101: 0 | AG101: 0 | AH101: 0 | AI101: -953 | AJ101: 6991 | AK101: 763 | AM101: 139 | AN101: -160 | AO101: -2000 | AT101: 21.5 | AV101: 289 | AW101: 2050 | AY101: -9.963241709 | AZ101: 56.31815037 | BA101: -5008.708717 | BE101: 44.04058861 | BF101: 884.0509122 | BG101: 23.56109516 | BH101: 13695.39832 | BJ101: 8611.99214 | BK101: 22453.241 | BL101: 0 | BM101: -13841.24886 | BN101: 7789.66759 | BO101: 7293.0909 | BR101: -30.58079 | BS101: 41.36555 | BT101: 1252.29439 | BU101: 1952.75945 | BV101: 4.2704 | BX101: -696.19466 | BY101: 0 | BZ101: 0 | CA101: 0 | CB101: 0 | CC101: -696.19466 | CD101: 6204.79347 | CE101: 1232.94551 | CG101: -289.92041 | CH101: -162.2234 | CI101: -2892.52889 | CN101: 21.5 | CP101: 246 | CQ101: 2024 | CS101: 4.654520171 | CT101: 44.99108751 | CU101: -5753.812584 | CY101: 42.40062732 | CZ101: 356.9872036 | DA101: 7.695852148 | DB101: 16931.24125 | DD101: 16911.21779 | DE101: 30854.87162 | DF101: 0 | DG101: -13943.65383 | DH101: 7957.59125 | DI101: 7519.076 | DL101: -73.46732 | DM101: 41.15129 | DN101: 1500.69739 | DO101: 1407.75458 | DP101: 0 | DR101: 92.94281 | DS101: 0 | DT101: 0 | DU101: 0 | DV101: 0 | DW101: 92.94281 | DX101: 6360.71179 | DY101: 1486.32218 | EA101: -1812.69464 | EB101: -262.14765 | EC101: -1351.07632 | EH101: 22 | EJ101: 156 | EQ101: -2774 | ER101: 1 | ES101: 10 | ET101: -5742.48249 | EU101: 1588.75467 | EV101: 28.25342 | EW101: -3059.99928 | EX101: 177.9421 | EY101: 44.65868 | EZ101: 1320 | FA101: 240 | FB101: 3008.60036 | FC101: 205.32273 | FD101: 3130.334 | FE101: -2912.62263 | FF101: 6441 | FG101: 3298 | FH101: 3143 | FI101: 1 | FJ101: 9816.39378 | FK101: 5970.03804 | FL101: 3846.35574 | FM101: 1.02073 | FN101: 9714.95101 | FO101: 7664.44967 | FP101: 2050.50134 | FQ101: 1.02073 | FR101: 967 | FU101: 31 | FV101: 0 | FW101: 0
A102: 284 | B102: Koski tl | C102: 2292 | E102: 95.88461538 | F102: 25.47760966 | G102: -952.0069808 | K102: 65.75409435 | L102: 1343.804538 | M102: 43.16044074 | N102: 11364.31065 | P102: 10152 | Q102: 23730 | R102: 24 | S102: -13554 | T102: 7535 | U102: 8485 | X102: -26 | Y102: 27 | Z102: 2467 | AA102: 1124 | AB102: 0 | AD102: 1343 | AE102: -2 | AF102: 1 | AG102: 0 | AH102: 0 | AI102: 1342 | AJ102: 5717 | AK102: 2468 | AM102: 162 | AN102: 0 | AO102: 591 | AT102: 20 | AV102: 109 | AW102: 2271 | AY102: 6.30608579 | AZ102: 22.79676962 | BA102: -156.837587 | BE102: 68.17339746 | BF102: 1959.739133 | BG102: 62.59073791 | BH102: 11428.28487 | BJ102: 10611.05662 | BK102: 24848.21461 | BL102: 32.10639 | BM102: -14205.0516 | BN102: 8048.77688 | BO102: 8549.934 | BR102: -25.98249 | BS102: 27.82453 | BT102: 2395.50132 | BU102: 1095.68762 | BV102: 0 | BX102: 1299.8137 | BY102: -0.07238 | BZ102: -3e-05 | CA102: 0.04958 | CB102: 0 | CC102: 1299.69171 | CD102: 7147.19271 | CE102: 2398.3572 | CG102: 11.52682 | CH102: -357.8599 | CI102: 1741.07293 | CN102: 20 | CP102: 87 | CQ102: 2227 | CS102: 2.543543493 | CT102: 29.52637826 | CU102: -687.3835833 | CY102: 62.14840792 | CZ102: 2423.260723 | DA102: 66.33116769 | DB102: 13334.45791 | DD102: 11104.34274 | DE102: 27408.59993 | DF102: 15.09909 | DG102: -16289.1581 | DH102: 7773.96886 | DI102: 9272.974 | DL102: -40.42097 | DM102: 24.36227 | DN102: 741.72606 | DO102: 1112.26116 | DP102: 0 | DR102: -370.5351 | DS102: -1.23857 | DT102: 0 | DU102: 0.18772 | DV102: 0 | DW102: -371.96139 | DX102: 6762.504 | DY102: 725.05138 | EA102: -11.55209 | EB102: -266.99725 | EC102: -1189.26192 | EH102: 20 | EJ102: 270 | EQ102: -2285 | ER102: 317 | ES102: 91 | ET102: -717.02067 | EU102: 53.17745 | EV102: 6.55895 | EW102: -1976.77033 | EX102: 38.73659 | EY102: 23.72044 | EZ102: 209 | FA102: 429 | FB102: 136.22896 | FC102: -37.84827 | FD102: 1283.04 | FE102: 196.76295 | FF102: 1704 | FG102: 1324 | FH102: 380 | FI102: 11 | FJ102: 1431.68578 | FK102: 1089.44229 | FL102: 342.24349 | FM102: 10.87911 | FN102: 2495.9146 | FO102: 1956.90816 | FP102: 539.00644 | FQ102: 10.87911 | FR102: 152 | FU102: 1061 | FV102: 0 | FW102: 0
A103: 285 | B103: Kotka | C103: 51668 | E103: 3.733623982 | F103: 81.81608454 | G103: -9431.485639 | K103: 40.16626431 | L103: 1823.836804 | M103: 45.13845181 | N103: 14747.96779 | P103: 395201 | Q103: 667341 | R103: 420 | S103: -271720 | T103: 223210 | U103: 153150 | X103: -6198 | Y103: -1152 | Z103: 97290 | AA103: 81822 | AB103: 0 | AD103: 15468 | AE103: -3567 | AF103: 0 | AG103: 2975 | AH103: 40 | AI103: 8967 | AJ103: 59060 | AK103: 90005 | AM103: 9884 | AN103: -21421 | AO103: 31978 | AT103: 21.5 | AV103: 7 | AW103: 51241 | AY103: 1.554814664 | AZ103: 76.94116147 | BA103: -9646.236771 | BE103: 39.95046055 | BF103: 1422.252706 | BG103: 29.5779397 | BH103: 17550.99384 | BJ103: 460114.0511 | BK103: 750035.6787 | BL103: 1697.54546 | BM103: -288224.0821 | BN103: 235018.5348 | BO103: 143236.7857 | BR103: -5292.82519 | BS103: -722.5157 | BT103: 84015.89755 | BU103: 67730.37882 | BV103: -439.86854 | BX103: 15845.65019 | BY103: -3431.36233 | BZ103: 0 | CA103: 2845.38791 | CB103: 21.18588 | CC103: 9590.08583 | CD103: 69942.68111 | CE103: 76941.86973 | CG103: -27889.20943 | CH103: -52098.76437 | CI103: 3177.34062 | CN103: 21.5 | CP103: 16 | CQ103: 50617 | CS103: 3.273852452 | CT103: 75.36452544 | CU103: -10739.60866 | CY103: 32.87663489 | CZ103: 1238.54335 | DA103: 22.83465246 | DB103: 19797.46894 | DD103: 528514.647 | DE103: 840049.23 | DF103: 801.60727 | DG103: -310732.9757 | DH103: 243335.2398 | DI103: 149349.9984 | DL103: -5292.2063 | DM103: -1467.94719 | DN103: 75192.10905 | DO103: 62559.99886 | DP103: 3.13258 | DR103: 12635.24277 | DS103: -2369.08132 | DT103: 0 | DU103: 3556.3592 | DV103: -734.61335 | DW103: 5975.1889 | DX103: 77328.21156 | DY103: 65973.50622 | EA103: -10073.25476 | EB103: -19130.19515 | EC103: -47219.6759 | EH103: 22 | EJ103: 24 | EQ103: -65503 | ER103: 835 | ES103: 6641 | ET103: -90638.44906 | EU103: 337.29816 | EV103: 16536.62179 | EW103: -135278.3921 | EX103: 373.79786 | EY103: 21711.41214 | EZ103: 24058 | FA103: -39021 | FB103: 41678.52718 | FC103: 1066.05214 | FD103: 64510.00766 | FE103: -8229.2642 | FF103: 508970 | FG103: 275230 | FH103: 233740 | FI103: 918 | FJ103: 499614.8059 | FK103: 275330.9956 | FL103: 224283.8103 | FM103: 277.45111 | FN103: 536765.3542 | FO103: 301305.1862 | FP103: 235460.168 | FQ103: 277.45111 | FR103: 220 | FU103: 178949 | FV103: 187291.039 | FW103: 209789.975
A104: 286 | B104: Kouvola | C104: 81187 | E104: 1.832346532 | F104: 64.07521627 | G104: -6018.734526 | K104: 35.22594799 | L104: 940.3968616 | M104: 25.34084213 | N104: 13545.12422 | P104: 450343 | Q104: 942895 | R104: 5986 | S104: -486566 | T104: 353191 | U104: 214969 | X104: -4779 | Y104: 1288 | Z104: 78103 | AA104: 45810 | AB104: 0 | AD104: 32293 | AE104: -103 | AF104: 0 | AG104: 3304 | AH104: -13 | AI104: 28872 | AJ104: 68991 | AK104: 70237 | AM104: 2565 | AN104: -40287 | AO104: -18369 | AT104: 21.25 | AV104: 146 | AW104: 80454 | AY104: 1.111273098 | AZ104: 68.91920281 | BA104: -6689.535325 | BE104: 31.59198796 | BF104: 783.2284899 | BG104: 19.11447567 | BH104: 14956.12036 | BJ104: 521444.8226 | BK104: 1036232.234 | BL104: 2937.07186 | BM104: -511850.3394 | BN104: 369309.566 | BO104: 194648.27 | BR104: -4404.4066 | BS104: 4030.68114 | BT104: 51733.77115 | BU104: 51347.79731 | BV104: 0 | BX104: 385.97384 | BY104: -771.50458 | BZ104: 0 | CA104: 2862.37562 | CB104: -64.61833 | CC104: -3312.52469 | CD104: 63694.3871 | CE104: 46216.76457 | CG104: -59070.51374 | CH104: -46074.98822 | CI104: -49933.35854 | CN104: 21.25 | CP104: 227 | CQ104: 79429 | CS104: 0.7218409748 | CT104: 77.55283066 | CU104: -7233.72333 | CY104: 27.53605394 | CZ104: 2160.221648 | DA104: 48.17828784 | DB104: 16365.8971 | DD104: 597024.2982 | DE104: 1094041.758 | DF104: 716.75108 | DG104: -496300.7089 | DH104: 378996.8678 | DI104: 180435.025 | DL104: -4832.20589 | DM104: -3161.88466 | DN104: 55137.09335 | DO104: 56460.88397 | DP104: 0 | DR104: -1323.79062 | DS104: 269.73517 | DT104: 0 | DU104: 3619.18534 | DV104: 309.1292 | DW104: -4364.11159 | DX104: 59346.5087 | DY104: 46386.11724 | EA104: -2820.21849 | EB104: -78469.71711 | EC104: -43157.65265 | EH104: 21.25 | EJ104: 169 | EQ104: -110372 | ER104: 2311 | ES104: 19455 | ET104: -115735.4376 | EU104: 2015.52457 | EV104: 17569.78991 | EW104: -113703.2644 | EX104: 2752.4777 | EY104: 21407.01677 | EZ104: 71105 | FA104: -37907 | FB104: 58719.51822 | FC104: 34200.21596 | FD104: 107114.303 | FE104: 111377.5616 | FF104: 482000 | FG104: 426644 | FH104: 55356 | FI104: 5421 | FJ104: 528844.3684 | FK104: 429350.1885 | FL104: 99494.17993 | FM104: 5173.96831 | FN104: 668866.5159 | FO104: 420830.8333 | FP104: 248035.6827 | FQ104: 5166.46831 | FR104: 9766 | FU104: 42111 | FV104: 47198.28148 | FW104: 51557.89901
A105: 287 | B105: Kristiinankaupunki | C105: 6404 | E105: 0.8333606155 | F105: 76.16128723 | G105: -6702.373517 | K105: 29.21124033 | L105: 1230.949407 | M105: 35.24930476 | N105: 12746.25234 | P105: 24967 | Q105: 67872 | R105: -8 | S105: -42913 | T105: 25118 | U105: 23002 | X105: -417 | Y105: -118 | Z105: 4672 | AA105: 4510 | AB105: 127 | AD105: 289 | AE105: 2 | AF105: 0 | AG105: 3 | AH105: -26 | AI105: 262 | AJ105: 8445 | AK105: 3876 | AM105: 552 | AN105: -5690 | AO105: -1770 | AT105: 21.5 | AV105: 247 | AW105: 6380 | AY105: 0.812922798 | AZ105: 76.31931179 | BA105: -6966.912207 | BE105: 29.2035295 | BF105: 1162.018654 | BG105: 32.24401433 | BH105: 13153.97035 | BJ105: 27425.90902 | BK105: 71008.28411 | BL105: 0 | BM105: -43582.37509 | BN105: 26808.09555 | BO105: 21772.521 | BR105: -267.83133 | BS105: 44.19582 | BT105: 4774.60595 | BU105: 4180.02891 | BV105: 10.57552 | BX105: 605.15256 | BY105: 4.03077 | BZ105: 0 | CA105: 3.78121 | CB105: -2.0808 | CC105: 603.32132 | CD105: 9201.47434 | CE105: 2866.94842 | CG105: -347.83471 | CH105: -5947.97936 | CI105: -1692.73247 | CN105: 21.5 | CP105: 195 | CQ105: 6242 | CS105: 0.498524173 | CT105: 69.64759782 | CU105: -7926.940519 | CY105: 25.31974075 | CZ105: 1631.008523 | DA105: 34.47163705 | DB105: 17269.79517 | DD105: 45328.45567 | DE105: 92971.17498 | DF105: 0 | DG105: -47642.71931 | DH105: 27385.02734 | DI105: 23560.598 | DL105: -394.085 | DM105: 21.94313 | DN105: 2930.76416 | DO105: 3708.86414 | DP105: -55.34371 | DR105: -833.44369 | DS105: 7.4911 | DT105: 7.75895 | DU105: 4.76938 | DV105: -10.3496 | DW105: -833.31262 | DX105: 7614.85072 | DY105: 2515.06055 | EA105: -170.80036 | EB105: -6277.6855 | EC105: -4553.31177 | EH105: 21.5 | EJ105: 241 | EQ105: -7398 | ER105: 62 | ES105: 1690 | ET105: -6493.59777 | EU105: 1216.76807 | EV105: 717.14881 | EW105: -7979.79829 | EX105: 489.16691 | EY105: 422.25906 | EZ105: 10844 | FA105: -1042 | FB105: 9115.43462 | FC105: 427.37099 | FD105: 10815.24496 | FE105: -643.66014 | FF105: 42179 | FG105: 35579 | FH105: 6600 | FI105: 3 | FJ105: 45749.6817 | FK105: 38817.77623 | FL105: 6931.90547 | FM105: 2.52781 | FN105: 49633.72461 | FO105: 43501.69853 | FP105: 6132.02608 | FQ105: 2.52781 | FR105: 714 | FU105: 902 | FV105: 838.408 | FW105: 9093.48
A106: 288 | B106: Kruunupyy | C106: 6416 | E106: 1.142725088 | F106: 59.80580007 | G106: -4980.985037 | K106: 30.27254436 | L106: 933.2917706 | M106: 28.93557868 | N106: 11772.75561 | P106: 25987 | Q106: 63402 | R106: -3 | S106: -37418 | T106: 24590 | U106: 18836 | X106: -275 | Y106: 165 | Z106: 5898 | AA106: 2859 | AB106: 0 | AD106: 3039 | AE106: 0 | AF106: -13 | AG106: 0 | AH106: 38 | AI106: 3064 | AJ106: 12003 | AK106: 5881 | AM106: -76 | AN106: -5126 | AO106: -534 | AT106: 22 | AV106: 177 | AW106: 6442 | AY106: 1.098696131 | AZ106: 58.16282972 | BA106: -4960.617665 | BE106: 31.07583644 | BF106: 964.1519714 | BG106: 28.89810087 | BH106: 12177.80612 | BJ106: 28151.21 | BK106: 67757.995 | BL106: 18.807 | BM106: -39587.978 | BN106: 26671.018 | BO106: 18184.875 | BR106: -219.025 | BS106: 291.443 | BT106: 5340.333 | BU106: 4013.706 | BV106: 0 | BX106: 1326.627 | BY106: -0.974 | BZ106: 13.854 | CA106: 2.377 | CB106: 18.754 | CC106: 1355.884 | CD106: 13167.43 | CE106: 5258.218 | CG106: -727.331 | CH106: -4840.149 | CI106: 16.608 | CN106: 22 | CP106: 164 | CQ106: 6405 | CS106: 1.595567833 | CT106: 51.65852919 | CU106: -4388.423212 | CY106: 36.4893951 | CZ106: 1064.714442 | DA106: 31.67445291 | DB106: 12269.21811 | DD106: 30958.148 | DE106: 70132.18 | DF106: 18.715 | DG106: -39155.317 | DH106: 27015.896 | DI106: 19539.308 | DL106: -226.148 | DM106: 422.698 | DN106: 7596.437 | DO106: 3322.251 | DP106: 0 | DR106: 4274.186 | DS106: -0.309 | DT106: 32.016 | DU106: 73.695 | DV106: -7.429 | DW106: 4224.769 | DX106: 17123.04744 | DY106: 7379.062 | EA106: -852.547 | EB106: -4673.078 | EC106: 4083.828 | EH106: 22 | EJ106: 50 | EQ106: -6719 | ER106: 152 | ES106: 152 | ET106: -5605.414 | EU106: 76.805 | EV106: 286.999 | EW106: -3510.65 | EX106: 2.685 | EY106: 212.731 | EZ106: 7362 | FA106: -764 | FB106: 4745.439 | FC106: 697.925 | FD106: 5300.103 | FE106: -3042.669 | FF106: 30091 | FG106: 23108 | FH106: 6983 | FI106: 9 | FJ106: 30693.647 | FK106: 23013.01 | FL106: 7680.637 | FM106: 7.74 | FN106: 28288.00206 | FO106: 23291.55721 | FP106: 4996.44485 | FQ106: 3.87 | FR106: 6099 | FU106: 969 | FV106: 909.482 | FW106: 942.22
A107: 290 | B107: Kuhmo | C107: 8042 | E107: 1.33043654 | F107: 69.18364079 | G107: -4757.025616 | K107: 34.33067084 | L107: 4416.31435 | M107: 104.564146 | N107: 15415.94131 | P107: 54750 | Q107: 112148 | R107: 0 | S107: -57398 | T107: 28886 | U107: 35025 | X107: -242 | Y107: 33 | Z107: 6304 | AA107: 6474 | AB107: 0 | AD107: -170 | AE107: -150 | AF107: 2 | AG107: 59 | AH107: -416 | AI107: -793 | AJ107: 4846 | AK107: 6531 | AM107: -1288 | AN107: -4669 | AO107: 1183 | AT107: 22 | AV107: 228 | AW107: 7928 | AY107: 2.878415282 | AZ107: 64.41415222 | BA107: -3991.63253 | BE107: 38.36116763 | BF107: 5061.287294 | BG107: 117.8628067 | BH107: 15673.90015 | BJ107: 56593.58539 | BK107: 113112.0464 | BL107: -2.48371 | BM107: -56520.94469 | BN107: 31698.818 | BO107: 35788.0823 | BR107: -224.64324 | BS107: 2604.02464 | BT107: 13345.33701 | BU107: 5643.09733 | BV107: 0 | BX107: 7702.23968 | BY107: -505.0689 | BZ107: 3.70608 | CA107: 164.55151 | CB107: -256.53165 | CC107: 6779.7937 | CD107: 11625.65902 | CE107: 12674.62021 | CG107: 168.39419 | CH107: -4463.33642 | CI107: 6835.29571 | CN107: 22 | CP107: 14 | CQ107: 7755 | CS107: 5.589113491 | CT107: 64.74981473 | CU107: -3874.31441 | CY107: 34.89388528 | CZ107: 5887.441026 | DA107: 129.0897949 | DB107: 16646.67587 | DD107: 59771.80046 | DE107: 116753.6519 | DF107: -6.42916 | DG107: -56988.28062 | DH107: 31942.85342 | DI107: 36177.38125 | DL107: -314.07691 | DM107: -600.82295 | DN107: 10217.05419 | DO107: 5568.67248 | DP107: 948.77299 | DR107: 5597.1547 | DS107: -1374.46367 | DT107: 27.77628 | DU107: 570.08707 | DV107: -246.51446 | DW107: 3433.86578 | DX107: 15034.6464 | DY107: 9704.25597 | EA107: 1032.25749 | EB107: -1539.61876 | EC107: 1812.46885 | EH107: 22 | EJ107: 36 | EQ107: -5621 | ER107: 41 | ES107: 232 | ET107: -5966.54901 | EU107: 41.49231 | EV107: 85.7322 | EW107: -8506.95441 | EX107: 19.82801 | EY107: 595.33927 | EZ107: 2943 | FA107: 2998 | FB107: 4640.01 | FC107: -1975.7177 | FD107: 4576.50435 | FE107: -59.96331 | FF107: 63601 | FG107: 56225 | FH107: 7376 | FI107: 0 | FJ107: 61801.91074 | FK107: 55591.57344 | FL107: 6210.3373 | FM107: 0 | FN107: 64778.83302 | FO107: 54435.86801 | FP107: 10342.96501 | FQ107: 0 | FR107: 432 | FU107: 1789 | FV107: 1947.91346 | FW107: 2109.83799
A108: 291 | B108: Kuhmoinen | C108: 2161 | E108: 6.252475248 | F108: 45.34564103 | G108: -1935.677927 | K108: 61.55052948 | L108: 2644.146229 | M108: 86.29634227 | N108: 11183.71124 | P108: 5135 | Q108: 21876 | R108: 4 | S108: -16737 | T108: 8757 | U108: 10483 | X108: 21 | Y108: -25 | Z108: 2499 | AA108: 2146 | AB108: 3 | AD108: 356 | AE108: -8 | AF108: 44 | AG108: 0 | AH108: -19 | AI108: 374 | AJ108: 5452 | AK108: 2351 | AM108: -374 | AN108: -377 | AO108: 1502 | AT108: 21.75 | AV108: 92 | AW108: 2158 | AY108: 6.871002169 | AZ108: 52.08850534 | BA108: -3401.124685 | BE108: 57.82499787 | BF108: 2191.412335 | BG108: 58.51307518 | BH108: 13669.85926 | BJ108: 5896.64378 | BK108: 23409.42799 | BL108: 3.33533 | BM108: -17509.44888 | BN108: 9665.11547 | BO108: 10115.78606 | BR108: 50.40234 | BS108: -7.93686 | BT108: 2313.91813 | BU108: 1683.6268 | BV108: 0.76388 | BX108: 631.05521 | BY108: -5.30429 | BZ108: 13.59236 | CA108: 14.86963 | CB108: 0 | CC108: 624.47365 | CD108: 6039.1189 | CE108: 2339.43248 | CG108: -250.78093 | CH108: -336.76574 | CI108: -3103.0765 | CN108: 21.75 | CP108: 84 | CQ108: 2119 | CS108: 0.4943320749 | CT108: 53.92031468 | CU108: -2868.549269 | CY108: 54.25903901 | CZ108: 3330.406796 | DA108: 92.37314931 | DB108: 13159.6518 | DD108: 5938.34295 | DE108: 26193.98499 | DF108: -3.76512 | DG108: -20259.40716 | DH108: 9874.18911 | DI108: 10549.26181 | DL108: -10.43644 | DM108: -13.70599 | DN108: 139.90132 | DO108: 1460.24407 | DP108: 0 | DR108: -1320.34275 | DS108: -9.52739 | DT108: 0.00889 | DU108: 116.33194 | DV108: -0.35268 | DW108: -1446.54588 | DX108: 4829.76077 | DY108: 23.69722 | EA108: 235.39026 | EB108: -406.38238 | EC108: 1173.1723 | EH108: 21.75 | EJ108: 284 | EQ108: -1534 | ER108: 12 | ES108: 673 | ET108: -5697.51485 | EU108: 0 | EV108: 255.00587 | EW108: -1124.47071 | EX108: 0 | EY108: 2273.94579 | EZ108: 155 | FA108: 1409 | FB108: 0 | FC108: 2612.23534 | FD108: 85.095 | FE108: 35.34354 | FF108: 8690 | FG108: 4457 | FH108: 4233 | FI108: 263 | FJ108: 10957.22323 | FK108: 4124.36987 | FL108: 6832.85336 | FM108: 4.48776 | FN108: 10670.9573 | FO108: 3797.07606 | FP108: 6873.88124 | FQ108: 4.31211 | FR108: 316 | FU108: 8 | FV108: 51.84281 | FW108: 0
A109: 297 | B109: Kuopio | C109: 120210 | E109: 1.995359094 | F109: 104.6350415 | G109: -8955.070294 | K109: 26.84505724 | L109: 2469.985858 | M109: 70.35513943 | N109: 12814.20015 | P109: 588201 | Q109: 1212592 | R109: 2504 | S109: -621887 | T109: 486187 | U109: 314359 | X109: -12498 | Y109: 2725 | Z109: 168886 | AA109: 117094 | AB109: 610 | AD109: 52402 | AE109: -2707 | AF109: 368 | AG109: 2770 | AH109: -1585 | AI109: 45708 | AJ109: 54399 | AK109: 155548 | AM109: 947 | AN109: -78163 | AO109: -28739 | AT109: 20.75 | AV109: 34 | AW109: 121543 | AY109: 1.693746762 | AZ109: 96.39583069 | BA109: -8874.701842 | BE109: 28.35788304 | BF109: 1905.093688 | BG109: 51.33210321 | BH109: 13546.28298 | BJ109: 656486.0471 | BK109: 1293592.01 | BL109: 2036.09489 | BM109: -635069.8681 | BN109: 524224.5467 | BO109: 300271.6136 | BR109: -11900.49837 | BS109: 5016.86443 | BT109: 182542.6583 | BU109: 124202.6551 | BV109: 0 | BX109: 58340.00317 | BY109: -3993.85341 | BZ109: -38.07249 | CA109: 5028.18651 | CB109: -2154.47285 | CC109: 47125.41791 | CD109: 102479.8311 | CE109: 161086.5681 | CG109: -35805.24812 | CH109: -102745.9491 | CI109: -2392.42807 | CN109: 20.75 | CP109: 28 | CQ109: 122594 | CS109: 1.4866183 | CT109: 99.97441716 | CU109: -9273.657945 | CY109: 25.86343354 | CZ109: 2055.659221 | DA109: 52.6708294 | DB109: 14245.37309 | DD109: 683191.0309 | DE109: 1383682.507 | DF109: 4922.84288 | DG109: -695568.6331 | DH109: 549550.649 | DI109: 318671.0026 | DL109: -12627.78773 | DM109: 3384.80605 | DN109: 163410.0369 | DO109: 128587.0794 | DP109: 63.59155 | DR109: 34886.549 | DS109: -541.25658 | DT109: 194.03221 | DU109: 4792.50608 | DV109: -2098.24575 | DW109: 27648.5728 | DX109: 128848.9541 | DY109: 143435.4253 | EA109: -43273.72939 | EB109: -105619.6072 | EC109: -49178.57651 | EH109: 20.75 | EJ109: 33 | EQ109: -236447 | ER109: 2949 | ES109: 49211 | ET109: -238438.0485 | EU109: 6537.00134 | EV109: 68422.05099 | EW109: -242937.8829 | EX109: 4226.43903 | EY109: 46097.44212 | EZ109: 174239 | FA109: -4214 | FB109: 68469.3685 | FC109: -4588.65995 | FD109: 193815.2127 | FE109: -4431.18198 | FF109: 1167789 | FG109: 1056540 | FH109: 111249 | FI109: 704 | FJ109: 1128518.239 | FK109: 1021411.807 | FL109: 107106.433 | FM109: 713.34995 | FN109: 1212090.866 | FO109: 1106563.435 | FP109: 105527.4306 | FQ109: 630.97345 | FR109: 8601 | FU109: 147742 | FV109: 136817.5357 | FW109: 196129.061
A110: 300 | B110: Kuortane | C110: 3534 | E110: 3.470187394 | F110: 43.77117933 | G110: -5630.447085 | K110: 41.4487934 | L110: 891.3412564 | M110: 18.49096962 | N110: 17594.51047 | P110: 32497 | Q110: 55581 | R110: -21 | S110: -23105 | T110: 11546 | U110: 15567 | X110: -136 | Y110: 48 | Z110: 3920 | AA110: 2369 | AB110: 0 | AD110: 1551 | AE110: -2 | AF110: 17 | AG110: 0 | AH110: -27 | AI110: 1539 | AJ110: 4630 | AK110: 3809 | AM110: 38 | AN110: -1020 | AO110: -1293 | AT110: 21 | AV110: 99 | AW110: 3528 | AY110: 2.104104364 | AZ110: 42.57852445 | BA110: -5628.006074 | BE110: 43.44212269 | BF110: 863.8842035 | BG110: 17.28311949 | BH110: 18244.2605 | BJ110: 36597.06905 | BK110: 60617.30772 | BL110: -29.37014 | BM110: -24049.60881 | BN110: 11864.14224 | BO110: 15134.01475 | BR110: -72.49121 | BS110: 1.23473 | BT110: 2877.2917 | BU110: 2057.58203 | BV110: 3019.42957 | BX110: 3839.13924 | BY110: 0.7782 | BZ110: 19.46719 | CA110: 0 | CB110: -27.18643 | CC110: 3832.1982 | CD110: 7205.11328 | CE110: 2966.22221 | CG110: 485.37873 | CH110: -1317.84031 | CI110: 1207.61685 | CN110: 21 | CP110: 167 | CQ110: 3437 | CS110: 2.768157432 | CT110: 38.5358683 | CU110: -5480.863107 | CY110: 46.44959914 | CZ110: 948.334117 | DA110: 17.86047323 | DB110: 19380.3349 | DD110: 37483.90996 | DE110: 62402.38143 | DF110: -21.6668 | DG110: -24940.13827 | DH110: 12236.26798 | DI110: 16764.7034 | DL110: -137.0494 | DM110: 96.28183 | DN110: 4020.06554 | DO110: 2252.88677 | DP110: 0 | DR110: 1767.17877 | DS110: 10.16087 | DT110: 44.87179 | DU110: 0 | DV110: -21.88729 | DW110: 1800.32414 | DX110: 8520.9036 | DY110: 3896.01074 | EA110: 733.52098 | EB110: -1348.23796 | EC110: 1756.29857 | EH110: 21 | EJ110: 54 | EQ110: -5386 | ER110: 207 | ES110: 77 | ET110: -2257.03878 | EU110: -2539.60657 | EV110: 3038.03999 | EW110: -2624.03385 | EX110: 377.20113 | EY110: 107.12055 | EZ110: 1668 | FA110: 1032 | FB110: 319.41296 | FC110: 1133.0557 | FD110: 628.75604 | FE110: -394.33896 | FF110: 20346 | FG110: 14888 | FH110: 5458 | FI110: 1558 | FJ110: 20532.79296 | FK110: 13910.10509 | FL110: 6622.68787 | FM110: 1579.33352 | FN110: 19405.37076 | FO110: 13207.86317 | FP110: 6197.50759 | FQ110: 1574.42068 | FR110: 1627 | FU110: 5628 | FV110: 3369.152 | FW110: 3969.51
A111: 301 | B111: Kurikka | C111: 20456 | E111: 1.323221314 | F111: 77.64762796 | G111: -5021.31404 | K111: 38.13937329 | L111: 2826.310129 | M111: 85.96973487 | N111: 11999.60892 | P111: 79340 | Q111: 213843 | R111: 3 | S111: -134500 | T111: 67889 | U111: 76018 | X111: -716 | Y111: 12236 | Z111: 20927 | AA111: 15583 | AB111: 0 | AD111: 5344 | AE111: -12 | AF111: 0 | AG111: 132 | AH111: -45 | AI111: 5155 | AJ111: 15370 | AK111: 20094 | AM111: 3427 | AN111: -15589 | AO111: 6856 | AT111: 21 | AV111: 122 | AW111: 20197 | AY111: 0.9014946156 | AZ111: 75.63346861 | BA111: -5498.466939 | BE111: 36.62995379 | BF111: 2622.766548 | BG111: 70.41403268 | BH111: 13595.44047 | BJ111: 90326.10374 | BK111: 233929.1932 | BL111: -24.04091 | BM111: -143627.1304 | BN111: 70579.98176 | BO111: 75113.80516 | BR111: -439.46565 | BS111: 11183.59687 | BT111: 12810.78776 | BU111: 15374.8245 | BV111: 0 | BX111: -2564.03674 | BY111: 19.49316 | BZ111: -348.65021 | CA111: 88.36133 | CB111: -70.47508 | CC111: -3052.0302 | CD111: 11401.17799 | CE111: 12573.0657 | CG111: 4182.1469 | CH111: -14289.87552 | CI111: -11658.15285 | CN111: 21 | CP111: 235 | CQ111: 19890 | CS111: 1.086016581 | CT111: 84.6717401 | CU111: -6787.319434 | CY111: 32.84786224 | CZ111: 3152.748341 | DA111: 75.32098159 | DB111: 15277.98921 | DD111: 100163.6324 | DE111: 246255.1892 | DF111: 1.23208 | DG111: -146090.3247 | DH111: 72215.2875 | DI111: 80317.75332 | DL111: -868.21281 | DM111: 11434.91954 | DN111: 17009.42281 | DO111: 15869.79593 | DP111: 0 | DR111: 1139.62688 | DS111: 39.86889 | DT111: -2e-05 | DU111: 19.09078 | DV111: -118.13642 | DW111: 1042.26855 | DX111: 13482.8356 | DY111: 16282.24752 | EA111: 5551.85665 | EB111: -15577.67996 | EC111: -23335.38377 | EH111: 21 | EJ111: 119 | EQ111: -14990 | ER111: 133 | ES111: 1619 | ET111: -25205.61344 | EU111: 258.40543 | EV111: 715.98946 | EW111: -40644.04598 | EX111: 361.75523 | EY111: 664.65946 | EZ111: 13416 | FA111: -3120 | FB111: 17681.22511 | FC111: -1270.6476 | FD111: 42833.54396 | FE111: 3600.70907 | FF111: 131971 | FG111: 106164 | FH111: 25807 | FI111: 0 | FJ111: 134064.5995 | FK111: 107917.769 | FL111: 26146.83044 | FM111: 217.38836 | FN111: 164921.1726 | FO111: 131312.9504 | FP111: 33608.22214 | FQ111: 190.70436 | FR111: 26297 | FU111: 8474 | FV111: 8110.06331 | FW111: 5758.03459
A112: 304 | B112: Kustavi | C112: 962 | E112: 1.774626866 | F112: 48.15261044 | G112: -3518.711019 | K112: 58.1505551 | L112: 1581.081081 | M112: 42.82689192 | N112: 13475.05198 | P112: 5376 | Q112: 11266 | R112: 3 | S112: -5887 | T112: 4651 | U112: 2423 | X112: -50 | Y112: 2 | Z112: 1139 | AA112: 613 | AB112: 0 | AD112: 526 | AE112: -1 | AF112: -461 | AG112: 0 | AH112: 0 | AI112: 65 | AJ112: 3875 | AK112: 1123 | AM112: -152 | AN112: -620 | AO112: 189 | AT112: 18.25 | AV112: 78 | AW112: 971 | AY112: 0.7931887044 | AZ112: 43.52769967 | BA112: -3847.61689 | BE112: 57.99043211 | BF112: 1069.203913 | BG112: 26.80593068 | BH112: 14558.69722 | BJ112: 5632.615 | BK112: 12518.391 | BL112: 5.662 | BM112: -6880.114 | BN112: 5018.043 | BO112: 2369.481 | BR112: -41.119 | BS112: 1.929 | BT112: 468.22 | BU112: 712.241 | BV112: 0 | BX112: -244.021 | BY112: -0.048 | BZ112: 315.53 | CA112: 0 | CB112: 0 | CC112: 71.461 | CD112: 4802.84 | CE112: 472.195 | CG112: 210.177 | CH112: -602.139 | CI112: -485.473 | CN112: 18.25 | CP112: 268 | CQ112: 950 | CS112: 0.9977561673 | CT112: 50.86371967 | CU112: -4709.481053 | CY112: 53.63983412 | CZ112: 1919.010526 | DA112: 43.63754061 | DB112: 16051.29053 | DD112: 5833.481 | DE112: 13168.341 | DF112: -2.698 | DG112: -7337.558 | DH112: 5651.946 | DI112: 2372.773 | DL112: -56.997 | DM112: 11.836 | DN112: 642 | DO112: 716.619 | DP112: 223.962 | DR112: 149.343 | DS112: -0.787 | DT112: -202.016 | DU112: 0 | DV112: 0 | DW112: -53.46 | DX112: 3879.328 | DY112: 630.395 | EA112: 130.32 | EB112: -643.572 | EC112: -695.694 | EH112: 18 | EJ112: 181 | EQ112: -1017 | ER112: 31 | ES112: 52 | ET112: -969.01 | EU112: 8.662 | EV112: 2.68 | EW112: -1379.168 | EX112: 24.597 | EY112: 28.482 | EZ112: 883 | FA112: 72 | FB112: 86.822 | FC112: -35.767 | FD112: 1594.968 | FE112: 129.821 | FF112: 4763 | FG112: 4128 | FH112: 635 | FI112: 0 | FJ112: 4206.001 | FK112: 3651.494 | FL112: 554.507 | FM112: 0 | FN112: 5285.863 | FO112: 4571.994 | FP112: 713.869 | FQ112: 0 | FR112: 1313 | FU112: 911 | FV112: 32.65495 | FW112: 431.86335
A113: 305 | B113: Kuusamo | C113: 15213 | E113: 1.717723707 | F113: 52.27575688 | G113: -2661.539473 | K113: 50.9310536 | L113: 1894.629593 | M113: 62.28734584 | N113: 11102.41241 | P113: 50810 | Q113: 143261 | R113: 9 | S113: -92442 | T113: 53771 | U113: 51455 | X113: -571 | Y113: 118 | Z113: 12331 | AA113: 10096 | AB113: 0 | AD113: 2235 | AE113: -13 | AF113: 837 | AG113: 29 | AH113: -75 | AI113: 2955 | AJ113: 24173 | AK113: 11819 | AM113: -1085 | AN113: -6933 | AO113: -3902 | AT113: 20 | AV113: 218 | AW113: 15165 | AY113: 1.254639568 | AZ113: 55.9531936 | BA113: -3357.617282 | BE113: 46.30171028 | BF113: 1903.120596 | BG113: 57.12475763 | BH113: 12160.0344 | BJ113: 53885.30183 | BK113: 149833.742 | BL113: 1.39251 | BM113: -95947.04767 | BN113: 58299.09315 | BO113: 49895.077 | BR113: -528.96812 | BS113: 916.93201 | BT113: 12635.08637 | BU113: 10487.54937 | BV113: 0 | BX113: 2147.537 | BY113: -12.6777 | BZ113: 693.87023 | CA113: 4.02442 | CB113: -47.51978 | CC113: 2777.18533 | CD113: 25829.17011 | CE113: 12247.39033 | CG113: 1346.31534 | CH113: -9960.92133 | CI113: -9781.65029 | CN113: 20 | CP113: 159 | CQ113: 15146 | CS113: 0.817744423 | CT113: 61.02483443 | CU113: -4825.376913 | CY113: 45.13941418 | CZ113: 1416.605353 | DA113: 37.91186132 | DB113: 13638.50088 | DD113: 58453.68902 | DE113: 159746.6076 | DF113: -105.96229 | DG113: -101398.8809 | DH113: 58885.98058 | DI113: 54345.022 | DL113: -604.68962 | DM113: -999.25465 | DN113: 10228.1774 | DO113: 9105.58855 | DP113: 0 | DR113: 1122.58885 | DS113: -1.98532 | DT113: 1102.0435 | DU113: 19.41638 | DV113: 28.57493 | DW113: 2231.80558 | DX113: 27878.12949 | DY113: 6178.18601 | EA113: 680.28592 | EB113: -12645.71707 | EC113: -21314.20143 | EH113: 20 | EJ113: 183 | EQ113: -18015 | ER113: 1595 | ES113: 699 | ET113: -23862.55722 | EU113: 1440.61894 | EV113: 392.89766 | EW113: -31818.75064 | EX113: 241.28678 | EY113: 4085.07642 | EZ113: 11610 | FA113: -475 | FB113: 18230.67919 | FC113: -318.54876 | FD113: 21987.35424 | FE113: -9.16573 | FF113: 58817 | FG113: 48474 | FH113: 10343 | FI113: 510 | FJ113: 66768.26017 | FK113: 58903.11121 | FL113: 7865.14896 | FM113: 493.93624 | FN113: 76100.73209 | FO113: 67452.27373 | FP113: 8648.45836 | FQ113: 478.312 | FR113: 1535 | FU113: 2438 | FV113: 1693.11581 | FW113: 1993.8012
A114: 312 | B114: Kyyjärvi | C114: 1288 | E114: 5.078947368 | F114: 110.433081 | G114: -9803.571429 | K114: 3.042814828 | L114: 6100.931677 | M114: 147.760033 | N114: 15070.65217 | P114: 9632 | Q114: 18115 | R114: 0 | S114: -8483 | T114: 4657 | U114: 5130 | X114: 36 | Y114: 185 | Z114: 1525 | AA114: 2889 | AB114: 0 | AD114: -1364 | AE114: 448 | AF114: -3 | AG114: 0 | AH114: 0 | AI114: -919 | AJ114: -5004 | AK114: -729 | AM114: -192 | AN114: -285 | AO114: -1616 | AT114: 22.5 | AV114: 77 | AW114: 1232 | AY114: 3.408500637 | AZ114: 97.38954764 | BA114: -9306.114018 | BE114: 6.064100516 | BF114: 6286.190463 | BG114: 138.4478149 | BH114: 16572.73913 | BJ114: 10335.87194 | BK114: 19241.32595 | BL114: 0 | BM114: -8905.45401 | BN114: 5138.14028 | BO114: 4936.11206 | BR114: 8.22788 | BS114: 70.78261 | BT114: 1247.80882 | BU114: 687.27488 | BV114: 76 | BX114: 636.53394 | BY114: 2.13306 | BZ114: 0.19721 | CA114: 0 | CB114: 0 | CC114: 638.86421 | CD114: -4365.61811 | CE114: 1444.43739 | CG114: 253.27502 | CH114: -341.90422 | CI114: 1061.99924 | CN114: 22.5 | CP114: 100 | CQ114: 1196 | CS114: 5.605481776 | CT114: 90.50400977 | CU114: -8491.87908 | CY114: 10.70300156 | CZ114: 6801.35444 | DA114: 141.6537257 | DB114: 17525.09055 | DD114: 11207.62342 | DE114: 20135.31846 | DF114: 0 | DG114: -8927.69504 | DH114: 5530.52536 | DI114: 5050.248 | DL114: -39.38783 | DM114: -92.81445 | DN114: 1520.87604 | DO114: 351.62879 | DP114: 67.0357 | DR114: 1236.28295 | DS114: 6.88926 | DT114: -16.14118 | DU114: 0 | DV114: 0 | DW114: 1227.03103 | DX114: -2865.48944 | DY114: 1595.16189 | EA114: -813.31132 | EB114: -221.35457 | EC114: 1272.42321 | EH114: 22.5 | EJ114: 42 | EQ114: -956 | ER114: 0 | ES114: 69 | ET114: -793.39432 | EU114: 24.22836 | EV114: 386.72781 | EW114: -404.88427 | EX114: 4.54746 | EY114: 77.59813 | EZ114: 236 | FA114: 2625 | FB114: 497.04 | FC114: -1925.2465 | FD114: 89.68 | FE114: -798.60547 | FF114: 19608 | FG114: 5948 | FH114: 13660 | FI114: 65 | FJ114: 17941.27532 | FK114: 6177.59522 | FL114: 11763.6801 | FM114: 0 | FN114: 17010.99528 | FO114: 6049.96646 | FP114: 10961.02882 | FQ114: 0 | FR114: 78 | FU114: 3707 | FV114: 902.15325 | FW114: 1079.49921
A115: 316 | B115: Kärkölä | C115: 4326 | E115: 9.616363636 | F115: 44.99237039 | G115: -3059.87055 | K115: 37.71575377 | L115: 1848.821082 | M115: 53.98956927 | N115: 12499.07536 | P115: 25944 | Q115: 48606 | R115: 2 | S115: -22660 | T115: 17228 | U115: 10566 | X115: -44 | Y115: 154 | Z115: 5244 | AA115: 1599 | AB115: 0 | AD115: 3645 | AE115: -5 | AF115: 0 | AG115: 4 | AH115: 0 | AI115: 3636 | AJ115: 4545 | AK115: 5156 | AM115: 9 | AN115: -505 | AO115: 961 | AT115: 22 | AV115: 71 | AW115: 4245 | AY115: 12.92919967 | AZ115: 55.6307128 | BA115: -5247.359201 | BE115: 33.20214497 | BF115: 1084.874245 | BG115: 26.42206797 | BH115: 14986.68082 | BJ115: 27750.02522 | BK115: 52354.64059 | BL115: 9.89404 | BM115: -24594.72133 | BN115: 16942.18845 | BO115: 9508.12029 | BR115: -21.41393 | BS115: 162.25237 | BT115: 1996.42586 | BU115: 1519.99604 | BV115: 0 | BX115: 476.42982 | BY115: -8.5374 | BZ115: 0 | CA115: 8.12871 | CB115: 0 | CC115: 459.76371 | CD115: 4957.03329 | CE115: 2073.79265 | CG115: -334.70684 | CH115: -122.09438 | CI115: -8993.04763 | CN115: 22 | CP115: 270 | CQ115: 4198 | CS115: 1.039895165 | CT115: 56.83673398 | CU115: -6058.390538 | CY115: 30.82803622 | CZ115: 913.0097451 | DA115: 22.01183469 | DB115: 15139.51752 | DD115: 29628.31736 | DE115: 56141.56578 | DF115: -14.70442 | DG115: -26527.95284 | DH115: 18072.2328 | DI115: 10062.70415 | DL115: -89.24294 | DM115: 226.60731 | DN115: 1744.34849 | DO115: 1739.69072 | DP115: -4.19095 | DR115: 0.46682 | DS115: -4.12255 | DT115: -0.15999 | DU115: 4.52202 | DV115: 0.81199 | DW115: -7.52575 | DX115: 4930.60436 | DY115: 2379.43913 | EA115: -293.10767 | EB115: -1673.9159 | EC115: -3187.68149 | EH115: 22 | EJ115: 254 | EQ115: -4898 | ER115: 604 | ES115: 99 | ET115: -11065.79651 | EU115: 2.51023 | EV115: -3.554 | EW115: -5622.43187 | EX115: 2.96149 | EY115: 52.34975 | EZ115: 6000 | FA115: -6505 | FB115: 9600.91 | FC115: -4646.6589 | FD115: 1047.6 | FE115: 3499.62288 | FF115: 17628 | FG115: 12896 | FH115: 4732 | FI115: 37 | FJ115: 22460.05306 | FK115: 17797.47545 | FL115: 4662.57761 | FM115: 33.39298 | FN115: 25333.36004 | FO115: 17080.2533 | FP115: 8253.10674 | FQ115: 23.97185 | FR115: 805 | FU115: 15196 | FV115: 10638.84782 | FW115: 10277.15839
A116: 317 | B116: Kärsämäki | C116: 2538 | E116: 1.90848329 | F116: 65.76171415 | G116: -4604.806935 | K116: 34.23106315 | L116: 5414.499606 | M116: 110.3641524 | N116: 17907.0134 | P116: 22652 | Q116: 39672 | R116: 3 | S116: -17017 | T116: 6983 | U116: 12835 | X116: -126 | Y116: 899 | Z116: 3574 | AA116: 1864 | AB116: 0 | AD116: 1710 | AE116: -1 | AF116: -9 | AG116: 3 | AH116: -2 | AI116: 1695 | AJ116: 8303 | AK116: 3436 | AM116: 171 | AN116: -1807 | AO116: 230 | AT116: 21.5 | AV116: 32 | AW116: 2533 | AY116: 2.223776119 | AZ116: 71.63198448 | BA116: -5391.113766 | BE116: 33.12238094 | BF116: 5575.001579 | BG116: 107.8563395 | BH116: 18866.5366 | BJ116: 22996.93769 | BK116: 41023.44395 | BL116: 1.10964 | BM116: -18025.39662 | BN116: 8003.75363 | BO116: 12618.72042 | BR116: -98.24668 | BS116: 766.19893 | BT116: 3265.02968 | BU116: 1971.67828 | BV116: 0 | BX116: 1293.3514 | BY116: -0.32079 | BZ116: -0.73826 | CA116: 0.66841 | CB116: -0.80537 | CC116: 1290.81857 | CD116: 9237.73579 | CE116: 3206.32538 | CG116: -954.97748 | CH116: -1398.46152 | CI116: -1576.73837 | CN116: 21.5 | CP116: 44 | CQ116: 2474 | CS116: 1.445779961 | CT116: 72.44922624 | CU116: -6537.037288 | CY116: 32.27627137 | CZ116: 5095.224737 | DA116: 88.37848054 | DB116: 21043.09802 | DD116: 23633.95679 | DE116: 42581.08816 | DF116: -38.61069 | DG116: -18985.74206 | DH116: 8671.84101 | DI116: 13208.50267 | DL116: -179.64614 | DM116: -341.37462 | DN116: 2373.58086 | DO116: 2054.08772 | DP116: 0 | DR116: 319.49314 | DS116: -1.63254 | DT116: -7.58067 | DU116: 2.58889 | DV116: 0.00125 | DW116: 307.69229 | DX116: 9493.25358 | DY116: 2300.20036 | EA116: -694.88631 | EB116: -1578.46866 | EC116: -2446.55603 | EH116: 21.5 | EJ116: 85 | EQ116: -3609 | ER116: 5 | ES116: 398 | ET116: -5170.83384 | EU116: 257.84696 | EV116: 129.92313 | EW116: -6582.1102 | EX116: 243.58967 | EY116: 1591.76414 | EZ116: 6316 | FA116: -3408 | FB116: 3216.04667 | FC116: 541.41209 | FD116: 3767.59472 | FE116: -738.97059 | FF116: 22270 | FG116: 19449 | FH116: 2821 | FI116: 145 | FJ116: 24578.9784 | FK116: 21260.71612 | FL116: 3318.26228 | FM116: 139.2536 | FN116: 26029.13386 | FO116: 23314.99378 | FP116: 2714.14008 | FQ116: 124.8536 | FR116: 1908 | FU116: 844 | FV116: 582.857 | FW116: 56.618
A117: 398 | B117: Lahti | C117: 119984 | E117: 2.492746696 | F117: 111.1405172 | G117: -10603.40545 | K117: 31.68039854 | L117: 1145.194359 | M117: 30.97635492 | N117: 13494.03254 | P117: 569747 | Q117: 1144103 | R117: -763 | S117: -575119 | T117: 500220 | U117: 281981 | X117: -18851 | Y117: 1111 | Z117: 189342 | AA117: 123654 | AB117: 18297 | AD117: 83985 | AE117: -126 | AF117: -138 | AG117: 1471 | AH117: -4688 | AI117: 77562 | AJ117: 249993 | AK117: 201625 | AM117: 6056 | AN117: -64420 | AO117: 6009 | AT117: 20.75 | AV117: 18 | AW117: 120027 | AY117: 2.738385994 | AZ117: 105.1336516 | BA117: -9869.865789 | BE117: 33.04615224 | BF117: 1807.006462 | BG117: 53.79313459 | BH117: 12260.99508 | BJ117: 664226.6004 | BK117: 1244738.32 | BL117: 274.35051 | BM117: -580237.3691 | BN117: 517129.5093 | BO117: 264310.5609 | BR117: -18837.57946 | BS117: 7408.31969 | BT117: 189773.4414 | BU117: 116880.0872 | BV117: 213.72388 | BX117: 73107.07801 | BY117: -922.96431 | BZ117: -138.8588 | CA117: 3786.54406 | CB117: -6853.32044 | CC117: 61405.3904 | CD117: 309978.4011 | CE117: 161357.8615 | CG117: -26141.00187 | CH117: -56724.07114 | CI117: 86430.80257 | CN117: 20.75 | CP117: 21 | CQ117: 120175 | CS117: 2.453868923 | CT117: 99.74663695 | CU117: -8982.657071 | CY117: 33.92681189 | CZ117: 2782.764647 | DA117: 72.82527819 | DB117: 13947.20516 | DD117: 719319.9012 | DE117: 1332564.445 | DF117: -487.15474 | DG117: -613731.699 | DH117: 543182.6273 | DI117: 284217.1393 | DL117: -14736.76631 | DM117: -2692.58044 | DN117: 196238.7209 | DO117: 117214.3312 | DP117: -208.25382 | DR117: 78816.13586 | DS117: -763.07999 | DT117: -181.97741 | DU117: 7437.4044 | DV117: -2368.31614 | DW117: 68065.35792 | DX117: 374464.7521 | DY117: 158461.7143 | EA117: -10745.40883 | EB117: -70037.70238 | EC117: 115356.4869 | EH117: 20.75 | EJ117: 17 | EQ117: -386831 | ER117: 1383 | ES117: 189832 | ET117: -150472.2072 | EU117: 3358.73746 | EV117: 72186.41078 | EW117: -236268.2284 | EX117: 2762.3534 | EY117: 190400.6476 | EZ117: 106057 | FA117: 8894 | FB117: 64124.275 | FC117: -9272.68849 | FD117: 63956.339 | FE117: -31.03627 | FF117: 1243522 | FG117: 1176487 | FH117: 67035 | FI117: 20718 | FJ117: 1239904.374 | FK117: 1174259.164 | FL117: 65645.20964 | FM117: 20051.6607 | FN117: 1233791.974 | FO117: 1129338.781 | FP117: 104453.1933 | FQ117: 19596.97528 | FR117: 0 | FU117: 287536 | FV117: 423103.8608 | FW117: 452304.6229
A118: 399 | B118: Laihia | C118: 7996 | E118: 1.621621622 | F118: 73.22770054 | G118: -5443.846923 | K118: 27.35555958 | L118: 494.6223112 | M118: 20.27606888 | N118: 8903.951976 | P118: 19000 | Q118: 63756 | R118: 0 | S118: -44756 | T118: 31213 | U118: 19273 | X118: -207 | Y118: 86 | Z118: 5609 | AA118: 3533 | AB118: 125 | AD118: 2201 | AE118: 23 | AF118: 0 | AG118: 38 | AH118: -13 | AI118: 2173 | AJ118: -841 | AK118: 5489 | AM118: 219 | AN118: -3378 | AO118: 1807 | AT118: 21.75 | AV118: 257 | AW118: 7916 | AY118: 1.44224821 | AZ118: 73.05752213 | BA118: -5692.303562 | BE118: 27.49270545 | BF118: 591.5060637 | BG118: 21.93201715 | BH118: 9844.042698 | BJ118: 20793.88 | BK118: 67744.916 | BL118: 0 | BM118: -46951.036 | BN118: 32774.662 | BO118: 19148.374 | BR118: -158.454 | BS118: 234.77 | BT118: 5048.316 | BU118: 3785.879 | BV118: 9.721 | BX118: 1272.158 | BY118: 43.34 | BZ118: 0 | CA118: 0 | CB118: -87.46027 | CC118: 1228.03773 | CD118: 358.986 | CE118: 5635.513 | CG118: -16.28 | CH118: -3449.085 | CI118: -657.352 | CN118: 21.75 | CP118: 233 | CQ118: 7817 | CS118: 0.9113277331 | CT118: 61.28699811 | CU118: -5877.027768 | CY118: 25.03834326 | CZ118: 563.527421 | DA118: 16.35519812 | DB118: 12576.27741 | DD118: 39344.70312 | DE118: 89862.74004 | DF118: 0 | DG118: -50518.03692 | DH118: 34539.97284 | DI118: 19482.513 | DL118: -237.45808 | DM118: 207.29046 | DN118: 3474.2813 | DO118: 3352.8828 | DP118: 0 | DR118: 121.3985 | DS118: 7.93031 | DT118: 0 | DU118: 0 | DV118: -61.73392 | DW118: 67.59489 | DX118: 426.58089 | DY118: 3466.71378 | EA118: -3493.58712 | EB118: -3836.26474 | EC118: -672.05375 | EH118: 21.75 | EJ118: 248 | EQ118: -3792 | ER118: 8 | ES118: 102 | ET118: -6508.84 | EU118: 193.723 | EV118: 22.252 | EW118: -4264.74843 | EX118: 111.639 | EY118: 14.3419 | EZ118: 3002 | FA118: -1420 | FB118: 6021.9 | FC118: -1969.515 | FD118: 1782.9827 | FE118: 1839.4158 | FF118: 41379 | FG118: 28491 | FH118: 12888 | FI118: 45 | FJ118: 42776.496 | FK118: 30693.075 | FL118: 12083.421 | FM118: 44.055 | FN118: 42586.14794 | FO118: 28923.76096 | FP118: 13662.38698 | FQ118: 13.21481 | FR118: 20 | FU118: 627 | FV118: 507.147 | FW118: 8615
A119: 400 | B119: Laitila | C119: 8468 | E119: 2.516770186 | F119: 68.35018627 | G119: -6111.478507 | K119: 39.37045297 | L119: 589.8677374 | M119: 18.73843735 | N119: 11489.84412 | P119: 38935 | Q119: 85921 | R119: 26 | S119: -46960 | T119: 30985 | U119: 24030 | X119: -252 | Y119: 41 | Z119: 7844 | AA119: 4980 | AB119: 0 | AD119: 2864 | AE119: -114 | AF119: 0 | AG119: 46 | AH119: 15 | AI119: 2719 | AJ119: 8652 | AK119: 7641 | AM119: 245 | AN119: -2960 | AO119: 41 | AT119: 20.75 | AV119: 174 | AW119: 8456 | AY119: 2.429837068 | AZ119: 65.57927891 | BA119: -5908.297909 | BE119: 40.27774865 | BF119: 796.420907 | BG119: 24.63286854 | BH119: 11801.04666 | BJ119: 42437.62557 | BK119: 90431.25068 | BL119: 58.11961 | BM119: -47935.50551 | BN119: 31900.53198 | BO119: 23606.51 | BR119: -216.48623 | BS119: -14.99333 | BT119: 7340.05692 | BU119: 5576.28257 | BV119: -4.23822 | BX119: 1759.53613 | BY119: 2.5723 | BZ119: 27.71975 | CA119: 10.08645 | CB119: 3.889 | CC119: 1783.63073 | CD119: 10519.79373 | CE119: 7098.60153 | CG119: -65.21039 | CH119: -2882.13403 | CI119: 1852.88522 | CN119: 20.75 | CP119: 149 | CQ119: 8366 | CS119: 4.580386033 | CT119: 63.94201991 | CU119: -6479.311898 | CY119: 38.67933267 | CZ119: 509.8934557 | DA119: 14.26898654 | DB119: 13043.05045 | DD119: 43148.43821 | DE119: 95280.13458 | DF119: 587.00028 | DG119: -51544.69609 | DH119: 33378.05092 | DI119: 25784.567 | DL119: -400.3178 | DM119: 104.87602 | DN119: 7322.48006 | DO119: 5856.61598 | DP119: -2.8403 | DR119: 1463.02378 | DS119: 14.94558 | DT119: 0 | DU119: 3.32048 | DV119: -8.18325 | DW119: 1466.46563 | DX119: 11208.41805 | DY119: 6821.49993 | EA119: 856.97704 | EB119: -1274.74772 | EC119: -3963.60422 | EH119: 20.75 | EJ119: 114 | EQ119: -8044 | ER119: 53 | ES119: 391 | ET119: -6136.24613 | EU119: 41.25688 | EV119: 849.27294 | EW119: -11885.152 | EX119: 157.56621 | EY119: 942.48164 | EZ119: 10093 | FA119: -8100 | FB119: 527.16525 | FC119: 1291.88504 | FD119: 9802.41446 | FE119: -8245.11414 | FF119: 46736 | FG119: 33062 | FH119: 13674 | FI119: 424 | FJ119: 45688.38268 | FK119: 30414.58446 | FL119: 15273.79822 | FM119: 406.392 | FN119: 46686.13076 | FO119: 36683.99472 | FP119: 10002.13604 | FQ119: 424.6122 | FR119: 1805 | FU119: 422 | FV119: 3785.968 | FW119: 3737.35424
A120: 407 | B120: Lapinjärvi | C120: 2621 | E120: 2.057553957 | F120: 76.44707048 | G120: -6323.922167 | K120: 26.28497953 | L120: 1362.075544 | M120: 45.71784436 | N120: 10874.47539 | P120: 10842 | Q120: 25768 | R120: 0 | S120: -14926 | T120: 8743 | U120: 8679 | X120: -106 | Y120: 932 | Z120: 3322 | AA120: 1556 | AB120: 0 | AD120: 1766 | AE120: -1 | AF120: 0 | AG120: 0 | AH120: 0 | AI120: 1765 | AJ120: -1124 | AK120: 3565 | AM120: 87 | AN120: -1558 | AO120: 3336 | AT120: 21 | AV120: 59 | AW120: 2580 | AY120: 1.511857895 | AZ120: 68.30295154 | BA120: -4667.397143 | BE120: 36.10434098 | BF120: 2792.261826 | BG120: 84.23900386 | BH120: 12098.61845 | BJ120: 12447.42619 | BK120: 28321.03612 | BL120: 0.68401 | BM120: -15872.92592 | BN120: 9541.32457 | BO120: 7932.171 | BR120: -78.78694 | BS120: 1113.16079 | BT120: 2634.9435 | BU120: 1474.70566 | BV120: 2998.9498 | BX120: 4159.18764 | BY120: -2.16088 | BZ120: 2.165 | CA120: 3.10379 | CB120: -4.52977 | CC120: 4151.5582 | CD120: 3027.59966 | CE120: 2197.43163 | CG120: 271.17673 | CH120: -1712.27002 | CI120: 4714.08225 | CN120: 21.5 | CP120: 96 | CQ120: 2518 | CS120: 0.6225075786 | CT120: 52.04370487 | CU120: -4394.404098 | CY120: 43.58909065 | CZ120: 1343.35689 | DA120: 37.59129035 | DB120: 13043.58697 | DD120: 11700.03311 | DE120: 28979.58345 | DF120: -8.65949 | DG120: -17288.20983 | DH120: 10065.65061 | DI120: 8502.307 | DL120: -87.60746 | DM120: 653.5569 | DN120: 1845.69722 | DO120: 1450.28385 | DP120: 0 | DR120: 395.41337 | DS120: -0.00279 | DT120: 0 | DU120: 0.26143 | DV120: 3.9886 | DW120: 399.13775 | DX120: 3426.73742 | DY120: 1907.77887 | EA120: -113.94904 | EB120: -3027.57731 | EC120: 864.83876 | EH120: 21.5 | EJ120: 159 | EQ120: -1022 | ER120: 26 | ES120: 767 | ET120: -1274.09029 | EU120: 32.58192 | EV120: 3758.15899 | EW120: -1101.00778 | EX120: 3.79565 | EY120: 54.27202 | EZ120: 533 | FA120: -267 | FB120: 217.41353 | FC120: -1.16599 | FD120: 836.1395 | FE120: -2995.7655 | FF120: 18290 | FG120: 14127 | FH120: 4163 | FI120: 0 | FJ120: 16793.37169 | FK120: 11912.47245 | FL120: 4880.89924 | FM120: 0.03015 | FN120: 11606.16837 | FO120: 10395.21038 | FP120: 1210.95799 | FQ120: 0 | FR120: 130 | FU120: 1444 | FV120: 1145.071 | FW120: 1282.40298
A121: 402 | B121: Lapinlahti | C121: 9358 | E121: 1.758194418 | F121: 71.54597806 | G121: -6604.723231 | K121: 34.12636775 | L121: 787.0271426 | M121: 23.99515317 | N121: 11971.78884 | P121: 36319 | Q121: 95404 | R121: 234 | S121: -58851 | T121: 30712 | U121: 36638 | X121: -479 | Y121: 863 | Z121: 8883 | AA121: 6195 | AB121: 1 | AD121: 2689 | AE121: 41 | AF121: 4 | AG121: -9 | AH121: -53 | AI121: 2690 | AJ121: 1793 | AK121: 8998 | AM121: 48 | AN121: -4835 | AO121: -1375 | AT121: 21.25 | AV121: 154 | AW121: 9247 | AY121: 0.8777366083 | AZ121: 72.01902262 | BA121: -6826.751075 | BE121: 32.93050556 | BF121: 979.8411074 | BG121: 28.04391137 | BH121: 12752.92877 | BJ121: 38780.91242 | BK121: 101219.9924 | BL121: 179.41953 | BM121: -62259.6604 | BN121: 32548.30905 | BO121: 35144.50129 | BR121: -450.06094 | BS121: 873.94677 | BT121: 5857.03577 | BU121: 6792.37662 | BV121: 283.95891 | BX121: -651.38194 | BY121: 6.40186 | BZ121: 6.59968 | CA121: 5.5579 | CB121: -5.67119 | CC121: -649.60949 | CD121: 1144.38396 | CE121: 5642.56041 | CG121: 505.05996 | CH121: -6739.33078 | CI121: -1434.22274 | CN121: 21.25 | CP121: 236 | CQ121: 9099 | CS121: 0.824910598 | CT121: 74.04920753 | CU121: -7453.339198 | CY121: 30.02793001 | CZ121: 909.5403737 | DA121: 25.1020929 | DB121: 13225.28116 | DD121: 43151.06234 | DE121: 107246.5377 | DF121: 223.47927 | DG121: -63871.99612 | DH121: 33164.98027 | DI121: 33561.326 | DL121: -520.72092 | DM121: 1219.88062 | DN121: 3553.46985 | DO121: 6403.76844 | DP121: -4.85189 | DR121: -2855.15048 | DS121: 105.57198 | DT121: 9.24636 | DU121: 3.10872 | DV121: -39.76758 | DW121: -2783.20844 | DX121: -1637.96011 | DY121: 3068.53392 | EA121: -714.68177 | EB121: -4423.89798 | EC121: -4722.72658 | EH121: 21.25 | EJ121: 262 | EQ121: -11268 | ER121: 336 | ES121: 559 | ET121: -9477.84731 | EU121: 621.87423 | EV121: 1779.18993 | EW121: -8096.38534 | EX121: 152.24443 | EY121: 152.88041 | EZ121: 9007 | FA121: -384 | FB121: 7222.3969 | FC121: 1675.74327 | FD121: 8079.45931 | FE121: -701.53181 | FF121: 59939 | FG121: 52808 | FH121: 7131 | FI121: 0 | FJ121: 62098.54934 | FK121: 53889.45263 | FL121: 8209.09671 | FM121: 6.11631 | FN121: 65052.57886 | FO121: 57722.41422 | FP121: 7330.16464 | FQ121: 2.29709 | FR121: 2449 | FU121: 2643 | FV121: 3146.813 | FW121: 2375.404
A122: 403 | B122: Lappajärvi | C122: 2925 | E122: 2.122633745 | F122: 70.45448349 | G122: -6773.675214 | K122: 44.97442482 | L122: 1238.974359 | M122: 31.03030872 | N122: 14573.67521 | P122: 13151 | Q122: 34164 | R122: -37 | S122: -21050 | T122: 9476 | U122: 14052 | X122: -95 | Y122: 88 | Z122: 2471 | AA122: 1846 | AB122: 0 | AD122: 625 | AE122: -48 | AF122: 2 | AG122: 3 | AH122: 0 | AI122: 576 | AJ122: 2332 | AK122: 2402 | AM122: 56 | AN122: -1107 | AO122: -4354 | AT122: 21.5 | AV122: 211 | AW122: 2866 | AY122: 2.091533058 | AZ122: 66.63329725 | BA122: -6333.777704 | BE122: 46.92321746 | BF122: 1558.532045 | BG122: 42.63325864 | BH122: 13343.20234 | BJ122: 12718.4239 | BK122: 34112.18179 | BL122: -4.6495 | BM122: -21398.40739 | BN122: 10560.51676 | BO122: 13538.59451 | BR122: 6.94157 | BS122: -4.78602 | BT122: 2702.85943 | BU122: 1970.47514 | BV122: 0 | BX122: 732.38429 | BY122: 48.09604 | BZ122: -0.04352 | CA122: 1.52973 | CB122: -9.79266 | CC122: 769.11442 | CD122: 3080.77779 | CE122: 2726.03448 | CG122: 623.10492 | CH122: -1270.73279 | CI122: 363.52896 | CN122: 22 | CP122: 120 | CQ122: 2820 | CS122: 2.063838859 | CT122: 64.90509583 | CU122: -6368.987379 | CY122: 40.02074061 | CZ122: 1319.430667 | DA122: 33.31196905 | DB122: 14457.03172 | DD122: 12655.48537 | DE122: 35160.04946 | DF122: 6.15702 | DG122: -22498.40707 | DH122: 10236.64175 | DI122: 14344.78162 | DL122: -131.89649 | DM122: 71.46968 | DN122: 2022.58949 | DO122: 2132.46435 | DP122: -1e-05 | DR122: -109.87487 | DS122: -17.26407 | DT122: 42 | DU122: 8.31938 | DV122: 1.25734 | DW122: -92.20098 | DX122: 2578.45963 | DY122: 1933.13832 | EA122: -275.97355 | EB122: -903.81862 | EC122: -149.52683 | EH122: 22 | EJ122: 163 | EQ122: -7073 | ER122: 302 | ES122: 15 | ET122: -2768.51332 | EU122: 385.041 | EV122: 20.9668 | EW122: -2559.88335 | EX122: 430.55 | EY122: 46.6682 | EZ122: 5937 | FA122: 406 | FB122: 330.78843 | FC122: 1537.80251 | FD122: 4457.60631 | FE122: -3992.18456 | FF122: 20698 | FG122: 10890 | FH122: 9808 | FI122: 160 | FJ122: 20323.9792 | FK122: 9364.5397 | FL122: 10959.4395 | FM122: 164.1284 | FN122: 20032.38233 | FO122: 12759.97641 | FP122: 7272.40592 | FQ122: 163.30272 | FR122: 5270 | FU122: 25 | FV122: 56.20891 | FW122: 271.87045
A123: 405 | B123: Lappeenranta | C123: 72662 | E123: 1.50172274 | F123: 87.62921624 | G123: -8084.060444 | K123: 31.86065472 | L123: 1000.440395 | M123: 30.31619515 | N123: 12045.0717 | P123: 353013 | Q123: 725125 | R123: -479 | S123: -372591 | T123: 302487 | U123: 159800 | X123: -4439 | Y123: -894 | Z123: 84363 | AA123: 63812 | AB123: 501 | AD123: 21052 | AE123: -327 | AF123: 55 | AG123: 1279 | AH123: -2130 | AI123: 17372 | AJ123: 115567 | AK123: 84697 | AM123: -5671 | AN123: -54657 | AO123: 533 | AT123: 21 | AV123: 89 | AW123: 72634 | AY123: 3.280839591 | AZ123: 84.21585547 | BA123: -7772.198972 | BE123: 33.33944548 | BF123: 1300.046386 | BG123: 39.51464417 | BH123: 12008.6348 | BJ123: 392916.719 | BK123: 760633.0801 | BL123: -1438.79307 | BM123: -369155.1542 | BN123: 329736.7763 | BO123: 144421.9701 | BR123: -4507.42066 | BS123: 881.9352 | BT123: 101378.1068 | BU123: 66676.79809 | BV123: 97.75867 | BX123: 34799.06733 | BY123: 237.52285 | BZ123: -0.20338 | CA123: 1500.8213 | CB123: -2384.5609 | CC123: 31151.0046 | CD123: 149318.6267 | CE123: 95560.09745 | CG123: -17254.57635 | CH123: -27683.97106 | CI123: 22394.14879 | CN123: 21 | CP123: 32 | CQ123: 72650 | CS123: 3.841250775 | CT123: 75.6771047 | CU123: -7511.053379 | CY123: 41.42132051 | CZ123: 1018.370215 | DA123: 30.44695561 | DB123: 12208.28556 | DD123: 408765.7059 | DE123: 799637.7595 | DF123: 900.67625 | DG123: -389971.3774 | DH123: 330480.3228 | DI123: 147587.6937 | DL123: -4420.26063 | DM123: 1320.57108 | DN123: 84996.94952 | DO123: 53529.30033 | DP123: 7.04179 | DR123: 31474.69098 | DS123: 341.25716 | DT123: 1.30054 | DU123: 1805.77607 | DV123: -2112.76389 | DW123: 27898.70872 | DX123: 176465.6418 | DY123: 71181.21436 | EA123: 19794.09103 | EB123: -18712.58329 | EC123: 14844.87428 | EH123: 21 | EJ123: 53 | EQ123: -88331 | ER123: 1890 | ES123: 2277 | ET123: -79223.52251 | EU123: 610.49222 | EV123: 5447.08163 | EW123: -63174.8734 | EX123: 586.32855 | EY123: 6252.20477 | EZ123: 79153 | FA123: -13527 | FB123: 26500 | FC123: 1517.15613 | FD123: 8566.28407 | FE123: -45978.98987 | FF123: 506919 | FG123: 436273 | FH123: 70646 | FI123: 10830 | FJ123: 507252.3232 | FK123: 435089.4193 | FL123: 72162.90383 | FM123: 10829.66749 | FN123: 451127.0345 | FO123: 424943.1201 | FP123: 26183.91436 | FQ123: 11505.65393 | FR123: 13468 | FU123: 29339 | FV123: 19708.346 | FW123: 13847.013
A124: 408 | B124: Lapua | C124: 14221 | E124: 0.7677332951 | F124: 107.9760501 | G124: -9268.33556 | K124: 24.99963811 | L124: 818.437522 | M124: 24.5967924 | N124: 12145.06715 | P124: 49018 | Q124: 126866 | R124: 27 | S124: -77821 | T124: 50679 | U124: 42767 | X124: -1143 | Y124: 320 | Z124: 14802 | AA124: 10450 | AB124: 0 | AD124: 4352 | AE124: -3 | AF124: 0 | AG124: 192 | AH124: 78 | AI124: 4235 | AJ124: 20341 | AK124: 14218 | AM124: 327 | AN124: -19658 | AO124: -6721 | AT124: 21.5 | AV124: 116 | AW124: 14203 | AY124: 1.29782168 | AZ124: 99.82833538 | BA124: -8882.942041 | BE124: 26.5429944 | BF124: 986.9567021 | BG124: 32.10738194 | BH124: 11219.82468 | BJ124: 57087.81674 | BK124: 135706.8801 | BL124: -22.54852 | BM124: -78641.61183 | BN124: 53484.81833 | BO124: 41409.681 | BR124: -695.61808 | BS124: 255.78767 | BT124: 15813.05709 | BU124: 10860.89037 | BV124: 0 | BX124: 4952.16672 | BY124: 1.37868 | BZ124: 3.89892 | CA124: 13.40223 | CB124: -443.87613 | CC124: 4500.16596 | CD124: 24910.12248 | CE124: 15620.89013 | CG124: -33.97932 | CH124: -12006.23378 | CI124: 5581.3738 | CN124: 21.5 | CP124: 71 | CQ124: 14099 | CS124: 1.204546679 | CT124: 97.69577846 | CU124: -9126.348381 | CY124: 26.7096161 | CZ124: 889.6448535 | DA124: 26.84777261 | DB124: 12094.87194 | DD124: 56174.1638 | DE124: 142320.0438 | DF124: -33.00148 | DG124: -86178.88145 | DH124: 56624.03677 | DI124: 43729.599 | DL124: -819.56727 | DM124: 536.36759 | DN124: 13891.55464 | DO124: 11604.03157 | DP124: 0 | DR124: 2287.52307 | DS124: 10.57611 | DT124: 0 | DU124: 160.13046 | DV124: -180.32203 | DW124: 1957.64669 | DX124: 25459.74199 | DY124: 13604.93615 | EA124: -102.32237 | EB124: -11381.7809 | EC124: -856.20299 | EH124: 21.5 | EJ124: 81 | EQ124: -24745 | ER124: 96 | ES124: 3710 | ET124: -10505.84331 | EU124: 80.32838 | EV124: 385.9986 | EW124: -15082.05299 | EX124: 318.5772 | EY124: 302.33665 | EZ124: 30754 | FA124: -921 | FB124: 8311.98246 | FC124: 760.85454 | FD124: 8164.5622 | FE124: 3157.88866 | FF124: 122668 | FG124: 93078 | FH124: 29590 | FI124: 0 | FJ124: 119765.4469 | FK124: 89632.57391 | FL124: 30132.87297 | FM124: 15.34 | FN124: 118198.7051 | FO124: 85449.46542 | FP124: 32749.23965 | FQ124: 12.272 | FR124: 857 | FU124: 6461 | FV124: 5564.46689 | FW124: 950.66841
A125: 410 | B125: Laukaa | C125: 18823 | E125: 1.63575628 | F125: 101.3373749 | G125: -8463.050523 | K125: 16.40671083 | L125: 328.746746 | M125: 11.86873358 | N125: 10109.97184 | P125: 42984 | Q125: 150822 | R125: 0 | S125: -107838 | T125: 71756 | U125: 54173 | X125: -320 | Y125: 246 | Z125: 18017 | AA125: 11840 | AB125: 0 | AD125: 6177 | AE125: 0 | AF125: -198 | AG125: 0 | AH125: -96 | AI125: 5883 | AJ125: -1626 | AK125: 16593 | AM125: 1153 | AN125: -10880 | AO125: -8788 | AT125: 21.5 | AV125: 149 | AW125: 18788 | AY125: 5.247943244 | AZ125: 109.2661028 | BA125: -9101.273076 | BE125: 14.2340232 | BF125: 493.4200591 | BG125: 17.97765924 | BH125: 10017.89605 | BJ125: 45914.99081 | BK125: 164224.7898 | BL125: 0 | BM125: -118309.799 | BN125: 75420.85657 | BO125: 50200.73001 | BR125: -309.61558 | BS125: 496.10393 | BT125: 7498.27592 | BU125: 10345.20644 | BV125: 578 | BX125: -2268.93052 | BY125: 0 | BZ125: -296.88394 | CA125: -139.09024 | CB125: 94.35343 | CC125: -2332.37079 | CD125: -4026.22261 | CE125: 6966.43483 | CG125: -1418.20295 | CH125: -1163.65961 | CI125: -11317.62863 | CN125: 21.5 | CP125: 280 | CQ125: 18775 | CS125: 2.579327515 | CT125: 106.434982 | CU125: -9459.887253 | CY125: 12.60920958 | CZ125: 384.7031734 | DA125: 13.53835691 | DB125: 10371.76515 | DD125: 50364.29752 | DE125: 175708.9105 | DF125: 0 | DG125: -125344.613 | DH125: 78602.9909 | DI125: 55230.42036 | DL125: -506.00661 | DM125: 412.96977 | DN125: 8395.76141 | DO125: 11537.08511 | DP125: 509.82415 | DR125: -2631.49955 | DS125: 0 | DT125: -430.50807 | DU125: 0 | DV125: 104.5778 | DW125: -2957.42982 | DX125: -6895.43202 | DY125: 8351.52048 | EA125: -3778.76277 | EB125: -2937.00182 | EC125: -6208.00986 | EH125: 21.5 | EJ125: 246 | EQ125: -28178 | ER125: 674 | ES125: 2123 | ET125: -22385.61952 | EU125: 201.4 | EV125: 3900.15606 | EW125: -15462.62824 | EX125: 128.85565 | EY125: 774.24225 | EZ125: 38525 | FA125: -25591 | FB125: 27703.26638 | FC125: -12794.76402 | FD125: 0 | FE125: 6051.03068 | FF125: 147343 | FG125: 79995 | FH125: 67348 | FI125: 69 | FJ125: 161899.7942 | FK125: 107346.9287 | FL125: 54552.86557 | FM125: 63.13375 | FN125: 165946.9006 | FO125: 105343.0043 | FP125: 60603.89625 | FQ125: 103.98785 | FR125: 4388 | FU125: 21551 | FV125: 23615.52608 | FW125: 39187.23736
A126: 416 | B126: Lemi | C126: 2964 | E126: 1.271501926 | F126: 46.35773477 | G126: -4365.047233 | K126: 25.15329125 | L126: 358.974359 | M126: 11.56762875 | N126: 11326.92308 | P126: 14703 | Q126: 31402 | R126: 4 | S126: -16695 | T126: 10804 | U126: 7920 | X126: -131 | Y126: -49 | Z126: 1849 | AA126: 1017 | AB126: 20 | AD126: 852 | AE126: 0 | AF126: -1 | AG126: 0 | AH126: -17 | AI126: 834 | AJ126: -1474 | AK126: 1682 | AM126: 65 | AN126: -1426 | AO126: 1479 | AT126: 22 | AV126: 270 | AW126: 2917 | AY126: 1.217448798 | AZ126: 42.54533659 | BA126: -4053.302427 | BE126: 28.54965834 | BF126: 361.6212033 | BG126: 10.92120727 | BH126: 12085.81944 | BJ126: 15659.62893 | BK126: 32972.12302 | BL126: 5.63591 | BM126: -17306.85818 | BN126: 12121.42867 | BO126: 7073.67222 | BR126: -124.17284 | BS126: 9.93609 | BT126: 1774.00596 | BU126: 996.00421 | BV126: 3.89191 | BX126: 781.89366 | BY126: 0 | BZ126: 0.36167 | CA126: 4.52983 | CB126: -28.73349 | CC126: 748.99201 | CD126: -776.15923 | CE126: 1660.86971 | CG126: -454.84542 | CH126: -1434.94287 | CI126: 1087.16643 | CN126: 22 | CP126: 247 | CQ126: 2886 | CS126: 0.5511359789 | CT126: 42.37865667 | CU126: -4192.082328 | CY126: 28.78174056 | CZ126: 562.2926888 | DA126: 15.80137485 | DB126: 12988.54267 | DD126: 15885.85254 | DE126: 34334.00507 | DF126: -12.34175 | DG126: -18460.49428 | DH126: 11797.71729 | DI126: 7535.80113 | DL126: -111.21661 | DM126: 19.32321 | DN126: 781.13074 | DO126: 975.92617 | DP126: 0 | DR126: -194.79543 | DS126: 0 | DT126: -0.21606 | DU126: 1.70075 | DV126: -21.55755 | DW126: -218.26979 | DX126: -672.41635 | DY126: 1140.6268 | EA126: 723.11927 | EB126: -1508.27965 | EC126: -235.95315 | EH126: 22 | EJ126: 279 | EQ126: -542 | ER126: 27 | ES126: 312 | ET126: -708.33636 | EU126: 52.08535 | EV126: 82.54773 | EW126: -1489.83208 | EX126: 13.65337 | EY126: 99.59876 | EZ126: 128 | FA126: 200 | FB126: 1102.8767 | FC126: -280.5584 | FD126: 914.0864 | FE126: 400 | FF126: 11770 | FG126: 10205 | FH126: 1565 | FI126: 197 | FJ126: 11158.16524 | FK126: 9824.48823 | FL126: 1333.67701 | FM126: 195.1556 | FN126: 10992.53374 | FO126: 9427.37901 | FP126: 1565.15473 | FQ126: 227.06756 | FR126: 2278 | FU126: 4773 | FV126: 4677.34217 | FW126: 4405.06765
A127: 418 | B127: Lempäälä | C127: 23828 | E127: 1.378160789 | F127: 99.76661928 | G127: -7130.81249 | K127: 25.5603422 | L127: 734.0943428 | M127: 27.93919052 | N127: 9590.271949 | P127: 69652 | Q127: 182711 | R127: -11 | S127: -113070 | T127: 102509 | U127: 33940 | X127: -870 | Y127: 895 | Z127: 23404 | AA127: 15168 | AB127: 0 | AD127: 8236 | AE127: -287 | AF127: 0 | AG127: 255 | AH127: -224 | AI127: 7470 | AJ127: 21609 | AK127: 20783 | AM127: -7006 | AN127: -16734 | AO127: -912 | AT127: 20.5 | AV127: 138 | AW127: 24164 | AY127: 1.412284473 | AZ127: 92.04112192 | BA127: -6925.059458 | BE127: 27.93577 | BF127: 708.2162374 | BG127: 26.69357952 | BH127: 9683.936411 | BJ127: 81474.00841 | BK127: 194655.2777 | BL127: 22.51572 | BM127: -113158.7536 | BN127: 108618.28 | BO127: 28919.06815 | BR127: -901.72229 | BS127: 358.68222 | BT127: 23835.55449 | BU127: 17043.6625 | BV127: 0 | BX127: 6791.89199 | BY127: -534.79669 | BZ127: 0.3743 | CA127: 430.10415 | CB127: -46.30728 | CC127: 5781.05817 | CD127: 29664.99927 | CE127: 17948.49267 | CG127: 1152.82228 | CH127: -16606.13182 | CI127: 2869.86567 | CN127: 20.5 | CP127: 108 | CQ127: 24580 | CS127: 0.8148577123 | CT127: 95.774168 | CU127: -6868.585576 | CY127: 24.85195146 | CZ127: 1183.314264 | DA127: 41.48749872 | DB127: 10410.59885 | DD127: 75653.18634 | DE127: 206974.6944 | DF127: 169.14701 | DG127: -131152.361 | DH127: 116174.3434 | DI127: 31832.88515 | DL127: -1146.25811 | DM127: -59.42419 | DN127: 15649.18525 | DO127: 18730.4312 | DP127: 0 | DR127: -3081.24595 | DS127: -159.15898 | DT127: 0.40866 | DU127: 126.46968 | DV127: 75.22304 | DW127: -3291.24291 | DX127: 25334.07215 | DY127: 13934.78796 | EA127: 836.84557 | EB127: -19476.79004 | EC127: -1885.58688 | EH127: 20.5 | EJ127: 198 | EQ127: -28009 | ER127: 1174 | ES127: 5140 | ET127: -21594.24638 | EU127: 83.0008 | EV127: 6432.61858 | EW127: -27398.47149 | EX127: 754.59317 | EY127: 10823.50348 | EZ127: 26678 | FA127: 4070 | FB127: 15369.86654 | FC127: -4457.92599 | FD127: 23964.30516 | FE127: 6309.02305 | FF127: 168413 | FG127: 134438 | FH127: 33975 | FI127: 306 | FJ127: 162718.672 | FK127: 129602.2488 | FL127: 33116.42322 | FM127: 289.70431 | FN127: 173515.2102 | FO127: 139095.9167 | FP127: 34419.29345 | FQ127: 281.36762 | FR127: 13376 | FU127: 30293 | FV127: 41542.62706 | FW127: 7396.0555
A128: 420 | B128: Leppävirta | C128: 9402 | E128: 3.065784894 | F128: 50.31560143 | G128: -3712.188896 | K128: 44.97795148 | L128: 1204.743672 | M128: 41.1808855 | N128: 10678.04722 | P128: 36084 | Q128: 92760 | R128: 83 | S128: -56593 | T128: 35499 | U128: 29177 | X128: -301 | Y128: 677 | Z128: 8459 | AA128: 6949 | AB128: 15 | AD128: 1525 | AE128: -12 | AF128: 164 | AG128: 7 | AH128: -5 | AI128: 1665 | AJ128: 1973 | AK128: 8350 | AM128: -224 | AN128: -2524 | AO128: 3906 | AT128: 21 | AV128: 192 | AW128: 9280 | AY128: 2.493610935 | AZ128: 44.28570741 | BA128: -3269.268031 | BE128: 46.56838385 | BF128: 1221.053413 | BG128: 38.92037018 | BH128: 11451.1885 | BJ128: 38318.8073 | BK128: 98549.08989 | BL128: 58.66162 | BM128: -60171.62097 | BN128: 38542.73726 | BO128: 28064.67836 | BR128: -310.67403 | BS128: 747.71576 | BT128: 6872.83638 | BU128: 5848.12604 | BV128: 279.30801 | BX128: 1304.01835 | BY128: -15.16397 | BZ128: 6.01107 | CA128: 5.98654 | CB128: -81.23 | CC128: 1207.64891 | CD128: 3252.82152 | CE128: 9412.89139 | CG128: -380.56252 | CH128: -2565.66669 | CI128: 5563.45701 | CN128: 21 | CP128: 196 | CQ128: 9177 | CS128: 2.994730719 | CT128: 44.72212777 | CU128: -2953.674827 | CY128: 45.39528779 | CZ128: 1845.671583 | DA128: 56.11674838 | DB128: 12004.7962 | DD128: 40206.13227 | DE128: 101572.4541 | DF128: 109.11661 | DG128: -61257.20519 | DH128: 39294.44037 | DI128: 29380.75744 | DL128: -284.08112 | DM128: 668.08686 | DN128: 7801.99836 | DO128: 6934.17814 | DP128: -12.00787 | DR128: 855.81235 | DS128: -2.41413 | DT128: -0.95892 | DU128: 4.53918 | DV128: -82.09467 | DW128: 765.80545 | DX128: 4018.62697 | DY128: 8161.44121 | EA128: 143.75858 | EB128: -2410.20965 | EC128: 3621.42889 | EH128: 21 | EJ128: 122 | EQ128: -4717 | ER128: 14 | ES128: 259 | ET128: -4648.28146 | EU128: 34.67512 | EV128: 764.17196 | EW128: -5541.07486 | EX128: 31.8409 | EY128: 969.22164 | EZ128: 1870 | FA128: 891 | FB128: 1341.661 | FC128: -3896.05509 | FD128: 3999.53472 | FE128: -226.17441 | FF128: 38644 | FG128: 31558 | FH128: 7086 | FI128: 390 | FJ128: 33294.34821 | FK128: 30199.62379 | FL128: 3094.72442 | FM128: 393.70961 | FN128: 34657.49886 | FO128: 32007.10331 | FP128: 2650.39555 | FQ128: 391.46708 | FR128: 132 | FU128: 10118 | FV128: 8878.49326 | FW128: 11915
A129: 421 | B129: Lestijärvi | C129: 722 | E129: 4.371069182 | F129: 77.53662142 | G129: -11307.47922 | K129: 36.69977329 | L129: 2599.722992 | M129: 36.29887676 | N129: 26141.27424 | P129: 8882 | Q129: 14230 | R129: 27 | S129: -5321 | T129: 2542 | U129: 3458 | X129: -22 | Y129: 6 | Z129: 663 | AA129: 639 | AB129: -1 | AD129: 23 | AE129: 0 | AF129: -8 | AG129: 0 | AH129: -2 | AI129: 12 | AJ129: 1290 | AK129: 636 | AM129: -566 | AN129: -127 | AO129: -3844 | AT129: 21 | AV129: 180 | AW129: 719 | AY129: 0.02616638675 | AZ129: 104.9011526 | BA129: -14357.50401 | BE129: 24.57995616 | BF129: 7029.599179 | BG129: 85.69359118 | BH129: 29941.60549 | BJ129: 9879.3536 | BK129: 16021.28539 | BL129: 50.8612 | BM129: -6091.07059 | BN129: 2979.67663 | BO129: 3158.88453 | BR129: -7.82457 | BS129: 10.81334 | BT129: 50.47934 | BU129: 750.3251 | BV129: 0 | BX129: -699.84576 | BY129: 0.7326 | BZ129: 2.07173 | CA129: 0.21671 | CB129: 0.61034 | CC129: -696.6478 | CD129: 550.00323 | CE129: 71.16613 | CG129: 70.99831 | CH129: -3088.13582 | CI129: -2120.45084 | CN129: 21 | CP129: 291 | CQ129: 695 | CS129: -0.3612029473 | CT129: 99.5799151 | CU129: -17892.52671 | CY129: 18.85855884 | CZ129: 2791.031799 | DA129: 34.90112323 | DB129: 29188.93469 | DD129: 10420.82679 | DE129: 17154.24095 | DF129: 72.25622 | DG129: -6661.15794 | DH129: 2844.81964 | DI129: 3079.00431 | DL129: -79.75123 | DM129: 85.04235 | DN129: -732.04287 | DO129: 889.70933 | DP129: 0 | DR129: -1621.7522 | DS129: -0.79612 | DT129: 3.10301 | DU129: 5.18798 | DV129: 1.74412 | DW129: -1622.88917 | DX129: -1161.5425 | DY129: -766.13622 | EA129: -478.8331 | EB129: -1713.07715 | EC129: -2013.07194 | EH129: 21 | EJ129: 293 | EQ129: -4485 | ER129: 4 | ES129: 1 | ET129: -2385.05828 | EU129: 188.93896 | EV129: 4.50235 | EW129: -1332.55122 | EX129: 58.54784 | EY129: 27.06766 | EZ129: 3973 | FA129: -56 | FB129: 8661.62072 | FC129: -89.20414 | FD129: 566.38283 | FE129: -50.38472 | FF129: 8905 | FG129: 8750 | FH129: 155 | FI129: 11 | FJ129: 14438.28621 | FK129: 14271.14698 | FL129: 167.13923 | FM129: 8.88373 | FN129: 13260.86497 | FO129: 9148.66086 | FP129: 4112.20411 | FQ129: 51.21965 | FR129: 291 | FU129: 376 | FV129: 2917.36412 | FW129: 362.75
A130: 422 | B130: Lieksa | C130: 10719 | E130: 1.990404488 | F130: 35.89369727 | G130: -2668.159343 | K130: 56.74693564 | L130: 1381.37886 | M130: 33.70410906 | N130: 14959.69773 | P130: 73599 | Q130: 141479 | R130: -41 | S130: -67921 | T130: 39281 | U130: 41434 | X130: -293 | Y130: 530 | Z130: 13031 | AA130: 7346 | AB130: 0 | AD130: 5685 | AE130: 1 | AF130: 8 | AG130: 15 | AH130: 73 | AI130: 5751 | AJ130: 38897 | AK130: 13037 | AM130: -1622 | AN130: -6322 | AO130: 1445 | AT130: 21 | AV130: 70 | AW130: 10543 | AY130: 1.983009349 | AZ130: 33.14296472 | BA130: -2152.437024 | BE130: 58.80597887 | BF130: 1744.028628 | BG130: 41.36054681 | BH130: 15390.76483 | BJ130: 72947.26748 | BK130: 150668.5085 | BL130: 11.37651 | BM130: -77709.86454 | BN130: 43042.16026 | BO130: 45516.91645 | BR130: -241.03557 | BS130: 472.9134 | BT130: 11081.09 | BU130: 7021.89115 | BV130: 0 | BX130: 4059.19885 | BY130: -2.60728 | BZ130: 8.49009 | CA130: 2.66551 | CB130: -5.16746 | CC130: 4057.24869 | CD130: 43431.89037 | CE130: 10763.2378 | CG130: -467.49699 | CH130: -5385.0206 | CI130: 5587.57906 | CN130: 21 | CP130: 89 | CQ130: 10372 | CS130: 1.526292743 | CT130: 32.95752049 | CU130: -2223.555094 | CY130: 58.7767662 | CZ130: 1763.692189 | DA130: 38.41362474 | DB130: 16758.31566 | DD130: 77862.21251 | DE130: 159633.3771 | DF130: -57.17124 | DG130: -81828.33579 | DH130: 41667.71082 | DI130: 47980.28509 | DL130: -248.03356 | DM130: 323.17206 | DN130: 7894.79862 | DO130: 6514.60885 | DP130: 0 | DR130: 1380.18977 | DS130: 13.5844 | DT130: 17.17161 | DU130: 0.0214 | DV130: -6.76177 | DW130: 1404.16261 | DX130: 44698.18875 | DY130: 7199.76566 | EA130: -1403.92914 | EB130: -5027.51969 | EC130: -536.04821 | EH130: 21 | EJ130: 147 | EQ130: -12057 | ER130: 70 | ES130: 395 | ET130: -5765.69069 | EU130: 104.0592 | EV130: 485.97275 | EW130: -8381.73782 | EX130: 136.64689 | EY130: 509.27706 | EZ130: 7684 | FA130: -290 | FB130: 4585.61464 | FC130: -772.65522 | FD130: 3690.73025 | FE130: -717.28483 | FF130: 38453 | FG130: 31444 | FH130: 7009 | FI130: 70 | FJ130: 36880.92233 | FK130: 30975.83161 | FL130: 5905.09072 | FM130: 70 | FN130: 34826.84805 | FO130: 30067.13088 | FP130: 4759.71717 | FQ130: 70.4253 | FR130: 1753 | FU130: 16560 | FV130: 16209.50091 | FW130: 11529.37574
A131: 423 | B131: Lieto | C131: 20146 | E131: 3.867850099 | F131: 74.63778721 | G131: -5002.432245 | K131: 25.28751501 | L131: 603.941229 | M131: 26.55708246 | N131: 8300.555942 | P131: 51388 | Q131: 146427 | R131: 29 | S131: -95010 | T131: 82718 | U131: 29886 | X131: -559 | Y131: 46 | Z131: 17081 | AA131: 9821 | AB131: 0 | AD131: 7260 | AE131: -7 | AF131: 0 | AG131: 0 | AH131: -31 | AI131: 7222 | AJ131: 10422 | AK131: 15158 | AM131: -281 | AN131: -3995 | AO131: 1886 | AT131: 19.5 | AV131: 209 | AW131: 20291 | AY131: 3.580254503 | AZ131: 68.9773665 | BA131: -4776.094599 | BE131: 27.76507696 | BF131: 661.6726628 | BG131: 28.47437425 | BH131: 8481.679695 | BJ131: 57422.9616 | BK131: 156506.6713 | BL131: 23.4856 | BM131: -99060.2241 | BN131: 88242.2163 | BO131: 25739.9744 | BR131: -452.3705 | BS131: 39.9545 | BT131: 14509.5506 | BU131: 9881.3083 | BV131: 0 | BX131: 4628.2423 | BY131: 1.9348 | BZ131: 0 | CA131: 0 | CB131: -25.8614 | CC131: 4604.3157 | CD131: 15140.6131 | CE131: 12202.5506 | CG131: 1450 | CH131: -3670 | CI131: 4005.5506 | CN131: 19.75 | CP131: 200 | CQ131: 20497 | CS131: 2.938143268 | CT131: 67.67099232 | CU131: -4845.134336 | CY131: 29.47668079 | CZ131: 625.5470337 | DA131: 24.86801367 | DB131: 9181.459779 | DD131: 58825.12357 | DE131: 164249.0143 | DF131: -15.10578 | DG131: -105438.9965 | DH131: 92766.92026 | DI131: 28488.19135 | DL131: -832.69961 | DM131: 82.66661 | DN131: 15066.0821 | DO131: 9943.05041 | DP131: 0 | DR131: 5123.03169 | DS131: -3.41331 | DT131: 0 | DU131: -0.47049 | DV131: -27.34805 | DW131: 5091.79555 | DX131: 20158.71197 | DY131: 13384.41601 | EA131: -2269.16507 | EB131: -4560.09634 | EC131: -3002.22614 | EH131: 19.5 | EJ131: 158 | EQ131: -16208 | ER131: 588 | ES131: 2348 | ET131: -11363 | EU131: 316 | EV131: 2850 | EW131: -18493.62057 | EX131: 253.02242 | EY131: 1853.956 | EZ131: 3617 | FA131: 562 | FB131: 85 | FC131: -4264 | FD131: 5948.1232 | FE131: -34.48771 | FF131: 92924 | FG131: 54464 | FH131: 38460 | FI131: 0 | FJ131: 85076.6167 | FK131: 50801.9083 | FL131: 34274.7084 | FM131: 324.5547 | FN131: 86448.25895 | FO131: 52068.98805 | FP131: 34379.2709 | FQ131: 167.97097 | FR131: 7027 | FU131: 13941 | FV131: 12361 | FW131: 12564
